Workbook

Sheet CAT
A1: Simulação CAT (tecle Control+H para executar ou clique no botão CAT abaixo)
A3: Habilidade: | B3: -2 | D3: EP = | E3: 0.25 | F3: =B3-2*E3 -> -2.5 | J3: Método | K3: 2 | M3: Salto | N3: 0.5
A4: Itens Iniciais: | B4: 1 | D4: UsaEP = | E4: 0 | F4: =B3+2*E3 -> -1.5 | J4: Banco | K4: 1
A5: Itenmáximo | B5: 24 | D5: D = | E5: 1.7 | F5: 0
A6: Item | B6: 1 | C6: 2 | D6: 3 | E6: 4 | F6: 5 | G6: 6 | H6: 7 | I6: 8 | J6: 9 | K6: 10 | L6: 11 | M6: 12 | N6: 13 | O6: 14 | P6: 15 | Q6: 16 | R6: 17 | S6: 18 | T6: 19 | U6: 20 | V6: 21 | W6: 22 | X6: 23 | Y6: 24
A7: a | B7: 1.050689876 | C7: 1.498330057 | D7: 1.497721612 | E7: 1.475104272 | F7: 1.341976583 | G7: 1.365865171 | H7: 1.488790691 | I7: 1.37463063 | J7: 1.389937103 | K7: 1.311317384 | L7: 1.344788253 | M7: 1.219958007 | N7: 1.433103979 | O7: 1.21179384 | P7: 1.436733186 | Q7: 1.466350496 | R7: 1.274285972 | S7: 1.406883657 | T7: 1.306014717 | U7: 1.374712408 | V7: 1.442327678 | W7: 1.146566808 | X7: 1.450732887 | Y7: 1.371070564
A8: b | B8: -0.1291291291 | C8: -0.9039039039 | D8: -1.048048048 | E8: -1.528528529 | F8: -1.732732733 | G8: -1.996996997 | H8: -1.714714715 | I8: -1.798798799 | J8: -1.558558559 | K8: -1.600600601 | L8: -2.087087087 | M8: -1.846846847 | N8: -1.876876877 | O8: -1.936936937 | P8: -2.273273273 | Q8: -1.888888889 | R8: -1.966966967 | S8: -2.213213213 | T8: -2.015015015 | U8: -1.780780781 | V8: -2.099099099 | W8: -2.069069069 | X8: -2.303303303 | Y8: -1.438438438
A9: c | B9: 0.1458834559 | C9: 0.006898892112 | D9: 0.01740742847 | E9: 0.04596615955 | F9: 0.01036115922 | G9: 0.03837314993 | H9: 0.1517880261 | I9: 0.09940513223 | J9: 0.1096527427 | K9: 0.07647982985 | L9: 0.05243514851 | M9: 0.03880580515 | N9: 0.2195574343 | O9: 0.05179320648 | P9: 0.1100899801 | Q9: 0.2568719089 | R9: 0.1185239181 | S9: 0.1476479173 | T9: 0.152663365 | U9: 0.2029692233 | V9: 0.2451672405 | W9: 0.0157221444 | X9: 0.1735888869 | Y9: 0.09176935256
A10: Código | B10: 479 | C10: 350 | D10: 326 | E10: 246 | F10: 212 | G10: 168 | H10: 215 | I10: 201 | J10: 241 | K10: 234 | L10: 153 | M10: 193 | N10: 188 | O10: 178 | P10: 122 | Q10: 186 | R10: 173 | S10: 132 | T10: 165 | U10: 204 | V10: 151 | W10: 156 | X10: 117 | Y10: 261
A11: Resposta | B11: 0 | C11: 0 | D11: 0 | E11: 0 | F11: 0 | G11: 1 | H11: 1 | I11: 1 | J11: 0 | K11: 0 | L11: 1 | M11: 0 | N11: 1 | O11: 0 | P11: 1 | Q11: 1 | R11: 0 | S11: 1 | T11: 1 | U11: 0 | V11: 1 | W11: 0 | X11: 1 | Y11: 0
A13: Estimativa | B13: -1 | C13: -1.232836685 | D13: -1.536410423 | E13: -1.83513012 | F13: -2.063542107 | G13: -1.838058796 | H13: -1.692585068 | I13: -1.579614615 | J13: -1.706819531 | K13: -1.80950103 | L13: -1.732592104 | M13: -1.83187323 | N13: -1.770727372 | O13: -1.863097505 | P13: -1.817160434 | Q13: -1.770813505 | R13: -1.854084864 | S13: -1.816512804 | T13: -1.777038884 | U13: -1.840186 | V13: -1.809977542 | W13: -1.870735162 | X13: -1.8451897 | Y13: -1.876215949
A14: Erro-Padrão | B14: 0.8110876463 | C14: 0.6522531679 | D14: 0.578136561 | E14: 0.5366144758 | F14: 0.5112686347 | G14: 0.4284304236 | H14: 0.3935503301 | I14: 0.3586527125 | J14: 0.3437330561 | K14: 0.3357119642 | L14: 0.3074659553 | M14: 0.3030649722 | N14: 0.2892140138 | O14: 0.2872525002 | P14: 0.2711942611 | Q14: 0.2624005452 | R14: 0.2593344743 | S14: 0.2487862842 | T14: 0.2408116553 | U14: 0.2355822647 | V14: 0.229212181 | W14: 0.2276860903 | X14: 0.2211281078 | Y14: 0.2173226763
A15: Intervenção

Sheet Vero (hidden)
A1: Itens apresentados --> | D1: 1 | E1: 2 | F1: 3 | G1: 4 | H1: 5 | I1: 6 | J1: 7 | K1: 8 | L1: 9 | M1: 10 | N1: 11 | O1: 12 | P1: 13 | Q1: 14 | R1: 15 | S1: 16 | T1: 17 | U1: 18 | V1: 19 | W1: 20 | X1: 21 | Y1: 22 | Z1: 23 | AA1: 24 | AB1: 25 | AC1: 26 | AD1: 27 | AE1: 28 | AF1: 29 | AG1: 30 | AH1: 31 | AI1: 32 | AJ1: 33 | AK1: 34 | AL1: 35 | AM1: 36 | AN1: 37 | AO1: 38 | AP1: 39 | AQ1: 40 | AR1: 41 | AS1: 42 | AT1: 43 | AU1: 44 | AV1: 45 | AW1: 46 | AX1: 47 | AY1: 48 | AZ1: 49 | BA1: 50 | BB1: 51 | BC1: 52 | BD1: 53 | BE1: 54 | BF1: 55 | BG1: 56 | BH1: 57 | BI1: 58 | BJ1: 59 | BK1: 60 | BL1: 61 | BM1: 62 | BN1: 63 | BO1: 64 | BP1: 65 | BQ1: 66 | BR1: 67 | BS1: 68 | BT1: 69 | BU1: 70 | BV1: 71 | BW1: 72 | BX1: 73 | BY1: 74 | BZ1: 75 | CA1: 76 | CB1: 77 | CC1: 78 | CD1: 79 | CE1: 80 | CF1: 81 | CG1: 82 | CH1: 83 | CI1: 84 | CJ1: 85 | CK1: 86 | CL1: 87 | CM1: 88 | CN1: 89 | CO1: 90 | CP1: 91 | CQ1: 92 | CR1: 93 | CS1: 94 | CT1: 95 | CU1: 96 | CV1: 97 | CW1: 98 | CX1: 99 | CY1: 100
C2: a | D2: =IF(CAT!B7<>"",CAT!B7,"") -> 1.050689876 | E2: =IF(CAT!C7<>"",CAT!C7,"") -> 1.498330057 | F2: =IF(CAT!D7<>"",CAT!D7,"") -> 1.497721612 | G2: =IF(CAT!E7<>"",CAT!E7,"") -> 1.475104272 | H2: =IF(CAT!F7<>"",CAT!F7,"") -> 1.341976583 | I2: =IF(CAT!G7<>"",CAT!G7,"") -> 1.365865171 | J2: =IF(CAT!H7<>"",CAT!H7,"") -> 1.488790691 | K2: =IF(CAT!I7<>"",CAT!I7,"") -> 1.37463063 | L2: =IF(CAT!J7<>"",CAT!J7,"") -> 1.389937103 | M2: =IF(CAT!K7<>"",CAT!K7,"") -> 1.311317384 | N2: =IF(CAT!L7<>"",CAT!L7,"") -> 1.344788253 | O2: =IF(CAT!M7<>"",CAT!M7,"") -> 1.219958007 | P2: =IF(CAT!N7<>"",CAT!N7,"") -> 1.433103979 | Q2: =IF(CAT!O7<>"",CAT!O7,"") -> 1.21179384 | R2: =IF(CAT!P7<>"",CAT!P7,"") -> 1.436733186 | S2: =IF(CAT!Q7<>"",CAT!Q7,"") -> 1.466350496 | T2: =IF(CAT!R7<>"",CAT!R7,"") -> 1.274285972 | U2: =IF(CAT!S7<>"",CAT!S7,"") -> 1.406883657 | V2: =IF(CAT!T7<>"",CAT!T7,"") -> 1.306014717 | W2: =IF(CAT!U7<>"",CAT!U7,"") -> 1.374712408 | X2: =IF(CAT!V7<>"",CAT!V7,"") -> 1.442327678 | Y2: =IF(CAT!W7<>"",CAT!W7,"") -> 1.146566808 | Z2: =IF(CAT!X7<>"",CAT!X7,"") -> 1.450732887 | AA2: =IF(CAT!Y7<>"",CAT!Y7,"") -> 1.371070564 | AB2: =IF(CAT!Z7<>"",CAT!Z7,"") ->  | AC2: =IF(CAT!AA7<>"",CAT!AA7,"") ->  | AD2: =IF(CAT!AB7<>"",CAT!AB7,"") ->  | AE2: =IF(CAT!AC7<>"",CAT!AC7,"") ->  | AF2: =IF(CAT!AD7<>"",CAT!AD7,"") ->  | AG2: =IF(CAT!AE7<>"",CAT!AE7,"") ->  | AH2: =IF(CAT!AF7<>"",CAT!AF7,"") ->  | AI2: =IF(CAT!AG7<>"",CAT!AG7,"") ->  | AJ2: =IF(CAT!AH7<>"",CAT!AH7,"") ->  | AK2: =IF(CAT!AI7<>"",CAT!AI7,"") ->  | AL2: =IF(CAT!AJ7<>"",CAT!AJ7,"") ->  | AM2: =IF(CAT!AK7<>"",CAT!AK7,"") ->  | AN2: =IF(CAT!AL7<>"",CAT!AL7,"") ->  | AO2: =IF(CAT!AM7<>"",CAT!AM7,"") ->  | AP2: =IF(CAT!AN7<>"",CAT!AN7,"") ->  | AQ2: =IF(CAT!AO7<>"",CAT!AO7,"") ->  | AR2: =IF(CAT!AP7<>"",CAT!AP7,"") ->  | AS2: =IF(CAT!AQ7<>"",CAT!AQ7,"") ->  | AT2: =IF(CAT!AR7<>"",CAT!AR7,"") ->  | AU2: =IF(CAT!AS7<>"",CAT!AS7,"") ->  | AV2: =IF(CAT!AT7<>"",CAT!AT7,"") ->  | AW2: =IF(CAT!AU7<>"",CAT!AU7,"") ->  | AX2: =IF(CAT!AV7<>"",CAT!AV7,"") ->  | AY2: =IF(CAT!AW7<>"",CAT!AW7,"") ->  | AZ2: =IF(CAT!AX7<>"",CAT!AX7,"") ->  | BA2: =IF(CAT!AY7<>"",CAT!AY7,"") ->  | BB2: =IF(CAT!AZ7<>"",CAT!AZ7,"") ->  | BC2: =IF(CAT!BA7<>"",CAT!BA7,"") ->  | BD2: =IF(CAT!BB7<>"",CAT!BB7,"") ->  | BE2: =IF(CAT!BC7<>"",CAT!BC7,"") ->  | BF2: =IF(CAT!BD7<>"",CAT!BD7,"") ->  | BG2: =IF(CAT!BE7<>"",CAT!BE7,"") ->  | BH2: =IF(CAT!BF7<>"",CAT!BF7,"") ->  | BI2: =IF(CAT!BG7<>"",CAT!BG7,"") ->  | BJ2: =IF(CAT!BH7<>"",CAT!BH7,"") ->  | BK2: =IF(CAT!BI7<>"",CAT!BI7,"") ->  | BL2: =IF(CAT!BJ7<>"",CAT!BJ7,"") ->  | BM2: =IF(CAT!BK7<>"",CAT!BK7,"") ->  | BN2: =IF(CAT!BL7<>"",CAT!BL7,"") ->  | BO2: =IF(CAT!BM7<>"",CAT!BM7,"") ->  | BP2: =IF(CAT!BN7<>"",CAT!BN7,"") ->  | BQ2: =IF(CAT!BO7<>"",CAT!BO7,"") ->  | BR2: =IF(CAT!BP7<>"",CAT!BP7,"") ->  | BS2: =IF(CAT!BQ7<>"",CAT!BQ7,"") ->  | BT2: =IF(CAT!BR7<>"",CAT!BR7,"") ->  | BU2: =IF(CAT!BS7<>"",CAT!BS7,"") ->  | BV2: =IF(CAT!BT7<>"",CAT!BT7,"") ->  | BW2: =IF(CAT!BU7<>"",CAT!BU7,"") ->  | BX2: =IF(CAT!BV7<>"",CAT!BV7,"") ->  | BY2: =IF(CAT!BW7<>"",CAT!BW7,"") ->  | BZ2: =IF(CAT!BX7<>"",CAT!BX7,"") ->  | CA2: =IF(CAT!BY7<>"",CAT!BY7,"") ->  | CB2: =IF(CAT!BZ7<>"",CAT!BZ7,"") ->  | CC2: =IF(CAT!CA7<>"",CAT!CA7,"") ->  | CD2: =IF(CAT!CB7<>"",CAT!CB7,"") ->  | CE2: =IF(CAT!CC7<>"",CAT!CC7,"") ->  | CF2: =IF(CAT!CD7<>"",CAT!CD7,"") ->  | CG2: =IF(CAT!CE7<>"",CAT!CE7,"") ->  | CH2: =IF(CAT!CF7<>"",CAT!CF7,"") ->  | CI2: =IF(CAT!CG7<>"",CAT!CG7,"") ->  | CJ2: =IF(CAT!CH7<>"",CAT!CH7,"") ->  | CK2: =IF(CAT!CI7<>"",CAT!CI7,"") ->  | CL2: =IF(CAT!CJ7<>"",CAT!CJ7,"") ->  | CM2: =IF(CAT!CK7<>"",CAT!CK7,"") ->  | CN2: =IF(CAT!CL7<>"",CAT!CL7,"") ->  | CO2: =IF(CAT!CM7<>"",CAT!CM7,"") ->  | CP2: =IF(CAT!CN7<>"",CAT!CN7,"") ->  | CQ2: =IF(CAT!CO7<>"",CAT!CO7,"") ->  | CR2: =IF(CAT!CP7<>"",CAT!CP7,"") ->  | CS2: =IF(CAT!CQ7<>"",CAT!CQ7,"") ->  | CT2: =IF(CAT!CR7<>"",CAT!CR7,"") ->  | CU2: =IF(CAT!CS7<>"",CAT!CS7,"") ->  | CV2: =IF(CAT!CT7<>"",CAT!CT7,"") ->  | CW2: =IF(CAT!CU7<>"",CAT!CU7,"") ->  | CX2: =IF(CAT!CV7<>"",CAT!CV7,"") ->  | CY2: =IF(CAT!CW7<>"",CAT!CW7,"") -> 
C3: b | D3: =IF(CAT!B8<>"",CAT!B8,"") -> -0.1291291291 | E3: =IF(CAT!C8<>"",CAT!C8,"") -> -0.9039039039 | F3: =IF(CAT!D8<>"",CAT!D8,"") -> -1.048048048 | G3: =IF(CAT!E8<>"",CAT!E8,"") -> -1.528528529 | H3: =IF(CAT!F8<>"",CAT!F8,"") -> -1.732732733 | I3: =IF(CAT!G8<>"",CAT!G8,"") -> -1.996996997 | J3: =IF(CAT!H8<>"",CAT!H8,"") -> -1.714714715 | K3: =IF(CAT!I8<>"",CAT!I8,"") -> -1.798798799 | L3: =IF(CAT!J8<>"",CAT!J8,"") -> -1.558558559 | M3: =IF(CAT!K8<>"",CAT!K8,"") -> -1.600600601 | N3: =IF(CAT!L8<>"",CAT!L8,"") -> -2.087087087 | O3: =IF(CAT!M8<>"",CAT!M8,"") -> -1.846846847 | P3: =IF(CAT!N8<>"",CAT!N8,"") -> -1.876876877 | Q3: =IF(CAT!O8<>"",CAT!O8,"") -> -1.936936937 | R3: =IF(CAT!P8<>"",CAT!P8,"") -> -2.273273273 | S3: =IF(CAT!Q8<>"",CAT!Q8,"") -> -1.888888889 | T3: =IF(CAT!R8<>"",CAT!R8,"") -> -1.966966967 | U3: =IF(CAT!S8<>"",CAT!S8,"") -> -2.213213213 | V3: =IF(CAT!T8<>"",CAT!T8,"") -> -2.015015015 | W3: =IF(CAT!U8<>"",CAT!U8,"") -> -1.780780781 | X3: =IF(CAT!V8<>"",CAT!V8,"") -> -2.099099099 | Y3: =IF(CAT!W8<>"",CAT!W8,"") -> -2.069069069 | Z3: =IF(CAT!X8<>"",CAT!X8,"") -> -2.303303303 | AA3: =IF(CAT!Y8<>"",CAT!Y8,"") -> -1.438438438 | AB3: =IF(CAT!Z8<>"",CAT!Z8,"") ->  | AC3: =IF(CAT!AA8<>"",CAT!AA8,"") ->  | AD3: =IF(CAT!AB8<>"",CAT!AB8,"") ->  | AE3: =IF(CAT!AC8<>"",CAT!AC8,"") ->  | AF3: =IF(CAT!AD8<>"",CAT!AD8,"") ->  | AG3: =IF(CAT!AE8<>"",CAT!AE8,"") ->  | AH3: =IF(CAT!AF8<>"",CAT!AF8,"") ->  | AI3: =IF(CAT!AG8<>"",CAT!AG8,"") ->  | AJ3: =IF(CAT!AH8<>"",CAT!AH8,"") ->  | AK3: =IF(CAT!AI8<>"",CAT!AI8,"") ->  | AL3: =IF(CAT!AJ8<>"",CAT!AJ8,"") ->  | AM3: =IF(CAT!AK8<>"",CAT!AK8,"") ->  | AN3: =IF(CAT!AL8<>"",CAT!AL8,"") ->  | AO3: =IF(CAT!AM8<>"",CAT!AM8,"") ->  | AP3: =IF(CAT!AN8<>"",CAT!AN8,"") ->  | AQ3: =IF(CAT!AO8<>"",CAT!AO8,"") ->  | AR3: =IF(CAT!AP8<>"",CAT!AP8,"") ->  | AS3: =IF(CAT!AQ8<>"",CAT!AQ8,"") ->  | AT3: =IF(CAT!AR8<>"",CAT!AR8,"") ->  | AU3: =IF(CAT!AS8<>"",CAT!AS8,"") ->  | AV3: =IF(CAT!AT8<>"",CAT!AT8,"") ->  | AW3: =IF(CAT!AU8<>"",CAT!AU8,"") ->  | AX3: =IF(CAT!AV8<>"",CAT!AV8,"") ->  | AY3: =IF(CAT!AW8<>"",CAT!AW8,"") ->  | AZ3: =IF(CAT!AX8<>"",CAT!AX8,"") ->  | BA3: =IF(CAT!AY8<>"",CAT!AY8,"") ->  | BB3: =IF(CAT!AZ8<>"",CAT!AZ8,"") ->  | BC3: =IF(CAT!BA8<>"",CAT!BA8,"") ->  | BD3: =IF(CAT!BB8<>"",CAT!BB8,"") ->  | BE3: =IF(CAT!BC8<>"",CAT!BC8,"") ->  | BF3: =IF(CAT!BD8<>"",CAT!BD8,"") ->  | BG3: =IF(CAT!BE8<>"",CAT!BE8,"") ->  | BH3: =IF(CAT!BF8<>"",CAT!BF8,"") ->  | BI3: =IF(CAT!BG8<>"",CAT!BG8,"") ->  | BJ3: =IF(CAT!BH8<>"",CAT!BH8,"") ->  | BK3: =IF(CAT!BI8<>"",CAT!BI8,"") ->  | BL3: =IF(CAT!BJ8<>"",CAT!BJ8,"") ->  | BM3: =IF(CAT!BK8<>"",CAT!BK8,"") ->  | BN3: =IF(CAT!BL8<>"",CAT!BL8,"") ->  | BO3: =IF(CAT!BM8<>"",CAT!BM8,"") ->  | BP3: =IF(CAT!BN8<>"",CAT!BN8,"") ->  | BQ3: =IF(CAT!BO8<>"",CAT!BO8,"") ->  | BR3: =IF(CAT!BP8<>"",CAT!BP8,"") ->  | BS3: =IF(CAT!BQ8<>"",CAT!BQ8,"") ->  | BT3: =IF(CAT!BR8<>"",CAT!BR8,"") ->  | BU3: =IF(CAT!BS8<>"",CAT!BS8,"") ->  | BV3: =IF(CAT!BT8<>"",CAT!BT8,"") ->  | BW3: =IF(CAT!BU8<>"",CAT!BU8,"") ->  | BX3: =IF(CAT!BV8<>"",CAT!BV8,"") ->  | BY3: =IF(CAT!BW8<>"",CAT!BW8,"") ->  | BZ3: =IF(CAT!BX8<>"",CAT!BX8,"") ->  | CA3: =IF(CAT!BY8<>"",CAT!BY8,"") ->  | CB3: =IF(CAT!BZ8<>"",CAT!BZ8,"") ->  | CC3: =IF(CAT!CA8<>"",CAT!CA8,"") ->  | CD3: =IF(CAT!CB8<>"",CAT!CB8,"") ->  | CE3: =IF(CAT!CC8<>"",CAT!CC8,"") ->  | CF3: =IF(CAT!CD8<>"",CAT!CD8,"") ->  | CG3: =IF(CAT!CE8<>"",CAT!CE8,"") ->  | CH3: =IF(CAT!CF8<>"",CAT!CF8,"") ->  | CI3: =IF(CAT!CG8<>"",CAT!CG8,"") ->  | CJ3: =IF(CAT!CH8<>"",CAT!CH8,"") ->  | CK3: =IF(CAT!CI8<>"",CAT!CI8,"") ->  | CL3: =IF(CAT!CJ8<>"",CAT!CJ8,"") ->  | CM3: =IF(CAT!CK8<>"",CAT!CK8,"") ->  | CN3: =IF(CAT!CL8<>"",CAT!CL8,"") ->  | CO3: =IF(CAT!CM8<>"",CAT!CM8,"") ->  | CP3: =IF(CAT!CN8<>"",CAT!CN8,"") ->  | CQ3: =IF(CAT!CO8<>"",CAT!CO8,"") ->  | CR3: =IF(CAT!CP8<>"",CAT!CP8,"") ->  | CS3: =IF(CAT!CQ8<>"",CAT!CQ8,"") ->  | CT3: =IF(CAT!CR8<>"",CAT!CR8,"") ->  | CU3: =IF(CAT!CS8<>"",CAT!CS8,"") ->  | CV3: =IF(CAT!CT8<>"",CAT!CT8,"") ->  | CW3: =IF(CAT!CU8<>"",CAT!CU8,"") ->  | CX3: =IF(CAT!CV8<>"",CAT!CV8,"") ->  | CY3: =IF(CAT!CW8<>"",CAT!CW8,"") -> 
C4: c | D4: =IF(CAT!B9<>"",CAT!B9,"") -> 0.1458834559 | E4: =IF(CAT!C9<>"",CAT!C9,"") -> 0.006898892112 | F4: =IF(CAT!D9<>"",CAT!D9,"") -> 0.01740742847 | G4: =IF(CAT!E9<>"",CAT!E9,"") -> 0.04596615955 | H4: =IF(CAT!F9<>"",CAT!F9,"") -> 0.01036115922 | I4: =IF(CAT!G9<>"",CAT!G9,"") -> 0.03837314993 | J4: =IF(CAT!H9<>"",CAT!H9,"") -> 0.1517880261 | K4: =IF(CAT!I9<>"",CAT!I9,"") -> 0.09940513223 | L4: =IF(CAT!J9<>"",CAT!J9,"") -> 0.1096527427 | M4: =IF(CAT!K9<>"",CAT!K9,"") -> 0.07647982985 | N4: =IF(CAT!L9<>"",CAT!L9,"") -> 0.05243514851 | O4: =IF(CAT!M9<>"",CAT!M9,"") -> 0.03880580515 | P4: =IF(CAT!N9<>"",CAT!N9,"") -> 0.2195574343 | Q4: =IF(CAT!O9<>"",CAT!O9,"") -> 0.05179320648 | R4: =IF(CAT!P9<>"",CAT!P9,"") -> 0.1100899801 | S4: =IF(CAT!Q9<>"",CAT!Q9,"") -> 0.2568719089 | T4: =IF(CAT!R9<>"",CAT!R9,"") -> 0.1185239181 | U4: =IF(CAT!S9<>"",CAT!S9,"") -> 0.1476479173 | V4: =IF(CAT!T9<>"",CAT!T9,"") -> 0.152663365 | W4: =IF(CAT!U9<>"",CAT!U9,"") -> 0.2029692233 | X4: =IF(CAT!V9<>"",CAT!V9,"") -> 0.2451672405 | Y4: =IF(CAT!W9<>"",CAT!W9,"") -> 0.0157221444 | Z4: =IF(CAT!X9<>"",CAT!X9,"") -> 0.1735888869 | AA4: =IF(CAT!Y9<>"",CAT!Y9,"") -> 0.09176935256 | AB4: =IF(CAT!Z9<>"",CAT!Z9,"") ->  | AC4: =IF(CAT!AA9<>"",CAT!AA9,"") ->  | AD4: =IF(CAT!AB9<>"",CAT!AB9,"") ->  | AE4: =IF(CAT!AC9<>"",CAT!AC9,"") ->  | AF4: =IF(CAT!AD9<>"",CAT!AD9,"") ->  | AG4: =IF(CAT!AE9<>"",CAT!AE9,"") ->  | AH4: =IF(CAT!AF9<>"",CAT!AF9,"") ->  | AI4: =IF(CAT!AG9<>"",CAT!AG9,"") ->  | AJ4: =IF(CAT!AH9<>"",CAT!AH9,"") ->  | AK4: =IF(CAT!AI9<>"",CAT!AI9,"") ->  | AL4: =IF(CAT!AJ9<>"",CAT!AJ9,"") ->  | AM4: =IF(CAT!AK9<>"",CAT!AK9,"") ->  | AN4: =IF(CAT!AL9<>"",CAT!AL9,"") ->  | AO4: =IF(CAT!AM9<>"",CAT!AM9,"") ->  | AP4: =IF(CAT!AN9<>"",CAT!AN9,"") ->  | AQ4: =IF(CAT!AO9<>"",CAT!AO9,"") ->  | AR4: =IF(CAT!AP9<>"",CAT!AP9,"") ->  | AS4: =IF(CAT!AQ9<>"",CAT!AQ9,"") ->  | AT4: =IF(CAT!AR9<>"",CAT!AR9,"") ->  | AU4: =IF(CAT!AS9<>"",CAT!AS9,"") ->  | AV4: =IF(CAT!AT9<>"",CAT!AT9,"") ->  | AW4: =IF(CAT!AU9<>"",CAT!AU9,"") ->  | AX4: =IF(CAT!AV9<>"",CAT!AV9,"") ->  | AY4: =IF(CAT!AW9<>"",CAT!AW9,"") ->  | AZ4: =IF(CAT!AX9<>"",CAT!AX9,"") ->  | BA4: =IF(CAT!AY9<>"",CAT!AY9,"") ->  | BB4: =IF(CAT!AZ9<>"",CAT!AZ9,"") ->  | BC4: =IF(CAT!BA9<>"",CAT!BA9,"") ->  | BD4: =IF(CAT!BB9<>"",CAT!BB9,"") ->  | BE4: =IF(CAT!BC9<>"",CAT!BC9,"") ->  | BF4: =IF(CAT!BD9<>"",CAT!BD9,"") ->  | BG4: =IF(CAT!BE9<>"",CAT!BE9,"") ->  | BH4: =IF(CAT!BF9<>"",CAT!BF9,"") ->  | BI4: =IF(CAT!BG9<>"",CAT!BG9,"") ->  | BJ4: =IF(CAT!BH9<>"",CAT!BH9,"") ->  | BK4: =IF(CAT!BI9<>"",CAT!BI9,"") ->  | BL4: =IF(CAT!BJ9<>"",CAT!BJ9,"") ->  | BM4: =IF(CAT!BK9<>"",CAT!BK9,"") ->  | BN4: =IF(CAT!BL9<>"",CAT!BL9,"") ->  | BO4: =IF(CAT!BM9<>"",CAT!BM9,"") ->  | BP4: =IF(CAT!BN9<>"",CAT!BN9,"") ->  | BQ4: =IF(CAT!BO9<>"",CAT!BO9,"") ->  | BR4: =IF(CAT!BP9<>"",CAT!BP9,"") ->  | BS4: =IF(CAT!BQ9<>"",CAT!BQ9,"") ->  | BT4: =IF(CAT!BR9<>"",CAT!BR9,"") ->  | BU4: =IF(CAT!BS9<>"",CAT!BS9,"") ->  | BV4: =IF(CAT!BT9<>"",CAT!BT9,"") ->  | BW4: =IF(CAT!BU9<>"",CAT!BU9,"") ->  | BX4: =IF(CAT!BV9<>"",CAT!BV9,"") ->  | BY4: =IF(CAT!BW9<>"",CAT!BW9,"") ->  | BZ4: =IF(CAT!BX9<>"",CAT!BX9,"") ->  | CA4: =IF(CAT!BY9<>"",CAT!BY9,"") ->  | CB4: =IF(CAT!BZ9<>"",CAT!BZ9,"") ->  | CC4: =IF(CAT!CA9<>"",CAT!CA9,"") ->  | CD4: =IF(CAT!CB9<>"",CAT!CB9,"") ->  | CE4: =IF(CAT!CC9<>"",CAT!CC9,"") ->  | CF4: =IF(CAT!CD9<>"",CAT!CD9,"") ->  | CG4: =IF(CAT!CE9<>"",CAT!CE9,"") ->  | CH4: =IF(CAT!CF9<>"",CAT!CF9,"") ->  | CI4: =IF(CAT!CG9<>"",CAT!CG9,"") ->  | CJ4: =IF(CAT!CH9<>"",CAT!CH9,"") ->  | CK4: =IF(CAT!CI9<>"",CAT!CI9,"") ->  | CL4: =IF(CAT!CJ9<>"",CAT!CJ9,"") ->  | CM4: =IF(CAT!CK9<>"",CAT!CK9,"") ->  | CN4: =IF(CAT!CL9<>"",CAT!CL9,"") ->  | CO4: =IF(CAT!CM9<>"",CAT!CM9,"") ->  | CP4: =IF(CAT!CN9<>"",CAT!CN9,"") ->  | CQ4: =IF(CAT!CO9<>"",CAT!CO9,"") ->  | CR4: =IF(CAT!CP9<>"",CAT!CP9,"") ->  | CS4: =IF(CAT!CQ9<>"",CAT!CQ9,"") ->  | CT4: =IF(CAT!CR9<>"",CAT!CR9,"") ->  | CU4: =IF(CAT!CS9<>"",CAT!CS9,"") ->  | CV4: =IF(CAT!CT9<>"",CAT!CT9,"") ->  | CW4: =IF(CAT!CU9<>"",CAT!CU9,"") ->  | CX4: =IF(CAT!CV9<>"",CAT!CV9,"") ->  | CY4: =IF(CAT!CW9<>"",CAT!CW9,"") -> 
C6: Respostas | D6: =IF(CAT!B11<>"",CAT!B11,"") -> 0 | E6: =IF(CAT!C11<>"",CAT!C11,"") -> 0 | F6: =IF(CAT!D11<>"",CAT!D11,"") -> 0 | G6: =IF(CAT!E11<>"",CAT!E11,"") -> 0 | H6: =IF(CAT!F11<>"",CAT!F11,"") -> 0 | I6: =IF(CAT!G11<>"",CAT!G11,"") -> 1 | J6: =IF(CAT!H11<>"",CAT!H11,"") -> 1 | K6: =IF(CAT!I11<>"",CAT!I11,"") -> 1 | L6: =IF(CAT!J11<>"",CAT!J11,"") -> 0 | M6: =IF(CAT!K11<>"",CAT!K11,"") -> 0 | N6: =IF(CAT!L11<>"",CAT!L11,"") -> 1 | O6: =IF(CAT!M11<>"",CAT!M11,"") -> 0 | P6: =IF(CAT!N11<>"",CAT!N11,"") -> 1 | Q6: =IF(CAT!O11<>"",CAT!O11,"") -> 0 | R6: =IF(CAT!P11<>"",CAT!P11,"") -> 1 | S6: =IF(CAT!Q11<>"",CAT!Q11,"") -> 1 | T6: =IF(CAT!R11<>"",CAT!R11,"") -> 0 | U6: =IF(CAT!S11<>"",CAT!S11,"") -> 1 | V6: =IF(CAT!T11<>"",CAT!T11,"") -> 1 | W6: =IF(CAT!U11<>"",CAT!U11,"") -> 0 | X6: =IF(CAT!V11<>"",CAT!V11,"") -> 1 | Y6: =IF(CAT!W11<>"",CAT!W11,"") -> 0 | Z6: =IF(CAT!X11<>"",CAT!X11,"") -> 1 | AA6: =IF(CAT!Y11<>"",CAT!Y11,"") -> 0 | AB6: =IF(CAT!Z11<>"",CAT!Z11,"") ->  | AC6: =IF(CAT!AA11<>"",CAT!AA11,"") ->  | AD6: =IF(CAT!AB11<>"",CAT!AB11,"") ->  | AE6: =IF(CAT!AC11<>"",CAT!AC11,"") ->  | AF6: =IF(CAT!AD11<>"",CAT!AD11,"") ->  | AG6: =IF(CAT!AE11<>"",CAT!AE11,"") ->  | AH6: =IF(CAT!AF11<>"",CAT!AF11,"") ->  | AI6: =IF(CAT!AG11<>"",CAT!AG11,"") ->  | AJ6: =IF(CAT!AH11<>"",CAT!AH11,"") ->  | AK6: =IF(CAT!AI11<>"",CAT!AI11,"") ->  | AL6: =IF(CAT!AJ11<>"",CAT!AJ11,"") ->  | AM6: =IF(CAT!AK11<>"",CAT!AK11,"") ->  | AN6: =IF(CAT!AL11<>"",CAT!AL11,"") ->  | AO6: =IF(CAT!AM11<>"",CAT!AM11,"") ->  | AP6: =IF(CAT!AN11<>"",CAT!AN11,"") ->  | AQ6: =IF(CAT!AO11<>"",CAT!AO11,"") ->  | AR6: =IF(CAT!AP11<>"",CAT!AP11,"") ->  | AS6: =IF(CAT!AQ11<>"",CAT!AQ11,"") ->  | AT6: =IF(CAT!AR11<>"",CAT!AR11,"") ->  | AU6: =IF(CAT!AS11<>"",CAT!AS11,"") ->  | AV6: =IF(CAT!AT11<>"",CAT!AT11,"") ->  | AW6: =IF(CAT!AU11<>"",CAT!AU11,"") ->  | AX6: =IF(CAT!AV11<>"",CAT!AV11,"") ->  | AY6: =IF(CAT!AW11<>"",CAT!AW11,"") ->  | AZ6: =IF(CAT!AX11<>"",CAT!AX11,"") ->  | BA6: =IF(CAT!AY11<>"",CAT!AY11,"") ->  | BB6: =IF(CAT!AZ11<>"",CAT!AZ11,"") ->  | BC6: =IF(CAT!BA11<>"",CAT!BA11,"") ->  | BD6: =IF(CAT!BB11<>"",CAT!BB11,"") ->  | BE6: =IF(CAT!BC11<>"",CAT!BC11,"") ->  | BF6: =IF(CAT!BD11<>"",CAT!BD11,"") ->  | BG6: =IF(CAT!BE11<>"",CAT!BE11,"") ->  | BH6: =IF(CAT!BF11<>"",CAT!BF11,"") ->  | BI6: =IF(CAT!BG11<>"",CAT!BG11,"") ->  | BJ6: =IF(CAT!BH11<>"",CAT!BH11,"") ->  | BK6: =IF(CAT!BI11<>"",CAT!BI11,"") ->  | BL6: =IF(CAT!BJ11<>"",CAT!BJ11,"") ->  | BM6: =IF(CAT!BK11<>"",CAT!BK11,"") ->  | BN6: =IF(CAT!BL11<>"",CAT!BL11,"") ->  | BO6: =IF(CAT!BM11<>"",CAT!BM11,"") ->  | BP6: =IF(CAT!BN11<>"",CAT!BN11,"") ->  | BQ6: =IF(CAT!BO11<>"",CAT!BO11,"") ->  | BR6: =IF(CAT!BP11<>"",CAT!BP11,"") ->  | BS6: =IF(CAT!BQ11<>"",CAT!BQ11,"") ->  | BT6: =IF(CAT!BR11<>"",CAT!BR11,"") ->  | BU6: =IF(CAT!BS11<>"",CAT!BS11,"") ->  | BV6: =IF(CAT!BT11<>"",CAT!BT11,"") ->  | BW6: =IF(CAT!BU11<>"",CAT!BU11,"") ->  | BX6: =IF(CAT!BV11<>"",CAT!BV11,"") ->  | BY6: =IF(CAT!BW11<>"",CAT!BW11,"") ->  | BZ6: =IF(CAT!BX11<>"",CAT!BX11,"") ->  | CA6: =IF(CAT!BY11<>"",CAT!BY11,"") ->  | CB6: =IF(CAT!BZ11<>"",CAT!BZ11,"") ->  | CC6: =IF(CAT!CA11<>"",CAT!CA11,"") ->  | CD6: =IF(CAT!CB11<>"",CAT!CB11,"") ->  | CE6: =IF(CAT!CC11<>"",CAT!CC11,"") ->  | CF6: =IF(CAT!CD11<>"",CAT!CD11,"") ->  | CG6: =IF(CAT!CE11<>"",CAT!CE11,"") ->  | CH6: =IF(CAT!CF11<>"",CAT!CF11,"") ->  | CI6: =IF(CAT!CG11<>"",CAT!CG11,"") ->  | CJ6: =IF(CAT!CH11<>"",CAT!CH11,"") ->  | CK6: =IF(CAT!CI11<>"",CAT!CI11,"") ->  | CL6: =IF(CAT!CJ11<>"",CAT!CJ11,"") ->  | CM6: =IF(CAT!CK11<>"",CAT!CK11,"") ->  | CN6: =IF(CAT!CL11<>"",CAT!CL11,"") ->  | CO6: =IF(CAT!CM11<>"",CAT!CM11,"") ->  | CP6: =IF(CAT!CN11<>"",CAT!CN11,"") ->  | CQ6: =IF(CAT!CO11<>"",CAT!CO11,"") ->  | CR6: =IF(CAT!CP11<>"",CAT!CP11,"") ->  | CS6: =IF(CAT!CQ11<>"",CAT!CQ11,"") ->  | CT6: =IF(CAT!CR11<>"",CAT!CR11,"") ->  | CU6: =IF(CAT!CS11<>"",CAT!CS11,"") ->  | CV6: =IF(CAT!CT11<>"",CAT!CT11,"") ->  | CW6: =IF(CAT!CU11<>"",CAT!CU11,"") ->  | CX6: =IF(CAT!CV11<>"",CAT!CV11,"") ->  | CY6: =IF(CAT!CW11<>"",CAT!CW11,"") ->  | DD6: =SUMPRODUCT(DD10:DD170,DB10:DB170)*0.05 -> 3.567415433
C7: Estimativa | D7: -1.876215949 | F7: =SUMPRODUCT(C10:C170,DB10:DB170)*0.05 -> -1.876215949 | H7: =INDEX(C10:C170,MATCH(MAX(DB10:DB170),DB10:DB170,0)) -> -1.85 | J7: =(D7+F7+H7)/3 -> -1.867477299 | DA7: =IF(CAT!$K$3=1,0,Vero!D7) -> -1.876215949 | DB7: =SUMPRODUCT(B10:B170,CZ10:CZ170)*0.05 -> 2.566532208e-07 | DD7: =DD6-F7^2 -> 0.04722914563
DD8: =SQRT(DD7) -> 0.2173226763
A9: Posição | B9: Vero | C9: theta | D9: 1 | E9: 2 | F9: 3 | G9: 4 | H9: 5 | I9: 6 | J9: 7 | K9: 8 | L9: 9 | M9: 10 | N9: 11 | O9: 12 | P9: 13 | Q9: 14 | R9: 15 | S9: 16 | T9: 17 | U9: 18 | V9: 19 | W9: 20 | X9: 21 | Y9: 22 | Z9: 23 | AA9: 24 | AB9: 25 | AC9: 26 | AD9: 27 | AE9: 28 | AF9: 29 | AG9: 30 | AH9: 31 | AI9: 32 | AJ9: 33 | AK9: 34 | AL9: 35 | AM9: 36 | AN9: 37 | AO9: 38 | AP9: 39 | AQ9: 40 | AR9: 41 | AS9: 42 | AT9: 43 | AU9: 44 | AV9: 45 | AW9: 46 | AX9: 47 | AY9: 48 | AZ9: 49 | BA9: 50 | BB9: 51 | BC9: 52 | BD9: 53 | BE9: 54 | BF9: 55 | BG9: 56 | BH9: 57 | BI9: 58 | BJ9: 59 | BK9: 60 | BL9: 61 | BM9: 62 | BN9: 63 | BO9: 64 | BP9: 65 | BQ9: 66 | BR9: 67 | BS9: 68 | BT9: 69 | BU9: 70 | BV9: 71 | BW9: 72 | BX9: 73 | BY9: 74 | BZ9: 75 | CA9: 76 | CB9: 77 | CC9: 78 | CD9: 79 | CE9: 80 | CF9: 81 | CG9: 82 | CH9: 83 | CI9: 84 | CJ9: 85 | CK9: 86 | CL9: 87 | CM9: 88 | CN9: 89 | CO9: 90 | CP9: 91 | CQ9: 92 | CR9: 93 | CS9: 94 | CT9: 95 | CU9: 96 | CV9: 97 | CW9: 98 | CX9: 99 | CY9: 100 | CZ9: fdp N(0,1) | DA9: fdp N(thetaest,1) | DB9: g* | DD9: theta^2
A10: 1 | B10: 1.463687727e-10 | C10: -4 | D10: =IFERROR(D$4+(1-D$4)/(1+EXP(-1.7*D$2*($C10-D$3))),"") -> 0.1467313752 | E10: 0.007272033136 | F10: 0.0179419446 | G10: 0.04790291514 | H10: 0.01594140131 | I10: 0.04747251371 | J10: 0.1543896328 | K10: 0.1046293868 | L10: 0.1124249062 | M10: 0.0808491795 | N10: 0.06423605633 | O10: 0.0497330264 | P10: 0.2239578163 | Q10: 0.06512827424 | R10: 0.1230135661 | S10: 0.2607029279 | T10: =IFERROR(T$4+(1-T$4)/(1+EXP(-1.7*T$2*($C10-T$3))),"") -> 0.1291712995 | U10: 0.1593609307 | V10: 0.1628682663 | W10: 0.2074017797 | X10: 0.2522393273 | Y10: 0.03803750437 | Z10: 0.1859865208 | AA10: 0.09408203929 | AB10: =IFERROR(AB$4+(1-AB$4)/(1+EXP(-1.7*AB$2*($C10-AB$3))),"") ->  | AN10: =IFERROR(AN$4+(1-AN$4)/(1+EXP(-1.7*AN$2*($C10-AN$3))),"") ->  | CZ10: =1/SQRT(2*PI())*EXP(-(C10^2)/2) -> 0.0001338302258 | DA10: =1/SQRT(2*PI())*EXP(-((C10-$DA$7)^2)/2) -> 0.04182889625 | DB10: =B10*CZ10/$DB$7 -> 7.632308621e-08 | DD10: =C10^2 -> 16
A11: 2 | B11: 1.601427147e-10 | C11: =C10+0.05 -> -3.95 | D11: =IFERROR(D$4+(1-D$4)/(1+EXP(-1.7*D$2*($C11-D$3))),"") -> 0.1468105002 | E11: 0.007322692877 | F11: 0.01801446829 | G11: 0.04816103853 | H11: 0.0166113944 | I11: 0.04858081406 | J11: 0.1547393762 | K11: 0.1052726812 | L11: 0.1127713369 | M11: 0.08136165155 | N11: 0.06564517964 | O11: 0.050911937 | P11: 0.2245242307 | Q11: 0.06655253132 | R11: 0.1246647475 | S11: 0.2612084912 | T11: 0.1303729649 | U11: 0.1608258212 | V11: 0.1640502969 | W11: 0.2079477697 | X11: 0.2531519803 | Y11: 0.04026486482 | Z11: 0.1875859996 | AA11: 0.09436707803 | AH11: =IFERROR(AH$4+(1-AH$4)/(1+EXP(-1.7*AH$2*($C11-AH$3))),"") ->  | CZ11: =1/SQRT(2*PI())*EXP(-(C11^2)/2) -> 0.0001632564088 | DA11: =1/SQRT(2*PI())*EXP(-((C11-$DA$7)^2)/2) -> 0.04645697433 | DB11: =B11*CZ11/$DB$7 -> 1.018663409e-07 | DD11: =C11^2 -> 15.6025
A12: 3 | B12: 1.768604633e-10 | C12: =C11+0.05 -> -3.9 | D12: 0.1468970001 | E12: 0.007380227137 | F12: 0.01809682516 | G12: 0.04845347375 | H12: 0.01736125814 | I12: 0.04982248253 | J12: 0.1551359508 | K12: 0.1059946054 | L12: 0.1131608892 | M12: 0.08193387374 | N12: 0.06721990516 | O12: 0.05221624239 | P12: 0.225163027 | Q12: 0.06812624908 | R12: 0.1265229389 | S12: 0.2617803285 | T12: 0.1317081972 | U12: 0.1624706881 | V12: 0.1653671641 | W12: 0.2085605386 | X12: 0.2541809914 | Y12: 0.04270830776 | Z12: 0.1893878298 | AA12: 0.09468713466 | CZ12: 0.0001986554714 | DA12: 0.05146828556 | DB12: 1.368940495e-07 | DD12: 15.21
A13: 4 | B13: 1.973105613e-10 | C13: -3.85 | D13: 0.1469915606 | E13: 0.00744556782 | F13: 0.01819034645 | G13: 0.04878475628 | H13: 0.01820036863 | I13: 0.05121315022 | J13: 0.1555855739 | K13: 0.1068046183 | L13: 0.113598885 | M13: 0.08257272401 | N13: 0.06897902489 | O13: 0.05365887345 | P13: 0.2258833108 | Q13: 0.06986451647 | R13: 0.1286130249 | S13: 0.2624270034 | T13: 0.133191355 | U13: 0.1643167891 | V13: 0.1668337417 | W13: 0.2092481305 | X13: 0.255340807 | Y13: 0.04538749752 | Z13: 0.1914165174 | AA13: 0.09504648165 | CZ13: 0.0002411265802 | DA13: 0.05687779427 | DB13: 1.853739483e-07 | DD13: 14.8225
A14: 5 | B14: 2.225386319e-10 | C14: -3.8 | D14: 0.1470949308 | E14: =IFERROR(E$4+(1-E$4)/(1+EXP(-1.7*E$2*($C14-E$3))),"") -> 0.007519772879 | F14: 0.01829654305 | G14: 0.04916001384 | H14: 0.0191391658 | I14: 0.05277017287 | J14: 0.1560952731 | K14: 0.1077132769 | L14: 0.1140912914 | M14: 0.0832858502 | N14: =IFERROR(N$4+(1-N$4)/(1+EXP(-1.7*N$2*($C14-N$3))),"") -> 0.07094329519 | O14: 0.05525400264 | P14: 0.2266952941 | Q14: 0.07178381287 | R14: 0.1309625937 | S14: 0.263158151 | T14: 0.1348382248 | U14: 0.1663876683 | V14: 0.1684664213 | W14: 0.2100195257 | X14: 0.2566475611 | Y14: 0.04832361903 | Z14: 0.1936992392 | AA14: 0.09544990502 | CS14: =IFERROR(CS$4+(1-CS$4)/(1+EXP(-1.7*CS$2*($C14-CS$3))),"") ->  | CZ14: 0.0002919469258 | DA14: 0.06269891912 | DB14: 2.531410643e-07 | DD14: 14.44
A15: 6 | B15: 2.539452672e-10 | C15: -3.75 | D15: 0.147207929 | E15: 0.007604043281 | F15: 0.01841712955 | G15: 0.04958504173 | H15: 0.0201892647 | I15: 0.05451279365 | J15: 0.1566729874 | K15: 0.1087323538 | L15: 0.1146447951 | M15: 0.08408175068 | N15: 0.07313559975 | O15: 0.05701714239 | P15: 0.2276104184 | Q15: 0.0739021064 | R15: 0.1336021536 | S15: 0.2639846024 | T15: 0.1366661361 | U15: 0.1687093416 | V15: 0.1702832364 | W15: 0.210884742 | X15: 0.2581192431 | Y15: 0.05153943903 | Z15: 0.1962660524 | AA15: 0.09590276405 | AH15: =IFERROR(AH$4+(1-AH$4)/(1+EXP(-1.7*AH$2*($C15-AH$3))),"") ->  | CZ15: 0.0003525956824 | DA15: 0.06894322992 | DB15: 3.488754378e-07 | DD15: 14.0625
A16: 7 | B16: 2.934260809e-10 | C16: -3.7 | D16: 0.147331449 | E16: 0.007699742239 | F16: 0.01855405154 | G16: 0.05006638707 | H16: 0.02136357615 | I16: 0.0564623138 | J16: 0.1573276796 | K16: 0.109874964 | L16: 0.1152668854 | M16: 0.0849698623 | N16: 0.07558111499 | O16: 0.05896524633 | P16: 0.22864149 | Q16: 0.07623895219 | R16: 0.1365653441 | S16: 0.2649185206 | T16: 0.1386940782 | U16: 0.1713104832 | V16: 0.1723039901 | W16: 0.2118549438 | X16: 0.259775875 | Y16: 0.05505935682 | Z16: 0.1991500984 | AA16: 0.0964110574 | CZ16: 0.0004247802706 | DA16: 0.07562013727 | DB16: 4.856421036e-07 | DD16: 13.69
A17: 8 | B17: 3.435740086e-10 | C17: -3.65 | D17: 0.147466467 | E17: 0.007808416992 | F17: 0.01870951641 | G17: 0.05061144294 | H17: 0.02267643664 | I17: 0.05864226976 | J17: 0.1580694613 | K17: 0.1111557016 | L17: 0.1159659453 | M17: 0.08596065558 | N17: 0.0783074746 | O17: 0.06111681236 | P17: 0.2298028247 | Q17: 0.07881558864 | R17: 0.1398891349 | S17: 0.2659735488 | T17: 0.1409428177 | U17: 0.174222603 | V17: 0.1745503827 | W17: 0.2129425598 | X17: 0.2616396943 | Y17: 0.05890944085 | Z17: 0.2023877902 | AA17: 0.09698149619 | CZ17: 0.0005104649743 | DA17: 0.0827365792 | DB17: 6.833442299e-07 | DD17: 13.3225
A18: 9 | B18: 4.079743122e-10 | C18: -3.6 | D18: 0.1476140492 | E18: 0.007931823475 | F18: 0.01888602822 | G18: 0.05122855338 | H18: 0.02414374759 | I18: 0.06107861402 | J18: 0.1589097312 | K18: 0.1125907865 | L18: 0.1167513522 | M18: 0.08706573753 | N18: 0.08134492857 | O18: 0.06349198565 | P18: 0.2311104045 | Q18: 0.08165502905 | R18: 0.1436140024 | S18: 0.2671649696 | T18: 0.1434350145 | U18: 0.1774802116 | V18: 0.1770461371 | W18: 0.21416141 | X18: 0.2637353413 | Y18: 0.06311744715 | Z18: 0.2060189751 | AA18: 0.09762158459 | CS18: =IFERROR(CS$4+(1-CS$4)/(1+EXP(-1.7*CS$2*($C18-CS$3))),"") ->  | CZ18: 0.0006119019301 | DA18: 0.09029670938 | DB18: 9.726753801e-07 | DD18: 12.96
A19: 10 | B19: 4.916388424e-10 | C19: -3.55 | D19: 0.1477753598 | E19: 0.008071954244 | F19: 0.01908642714 | G19: 0.05192713015 | H19: 0.02578312349 | I19: 0.06379989636 | J19: 0.1598613264 | K19: 0.1141982199 | L19: 0.1176335871 | M19: 0.08829796203 | N19: 0.08472649119 | O19: 0.06611265974 | P19: 0.2325820436 | Q19: 0.08478214562 | R19: 0.1477840699 | S19: 0.2685098768 | T19: 0.1461953323 | U19: 0.1811209613 | V19: 0.1798171182 | W19: 0.2155268403 | X19: 0.2660900442 | Y19: 0.06771281443 | Z19: 0.2100870566 | AA19: 0.09833970845 | AH19: =IFERROR(AH$4+(1-AH$4)/(1+EXP(-1.7*AH$2*($C19-AH$3))),"") ->  | CZ19: 0.0007316644628 | DA19: 0.0983015919 | DB19: 1.401559148e-06 | DD19: 12.6025
A20: 11 | B20: 6.016512219e-10 | C20: -3.5 | D20: =IFERROR(D$4+(1-D$4)/(1+EXP(-1.7*D$2*($C20-D$3))),"") -> 0.1479516699 | E20: 0.008231070074 | F20: 0.01931393393 | G20: 0.05271778226 | H20: 0.02761404817 | I20: 0.06683744073 | J20: 0.1609386896 | K20: 0.1159979479 | L20: 0.1186243549 | M20: 0.08967154777 | N20: =IFERROR(N$4+(1-N$4)/(1+EXP(-1.7*N$2*($C20-N$3))),"") -> 0.08848807041 | O20: 0.06900257284 | P20: 0.2342375637 | Q20: 0.08822374175 | R20: 0.152447198 | S20: 0.270027357 | T20: 0.1492505402 | U20: 0.1851857523 | V20: 0.1828914406 | W20: 0.2170558651 | X20: =IFERROR(X$4+(1-X$4)/(1+EXP(-1.7*X$2*($C20-X$3))),"") -> 0.2687337993 | Y20: 0.07272663068 | Z20: 0.2146390609 | AA20: 0.09914523258 | CZ20: 0.000872682695 | DA20: 0.1067489081 | DB20: 2.045758897e-06 | DD20: 12.25
A21: 12 | B21: 7.481339871e-10 | C21: -3.45 | D21: 0.148144367 | E21: 0.008411735686 | F21: 0.01957220018 | G21: 0.05361245922 | H21: 0.02965803809 | I21: 0.07022551192 | J21: 0.1621580497 | K21: 0.1180120316 | L21: 0.1197367141 | M21: 0.09120220319 | N21: 0.09266856991 | O21: 0.07218739621 | P21: 0.2360989764 | Q21: 0.0920086082 | R21: 0.1576550034 | S21: 0.2717386808 | T21: 0.1526295996 | U21: 0.1897187907 | V21: 0.1862995602 | W21: 0.2187673158 | X21: 0.2716995362 | Y21: 0.07819156473 | Z21: 0.2197256263 | AA21: 0.100048607 | AH21: =IFERROR(AH$4+(1-AH$4)/(1+EXP(-1.7*AH$2*($C21-AH$3))),"") ->  | CZ21: 0.001038281296 | DA21: 0.1156326813 | DB21: 3.026548909e-06 | DD21: 11.9025
A22: 13 | B22: 9.457107106e-10 | C22: -3.4 | D22: 0.1483549658 | E22: 0.008616860135 | F22: 0.019865365 | G22: 0.05462460875 | H22: 0.03193881071 | I22: 0.07400146403 | J22: 0.1635376188 | K22: 0.1202648217 | L22: 0.1209852176 | M22: 0.09290725795 | N22: 0.09730995255 | O22: 0.07569481036 | P22: 0.2381906696 | Q22: 0.09616755737 | R22: 0.1634627853 | S22: 0.2736674998 | T22: 0.1563637319 | U22: 0.1947675794 | V22: 0.1900743415 | W22: 0.2206819943 | X22: 0.2750232587 | Y22: 0.08414175627 | Z22: 0.2254008917 | AA22: 0.1010614826 | CZ22: 0.001232219168 | DA22: 0.1249430244 | DB22: 4.540456815e-06 | DD22: 11.56
A23: 14 | B23: 1.215733964e-09 | C23: -3.35 | D23: 0.1485851192 | E23: 0.008849742417 | F23: 0.02019811873 | G23: 0.05576934987 | H23: 0.03448245545 | I23: 0.07820586133 | J23: 0.1650978024 | K23: 0.1227831339 | L23: 0.1223860632 | M23: 0.09480579969 | N23: 0.1024572523 | O23: 0.07955456429 | P23: 0.2405395943 | Q23: 0.1007334294 | R23: 0.169929332 | S23: 0.2758400463 | T23: 0.1604864574 | U23: 0.2003828241 | V23: 0.1942510921 | W23: 0.2228228286 | X23: 0.2787441509 | Y23: 0.09061265679 | Z23: 0.2317222576 | AA23: 0.1021968365 | CZ23: 0.001458730805 | DA23: 0.1346659182 | DB23: 6.909823996e-06 | DD23: 11.2225
A24: 15 | B24: 1.589704522e-09 | C24: -3.3 | D24: 0.1488366307 | E24: 0.00911412294 | F24: 0.0205757748 | G24: 0.05706366157 | H24: 0.03731760376 | I24: 0.08288255965 | J24: 0.1668614235 | K24: 0.1255964211 | L24: 0.1239572541 | M24: 0.09691881467 | N24: 0.1081585192 | O24: 0.08379851184 | P24: 0.2431754469 | Q24: 0.1057410626 | R24: 0.1771165781 | S24: 0.2782853316 | T24: 0.1650335991 | U24: 0.2066182311 | V24: 0.1988675543 | W24: 0.2252150264 | X24: 0.2829046316 | Y24: 0.09764081383 | Z24: 0.2387499882 | AA24: 0.1034691077 | CS24: =IFERROR(CS$4+(1-CS$4)/(1+EXP(-1.7*CS$2*($C24-CS$3))),"") ->  | CZ24: 0.001722568939 | DA24: 0.1447830238 | DB24: 1.066955491e-05 | DD24: 10.89
A25: 16 | B25: 2.114551011e-09 | C25: -3.25 | D25: 0.149111468 | E25: 0.009414241559 | F25: 0.02100435037 | G25: 0.05852658759 | H25: 0.04047559373 | I25: 0.08807873397 | J25: 0.1688539577 | K25: 0.1287369366 | L25: 0.1257187683 | M25: 0.09926932998 | N25: 0.1144646797 | O25: 0.08846061826 | P25: 0.2461308384 | Q25: 0.1112272194 | R25: 0.18508908 | S25: 0.2810353331 | T25: 0.1700432395 | U25: 0.2135301704 | V25: 0.2039638419 | W25: 0.2278862234 | X25: 0.2875503396 | Y25: 0.1052635908 | Z25: 0.246546621 | AA25: 0.1048943409 | AH25: =IFERROR(AH$4+(1-AH$4)/(1+EXP(-1.7*AH$2*($C25-AH$3))),"") ->  | CZ25: 0.002029048057 | DA25: 0.1552715371 | DB25: 1.671720934e-05 | DD25: 10.5625
A26: 17 | B26: 2.860822242e-09 | C26: -3.2 | D26: 0.149411777 | E26: 0.00975490294 | F26: 0.02149065677 | G26: 0.06017945664 | H26: 0.04399062324 | I26: 0.0938448355 | J26: 0.1711037761 | K26: 0.1322398808 | L26: 0.1276927355 | M26: 0.1018825546 | N26: 0.1214292924 | O26: 0.09357692917 | P26: 0.2494414442 | Q26: 0.1172304589 | R26: 0.1939132759 | S26: 0.2841251652 | T26: 0.1755556205 | U26: 0.221177178 | V26: 0.2095823089 | W26: 0.230866619 | X26: 0.2927300298 | Y26: 0.1135188143 | Z26: 0.2551761521 | AA26: 0.1064903416 | CZ26: 0.002384088201 | DA26: 0.1661040899 | DB26: 2.657458391e-05 | DD26: 10.24
A27: 18 | B27: 3.935441736e-09 | C27: -3.15 | D27: 0.1497398977 | E27: 0.01014155009 | F27: 0.02204240086 | G27: 0.06204611737 | H27: 0.04789988431 | I27: 0.1002344588 | J27: 0.1736423914 | K27: 0.1361435234 | L27: 0.1299036183 | M27: 0.1047860155 | N27: 0.129108178 | O27: 0.0991854928 | P27: 0.25314612 | Q27: 0.1237909457 | R27: 0.2036564956 | S27: 0.2875932184 | T27: 0.1816129722 | U27: 0.2296192688 | V27: 0.215767335 | W27: 0.234189094 | X27: 0.2984953538 | Y27: 0.122444343 | Z27: 0.2647029615 | AA27: 0.108276837 | CZ27: 0.002794258415 | DA27: 0.1772487019 | DB27: 4.284630114e-05 | DD27: 9.9225
A28: 19 | B28: 5.501593933e-09 | C28: -3.1 | D28: 0.1500983813 | E28: 0.01058034699 | F28: 0.02266829824 | G28: 0.0641531863 | H28: 0.05224366933 | I28: 0.1073040968 | J28: 0.1765047011 | K28: 0.140489288 | L28: 0.1323783957 | M28: 0.1080096834 | N28: 0.1375589001 | O28: 0.1053262255 | P28: 0.2572869724 | Q28: 0.1309501838 | R28: 0.2143856911 | S28: 0.2914812553 | T28: 0.1882592592 | U28: 0.2389170325 | V28: 0.2225650123 | W28: 0.2378892981 | X28: 0.3049005001 | Y28: 0.1320775501 | Z28: 0.2751904538 | AA28: 0.1102756458 | CS28: =IFERROR(CS$4+(1-CS$4)/(1+EXP(-1.7*CS$2*($C28-CS$3))),"") ->  | CZ28: 0.003266819056 | DA28: 0.1886687901 | DB28: 7.002722133e-05 | DD28: 9.61
A29: 20 | B29: 7.809703128e-09 | C29: -3.05 | D29: 0.1504900078 | E29: 0.01107827124 | F29: 0.02337819953 | G29: 0.06653030573 | H29: 0.05706543796 | I29: 0.1151127604 | J29: 0.1797292175 | K29: 0.1453217868 | L29: 0.1351467443 | M29: 0.1115860837 | N29: 0.146840075 | O29: 0.1120407099 | P29: 0.2619093656 | Q29: 0.1387506647 | R29: 0.2261658637 | S29: 0.2958344439 | T29: 0.1955398262 | U29: 0.2491304884 | V29: 0.2300227156 | W29: 0.2420056986 | X29: 0.3120016627 | Y29: 0.1424547179 | Z29: 0.2866993927 | AA29: 0.1125108509 | AH29: =IFERROR(AH$4+(1-AH$4)/(1+EXP(-1.7*AH$2*($C29-AH$3))),"") ->  | CZ29: 0.003809762098 | DA29: 0.200323237 | DB29: 0.0001159272846 | DD29: 9.3025
A30: 21 | B30: 1.12455152e-08 | C30: -3 | D30: =IFERROR(D$4+(1-D$4)/(1+EXP(-1.7*D$2*($C30-D$3))),"") -> 0.1509178066 | E30: 0.01164321783 | F30: 0.0241832307 | G30: 0.06921040742 | H30: 0.06241183119 | I30: 0.1237214354 | J30: 0.1833582744 | K30: 0.1506887901 | L30: 0.1382412103 | M30: 0.1155503827 | N30: =IFERROR(N$4+(1-N$4)/(1+EXP(-1.7*N$2*($C30-N$3))),"") -> 0.1570104878 | O30: 0.1193719135 | P30: 0.2670618448 | Q30: 0.1472354189 | R30: 0.2390581747 | S30: 0.300701308 | T30: 0.2035009327 | U30: 0.2603176808 | V30: 0.2381885411 | W30: 0.2465795757 | X30: =IFERROR(X$4+(1-X$4)/(1+EXP(-1.7*X$2*($C30-X$3))),"") -> 0.3198563107 | Y30: 0.1536103405 | Z30: 0.2992859242 | AA30: 0.1150089742 | CZ30: 0.004431848412 | DA30: 0.2121665224 | DB30: 0.0001941858298 | DD30: 9
A31: 22 | B31: 1.640419248e-08 | C31: -2.95 | D31: 0.1513850766 | E31: 0.01228411508 | F31: 0.02509594866 | G31: 0.07222997607 | H31: 0.0683326169 | I31: 0.1331923532 | J31: 0.1874381949 | K31: 0.1566411089 | L31: 0.1416973661 | M31: 0.1199404424 | N31: 0.1681279982 | O31: 0.1273638169 | P31: 0.2727959534 | Q31: 0.1564474609 | R31: 0.253117746 | S31: 0.3061335699 | T31: 0.2121891595 | U31: 0.2725330074 | V31: 0.247110597 | W31: 0.2516549491 | X31: 0.3285222282 | Y31: 0.1655763381 | Z31: 0.312999304 | AA31: 0.1177991489 | AH31: =IFERROR(AH$4+(1-AH$4)/(1+EXP(-1.7*AH$2*($C31-AH$3))),"") ->  | CZ31: 0.005142640923 | DA31: 0.2241489199 | DB31: 0.0003286959395 | DD31: 8.7025
A32: 23 | B32: 2.420319759e-08 | C32: -2.9 | D32: 0.1518954098 | E32: 0.01301105388 | F32: 0.02613051303 | G32: 0.07562930411 | H32: 0.07488054864 | I32: 0.1435880488 | J32: 0.1920194009 | K32: 0.1632323732 | L32: 0.1455539413 | M32: 0.1247968322 | N32: 0.180248222 | O32: 0.1360609395 | P32: 0.2791659174 | Q32: 0.1664291192 | R32: 0.2683911771 | S32: 0.3121858561 | T32: 0.2216506756 | U32: 0.285825287 | V32: 0.2568361341 | W32: 0.2572784169 | X32: 0.3380563018 | Y32: 0.1783811879 | Z32: 0.3278793659 | AA32: 0.1209132834 | CZ32: 0.00595253242 | DA32: 0.2362167591 | DB32: 0.0005613423353 | DD32: 8.41
A33: 24 | B33: 3.605140523e-08 | C33: -2.85 | D33: 0.1524527154 | E33: 0.01383543134 | F33: 0.02730287499 | G33: 0.07945272718 | H33: 0.08211111755 | I33: 0.1549701858 | J33: 0.1971564427 | K33: 0.1705186799 | L33: 0.1498529172 | M33: 0.1301627842 | N33: 0.1934229868 | O33: 0.1455077519 | P33: 0.2862281689 | Q33: 0.177221246 | R33: 0.2849138343 | S33: 0.3189152372 | T33: 0.2319303578 | U33: 0.3002355922 | V33: 0.2674105082 | W33: 0.2634988879 | X33: 0.3485130381 | Y33: 0.1920489829 | Z33: 0.3439538051 | AA33: 0.12438621 | CZ33: 0.006872766691 | DA33: 0.2483127541 | DB33: 0.0009653995234 | DD33: 8.1225
A34: 25 | B34: 5.40965036e-08 | C34: -2.8 | D34: 0.1530612457 | E34: 0.01477010994 | F34: 0.02863098375 | G34: 0.08374882589 | H34: 0.09008217495 | I34: 0.1673981337 | J34: 0.20290792 | K34: 0.1785580859 | L34: 0.154639569 | M34: 0.1360840792 | N34: 0.2076985695 | O34: 0.1557479672 | P34: 0.2940406794 | Q34: 0.1888623051 | R34: 0.3027070037 | S34: 0.326380567 | T34: 0.2430707563 | U34: 0.3157948964 | V34: 0.278875972 | W34: 0.270367186 | X34: 0.3599428073 | Y34: 0.2065984365 | Z34: 0.3612353796 | AA34: 0.1282558098 | CS34: =IFERROR(CS$4+(1-CS$4)/(1+EXP(-1.7*CS$2*($C34-CS$3))),"") ->  | CZ34: 0.007915451583 | DA34: 0.2603763956 | DB34: 0.001668392291 | DD34: 7.84
A35: 26 | B35: 8.157515813e-08 | C35: -2.75 | D35: 0.1537256244 | E35: 0.01582959322 | F35: 0.03013501109 | G35: 0.08857057624 | H35: 0.09885340257 | I35: 0.1809272928 | J35: 0.2093362633 | K35: 0.1874099228 | L35: 0.1599624413 | M35: 0.1426088466 | N35: 0.2231137404 | O35: 0.1668237045 | P35: 0.302662075 | Q35: 0.2013873422 | R35: 0.3217750308 | S35: 0.3346415905 | T35: 0.2551109104 | U35: 0.3325216125 | V35: 0.2912703046 | W35: 0.2779355023 | X35: 0.3723898242 | Y35: 0.2220418548 | Z35: 0.3797191724 | AA35: 0.1325631034 | AH35: =IFERROR(AH$4+(1-AH$4)/(1+EXP(-1.7*AH$2*($C35-AH$3))),"") ->  | CZ35: 0.009093562502 | DA35: 0.2723444055 | DB35: 0.002890315565 | DD35: 7.5625
A36: 27 | B36: 1.23286164e-07 | C36: -2.7 | D36: 0.1544508762 | E36: 0.01703021881 | F36: 0.03183759349 | G36: 0.09397542658 | H36: 0.1084856066 | I36: 0.1956071748 | J36: 0.2165073381 | K36: 0.1971339059 | L36: 0.1658732344 | M36: 0.1497872603 | N36: 0.2396976581 | O36: 0.1787745254 | P36: 0.3121505058 | Q36: 0.2148268476 | R36: 0.3421026105 | S36: 0.3437577893 | T36: 0.2680850241 | U36: 0.3504191284 | V36: 0.3046252968 | W36: 0.2862566749 | X36: 0.385889903 | Y36: 0.2383841077 | Z36: 0.3993800913 | AA36: 0.1373522925 | CZ36: 0.01042093481 | DA36: 0.2841512494 | DB36: 0.005005809297 | DD36: 7.29
A37: 28 | B37: 1.861881897e-07 | C37: -2.65 | D37: 0.1552424582 | E37: 0.01839036943 | F37: 0.03376409109 | G37: 0.1000252745 | H37: 0.1190398138 | I37: 0.2114792672 | J37: 0.2244898337 | K37: 0.2077890191 | L37: 0.1724265813 | M37: 0.1576711131 | N37: 0.2574676796 | O37: 0.1916363445 | P37: 0.3225622522 | Q37: 0.2292055301 | R37: 0.3636524156 | S37: 0.353786942 | T37: 0.2820210236 | U37: 0.3694734752 | V37: 0.3189651246 | W37: 0.2953832752 | X37: 0.400468047 | Y37: 0.2556216358 | Z37: 0.4201708043 | AA37: 0.1426707398 | CZ37: 0.01191224361 | DA37: 0.2957297017 | DB37: 0.008641695847 | DD37: 7.0225
A38: 29 | B38: 2.800793891e-07 | C38: -2.6 | D38: 0.1561062938 | E38: 0.01993070209 | F38: 0.03594286151 | G38: 0.1067863125 | H38: 0.1305761503 | I38: 0.228574728 | J38: 0.2333543931 | K38: 0.2194321595 | L38: 0.1796796892 | M38: 0.1663132495 | N38: 0.276427175 | O38: 0.2054402298 | P38: 0.3339500575 | Q38: 0.2445410302 | R38: 0.3863632754 | S38: 0.3647833868 | T38: 0.2969390297 | U38: 0.389651285 | V38: 0.3343046577 | W38: 0.3053664864 | X38: 0.416135965 | Y38: 0.2737415338 | Z38: 0.4420203237 | AA38: 0.1485688655 | CS38: =IFERROR(CS$4+(1-CS$4)/(1+EXP(-1.7*CS$2*($C38-CS$3))),"") ->  | CZ38: 0.01358296923 | DA38: 0.3070114581 | DB38: 0.01482276246 | DD38: 6.76
A39: 30 | B39: 4.182331423e-07 | C39: -2.55 | D39: 0.1570488075 | E39: 0.02167439512 | F39: 0.03840554549 | G39: 0.1143287054 | H39: 0.1431524905 | I39: 0.2469119856 | J39: 0.2431724456 | K39: 0.2321165361 | L39: 0.1876918195 | M39: 0.1757668409 | N39: 0.2965634549 | O39: 0.2202111107 | P39: 0.3463611938 | Q39: 0.2608426095 | R39: 0.4101491138 | S39: 0.3767959915 | T39: 0.312849794 | U39: 0.4108982135 | V39: 0.3506477675 | W39: 0.3162547637 | X39: 0.4328896408 | Y39: 0.2927207584 | Z39: 0.4648334407 | AA39: 0.1550999429 | AH39: =IFERROR(AH$4+(1-AH$4)/(1+EXP(-1.7*AH$2*($C39-AH$3))),"") ->  | CZ39: 0.01544934713 | DA39: 0.317927787 | DB39: 0.02517571756 | DD39: 6.5025
A40: 31 | B40: 6.177344284e-07 | C40: -2.5 | D40: =IFERROR(D$4+(1-D$4)/(1+EXP(-1.7*D$2*($C40-D$3))),"") -> 0.1580769625 | E40: 0.02364741213 | F40: 0.04118735958 | G40: 0.1227260606 | H40: 0.1568228726 | I40: 0.2664943418 | J40: 0.2540147032 | K40: 0.2458898297 | L40: 0.1965235792 | M40: 0.1860844858 | N40: =IFERROR(N$4+(1-N$4)/(1+EXP(-1.7*N$2*($C40-N$3))),"") -> 0.317845941 | O40: 0.2359664244 | P40: 0.3598352874 | Q40: 0.278109865 | R40: 0.4348988384 | S40: 0.3898658546 | T40: 0.3297531577 | U40: 0.4331380004 | V40: 0.3679857137 | W40: 0.328092281 | X40: =IFERROR(X$4+(1-X$4)/(1+EXP(-1.7*X$2*($C40-X$3))),"") -> 0.4507071067 | Y40: 0.3125255098 | Z40: 0.4884911791 | AA40: 0.1623197681 | CZ40: 0.01752830049 | DA40: 0.3284102125 | DB40: 0.04218857902 | DD40: 6.25
A41: 32 | B41: 8.990954791e-07 | C41: -2.45 | D41: 0.1591982991 | E41: 0.02587878071 | F41: 0.04432738911 | G41: 0.1320546475 | H41: 0.1716356877 | I41: 0.2873077034 | J41: 0.2659492959 | K41: 0.2607921398 | L41: 0.2062359977 | M41: 0.1973171251 | N41: 0.3402247192 | O41: 0.252714743 | P41: 0.3744019544 | Q41: 0.2963315231 | R41: 0.4604773273 | S41: 0.4040237955 | T41: 0.3476366093 | U41: 0.4562723275 | V41: 0.3862957014 | W41: 0.340917177 | X41: 0.4695465977 | Y41: 0.3331108332 | Z41: 0.5128523798 | AA41: 0.1702861804 | AH41: =IFERROR(AH$4+(1-AH$4)/(1+EXP(-1.7*AH$2*($C41-AH$3))),"") ->  | CZ41: 0.01983735439 | DA41: 0.3383912185 | DB41: 0.06949328591 | DD41: 6.0025
A42: 33 | B42: 1.284576907e-06 | C42: -2.4 | D42: 0.1604209752 | E42: 0.0284008827 | F42: 0.04786887229 | G42: 0.1423923211 | H42: 0.1876316685 | I42: 0.3093185875 | J42: 0.2790395337 | K42: 0.276853764 | L42: 0.2168893661 | M42: 0.2095127671 | N42: 0.3636296177 | O42: 0.2704544311 | P42: 0.390078328 | Q42: 0.3154843797 | R42: 0.48672759 | S42: 0.419287718 | T42: 0.366474024 | U42: 0.4801815982 | V42: 0.4055397115 | W42: 0.3547596378 | X42: 0.489345272 | Y42: 0.3544204872 | Z42: 0.5377564468 | AA42: 0.1790584078 | CZ42: 0.02239453029 | DA42: 0.3478049659 | DB42: 0.1120870269 | DD42: 5.76
A43: 34 | B43: 1.794608073e-06 | C43: -2.35 | D43: 0.161753808 | E43: 0.03124975097 | F43: 0.05185946311 | G43: 0.1538171101 | H43: 0.2048417208 | I43: 0.3324725593 | J43: 0.2933413086 | K43: 0.2940928795 | L43: 0.228541823 | M43: 0.2227150266 | N43: 0.3879699428 | O43: 0.2891723965 | P43: 0.4068665881 | Q43: 0.3355324531 | R43: 0.5134740911 | S43: 0.4356599715 | T43: 0.3862246764 | U43: 0.5047267068 | V43: 0.4256637086 | W43: 0.3696398662 | X43: 0.5100186751 | Y43: 0.3763871136 | Z43: 0.5630271867 | AA43: 0.1886962137 | CZ43: 0.02521821992 | DA43: 0.3565880102 | DB43: 0.1763345144 | DD43: 5.5225
A44: 35 | B44: 2.441947045e-06 | C44: -2.3 | D44: 0.1632063167 | E44: 0.03446536573 | F44: 0.05635145692 | G44: 0.1664054345 | H44: 0.2232846624 | I44: 0.3566932645 | J44: 0.3089001776 | K44: 0.3125132232 | L44: 0.2412476806 | M44: 0.2369614937 | N44: 0.4131349779 | O44: 0.3088430013 | P44: 0.4247516354 | Q44: 0.3564264196 | R44: 0.5405271255 | S44: 0.4531248673 | T44: 0.4068326168 | U44: 0.5297517945 | V44: 0.4465973233 | W44: 0.385566018 | X44: 0.5314610972 | Y44: 0.398932737 | Z44: 0.588477577 | AA44: 0.1992588224 | CS44: =IFERROR(CS$4+(1-CS$4)/(1+EXP(-1.7*CS$2*($C44-CS$3))),"") ->  | CZ44: 0.02832703774 | DA44: 0.3646800103 | DB44: 0.2695198053 | DD44: 5.29
A45: 36 | B45: 3.223899912e-06 | C45: -2.25 | D45: 0.1647887658 | E45: 0.03809194062 | F45: 0.06140195857 | G45: 0.1802299291 | H45: 0.2429649615 | I45: 0.3818822029 | J45: 0.3257482096 | K45: 0.3321018916 | L45: 0.2550554997 | M45: 0.2522819637 | N45: 0.4389953148 | O45: 0.3294272084 | P45: 0.4436990764 | Q45: 0.3781033963 | R45: 0.5676880355 | S45: 0.4716465345 | T45: 0.428226494 | U45: 0.5550879117 | V45: 0.4682540939 | W45: 0.4025322017 | X45: 0.553546926 | Y45: 0.4219696029 | Z45: 0.6139152031 | AA45: 0.2108036085 | AH45: =IFERROR(AH$4+(1-AH$4)/(1+EXP(-1.7*AH$2*($C45-AH$3))),"") ->  | CZ45: 0.03173965184 | DA45: 0.3720244163 | DB45: 0.3986915124 | DD45: 5.0625
A46: 37 | B46: 4.114052218e-06 | C46: -2.2 | D46: 0.1665122084 | E46: 0.04217818577 | F46: 0.06707296788 | G46: 0.1953568736 | H46: 0.2638705835 | I46: 0.4079193611 | J46: 0.3439007209 | K46: 0.3528274012 | L46: 0.270005939 | M46: 0.2686965735 | N46: 0.4654050301 | O46: 0.3508720351 | P46: 0.4636536998 | Q46: 0.4004871247 | R46: 0.5947549767 | S46: 0.4911673193 | T46: 0.4503198943 | U46: 0.5805574211 | V46: 0.4905323222 | W46: 0.4205166633 | X46: 0.5761330236 | Y46: 0.4454013502 | Z46: 0.6391480353 | AA46: 0.2233845421 | CZ46: 0.03547459285 | DA46: 0.3785691269 | DB46: 0.5686440518 | DD46: 4.84
A47: 38 | B47: 5.056274878e-06 | C47: -2.15 | D47: 0.1683885297 | E47: 0.04677753117 | F47: 0.07343135196 | G47: 0.2118432524 | H47: 0.2859710795 | I47: 0.4346647756 | J47: 0.363353068 | K47: 0.3746381667 | L47: 0.2861294302 | M47: 0.2862139114 | N47: 0.4922046627 | O47: 0.3731103809 | P47: 0.4845386268 | Q47: 0.4234885926 | R47: 0.6215288817 | S47: 0.5116069281 | T47: 0.4730122388 | U47: 0.6059789107 | V47: 0.5133165667 | W47: 0.4394802892 | X47: 0.5990620751 | Y47: 0.4691244937 | Z47: 0.6639901817 | AA47: 0.2370503951 | CZ47: 0.03955004159 | DA47: 0.3842671034 | DB47: 0.7791676297 | DD47: 4.6225
A48: 39 | B48: 5.964596621e-06 | C48: -2.1 | D48: 0.1704304887 | E48: 0.05194828936 | F48: 0.08054866825 | G48: 0.2297335059 | H48: 0.3092160601 | I48: 0.4619610363 | J48: 0.3840777141 | K48: 0.3974615532 | L48: 0.3034437534 | M48: 0.304829182 | N48: 0.5192248812 | O48: 0.3960612859 | P48: 0.5062552951 | Q48: 0.4470071128 | R48: 0.6478192512 | S48: 0.5328624951 | T48: 0.4961902529 | U48: 0.6311723308 | V48: 0.536479752 | W48: 0.4593655678 | X48: 0.6221667696 | Y48: 0.4930301731 | Z48: 0.6882672543 | AA48: 0.2518427299 | CS48: =IFERROR(CS$4+(1-CS$4)/(1+EXP(-1.7*CS$2*($C48-CS$3))),"") ->  | CZ48: 0.04398359598 | DA48: 0.3890769329 | DB48: 1.022174618 | DD48: 4.41
A49: 40 | B49: 6.732018667e-06 | C49: -2.05 | D49: 0.1726517576 | E49: 0.05775373128 | F49: 0.08850079691 | G49: 0.2490560775 | H49: 0.3335342005 | I49: 0.4896366672 | J49: 0.4060218116 | K49: 0.4212036477 | L49: 0.3219516173 | M49: 0.324522526 | N49: 0.5462906741 | O49: 0.4196306568 | P49: 0.5286844012 | Q49: 0.4709318465 | R49: 0.6734494195 | S49: 0.5548097024 | T49: 0.5197299827 | U49: 0.6559640498 | V49: 0.5598858297 | W49: 0.4800961443 | X49: 0.645274589 | Y49: 0.51700611 | Z49: 0.7118210274 | AA49: 0.2677937125 | AH49: =IFERROR(AH$4+(1-AH$4)/(1+EXP(-1.7*AH$2*($C49-AH$3))),"") ->  | CZ49: 0.04879201858 | DA49: 0.3929633292 | DB49: 1.279815538 | DD49: 4.2025
A50: 41 | B50: 7.248916598e-06 | C50: -2 | D50: =IFERROR(D$4+(1-D$4)/(1+EXP(-1.7*D$2*($C50-D$3))),"") -> 0.1750669587 | E50: 0.06426204389 | F50: 0.09736733609 | G50: 0.2698199056 | H50: 0.3588329151 | I50: 0.5175102533 | J50: 0.4291055622 | K50: 0.4457498667 | L50: 0.3416383746 | M50: 0.3452576061 | N50: =IFERROR(N$4+(1-N$4)/(1+EXP(-1.7*N$2*($C50-N$3))),"") -> 0.5732258477 | O50: 0.4437124726 | P50: 0.5516878575 | Q50: 0.4951437383 | R50: 0.6982609953 | S50: 0.5773050132 | T50: 0.5434992976 | U50: 0.6801915308 | V50: 0.5833928829 | W50: 0.5015770818 | X50: =IFERROR(X$4+(1-X$4)/(1+EXP(-1.7*X$2*($C50-X$3))),"") -> 0.6682129219 | Y50: 0.5409387004 | Z50: 0.7345131406 | AA50: 0.2849238152 | CZ50: 0.05399096651 | DA50: 0.3958975637 | DB50: 1.524921496 | DD50: 4
A51: 42 | B51: 7.427710121e-06 | C51: -1.95 | D51: 0.1776916963 | E51: 0.0715461323 | F51: 0.1072307107 | G51: 0.2920110609 | H51: 0.3849988133 | I51: 0.5453951114 | J51: 0.4532216012 | K51: 0.4709664679 | L51: 0.3624700252 | M51: 0.3669805763 | N51: 0.5998575886 | O51: 0.4681904584 | P51: 0.5751117506 | Q51: 0.519517795 | R51: 0.7221172633 | S51: 0.6001889867 | T51: 0.567360778 | U51: 0.7037073678 | V51: 0.606856528 | W51: 0.5236959071 | X51: 0.6908141836 | Y51: 0.5647151586 | Z51: 0.7562276924 | AA51: 0.3032394995 | AH51: =IFERROR(AH$4+(1-AH$4)/(1+EXP(-1.7*AH$2*($C51-AH$3))),"") ->  | CZ51: 0.05959470607 | DA51: 0.397857819 | DB51: 1.724709318 | DD51: 3.8025
A52: 43 | B52: 7.226606041e-06 | C52: -1.9 | D52: 0.1805425821 | E52: 0.07968322384 | F52: 0.1181749443 | G52: 0.3155897652 | H52: 0.4118990094 | I52: 0.5731042567 | J52: 0.4782356132 | K52: 0.496702977 | L52: 0.3843916747 | M52: 0.3896195473 | N52: 0.6260208421 | O52: 0.4929401813 | P52: 0.5987901963 | Q52: 0.5439256239 | R52: 0.7449054266 | S52: 0.6232905428 | T52: 0.5911748595 | U52: 0.7263824844 | V52: 0.6301334437 | W52: 0.5463244694 | X52: 0.7129206223 | Y52: 0.5882256302 | Z52: 0.7768726719 | AA52: 0.3227309943 | CZ52: 0.06561581477 | DA52: 0.3988294593 | DB52: 1.847549943 | DD52: 3.61
A53: 44 | B53: 6.6637228e-06 | C53: -1.85 | D53: 0.1836372537 | E53: 0.0887542266 | F53: 0.1302840477 | G53: 0.3404880624 | H53: 0.439383306 | I53: 0.600455386 | J53: 0.5039883076 | K53: 0.5227954673 | L53: 0.4073266151 | M53: 0.4130846487 | N53: 0.6515622736 | O53: 0.5178314963 | P53: 0.6225499037 | Q53: 0.5682381198 | R53: 0.7665376727 | S53: 0.6464319552 | T53: 0.6148030822 | U53: 0.7481083736 | V53: 0.6530848453 | W53: 0.5693215819 | X53: 0.7343885253 | Y53: 0.6113651876 | Z53: 0.7963802697 | AA53: 0.3433703081 | CZ53: 0.07206487434 | DA53: 0.3988052122 | DB53: 1.871086381 | DD53: 3.4225
A54: 45 | B54: 5.815345513e-06 | C54: -1.8 | D54: 0.1869943823 | E54: 0.09884279219 | F54: 0.1436399851 | G54: 0.3666084106 | H54: 0.4672872086 | I54: 0.6272755989 | J54: 0.5302987821 | K54: 0.549070562 | L54: 0.4311761809 | M54: 0.4372687619 | N54: 0.6763436205 | O54: 0.5427312448 | P54: 0.6462151925 | Q54: 0.5923281845 | R54: 0.786951135 | S54: 0.66943427 | T54: 0.638111286 | U54: 0.7687983393 | V54: 0.6755797266 | W54: 0.5925363513 | X54: 0.7550916014 | Y54: 0.6340356346 | Z54: 0.8147061899 | AA54: 0.3651096258 | CS54: =IFERROR(CS$4+(1-CS$4)/(1+EXP(-1.7*CS$2*($C54-CS$3))),"") ->  | CZ54: 0.0789501583 | DA54: 0.3977852594 | DB54: 1.788882475 | DD54: 3.24
A55: 46 | B55: 4.797914393e-06 | C55: -1.75 | D55: 0.1906336682 | E55: 0.1100340318 | F55: 0.1583201956 | G55: 0.3938234491 | H55: 0.4954356646 | I55: 0.6534056004 | J55: 0.5569691781 | K55: 0.5753499611 | L55: 0.4558204988 | M55: 0.4620489598 | N55: 0.7002442917 | O55: 0.5675060876 | P55: 0.6696131576 | Q55: 0.616073357 | R55: 0.8061068905 | S55: 0.6921228038 | T55: 0.660972596 | U55: 0.7883877758 | V55: 0.6974977139 | W55: 0.6158120413 | X55: 0.7749233941 | Y55: 0.6561470569 | Z55: 0.8318281358 | AA55: 0.3878802479 | AH55: =IFERROR(AH$4+(1-AH$4)/(1+EXP(-1.7*AH$2*($C55-AH$3))),"") ->  | CZ55: 0.08627731883 | DA55: 0.3957772341 | DB55: 1.612881337 | DD55: 3.0625
A56: 47 | B56: 3.739883344e-06 | C56: -1.7 | D56: 0.1945758219 | E56: 0.1224128389 | F56: 0.1743946718 | G56: 0.4219771312 | H56: 0.523647357 | I56: 0.6787031811 | J56: 0.5837904037 | K56: 0.6014552479 | L56: 0.4811201984 | M56: 0.4872886489 | N56: 0.7231631376 | O56: 0.5920253471 | P56: 0.6925786624 | Q56: 0.6393582402 | R56: 0.8239881841 | S56: 0.7143323668 | T56: 0.6832700613 | U56: 0.8068335872 | V56: 0.7187314053 | W56: 0.6389902655 | X56: 0.7937986708 | Y56: 0.6776190705 | Z56: 0.8477436764 | AA56: 0.4115922199 | CZ56: 0.09404907738 | DA56: 0.3927961266 | DB56: 1.370458461 | DD56: 2.89
A57: 48 | B57: 2.753377026e-06 | C57: -1.65 | D57: 0.1988425263 | E57: 0.1360617808 | F57: 0.1919226292 | G57: 0.4508873285 | H57: 0.5517393355 | I57: 0.7030458299 | J57: 0.6105485924 | K57: 0.6272127023 | L57: 0.5069190843 | M57: 0.5128403534 | N57: 0.7450193734 | O57: 0.6161637288 | P57: 0.714958858 | Q57: 0.6620766251 | R57: 0.8405980885 | S57: 0.735911884 | T57: 0.7048988362 | U57: 0.8241128886 | V57: 0.7391881154 | W57: 0.6619152743 | X57: 0.8116538152 | Y57: 0.6983817406 | Z57: 0.8624677034 | AA57: 0.4361347711 | CZ57: 0.1022649246 | DA57: 0.3888640972 | DB57: 1.097098618 | DD57: 2.7225
A58: 49 | B58: 1.914717151e-06 | C58: -1.6 | D58: 0.2034563787 | E58: 0.1510585382 | F58: 0.2109488451 | G58: 0.4803498949 | H58: 0.5795317371 | I58: 0.7263324109 | J58: 0.6370318778 | K58: 0.652457847 | L58: 0.5330476928 | M58: 0.5385490362 | N58: 0.7657526979 | O58: 0.6398038053 | P58: 0.7366169766 | Q58: 0.6841332357 | R58: 0.8559568108 | S58: 0.756728154 | T58: 0.72576783 | U58: 0.8402211616 | V58: 0.7587909852 | W58: 0.6844380921 | X58: 0.8284463212 | Y58: 0.7183761613 | Z58: 0.8760296756 | AA58: 0.4613776444 | CS58: =IFERROR(CS$4+(1-CS$4)/(1+EXP(-1.7*CS$2*($C58-CS$3))),"") ->  | CZ58: 0.1109208347 | DA58: 0.3840102022 | DB58: 0.8275057836 | DD58: 2.56
A59: 50 | B59: 1.258200833e-06 | C59: -1.55 | D59: 0.2084408083 | E59: 0.1674728985 | F59: 0.2314997952 | G59: 0.5101440462 | H59: 0.6068523381 | I59: 0.7484839056 | J59: 0.6630370364 | K59: 0.6770394797 | L59: 0.5593275819 | M59: 0.5642558026 | N59: 0.7853226964 | O59: 0.6628381609 | P59: 0.7574352164 | Q59: 0.7054450433 | R59: 0.8700988375 | S59: 0.7766685725 | T59: 0.7458007886 | U59: 0.8551700375 | V59: 0.7774794639 | W59: 0.7064202734 | X59: 0.8441535369 | Y59: 0.7375547013 | Z59: 0.8884708247 | AA59: 0.4871733364 | AH59: =IFERROR(AH$4+(1-AH$4)/(1+EXP(-1.7*AH$2*($C59-AH$3))),"") ->  | CZ59: 0.1200090007 | DA59: 0.3782700366 | DB59: 0.5883246825 | DD59: 2.4025
A60: 51 | B60: 7.818271304e-07 | C60: -1.5 | D60: =IFERROR(D$4+(1-D$4)/(1+EXP(-1.7*D$2*($C60-D$3))),"") -> 0.2138199645 | E60: 0.1853633403 | F60: 0.2535797705 | G60: 0.540038783 | H60: 0.6335406981 | I60: 0.7694432841 | J60: 0.688375559 | K60: 0.7008229918 | L60: 0.5855761329 | M60: 0.5898018057 | N60: =IFERROR(N$4+(1-N$4)/(1+EXP(-1.7*N$2*($C60-N$3))),"") -> 0.8037076474 | O60: 0.6851711213 | P60: 0.7773166228 | Q60: 0.7259421257 | R60: 0.8830700812 | S60: 0.7956427453 | T60: 0.7649368091 | U60: 0.8689848774 | V60: 0.795209206 | W60: 0.7277370852 | X60: =IFERROR(X$4+(1-X$4)/(1+EXP(-1.7*X$2*($C60-X$3))),"") -> 0.8587708359 | Y60: 0.7558809411 | Z60: 0.8998414568 | AA60: 0.5133602033 | CZ60: 0.1295175957 | DA60: 0.3716852989 | DB60: 0.3945415913 | DD60: 2.25
A61: 52 | B61: 4.598504094e-07 | C61: -1.45 | D61: 0.2196185749 | E61: 0.204773296 | F61: 0.2771672143 | G61: 0.5697999732 | H61: 0.6594516892 | I61: 0.7891746191 | J61: 0.7128787794 | K61: 0.723692837 | L61: 0.6116115951 | M61: 0.6150321475 | N61: 0.8209028725 | O61: 0.7067200204 | P61: 0.7961859554 | Q61: 0.7455680771 | R61: 0.8949251582 | S61: 0.8135830111 | T61: 0.7831303222 | U61: 0.8817022945 | V61: 0.8119514577 | W61: 0.7482799738 | X61: 0.8723094021 | Y61: 0.7733293342 | Z61: 0.9101984523 | AA61: 0.5397663152 | AH61: =IFERROR(AH$4+(1-AH$4)/(1+EXP(-1.7*AH$2*($C61-AH$3))),"") ->  | CZ61: 0.1394305664 | DA61: 0.3643032875 | DB61: 0.2498203719 | DD61: 2.1025
A62: 53 | B62: 2.563324e-07 | C62: -1.4 | D62: 0.2258617669 | E62: 0.2257272256 | F62: 0.3022115599 | G62: 0.5991976405 | H62: 0.6844582632 | I62: 0.8076615866 | J62: 0.7364017881 | K62: 0.7455540885 | L62: 0.6372580801 | M62: 0.6397995768 | N62: 0.8369187727 | O62: 0.7274159861 | P62: 0.8139896048 | Q62: 0.7642799941 | R62: 0.9057248868 | S62: 0.8304439756 | T62: 0.8003506038 | U62: 0.8933677382 | V62: 0.8276920252 | W62: 0.7679582355 | X62: 0.8847938027 | Y62: 0.7898846362 | Z62: 0.9196030304 | AA62: 0.5662138748 | CZ62: 0.1497274656 | DA62: 0.3561763348 | DB62: 0.1495403038 | DD62: 1.96
A63: 54 | B63: 1.356123537e-07 | C63: -1.35 | D63: 0.2325748502 | E63: 0.2482266975 | F63: 0.3286308806 | G63: 0.6280129802 | H63: 0.7084533654 | I63: 0.8249055148 | J63: 0.7588259824 | K63: 0.7663330878 | L63: 0.6623502166 | M63: 0.6639677979 | N63: 0.8517786866 | O63: 0.7472042559 | P63: 0.8306946861 | Q63: 0.7820480855 | R63: 0.9155340674 | S63: 0.8462012172 | T63: 0.8165808942 | U63: 0.9040332319 | V63: 0.8424299291 | W63: 0.7866998767 | X63: 0.896259505 | Y63: 0.8055411495 | Z63: 0.9281188133 | AA63: 0.5925239679 | CZ63: 0.1603833273 | DA63: 0.3473611904 | DB63: 0.08474454538 | DD63: 1.8225
A64: 55 | B64: 6.820382252e-08 | C64: -1.3 | D64: 0.2397830583 | E64: 0.27224672 | F64: 0.3563106605 | G64: 0.6560446556 | H64: 0.7313509761 | I64: 0.8409231405 | J64: 0.7800602315 | K64: 0.7859772547 | L64: 0.6867372109 | M64: 0.6874142415 | N64: 0.8655166898 | O64: 0.7660440568 | P64: 0.8462874722 | Q64: 0.7988549641 | R64: 0.9244195714 | S64: 0.8608493596 | T64: 0.8318172159 | U64: 0.9137553252 | V64: 0.8561758469 | W64: 0.8044517034 | X64: 0.9067504614 | Y64: 0.8203018321 | Z64: 0.9358102021 | AA64: 0.6185213758 | CS64: =IFERROR(CS$4+(1-CS$4)/(1+EXP(-1.7*CS$2*($C64-CS$3))),"") ->  | CZ64: 0.171368592 | DA64: 0.3379183627 | DB64: 0.04554002089 | DD64: 1.69
A65: 56 | B65: 3.266629104e-08 | C65: -1.25 | D65: 0.2475112441 | E65: 0.2977326161 | F65: 0.3851039582 | G65: 0.683114006 | H65: 0.7530863144 | I65: 0.8557442205 | J65: 0.8000407453 | K65: 0.8044541707 | L65: 0.710286114 | M65: 0.7100321889 | N65: 0.8781754367 | O65: 0.7839081026 | P65: 0.860771349 | Q65: 0.8146946894 | R65: 0.9324487468 | S65: 0.8743997141 | T65: 0.8460669795 | U65: 0.9225932975 | V65: 0.8689504421 | W65: 0.8211787273 | X65: 0.9163168567 | Y65: 0.8341773183 | Z65: 0.9427410554 | AA65: 0.6440391794 | AH65: =IFERROR(AH$4+(1-AH$4)/(1+EXP(-1.7*AH$2*($C65-AH$3))),"") ->  | CZ65: 0.1826490854 | DA65: 0.327911429 | DB65: 0.02324719776 | DD65: 1.5625
A66: 57 | B66: 1.492760962e-08 | C66: -1.2 | D66: 0.25578353 | E66: 0.3245977578 | F66: 0.4148331593 | G66: 0.70906891 | H66: 0.7736152924 | I66: 0.8694091257 | J66: 0.8187298282 | K66: 0.8217500811 | L66: 0.7328841695 | M66: 0.7317321962 | N66: 0.889804121 | O66: 0.8007817744 | P66: 0.8741644736 | Q66: 0.8295716299 | R66: 0.9396881281 | S66: 0.8868776886 | T66: 0.8593474661 | U66: 0.9306076278 | V66: 0.880782664 | W66: 0.8368630091 | X66: 0.9250130807 | Y66: 0.8471848949 | Z66: 0.9489736523 | AA66: 0.6689229011 | CZ66: 0.194186055 | DA66: 0.3174063267 | DB66: 0.01129435903 | DD66: 1.44
A67: 58 | B67: 6.521315052e-09 | C67: -1.15 | D67: 0.2646229113 | E67: 0.3527224689 | F67: 0.445293399 | G67: 0.7337861799 | H67: 0.7929133411 | I67: 0.8819665211 | J67: 0.8361137498 | K67: 0.8378679722 | L67: 0.7544401914 | M67: 0.7524428093 | N67: 0.9004566089 | O67: 0.8166620579 | P67: 0.8864972985 | Q67: 0.8434992111 | R67: 0.9462024283 | S67: 0.8983201329 | T67: 0.8716842633 | U67: 0.9378587288 | V67: 0.8917080889 | W67: 0.8515020758 | X67: 0.9328959614 | Y67: 0.8593474706 | Z67: 0.9545679076 | AA67: 0.6930339753 | CZ67: 0.2059362687 | DA67: 0.306470635 | DB67: 0.005232645376 | DD67: 1.3225
A68: 59 | B68: 2.729078533e-09 | C68: -1.1 | D68: 0.2740508133 | E68: 0.3819543668 | F68: 0.4762575934 | G68: 0.7571724933 | H68: 0.8109737484 | I68: 0.8934712054 | J68: 0.8521999925 | K68: 0.8528253799 | L68: 0.7748849977 | M68: 0.7721106113 | N68: 0.91018978 | O68: 0.8315563106 | P68: 0.8978101043 | Q68: 0.8564986114 | R68: 0.9520537822 | S68: 0.9087727598 | T68: 0.8831097201 | U68: 0.9444059321 | V68: 0.9017673559 | W68: 0.8651070506 | X68: 0.9400232735 | Y68: 0.8706925699 | Z68: 0.9595808101 | AA68: 0.7162523989 | CS68: =IFERROR(CS$4+(1-CS$4)/(1+EXP(-1.7*CS$2*($C68-CS$3))),"") ->  | CZ68: 0.217852177 | DA68: 0.2951728586 | DB68: 0.002316494209 | DD68: 1.21
A69: 60 | B69: 1.096303209e-09 | C69: -1.05 | D69: 0.2840866065 | E69: 0.4121103305 | F69: 0.5074828659 | G69: 0.7791639804 | H69: 0.8278056584 | I69: 0.9039821649 | J69: 0.8670141294 | K69: 0.8666520728 | L69: 0.7941709852 | M69: 0.7906996746 | N69: 0.9190620919 | O69: 0.8454809272 | P69: 0.9081506466 | Q69: 0.8685974577 | R69: 0.9573012082 | S69: 0.9182877437 | T69: 0.8936614726 | U69: 0.9503067019 | V69: 0.9110047354 | W69: 0.8777006286 | X69: 0.9464525154 | Y69: 0.8812513777 | Z69: 0.9640660468 | AA69: 0.7384784832 | AH69: =IFERROR(AH$4+(1-AH$4)/(1+EXP(-1.7*AH$2*($C69-AH$3))),"") ->  | CZ69: 0.2298821407 | DA69: 0.2835817236 | DB69: 0.0009819496044 | DD69: 1.1025
A70: 61 | B70: 4.236279761e-10 | C70: -1 | D70: =IFERROR(D$4+(1-D$4)/(1+EXP(-1.7*D$2*($C70-D$3))),"") -> 0.2947470831 | E70: 0.4429801602 | F70: 0.5387180046 | G70: 0.7997246708 | H70: 0.8434318716 | I70: 0.9135608678 | J70: 0.88059656 | K70: 0.8793877315 | L70: 0.8122709791 | M70: 0.8081905198 | N70: =IFERROR(N$4+(1-N$4)/(1+EXP(-1.7*N$2*($C70-N$3))),"") -> 0.9271323714 | O70: 0.8584599675 | P70: 0.9175719981 | Q70: 0.8798285635 | R70: 0.9620002544 | S70: 0.9269215663 | T70: 0.9033810791 | U70: 0.9556160513 | V70: 0.9194668555 | W70: 0.8893150121 | X70: =IFERROR(X$4+(1-X$4)/(1+EXP(-1.7*X$2*($C70-X$3))),"") -> 0.9522399411 | Y70: 0.8910578518 | Z70: 0.9680737825 | AA70: 0.7596336987 | CZ70: 0.2419707245 | DA70: 0.271765497 | DB70: 0.0003993932669 | DD70: 1
A71: 62 | B71: 1.577913989e-10 | C71: -0.95 | D71: 0.306045904 | E71: 0.4743318511 | F71: 0.5697114812 | G71: 0.8188440547 | H71: 0.857886572 | I71: 0.9222698112 | J71: 0.8929992929 | K71: 0.8910797211 | L71: 0.8291765163 | M71: 0.8245786933 | N71: 0.9344588237 | O71: 0.870523798 | P71: 0.9261306341 | Q71: 0.8902287421 | R71: 0.9662027953 | S71: 0.9347331477 | T71: 0.912312789 | U71: 0.9603861336 | V71: 0.9272015955 | W71: 0.8999899005 | X71: 0.9574398216 | Y71: 0.9001479168 | Z71: 0.9716505636 | AA71: 0.7796606652 | AH71: =IFERROR(AH$4+(1-AH$4)/(1+EXP(-1.7*AH$2*($C71-AH$3))),"") ->  | CZ71: 0.2540590565 | DA71: 0.2597913356 | DB71: 0.0001561964966 | DD71: 0.9025
A72: 63 | B72: 5.677086026e-11 | C72: -0.9 | D72: 0.317993026 | E72: 0.5059182433 | F72: 0.600219489 | G72: 0.8365340332 | H72: 0.8712130864 | I72: 0.9301713173 | J72: 0.9042829206 | K72: 0.9017810288 | L72: 0.8448957323 | M72: 0.8398730829 | N72: 0.9410982451 | O72: 0.8817077905 | P72: 0.9338847854 | Q72: 0.8998377192 | R72: 0.9699569514 | S72: 0.9417822748 | T72: 0.9205024594 | U72: 0.9646659796 | V72: 0.9342571502 | W72: 0.9097706067 | X72: 0.9621039073 | Y72: 0.9085587453 | Z72: 0.9748393185 | AA72: 0.7985223936 | CZ72: 0.2660852499 | DA72: 0.247724677 | DB72: 5.885719452e-05 | DD72: 0.81
A73: 64 | B73: 1.976956899e-11 | C73: -0.85 | D73: 0.3305941222 | E73: 0.537484668 | F73: 0.6300134641 | G73: 0.8528255208 | H73: 0.883461759 | I73: 0.937326564 | J73: 0.9145138821 | K73: 0.9115484128 | L73: 0.8594510134 | M73: 0.8540940799 | N73: 0.9471054174 | O73: 0.8920511088 | P73: 0.940893065 | Q73: 0.9086971582 | R73: 0.9733071019 | S73: 0.9481283225 | T73: 0.9279966256 | U73: 0.9685013555 | V73: 0.9406812578 | W73: 0.918706347 | X73: 0.9662810618 | Y73: 0.9163281307 | Z73: 0.9776794326 | AA73: 0.8162009139 | CZ73: 0.2779848861 | DA73: 0.2356286759 | DB73: 2.141271155e-05 | DD73: 0.7225
A74: 65 | B74: 6.676777979e-12 | C74: -0.8 | D74: 0.3438500121 | E74: 0.5687770983 | F74: 0.6588866059 | G74: 0.8677649344 | H74: 0.8946879976 | I74: 0.9437948315 | J74: 0.9237620741 | K74: 0.9204407901 | L74: 0.8728765623 | M74: 0.8672716882 | N74: 0.9525326647 | O74: 0.9015956053 | P74: 0.9472133567 | Q74: 0.9168498061 | R74: 0.9762939709 | S74: 0.9538292487 | T74: 0.9348417215 | U74: 0.9719347165 | V74: 0.9465205813 | W74: 0.9268487368 | X74: 0.9700170388 | Y74: 0.9234939495 | Z74: 0.9802068768 | AA74: 0.8326954462 | CS74: =IFERROR(CS$4+(1-CS$4)/(1+EXP(-1.7*CS$2*($C74-CS$3))),"") ->  | CZ74: 0.2896915528 | DA74: 0.2235636948 | DB74: 7.536263033e-06 | DD74: 0.64
A75: 66 | B75: 2.191194659e-12 | C75: -0.75 | D75: 0.3577561197 | E75: 0.5995502572 | F75: 0.6866590275 | G75: 0.8814107608 | H75: 0.9049505316 | I75: 0.9496329384 | J75: 0.9320988329 | K75: 0.9285178681 | L75: 0.8852159971 | M75: 0.879443663 | N75: 0.9574295462 | O75: 0.910384841 | P75: 0.9529019478 | Q75: 0.9243387615 | R75: 0.978954765 | S75: 0.9589408342 | T75: 0.9410834426 | U75: 0.9750052355 | V75: 0.951820228 | W75: 0.934250501 | X75: 0.9733543738 | Y75: 0.9300937097 | Z75: 0.9824543735 | AA75: 0.8480202683 | AH75: =IFERROR(AH$4+(1-AH$4)/(1+EXP(-1.7*AH$2*($C75-AH$3))),"") ->  | CZ75: =1/SQRT(2*PI())*EXP(-(C75^2)/2) -> 0.3011374322 | DA75: =1/SQRT(2*PI())*EXP(-((C75-$DA$7)^2)/2) -> 0.2115868524 | DB75: =B75*CZ75/$DB$7 -> 2.570981696e-06 | DD75: =C75^2 -> 0.5625
A76: 67 | B76: 7.000991383e-13 | C76: =C75+0.05 -> -0.7 | D76: 0.372301982 | E76: 0.6295751379 | F76: 0.7131813083 | G76: 0.8938303471 | H76: 0.9143098991 | I76: 0.9548948427 | J76: 0.9395952848 | K76: 0.9358390188 | L76: 0.8965200791 | M76: 0.8906537432 | N76: 0.9618426656 | O76: 0.9184632324 | P76: 0.958012877 | Q76: 0.9312068601 | R76: 0.9813233477 | S76: 0.9635161373 | T76: 0.9467662404 | U76: 0.9777488888 | V76: 0.9566233918 | W76: 0.940964402 | X76: 0.9763323669 | Y76: 0.9361641804 | Z76: 0.9844515877 | AA76: 0.8622024276 | CZ76: 0.3122539334 | DA76: 0.1997516343 | DB76: 8.517668666e-07 | DD76: 0.49
A77: 68 | B77: 2.181692822e-13 | C77: -0.65 | D77: 0.3874708273 | E77: 0.6586454607 | F77: 0.7383363751 | G77: 0.905097009 | H77: 0.9228271679 | I77: 0.9596313821 | J77: 0.9463210443 | K77: 0.9424623777 | L77: 0.9068446349 | M77: 0.9009500238 | N77: 0.9658155742 | O77: 0.9258753276 | P77: 0.9625974717 | Q77: 0.9374961715 | R77: 0.9834304367 | S77: 0.9676051302 | T77: 0.9519329345 | U77: 0.9801985816 | V77: 0.9609711014 | W77: 0.9470423721 | X77: 0.9789871351 | Y77: 0.9417410947 | Z77: 0.986225331 | AA77: 0.8752794213 | CZ77: 0.3229723597 | DA77: 0.1881075679 | DB77: 2.745441794e-07 | DD77: 0.4225
A78: 69 | B78: 6.642658439e-14 | C78: -0.6 | D78: 0.4032392504 | E78: 0.6865827062 | F78: 0.7620397844 | G78: 0.9152875163 | H78: 0.9305628833 | I78: 0.9638901292 | J78: 0.9523432264 | K78: 0.9484441488 | L78: 0.9162487154 | M78: 0.9103834999 | N78: 0.969388751 | O78: 0.9326652035 | P78: 0.9667040435 | Q78: 0.9432475986 | R78: 0.9853038151 | S78: 0.9712544844 | T78: 0.9566244281 | U78: 0.9823843035 | V78: 0.9649020573 | W78: 0.9525348351 | X78: 0.9813517161 | Y78: 0.9468589201 | Z78: 0.9877997724 | AA78: 0.8872969491 | CS78: =IFERROR(CS$4+(1-CS$4)/(1+EXP(-1.7*CS$2*($C78-CS$3))),"") ->  | CZ78: 0.3332246029 | DA78: 0.1766999632 | DB78: 8.624466951e-08 | DD78: 0.36
A79: 70 | B79: 1.979378651e-14 | C79: -0.55 | D79: 0.4195770042 | E79: 0.7132395122 | F79: 0.7842385931 | G79: 0.9244799723 | H79: 0.9375762276 | I79: 0.9677153382 | J79: 0.957725734 | K79: 0.9538380897 | L79: 0.9247930105 | M79: 0.9190067956 | N79: 0.9725996406 | O79: 0.938875978 | P79: 0.9703777132 | Q79: 0.9485005677 | R79: 0.9869685471 | S79: 0.9745074764 | T79: 0.9608795117 | U79: 0.9843333009 | V79: 0.9684525433 | W79: 0.9574901958 | X79: 0.9834562094 | Y79: 0.9515506859 | Z79: 0.989196648 | AA79: 0.8983068138 | AH79: =IFERROR(AH$4+(1-AH$4)/(1+EXP(-1.7*AH$2*($C79-AH$3))),"") ->  | CZ79: 0.342943855 | DA79: 0.1655697198 | DB79: 2.644875225e-08 | DD79: 0.3025
A80: 71 | B80: 5.781529393e-15 | C80: -0.5 | D80: =IFERROR(D$4+(1-D$4)/(1+EXP(-1.7*D$2*($C80-D$3))),"") -> 0.4364469297 | E80: 0.73850138 | F80: 0.8049090845 | G80: 0.9327520858 | H80: 0.9439243712 | I80: 0.9711479653 | J80: 0.9625287786 | K80: 0.9586951531 | L80: 0.9325385233 | M80: 0.9268730842 | N80: =IFERROR(N$4+(1-N$4)/(1+EXP(-1.7*N$2*($C80-N$3))),"") -> 0.9754827373 | O80: 0.9445494255 | P80: 0.9736603423 | Q80: 0.9532927998 | R80: 0.9884471933 | S80: 0.9774039867 | T80: 0.9647347415 | U80: 0.98607026 | V80: 0.9716563977 | W80: 0.9619544756 | X80: =IFERROR(X$4+(1-X$4)/(1+EXP(-1.7*X$2*($C80-X$3))),"") -> 0.9853279399 | Y80: 0.9558478627 | Z80: 0.9904354658 | AA80: 0.9083650237 | CZ80: 0.3520653268 | DA80: 0.1547531979 | DB80: 7.930841579e-09 | DD80: 0.25
A81: 72 | B81: 1.657808773e-15 | C81: -0.45 | D81: 0.4538050419 | E81: 0.7622867761 | F81: 0.8240536589 | G81: 0.9401798082 | H81: 0.9496619923 | I81: 0.9742257446 | J81: 0.9668085933 | K81: 0.9630632585 | L81: 0.9395454928 | M81: 0.9340351931 | N81: 0.9780697013 | O81: 0.9497256854 | P81: 0.9765905447 | Q81: 0.957660151 | R81: 0.9897600206 | S81: 0.9799805708 | T81: 0.9682243792 | U81: 0.9876174934 | V81: 0.9745450318 | W81: 0.9659710713 | X81: 0.9869916379 | Y81: 0.9597802849 | Z81: 0.9915337033 | AA81: 0.9175301254 | AH81: =IFERROR(AH$4+(1-AH$4)/(1+EXP(-1.7*AH$2*($C81-AH$3))),"") ->  | CZ81: 0.3605269625 | DA81: 0.1442821531 | DB81: 2.328763922e-09 | DD81: 0.2025
A82: 73 | B82: 4.673227739e-16 | C82: -0.4 | D82: 0.4716007833 | E82: 0.7845458343 | F82: 0.8416971982 | G82: 0.9468363023 | H82: 0.954840942 | I82: 0.9769833045 | J82: 0.9706173002 | K82: 0.9669871714 | L82: 0.9458725469 | M82: 0.9405448818 | N82: 0.9803894985 | O82: 0.95444305 | P82: 0.9792037611 | Q82: 0.9616365117 | R82: 0.9909252033 | S82: 0.9822705808 | T82: 0.9713803822 | U82: 0.9889951249 | V82: 0.9771474858 | W82: 0.9695806167 | X82: 0.9884696243 | Y82: 0.963376109 | Z82: 0.9925069936 | AA82: 0.9258617804 | CZ82: 0.3682701403 | DA82: 0.1341837302 | DB82: 6.705585965e-10 | DD82: 0.16
A83: 74 | B83: 1.296776539e-16 | C83: -0.35 | D83: 0.4897774521 | E83: 0.8052579334 | F83: 0.8578831915 | G83: 0.952791199 | H83: 0.9595100317 | I83: 0.9794523137 | J83: 0.9740028996 | K83: 0.9705084683 | L83: 0.9515760614 | M83: 0.9464522799 | N83: 0.9824685541 | O83: 0.958737823 | P83: 0.9815323784 | Q83: 0.9652537553 | R83: 0.9919590146 | S83: 0.9843043239 | T83: 0.974232432 | U83: 0.9902212707 | V83: 0.9794905108 | W83: 0.9728209258 | X83: 0.9897819976 | Y83: 0.9666618029 | Z83: 0.9933693009 | AA83: 0.9334195834 | CZ83: 0.3752403469 | DA83: 0.1244805133 | DB83: 1.895954692e-10 | DD83: 0.1225
A84: 75 | B84: 3.546631975e-17 | C84: -0.3 | D84: 0.5082728044 | E84: 0.8244284679 | F84: 0.8726698623 | G84: 0.9581100999 | H84: 0.9637149206 | I84: 0.981661646 | J84: 0.977009349 | K84: 0.9736655686 | L84: 0.9567096982 | M84: 0.9518054633 | N84: 0.9843309153 | O84: 0.9626442346 | P84: 0.9836058805 | Q84: 0.9685417261 | R84: 0.9928760054 | S84: 0.9861092434 | T84: 0.9768079934 | U84: 0.9913122119 | V84: 0.9815986714 | W84: 0.9757270021 | X84: 0.9909468175 | Y84: 0.9696621593 | Z84: 0.9941330835 | AA84: 0.9402621087 | CS84: =IFERROR(CS$4+(1-CS$4)/(1+EXP(-1.7*CS$2*($C84-CS$3))),"") ->  | CZ84: 0.3813878155 | DA84: 0.1151906275 | DB84: 5.270310721e-11 | DD84: 0.09
A85: 76 | B85: 9.571278885e-18 | C85: -0.25 | D85: 0.5270198204 | E85: 0.8420851215 | F85: 0.8861264863 | G85: 0.9628542807 | H85: 0.9674980844 | I85: 0.9836375564 | J85: 0.9796767098 | K85: 0.9764938179 | L85: 0.9613240964 | M85: 0.9566501536 | N85: 0.9859984168 | O85: 0.9661944052 | P85: 0.9854510198 | Q85: 0.9715282604 | R85: 0.9936891713 | S85: 0.9877101135 | T85: 0.979132396 | U85: 0.9922825595 | V85: 0.9834944609 | W85: 0.9783310971 | X85: 0.9919802817 | Y85: 0.9724003279 | Z85: 0.9948094439 | AA85: 0.9464461671 | AH85: =IFERROR(AH$4+(1-AH$4)/(1+EXP(-1.7*AH$2*($C85-AH$3))),"") ->  | CZ85: 0.3866681168 | DA85: 0.1063278866 | DB85: 1.441987897e-11 | DD85: 0.0625
A86: 77 | B86: 2.551472441e-18 | C86: -0.2 | D86: 0.54594762 | E86: 0.8582739319 | F86: 0.8983300321 | G86: 0.967080557 | H86: 0.9708988475 | I86: 0.9854038618 | J86: 0.9820413397 | K86: 0.9790256078 | L86: 0.9654666891 | M86: 0.9610295201 | N86: 0.9874908451 | O86: 0.969418348 | P86: 0.9870919991 | Q86: 0.9742392311 | R86: 0.9944101064 | S86: 0.9891292381 | T86: 0.9812289321 | U86: 0.9931454087 | V86: 0.9851984251 | W86: 0.9806628063 | X86: 0.9928968947 | Y86: 0.974897864 | Z86: 0.9954082672 | AA86: 0.9520262479 | CZ86: 0.391042694 | DA86: 0.09790198173 | DB86: 3.887481536e-12 | DD86: 0.04
A87: 78 | B87: 6.725252686e-19 | C87: -0.15 | D87: 0.5649825009 | E87: 0.8730553832 | F87: 0.9093622056 | G87: 0.9708412781 | H87: 0.9739534627 | I87: 0.9869821226 | J87: 0.9841361151 | K87: 0.981290522 | L87: 0.9691816232 | M87: 0.9649840672 | N87: 0.9888260996 | O87: 0.9723440014 | P87: 0.9885506593 | Q87: 0.9766986132 | R87: 0.9950491449 | S87: 0.9903866505 | T87: 0.983118964 | U87: 0.9939124822 | V87: 0.9867292887 | W87: 0.9827491915 | X87: 0.9937096259 | Y87: 0.9771747864 | Z87: 0.9959383472 | AA87: 0.9570541234 | CZ87: 0.3944793309 | DA87: 0.08991870589 | DB87: 1.033680065e-12 | DD87: 0.0225
A88: 79 | B88: 1.754365603e-19 | C88: -0.1 | D88: 0.5840490702 | E88: 0.8865007105 | F88: 0.9193069366 | G88: 0.9741844149 | H88: 0.9766952281 | I88: 0.98839182 | J88: 0.9859906698 | K88: 0.9833154992 | L88: 0.9725097588 | M88: 0.9685515918 | N88: 0.9900203472 | O88: 0.9749972862 | P88: 0.989846665 | Q88: 0.9789285615 | R88: 0.9956154906 | S88: 0.9915003073 | T88: 0.9848220394 | U88: 0.994594264 | V88: 0.988104084 | W88: 0.9846149196 | X88: 0.9944300578 | Y88: 0.9792496456 | Z88: 0.9964075011 | AA88: 0.9615785886 | CS88: =IFERROR(CS$4+(1-CS$4)/(1+EXP(-1.7*CS$2*($C88-CS$3))),"") ->  | CZ88: 0.3969525475 | DA88: 0.08238020659 | DB88: 2.713388491e-13 | DD88: 0.01
A89: 80 | B89: 4.533058978e-20 | C89: -0.05 | D89: 0.6030714319 | E89: 0.8986885449 | F89: 0.9282483109 | G89: 0.9771537191 | H89: 0.9791546275 | I89: 0.9896505277 | J89: 0.9876316409 | K89: 0.9851250044 | L89: 0.975488732 | M89: 0.9717671962 | N89: 0.9910881705 | O89: 0.9774021797 | P89: 0.990997687 | Q89: 0.9809494987 | R89: 0.9961173342 | S89: 0.9924862743 | T89: 0.9863560083 | U89: 0.9952001215 | V89: 0.9893382763 | W89: 0.9862824132 | X89: 0.9950685228 | Y89: 0.9811395956 | Z89: 0.9968226733 | AA89: 0.9656453142 | AH89: =IFERROR(AH$4+(1-AH$4)/(1+EXP(-1.7*AH$2*($C89-AH$3))),"") ->  | CZ89: 0.3984439141 | DA89: 0.07528526256 | DB89: 7.037393711e-14 | DD89: 0.0025
A90: 81 | B90: 1.161072565e-20 | C90: -5.842548667e-15 | D90: =IFERROR(D$4+(1-D$4)/(1+EXP(-1.7*D$2*($C90-D$3))),"") -> 0.6219743915 | E90: 0.909701974 | F90: 0.9362689273 | G90: 0.9797889309 | H90: 0.9813594881 | I90: 0.9907740756 | J90: 0.9890829138 | K90: 0.9867412048 | L90: 0.978153063 | M90: 0.9746633431 | N90: =IFERROR(N$4+(1-N$4)/(1+EXP(-1.7*N$2*($C90-N$3))),"") -> 0.9920427063 | O90: 0.9795808031 | P90: 0.9920195765 | Q90: 0.9827802101 | R90: 0.9965619606 | S90: 0.9933589027 | T90: 0.9877371403 | U90: 0.9957384182 | V90: 0.9904458865 | W90: 0.9877720048 | X90: =IFERROR(X$4+(1-X$4)/(1+EXP(-1.7*X$2*($C90-X$3))),"") -> 0.9956342289 | Y90: 0.9828604704 | Z90: 0.9971900294 | AA90: 0.9692967902 | CZ90: 0.3989422804 | DA90: 0.06862957758 | DB90: 1.804773521e-14 | DD90: 3.413537493e-29
A91: 82 | B91: 2.950081259e-21 | C91: 0.05 | D91: 0.640684637 | E91: 0.9196260528 | F91: 0.9434486406 | G91: 0.9821260177 | H91: 0.9833351475 | I91: 0.9917767045 | J91: 0.9903658606 | K91: 0.9881841441 | L91: 0.9805342969 | M91: 0.9772699432 | N91: 0.9928957766 | O91: 0.9815535164 | P91: 0.9929265308 | Q91: 0.9844379408 | R91: 0.9969558453 | S91: 0.9941309944 | T91: 0.9889802406 | U91: 0.9962166155 | V91: 0.9914396081 | W91: 0.9891020922 | X91: 0.9961353755 | Y91: 0.9844268606 | Z91: 0.9975150407 | AA91: 0.9725723409 | AH91: =IFERROR(AH$4+(1-AH$4)/(1+EXP(-1.7*AH$2*($C91-AH$3))),"") ->  | CZ91: 0.3984439141 | DA91: 0.06240608611 | DB91: 4.579883783e-15 | DD91: 0.0025
A92: 83 | B92: 7.44046377e-22 | C92: 0.1 | D92: 0.659131857 | E92: 0.9285457646 | F92: 0.9498636465 | G92: 0.9841974311 | H92: 0.985104624 | I92: 0.9926712111 | J92: 0.9914995696 | K92: 0.9894719133 | L92: 0.9826611669 | M92: 0.9796144663 | N92: 0.99365801 | O92: 0.9833390198 | P92: 0.9937312485 | Q92: 0.9859384938 | R92: 0.9973047411 | S92: 0.9948139551 | T92: 0.9900987618 | U92: 0.9966413661 | V92: 0.992330919 | W92: 0.9902892909 | X92: 0.9965792577 | Y92: 0.9858521918 | Z92: 0.9978025604 | AA92: 0.9755081949 | CZ92: 0.3969525475 | DA92: 0.05660526527 | DB92: 1.150778875e-15 | DD92: 0.01
A93: 84 | B93: 1.863884746e-22 | C93: 0.15 | D93: 0.6772497614 | E93: 0.9365444079 | F93: 0.9555858559 | G93: 0.9860323704 | H93: 0.9866887877 | I93: 0.9934690823 | J93: 0.992501061 | K93: 0.990620814 | L93: 0.98455977 | M93: 0.9817220672 | N93: 0.9943389533 | O93: 0.9849544558 | P93: 0.9944450746 | Q93: 0.9872963287 | R93: 0.9976137569 | S93: 0.9954179354 | T93: 0.9911049117 | U93: 0.9970185987 | V93: 0.9931301864 | W93: 0.9913485815 | X93: 0.9969723621 | Y93: 0.9871488003 | Z93: 0.9980568913 | AA93: 0.9781375955 | CZ93: 0.3944793309 | DA93: 0.05121544821 | DB93: 2.864815042e-16 | DD93: 0.0225
A94: 85 | B94: 4.64014326e-23 | C94: 0.2 | D94: 0.6949769728 | E94: 0.9437023696 | F94: 0.9606825107 | G94: 0.9876570459 | H94: 0.988106527 | I94: 0.9941806205 | J94: 0.9933854896 | K94: 0.9916455152 | L94: 0.9862537495 | M94: 0.9836157225 | N94: 0.9949471758 | O94: 0.9864155131 | P94: 0.9950781337 | Q94: 0.9885246563 | R94: 0.997887428 | S94: 0.9959519605 | T94: 0.9920097553 | U94: 0.9973535936 | V94: 0.993846765 | W94: 0.9922934508 | X94: 0.9973204529 | Y94: 0.9883280077 | Z94: 0.9982818474 | AA94: 0.9804909395 | CS94: =IFERROR(CS$4+(1-CS$4)/(1+EXP(-1.7*CS$2*($C94-CS$3))),"") ->  | CZ94: 0.391042694 | DA94: 0.04622313415 | DB94: 7.069827977e-17 | DD94: 0.04
A95: 86 | B95: 1.148570572e-23 | C95: 0.25 | D95: 0.7122577675 | E95: 0.9500962374 | F95: 0.9652159934 | G95: 0.9890949359 | H95: 0.9893749102 | I95: 0.994815058 | J95: 0.9941663321 | K95: 0.9925591998 | L95: 0.9877644781 | M95: 0.985316371 | N95: 0.9954903638 | O95: 0.9877365276 | P95: 0.9956394531 | Q95: 0.9896355318 | R95: 0.9981297786 | S95: 0.9964240479 | T95: 0.9928233117 | U95: 0.9976510521 | V95: 0.9944890886 | W95: 0.9931360241 | X95: 0.9976286495 | Y95: 0.9894001935 | Z95: 0.9984808081 | AA95: 0.9825959356 | AH95: =IFERROR(AH$4+(1-AH$4)/(1+EXP(-1.7*AH$2*($C95-AH$3))),"") ->  | CZ95: 0.3866681168 | DA95: 0.04161329113 | DB95: 1.730411248e-17 | DD95: 0.0625
A96: 87 | B96: 2.828138369e-24 | C96: 0.3 | D96: 0.7290426486 | E96: 0.9557982004 | F96: 0.9692437893 | G96: 0.9903670327 | H96: 0.9905093393 | I96: 0.9953806624 | J96: 0.9948555596 | K96: 0.9933737017 | L96: 0.9891112383 | M96: 0.9868430566 | N96: 0.9959754074 | O96: 0.9889305815 | P96: 0.9961370751 | Q96: 0.9906399431 | R96: 0.9983443791 | S96: 0.9968413153 | T96: 0.9935546441 | U96: 0.997915158 | V96: 0.9950647548 | W96: 0.9938871905 | X96: 0.9979014969 | Y96: 0.9903748632 | Z96: 0.9986567668 | AA96: 0.9844777729 | CZ96: 0.3813878155 | DA96: 0.03736964774 | DB96: 4.202626061e-18 | DD96: 0.09
A97: 88 | B97: 6.930212679e-25 | C97: 0.35 | D97: 0.7452887458 | E97: 0.9608756864 | F97: 0.9728185641 | G97: 0.9914920755 | H97: 0.9915236953 | I97: 0.9958848329 | J97: 0.9954637958 | K97: 0.9940996338 | L97: 0.9903113965 | M97: 0.9882130683 | N97: 0.9964084798 | O97: 0.9900095983 | P97: 0.9965781593 | Q97: 0.9915478951 | R97: 0.9985343957 | S97: 0.9972100766 | T97: 0.9942119443 | U97: 0.9981496335 | V97: 0.995580603 | W97: 0.9945567185 | X97: 0.9981430279 | Y97: 0.9912607149 | Z97: 0.9988123746 | AA97: 0.9861592955 | CZ97: 0.3752403469 | DA97: 0.03347497081 | DB97: 1.01323311e-18 | DD97: 0.1225
A98: 89 | B98: 1.690700284e-25 | C98: 0.4 | D98: 0.76096004 | E98: 0.9653911915 | F98: 0.9759883266 | G98: 0.992486769 | H98: 0.9924304749 | I98: 0.9963341872 | J98: 0.9960004603 | K98: 0.994746505 | L98: 0.9913805699 | M98: 0.9894420773 | N98: 0.9967951091 | O98: 0.9909844336 | P98: 0.9969690753 | Q98: 0.992368489 | R98: 0.9987026358 | S98: 0.9975359301 | T98: 0.9948026108 | U98: 0.9983577893 | V98: 0.9960427862 | W98: 0.9951533634 | X98: 0.9983568201 | Y98: 0.9920657008 | Z98: 0.9989499789 | AA98: 0.9876611766 | CS98: =IFERROR(CS$4+(1-CS$4)/(1+EXP(-1.7*CS$2*($C98-CS$3))),"") ->  | CZ98: 0.3682701403 | DA98: 0.02991132652 | DB98: 2.425975521e-19 | DD98: 0.16
A99: 90 | B99: 4.107885009e-26 | C99: 0.45 | D99: 0.7760274229 | E99: 0.9694022581 | F99: 0.9787966508 | G99: 0.993365985 | H99: 0.993240917 | I99: 0.9967346417 | J99: 0.9964738991 | K99: 0.995322829 | L99: 0.9923327833 | M99: 0.9905442681 | N99: 0.9971402436 | O99: 0.9918649606 | P99: 0.9973154868 | Q99: 0.9931099976 | R99: 0.9988515881 | S99: 0.997823837 | T99: 0.9953333215 | U99: 0.9985425689 | V99: 0.9964568373 | W99: 0.9956849657 | X99: 0.9985460461 | Y99: 0.9927970859 | Z99: 0.9990716576 | AA99: 0.9890020896 | AH99: =IFERROR(AH$4+(1-AH$4)/(1+EXP(-1.7*AH$2*($C99-AH$3))),"") ->  | CZ99: 0.3605269625 | DA99: 0.02666032285 | DB99: 5.770445038e-20 | DD99: 0.2025
A100: 91 | B100: 9.943661571e-27 | C100: 0.5 | D100: =IFERROR(D$4+(1-D$4)/(1+EXP(-1.7*D$2*($C100-D$3))),"") -> 0.7904686028 | E100: 0.9729615668 | F100: 0.9812829362 | G100: 0.9941429498 | H100: 0.9939651212 | I100: 0.9970914833 | J100: 0.9968915016 | K100: 0.9958362225 | L100: 0.9931806165 | M100: 0.9915324633 | N100: =IFERROR(N$4+(1-N$4)/(1+EXP(-1.7*N$2*($C100-N$3))),"") -> 0.997448311 | O100: 0.9926601518 | P100: 0.9976224272 | Q100: 0.9937799347 | R100: 0.9989834586 | S100: 0.9980781915 | T100: 0.9958101 | U100: 0.9987065889 | V100: 0.9968277283 | W100: 0.9961585421 | X100: =IFERROR(X$4+(1-X$4)/(1+EXP(-1.7*X$2*($C100-X$3))),"") -> 0.9987135184 | Y100: 0.9934615033 | Z100: 0.9991792499 | AA100: 0.9901988741 | CZ100: 0.3520653268 | DA100: 0.02370333196 | DB100: 1.364026701e-20 | DD100: 0.25
A101: 92 | B101: 2.398744788e-27 | C101: 0.55 | D101: 0.8042678753 | E101: 0.9761171095 | F101: 0.9834826908 | G101: 0.9948294143 | H101: 0.9946121557 | I101: 0.9974094343 | J101: 0.9972598072 | K101: 0.9962934961 | L101: 0.9939353412 | M101: 0.9924182412 | N101: 0.9977232718 | O101: 0.993378154 | P101: 0.9978943678 | Q101: 0.9943851202 | R101: 0.999100202 | S101: 0.9983028846 | T101: 0.9962383765 | U101: 0.9988521749 | V101: 0.9971599259 | W101: 0.9965803676 | X101: 0.9988617296 | Y101: 0.9940650052 | Z101: 0.9992743835 | AA101: 0.9912666931 | AH101: =IFERROR(AH$4+(1-AH$4)/(1+EXP(-1.7*AH$2*($C101-AH$3))),"") ->  | CZ101: 0.342943855 | DA101: 0.02102169143 | DB101: 3.205238502e-21 | DD101: 0.3025
A102: 93 | B102: 5.768382351e-28 | C102: 0.6 | D102: 0.8174157806 | E102: 0.9789124207 | F102: 0.9854278241 | G102: 0.9954358104 | H102: 0.9951901571 | I102: 0.9976927114 | J102: 0.9975845994 | K102: 0.9967007359 | L102: 0.9946070479 | M102: 0.9932120464 | N102: 0.9979686675 | O102: 0.9940263593 | P102: 0.9981352791 | Q102: 0.9949317406 | R102: 0.9992035501 | S102: 0.9985013603 | T102: 0.9966230447 | U102: 0.9989813934 | V102: 0.9974574408 | W102: 0.9969560507 | X102: 0.9989928888 | Y102: 0.9946131109 | Z102: 0.9993584987 | AA102: 0.9922191822 | CZ102: 0.3332246029 | DA102: 0.01859688386 | DB102: 7.48935436e-22 | DD102: 0.36
A103: 94 | B103: 1.383149752e-28 | C103: 0.65 | D103: 0.8299086698 | E103: 0.9813868451 | F103: 0.9871469396 | G103: 0.9959713915 | H103: 0.9957064217 | I103: 0.9979450787 | J103: 0.9978709913 | K103: 0.9970633781 | L103: 0.9952047614 | M103: 0.9939232921 | N103: 0.9981876641 | O103: 0.9946114707 | P103: 0.9983486855 | Q103: 0.9954254046 | R103: 0.9992950374 | S103: 0.9986766659 | T103: 0.9969685122 | U103: 0.9990960803 | V103: 0.9977238732 | W103: 0.9972906019 | X103: 0.9991089528 | Y103: 0.9951108512 | Z103: 0.9994328698 | AA103: 0.9930685895 | CZ103: 0.3229723597 | DA103: 0.01641069465 | DB103: 1.740555361e-22 | DD103: 0.4225
A104: 95 | B104: 3.307755886e-29 | C104: 0.7 | D104: 0.8417482021 | E104: 0.9835758256 | F104: 0.9886656214 | G104: 0.9964443606 | H104: 0.9961674886 | I104: 0.9981698951 | J104: 0.9981235012 | K104: 0.9973862762 | L104: 0.995736548 | M104: 0.9945604553 | N104: 0.9983830912 | O104: 0.9951395626 | P104: 0.9985377147 | Q104: 0.9958711947 | R104: 0.999376023 | S104: 0.9988314971 | T104: 0.9972787473 | U104: 0.9991978666 | V104: 0.9979624538 | W104: 0.9975884953 | X104: 0.999211655 | Y104: 0.9955628095 | Z104: 0.999498624 | AA104: 0.9938259056 | CS104: =IFERROR(CS$4+(1-CS$4)/(1+EXP(-1.7*CS$2*($C104-CS$3))),"") ->  | CZ104: 0.3122539334 | DA104: 0.01444534818 | DB104: 4.024339858e-23 | DD104: 0.49
A105: 96 | B105: 7.891188902e-30 | C105: 0.75 | D105: 0.852940798 | E105: 0.9855112009 | F105: 0.9900067093 | G105: 0.9968619853 | H105: 0.9965792157 | I105: 0.9983701575 | J105: 0.9983461209 | K105: 0.9976737618 | L105: 0.9962096125 | M105: 0.9951311644 | N105: 0.9985574772 | O105: 0.9956161374 | P105: 0.9987051413 | Q105: 0.9962737145 | R105: 0.9994477108 | S105: 0.9989682382 | T105: 0.997557322 | U105: 0.9992882008 | V105: 0.9981760806 | W105: 0.9978537244 | X105: 0.9993025307 | Y105: 0.9959731601 | Z105: 0.9995567587 | AA105: 0.9945009832 | AH105: =IFERROR(AH$4+(1-AH$4)/(1+EXP(-1.7*AH$2*($C105-AH$3))),"") ->  | CZ105: 0.3011374322 | DA105: 0.01268362308 | DB105: 9.25892282e-24 | DD105: 0.5625
A106: 97 | B106: 1.878383293e-30 | C106: 0.8 | D106: 0.863497066 | E106: 0.9872215012 | F106: 0.9911905583 | G106: 0.9972307012 | H106: 0.9969468478 | I106: 0.998548539 | J106: 0.9985423755 | K106: 0.9979296996 | L106: 0.9966303864 | M106: 0.9956422797 | N106: 0.998713081 | O106: 0.9960461764 | P106: 0.9988534264 | Q106: 0.9966371322 | R106: 0.999511167 | S106: 0.9990889972 | T106: 0.9978074501 | U106: 0.9993683693 | V106: 0.998367353 | W106: 0.9980898524 | X106: 0.9993829394 | Y106: 0.996345703 | Z106: 0.9996081558 | AA106: 0.9951026483 | CZ106: 0.2896915528 | DA106: 0.01110894725 | DB106: 2.120182912e-24 | DD106: 0.64
A107: 98 | B107: 4.462105235e-31 | C107: 0.85 | D107: 0.8734312234 | E107: 0.9887322373 | F107: 0.992235283 | G107: 0.9975562044 | H107: 0.9972750797 | I107: 0.9987074234 | J107: 0.9987153772 | K107: 0.9981575363 | L107: 0.9970046076 | M107: 0.9960999674 | N107: 0.9988519204 | O107: 0.9964341874 | P107: 0.9989847523 | Q107: 0.9969652204 | R107: 0.9995673359 | S107: 0.9991956376 | T107: 0.9980320227 | U107: 0.9994395145 | V107: 0.9985386015 | W107: 0.9983000577 | X107: 0.9994540848 | Y107: 0.9966838968 | Z107: 0.9996535956 | AA107: 0.9956388013 | CZ107: 0.2779848861 | DA107: 0.009705473892 | DB107: 4.832971945e-25 | DD107: 0.7225
A108: 99 | B108: 1.057995353e-31 | C108: 0.9 | D108: 0.8827605256 | E108: 0.9900661766 | F108: 0.993156983 | G108: 0.9978435347 | H108: 0.9975681117 | I108: 0.9988489364 | J108: 0.9988678732 | K108: 0.9983603453 | L108: 0.9973373934 | M108: 0.9965097672 | N108: 0.9989757972 | O108: 0.9967842487 | P108: 0.9991010537 | Q108: 0.9972613923 | R108: 0.9996170535 | S108: 0.9992898069 | T108: 0.9982336396 | U108: 0.9995026508 | V108: 0.9986919155 | W108: 0.9984871747 | X108: 0.9995170325 | Y108: 0.9969908878 | Z108: 0.9996937679 | AA108: 0.9961165096 | CS108: =IFERROR(CS$4+(1-CS$4)/(1+EXP(-1.7*CS$2*($C108-CS$3))),"") ->  | CZ108: 0.2660852499 | DA108: 0.008458139631 | DB108: 1.096876778e-25 | DD108: 0.81
A109: 100 | B109: 2.504290075e-32 | C109: 0.95 | D109: 0.8915047175 | E109: 0.9912436053 | F109: 0.9939699506 | G109: 0.9980971496 | H109: 0.9978297009 | I109: 0.9989749729 | J109: 0.9990022879 | K109: 0.9985408664 | L109: 0.9976333056 | M109: 0.9968766531 | N109: 0.9990863207 | O109: 0.997100048 | P109: 0.9992040458 | Q109: 0.9975287357 | R109: 0.9996610602 | S109: 0.9993729607 | T109: 0.9984146383 | U109: 0.9995586788 | V109: 0.9988291678 | W109: 0.99865373 | X109: 0.9995727261 | Y109: 0.997269538 | Z109: 0.999729283 | AA109: 0.9965420919 | AH109: =IFERROR(AH$4+(1-AH$4)/(1+EXP(-1.7*AH$2*($C109-AH$3))),"") ->  | CZ109: 0.2540590565 | DA109: 0.007352706305 | DB109: 2.478977554e-26 | DD109: 0.9025
A110: 101 | B110: 5.918415548e-33 | C110: 1 | D110: =IFERROR(D$4+(1-D$4)/(1+EXP(-1.7*D$2*($C110-D$3))),"") -> 0.8996855163 | E110: 0.9922825721 | F110: 0.9946868615 | G110: 0.9983209902 | H110: 0.9980632072 | I110: 0.9990872221 | J110: 0.9991207605 | K110: 0.9987015413 | L110: 0.9978964092 | M110: 0.9972050898 | N110: =IFERROR(N$4+(1-N$4)/(1+EXP(-1.7*N$2*($C110-N$3))),"") -> 0.9991849278 | O110: 0.9973849193 | P110: 0.9992952489 | Q110: 0.9977700425 | R110: 0.9997000116 | S110: 0.9994463857 | T110: 0.9985771201 | U110: 0.9996083979 | V110: 0.9989520365 | W110: 0.998801976 | X110: =IFERROR(X$4+(1-X$4)/(1+EXP(-1.7*X$2*($C110-X$3))),"") -> 0.9996220006 | Y110: 0.9975224497 | Z110: 0.9997606804 | AA110: 0.9969211944 | CZ110: 0.2419707245 | DA110: 0.006375787754 | DB110: 5.579837626e-27 | DD110: 1
A111: 102 | B111: 1.39670327e-33 | C111: 1.05 | D111: 0.9073261327 | E111: 0.9931991148 | F111: 0.9953189476 | G111: 0.9985185405 | H111: 0.9982716341 | I111: 0.9991871894 | J111: 0.999225178 | K111: 0.998844546 | L111: 0.9981303253 | M111: 0.9974990836 | N111: 0.999272901 | O111: 0.9976418756 | P111: 0.9993760099 | Q111: 0.997987837 | R111: 0.9997344879 | S111: 0.9995112184 | T111: 0.9987229735 | U111: 0.999652518 | V111: 0.9990620255 | W111: 0.9989339196 | X111: 0.9996655951 | Y111: 0.9977519889 | Z111: 0.9997884374 | AA111: 0.9972588605 | AH111: =IFERROR(AH$4+(1-AH$4)/(1+EXP(-1.7*AH$2*($C111-AH$3))),"") ->  | CZ111: 0.2298821407 | DA111: 0.005514863244 | DB111: 1.251015423e-27 | DD111: 1.1025
A112: 103 | B112: 3.291803618e-34 | C112: 1.1 | D112: 0.9144508357 | E112: 0.9940074683 | F112: 0.9958761539 | G112: 0.9986928792 | H112: 0.9984576663 | I112: 0.9992762165 | J112: 0.999317205 | K112: 0.998971819 | L112: 0.998338279 | M112: 0.9977622275 | N112: 0.9993513855 | O112: 0.9978736395 | P112: 0.9994475227 | Q112: 0.9981844009 | R112: 0.9997650031 | S112: 0.9995684631 | T112: 0.9988538956 | U112: 0.999691669 | V112: 0.9991604821 | W112: 0.999051349 | X112: 0.9997041638 | Y112: 0.997960306 | Z112: 0.9998129757 | AA112: 0.9975595931 | CZ112: 0.217852177 | DA112: 0.004758279045 | DB112: 2.794146056e-28 | DD112: 1.21
A113: 104 | B113: 7.748963261e-35 | C113: 1.15 | D113: 0.9210845642 | E113: 0.9947202552 | F113: 0.9963672799 | G113: 0.9988467264 | H113: 0.9986237028 | I113: 0.9993554991 | J113: 0.9993983095 | K113: 0.9990850871 | L113: 0.9985231415 | M113: 0.997997744 | N113: 0.9994214034 | O113: 0.9980826705 | P113: 0.9995108449 | Q113: 0.9983617961 | R113: 0.999792012 | S113: 0.9996190069 | T113: 0.998971411 | U113: 0.9997264103 | V113: 0.9992486131 | W113: 0.9991558572 | X113: 0.9997382857 | Y113: 0.9981493553 | Z113: 0.9998346685 | AA113: 0.9978274113 | CZ113: 0.2059362687 | DA113: 0.004095239741 | DB113: 6.217699414e-29 | DD113: 1.3225
A114: 105 | B114: 1.822124369e-35 | C114: 1.2 | D114: 0.9272525838 | E114: 0.9953486586 | F114: 0.9968001069 | G114: 0.9989824853 | H114: 0.9987718873 | I114: 0.9994261023 | J114: 0.9994697862 | K114: 0.9991858886 | L114: 0.9986874689 | M114: 0.9982085214 | N114: 0.999483867 | O114: 0.9982711899 | P114: 0.9995669134 | Q114: 0.9985218858 | R114: 0.9998159173 | S114: 0.9996636334 | T114: 0.9990768897 | U114: 0.9997572383 | V114: 0.9993274997 | W114: 0.9992488631 | X114: 0.9997684733 | Y114: 0.9983209125 | Z114: 0.9998538456 | AA114: 0.998065901 | CS114: =IFERROR(CS$4+(1-CS$4)/(1+EXP(-1.7*CS$2*($C114-CS$3))),"") ->  | CZ114: 0.194186055 | DA114: 0.003515790745 | DB114: 1.378635116e-29 | DD114: 1.44
A115: 106 | B115: 4.280339943e-36 | C115: 1.25 | D115: 0.9329801909 | E115: 0.9959025787 | F115: 0.9971815124 | G115: 0.9991022782 | H115: 0.9989041346 | I115: 0.9994889753 | J115: 0.9995327766 | K115: 0.999275593 | L115: 0.9988335359 | M115: 0.998397149 | N115: 0.9995395905 | O115: 0.9984412034 | P115: 0.9996165583 | Q115: 0.9986663531 | R115: 0.9998370756 | S115: 0.9997030348 | T115: 0.9991715621 | U115: 0.9997845934 | V115: 0.99939811 | W115: 0.9993316304 | X115: 0.9997951797 | Y115: 0.9984765907 | Z115: 0.9998707987 | AA115: 0.9982782609 | AH115: =IFERROR(AH$4+(1-AH$4)/(1+EXP(-1.7*AH$2*($C115-AH$3))),"") ->  | CZ115: 0.1826490854 | DA115: 0.0030107935 | DB115: 3.046134287e-30 | DD115: 1.5625
A116: 107 | B116: 1.00457418e-36 | C116: 1.3 | D116: 0.9382924607 | E116: 0.9963907742 | F116: 0.9975175722 | G116: 0.9992079795 | H116: 0.9990221551 | I116: 0.9995449635 | J116: 0.9995882873 | K116: 0.9993554203 | L116: 0.9989633666 | M116: 0.9985659465 | N116: 0.9995893005 | O116: 0.998594522 | P116: 0.9996605149 | Q116: 0.9987967185 | R116: 0.9998558023 | S116: 0.9997378225 | T116: 0.9992565332 | U116: 0.9998088667 | V116: 0.9994613112 | W116: 0.9994052844 | X116: 0.9998188063 | Y116: 0.9986178555 | Z116: 0.9998857856 | AA116: 0.9984673436 | CZ116: 0.171368592 | DA116: 0.002571894709 | DB116: 6.707590197e-31 | DD116: 1.69
A117: 108 | B117: 2.355720593e-37 | C117: 1.35 | D117: 0.9432140366 | E117: 0.9968209897 | F117: 0.9978136516 | G117: 0.9993012443 | H117: 0.9991274765 | I117: 0.9995948201 | J117: 0.9996372056 | K117: 0.9994264565 | L117: 0.9990787617 | M117: 0.9987169926 | N117: 0.9996336455 | O117: 0.9987327806 | P117: 0.9996994344 | Q117: 0.9989143552 | R117: 0.9998723769 | S117: 0.9997685362 | T117: 0.9993327957 | U117: 0.9998304054 | V117: 0.9995178797 | W117: 0.9994708272 | X117: 0.9998397081 | Y117: 0.9987460375 | Z117: 0.9998990343 | AA117: 0.9986356923 | CZ117: 0.1603833273 | DA117: 0.002191490861 | DB117: 1.472096496e-31 | DD117: 1.8225
A118: 109 | B118: 5.519950278e-38 | C118: 1.4 | D118: 0.9477689581 | E118: 0.9972000691 | F118: 0.998074487 | G118: 0.9993835337 | H118: 0.9992214629 | I118: 0.9996392163 | J118: 0.9996803138 | K118: 0.9994896686 | L118: 0.9991813232 | M118: 0.9988521491 | N118: 0.9996732039 | O118: 0.9988574547 | P118: 0.9997338936 | Q118: 0.9990205032 | R118: 0.9998870466 | S118: 0.9997956529 | T118: 0.9994012407 | U118: 0.9998495173 | V118: 0.9995685109 | W118: 0.9995291509 | X118: 0.9998581992 | Y118: 0.9988623455 | Z118: 0.9999107463 | AA118: 0.9987855742 | CS118: =IFERROR(CS$4+(1-CS$4)/(1+EXP(-1.7*CS$2*($C118-CS$3))),"") ->  | CZ118: 0.1497274656 | DA118: 0.001862689243 | DB118: 3.22025246e-32 | DD118: 1.96
A119: 110 | B119: 1.292543288e-38 | C119: 1.45 | D119: 0.9519805237 | E119: 0.997534058 | F119: 0.9983042581 | G119: 0.9994561378 | H119: 0.9993053324 | I119: 0.9996787495 | J119: 0.9997183015 | K119: 0.9995459173 | L119: 0.9992724758 | M119: 0.9989730836 | N119: 0.9997084923 | O119: 0.998969876 | P119: 0.9997644032 | Q119: 0.9991162823 | R119: 0.9999000302 | S119: 0.9998195935 | T119: 0.9994626685 | U119: 0.9998664757 | V119: 0.9996138274 | W119: 0.9995810497 | X119: 0.9998745576 | Y119: 0.998967877 | Z119: 0.9999210998 | AA119: 0.9989190098 | AH119: =IFERROR(AH$4+(1-AH$4)/(1+EXP(-1.7*AH$2*($C119-AH$3))),"") ->  | CZ119: 0.1394305664 | DA119: 0.001579266463 | DB119: 7.021927963e-33 | DD119: 2.1025
A120: 111 | B120: 3.024684145e-39 | C120: 1.5 | D120: =IFERROR(D$4+(1-D$4)/(1+EXP(-1.7*D$2*($C120-D$3))),"") -> 0.9558711847 | E120: 0.9978282945 | F120: 0.9985066524 | G120: 0.9995201953 | H120: 0.9993801726 | I120: 0.9997139521 | J120: 0.9997517765 | K120: 0.9995959691 | L120: 0.9993534868 | M120: 0.9990812894 | N120: =IFERROR(N$4+(1-N$4)/(1+EXP(-1.7*N$2*($C120-N$3))),"") -> 0.9997399711 | O120: 0.9990712463 | P120: 0.9997914159 | Q120: 0.9992027037 | R120: 0.9999115216 | S120: 0.9998407299 | T120: 0.9995177978 | U120: 0.9998815234 | V120: 0.9996543865 | W120: 0.9996272307 | X120: =IFERROR(X$4+(1-X$4)/(1+EXP(-1.7*X$2*($C120-X$3))),"") -> 0.9998890291 | Y120: 0.9990636285 | Z120: 0.9999302525 | AA120: 0.9990377996 | CZ120: 0.1295175957 | DA120: 0.001335625442 | DB120: 1.526377954e-33 | DD120: 2.25
A121: 112 | B121: 7.073985372e-40 | C121: 1.55 | D121: 0.959462467 | E121: 0.9980874905 | F121: 0.9986849224 | G121: 0.9995767112 | H121: 0.9994469543 | I121: 0.9997452982 | J121: 0.9997812746 | K121: 0.9996405061 | L121: 0.9994254829 | M121: 0.9991781038 | N121: 0.9997680515 | O121: 0.9991626498 | P121: 0.9998153321 | Q121: 0.9992806801 | R121: 0.9999216922 | S121: 0.9998593905 | T121: 0.9995672738 | U121: 0.9998948754 | V121: 0.9996906873 | W121: 0.9996683233 | X121: 0.9999018313 | Y121: 0.9991505046 | Z121: 0.9999383434 | AA121: 0.999143548 | AH121: =IFERROR(AH$4+(1-AH$4)/(1+EXP(-1.7*AH$2*($C121-AH$3))),"") ->  | CZ121: 0.1200090007 | DA121: 0.001126751688 | DB121: 3.307739185e-34 | DD121: 2.4025
A122: 113 | B122: 1.653558602e-40 | C122: 1.6 | D122: 0.962774916 | E122: 0.9983158036 | F122: 0.9988419364 | G122: 0.9996265728 | H122: 0.9995065444 | I122: 0.9997732101 | J122: 0.999807268 | K122: 0.9996801355 | L122: 0.9994894661 | M122: 0.999264724 | N122: 0.9997931001 | O122: 0.9992450649 | P122: 0.9998365066 | Q122: 0.9993510355 | R122: 0.9999306937 | S122: 0.9998758651 | T122: 0.9996116755 | U122: 0.9999067229 | V122: 0.9997231766 | W122: 0.9997048877 | X122: 0.9999131568 | Y122: 0.9992293268 | Z122: 0.9999454959 | AA122: 0.9992376841 | CZ122: 0.1109208347 | DA122: 0.0009481695744 | DB122: 7.146378283e-35 | DD122: 2.56
A123: 114 | B123: 3.863372027e-41 | C123: 1.65 | D123: 0.9658280632 | E123: 0.9985169018 | F123: 0.9989802231 | G123: 0.9996705629 | H123: 0.9995597166 | I123: 0.9997980639 | J123: 0.999830173 | K123: 0.9997153976 | L123: 0.9995463271 | M123: 0.9993422217 | N123: 0.9998154443 | O123: 0.9993193742 | P123: 0.9998552537 | Q123: 0.9994145139 | R123: 0.9999386606 | S123: 0.9998904097 | T123: 0.999651523 | U123: 0.9999172352 | V123: 0.9997522543 | W123: 0.9997374225 | X123: 0.9999231758 | Y123: 0.9993008404 | Z123: 0.9999518187 | AA123: 0.9993214811 | CZ123: 0.1022649246 | DA123: 0.000795899216 | DB123: 1.539382392e-35 | DD123: 2.7225
A124: 115 | B124: 9.022428012e-42 | C124: 1.7 | D124: 0.9686404088 | E124: 0.9986940198 | F124: 0.9991020118 | G124: 0.9997093726 | H124: 0.9996071615 | I124: 0.9998201945 | J124: 0.9998503563 | K124: 0.9997467735 | L124: 0.9995968581 | M124: 0.9994115564 | N124: 0.9998353758 | O124: 0.9993863738 | P124: 0.9998718514 | Q124: 0.9994717866 | R124: 0.9999457118 | S124: 0.9999032504 | T124: 0.999687283 | U124: 0.999926563 | V124: 0.9997782784 | W124: 0.9997663715 | X124: 0.999932039 | Y124: 0.9993657224 | Z124: 0.999957408 | AA124: 0.9993960729 | CS124: =IFERROR(CS$4+(1-CS$4)/(1+EXP(-1.7*CS$2*($C124-CS$3))),"") ->  | CZ124: 0.09404907738 | DA124: 0.0006664144453 | DB124: 3.306216176e-36 | DD124: 2.89
A125: 116 | B125: 2.106236413e-42 | C125: 1.75 | D125: 0.9712294202 | E125: 0.9988500102 | F125: 0.9992092674 | G125: 0.9997436114 | H125: 0.9996494956 | I125: 0.9998399002 | J125: 0.9998681413 | K125: 0.9997746912 | L125: 0.9996417632 | M125: 0.9994735868 | N125: 0.999853155 | O125: 0.9994467818 | P125: 0.9998865463 | Q125: 0.9995234596 | R125: 0.9999519524 | S125: 0.9999145867 | T125: 0.9997193746 | U125: 0.9999348396 | V125: 0.9998015696 | W125: 0.9997921298 | X125: 0.9999398798 | Y125: 0.9994245868 | Z125: 0.999962349 | AA125: 0.9994624694 | AH125: =IFERROR(AH$4+(1-AH$4)/(1+EXP(-1.7*AH$2*($C125-AH$3))),"") ->  | CZ125: 0.08627731883 | DA125: 0.0005566022936 | DB125: 7.080387692e-37 | DD125: 3.0625
A126: 117 | B126: 4.915106975e-43 | C126: 1.8 | D126: 0.9736115413 | E126: 0.9989873876 | F126: 0.9993037215 | G126: 0.9997738175 | H126: 0.999687269 | I126: 0.9998574465 | J126: 0.9998838129 | K126: 0.9997995318 | L126: 0.9996816681 | M126: 0.9995290818 | N126: 0.9998690144 | O126: 0.9995012461 | P126: 0.9998995562 | Q126: 0.99957008 | R126: 0.9999574757 | S126: 0.9999245949 | T126: 0.9997481738 | U126: 0.9999421834 | V126: 0.9998224145 | W126: 0.9998150488 | X126: 0.999946816 | Y126: 0.9994779912 | Z126: 0.9999667168 | AA126: 0.9995215701 | CZ126: 0.0789501583 | DA126: 0.0004637242897 | DB126: 1.511956376e-37 | DD126: 3.24
A127: 118 | B127: 1.146608143e-43 | C127: 1.85 | D127: 0.9758022122 | E127: 0.9991083688 | F127: 0.9993869 | G127: 0.9998004657 | H127: 0.9997209727 | I127: 0.9998730701 | J127: 0.9998976221 | K127: 0.9998216342 | L127: 0.9997171294 | M127: 0.999578729 | N127: 0.9998831612 | O127: 0.999550351 | P127: 0.9999110745 | Q127: 0.9996121413 | R127: 0.9999623641 | S127: 0.9999334304 | T127: 0.9997740183 | U127: 0.9999486996 | V127: 0.9998410702 | W127: 0.9998354413 | X127: 0.999952952 | Y127: 0.9995264414 | Z127: 0.9999705779 | AA127: 0.9995741757 | CZ127: 0.07206487434 | DA127: 0.0003853798129 | DB127: 3.219526e-38 | DD127: 3.4225
A128: 119 | B128: 2.674028605e-44 | C128: 1.9 | D128: 0.9778158959 | E128: 0.9992149072 | F128: 0.9994601473 | G128: 0.9998239749 | H128: 0.9997510451 | I128: 0.9998869816 | J128: 0.9999097902 | K128: 0.9998413001 | L128: 0.9997486414 | M128: 0.9996231443 | N128: 0.9998957803 | O128: 0.9995946232 | P128: 0.9999212721 | Q128: 0.9996500891 | R128: 0.9999666905 | S128: 0.9999412308 | T128: 0.999797211 | U128: 0.9999544814 | V128: 0.9998577663 | W128: 0.9998535858 | X128: 0.9999583802 | Y128: 0.9995703968 | Z128: 0.9999739912 | AA128: 0.9996209996 | CS128: =IFERROR(CS$4+(1-CS$4)/(1+EXP(-1.7*CS$2*($C128-CS$3))),"") ->  | CZ128: 0.06561581477 | DA128: 0.0003194716628 | DB128: 6.836406147e-39 | DD128: 3.61
A129: 120 | B129: 6.234443856e-45 | C129: 1.95 | D129: 0.9796661113 | E129: 0.9993087245 | F129: 0.999524648 | G129: 0.9998447146 | H129: 0.9997778771 | I129: 0.9998993685 | J129: 0.9999205122 | K129: 0.9998587981 | L129: 0.9997766439 | M129: 0.9996628785 | N129: 0.9999070366 | O129: 0.9996345381 | P129: 0.9999303003 | Q129: 0.9996843253 | R129: 0.9999705197 | S129: 0.9999481172 | T129: 0.9998180239 | U129: 0.9999596117 | V129: 0.9998727088 | W129: 0.99986973 | X129: 0.999963182 | Y129: 0.9996102738 | Z129: 0.9999770084 | AA129: 0.9996626766 | AH129: =IFERROR(AH$4+(1-AH$4)/(1+EXP(-1.7*AH$2*($C129-AH$3))),"") ->  | CZ129: 0.05959470607 | DA129: 0.000264173948 | DB129: 1.44763369e-39 | DD129: 3.8025
A130: 121 | B130: 1.453184185e-45 | C130: 2 | D130: =IFERROR(D$4+(1-D$4)/(1+EXP(-1.7*D$2*($C130-D$3))),"") -> 0.9813654701 | E130: 0.9993913377 | F130: 0.9995814455 | G130: 0.9998630111 | H130: 0.9998018177 | I130: 0.9999103979 | J130: 0.9999299599 | K130: 0.9998743671 | L130: 0.9998015275 | M130: 0.9996984246 | N130: =IFERROR(N$4+(1-N$4)/(1+EXP(-1.7*N$2*($C130-N$3))),"") -> 0.9999170772 | O130: 0.9996705241 | P130: 0.9999382933 | Q130: 0.9997152127 | R130: 0.9999739086 | S130: 0.9999541967 | T130: 0.9998367011 | U130: 0.9999641637 | V130: 0.9998860816 | W130: 0.9998840943 | X130: =IFERROR(X$4+(1-X$4)/(1+EXP(-1.7*X$2*($C130-X$3))),"") -> 0.9999674299 | Y130: 0.9996464507 | Z130: 0.9999796757 | AA130: 0.999699772 | CZ130: 0.05399096651 | DA130: 0.0002179023404 | DB130: 3.056997237e-40 | DD130: 4
A131: 122 | B131: 3.386449268e-46 | C131: 2.05 | D131: 0.9829257171 | E131: 0.9994640832 | F131: 0.9996314591 | G131: 0.9998791521 | H131: 0.9998231785 | I131: 0.9999202186 | J131: 0.9999382848 | K131: 0.9998882196 | L131: 0.9998236394 | M131: 0.9997302239 | N131: 0.9999260335 | O131: 0.9997029678 | P131: 0.9999453698 | Q131: 0.9997430788 | R131: 0.999976908 | S131: 0.9999595639 | T131: 0.9998534617 | U131: 0.9999682027 | V131: 0.9998980497 | W131: 0.999896875 | X131: 0.9999711878 | Y131: 0.9996792705 | Z131: 0.9999820335 | AA131: 0.9997327893 | AH131: =IFERROR(AH$4+(1-AH$4)/(1+EXP(-1.7*AH$2*($C131-AH$3))),"") ->  | CZ131: 0.04879201858 | DA131: 0.0001792866972 | DB131: 6.437935792e-41 | DD131: 4.2025
A132: 123 | B132: 7.890023247e-47 | C132: 2.1 | D132: 0.9843577724 | E132: 0.9995281386 | F132: 0.9996754985 | G132: 0.9998933914 | H132: 0.9998422373 | I132: 0.999928963 | J132: 0.9999456203 | K132: 0.9999005449 | L132: 0.9998432882 | M132: 0.999758671 | N132: 0.9999340225 | O132: 0.9997322177 | P132: 0.9999516347 | Q132: 0.9997682189 | R132: 0.9999795626 | S132: 0.9999643022 | T132: 0.9998685023 | U132: 0.9999717865 | V132: 0.9999087606 | W132: 0.9999082465 | X132: 0.999974512 | Y132: 0.9997090445 | Z132: 0.9999841178 | AA132: 0.9997621765 | CZ132: 0.04398359598 | DA132: 0.0001471460142 | DB132: 1.352141982e-41 | DD132: 4.41
A133: 124 | B133: 1.837933681e-47 | C133: 2.15 | D133: 0.9856717742 | E133: 0.9995845409 | F133: 0.9997142768 | G133: 0.9999059531 | H133: 0.9998592421 | I133: 0.9999367491 | J133: 0.9999520839 | K133: 0.9999115113 | L133: 0.9998607483 | M133: 0.9997841191 | N133: 0.9999411487 | O133: 0.9997585879 | P133: 0.9999571813 | Q133: 0.9997908995 | R133: 0.999981912 | S133: 0.9999684852 | T133: 0.9998819993 | U133: 0.9999749664 | V133: 0.9999183464 | W133: 0.9999183642 | X133: 0.9999774527 | Y133: 0.9997360553 | Z133: 0.9999859603 | AA133: 0.9997883325 | CZ133: 0.03955004159 | DA133: 0.0001204656428 | DB133: 2.832240067e-42 | DD133: 4.6225
A134: 125 | B134: 4.280618912e-48 | C134: 2.2 | D134: 0.9868771228 | E134: 0.9996342039 | F134: 0.9997484223 | G134: 0.9999170348 | H134: 0.9998744143 | I134: 0.9999436817 | J134: 0.9999577793 | K134: 0.9999212686 | L134: 0.9998762633 | M134: 0.9998068843 | N134: 0.9999475052 | O134: 0.9997823618 | P134: 0.9999620918 | Q134: 0.9998113612 | R134: 0.9999839914 | S134: 0.9999721782 | T134: 0.9998941111 | U134: 0.9999777879 | V134: 0.9999269251 | W134: 0.9999273663 | X134: 0.9999800542 | Y134: 0.9997605592 | Z134: 0.999987589 | AA134: 0.9998116125 | CS134: =IFERROR(CS$4+(1-CS$4)/(1+EXP(-1.7*CS$2*($C134-CS$3))),"") ->  | CZ134: 0.03547459285 | DA134: 9.837668085e-05 | DB134: 5.916668904e-43 | DD134: 4.84
A135: 126 | B135: 9.968163412e-49 | C135: 2.25 | D135: 0.9879825237 | E135: 0.9996779322 | F135: 0.9997784882 | G135: 0.9999268108 | H135: 0.9998879512 | I135: 0.9999498546 | J135: 0.9999627977 | K135: 0.9999299501 | L135: 0.9998900499 | M135: 0.9998272493 | N135: 0.9999531752 | O135: 0.9998037951 | P135: 0.9999664392 | Q135: 0.999829821 | R135: 0.9999858317 | S135: 0.9999754384 | T135: 0.9999049799 | U135: 0.9999802914 | V135: 0.9999346026 | W135: 0.9999353759 | X135: 0.9999823555 | Y135: 0.9997827887 | Z135: 0.9999890289 | AA135: 0.9998323325 | AH135: =IFERROR(AH$4+(1-AH$4)/(1+EXP(-1.7*AH$2*($C135-AH$3))),"") ->  | CZ135: 0.03173965184 | DA135: 8.013742675e-05 | DB135: 1.232737447e-43 | DD135: 5.0625
A136: 127 | B136: 2.320927999e-49 | C136: 2.3 | D136: 0.9889960298 | E136: 0.9997164346 | F136: 0.9998049616 | G136: 0.999935435 | H136: 0.9999000292 | I136: 0.9999553509 | J136: 0.9999672197 | K136: 0.9999376743 | L136: 0.9999023006 | M136: 0.999845467 | N136: 0.9999582328 | O136: 0.9998231179 | P136: 0.999970288 | Q136: 0.9998464746 | R136: 0.9999874605 | S136: 0.9999783165 | T136: 0.9999147332 | U136: 0.9999825127 | V136: 0.9999414735 | W136: 0.9999425022 | X136: 0.9999843913 | Y136: 0.9998029548 | Z136: 0.9999903016 | AA136: 0.9998507739 | CZ136: 0.02832703774 | DA136: 6.511677508e-05 | DB136: 2.561628286e-44 | DD136: 5.29
A137: 128 | B137: 5.403207691e-50 | C137: 2.35 | D137: 0.9899250835 | E137: 0.9997503353 | F137: 0.9998282716 | G137: 0.999943043 | H137: 0.9999108053 | I137: 0.9999602448 | J137: 0.9999711161 | K137: 0.9999445469 | L137: 0.9999131864 | M137: 0.9998617639 | N137: 0.9999627442 | O137: 0.9998405381 | P137: 0.9999736955 | Q137: 0.9998614987 | R137: 0.999988902 | S137: 0.9999808575 | T137: 0.9999234855 | U137: 0.9999844837 | V137: 0.9999476226 | W137: 0.9999488428 | X137: 0.9999861922 | Y137: 0.9998212491 | Z137: 0.9999914267 | AA137: 0.9998671874 | CZ137: 0.02521821992 | DA137: 5.277942308e-05 | DB137: 5.309081233e-45 | DD137: 5.5225
A138: 129 | B138: 1.257737978e-50 | C138: 2.4 | D138: 0.9907765562 | E138: 0.999780184 | F138: 0.9998487962 | G138: 0.9999497545 | H138: 0.99992042 | I138: 0.9999646023 | J138: 0.9999745493 | K138: 0.9999506617 | L138: 0.9999228594 | M138: 0.9998763423 | N138: 0.9999667682 | O138: 0.9998562429 | P138: 0.9999767122 | Q138: 0.9998750528 | R138: 0.9999901778 | S138: 0.9999831006 | T138: 0.9999313394 | U138: 0.9999862326 | V138: 0.9999531256 | W138: 0.9999544842 | X138: 0.9999877853 | Y138: 0.9998378451 | Z138: 0.9999924213 | AA138: 0.9998817957 | CS138: =IFERROR(CS$4+(1-CS$4)/(1+EXP(-1.7*CS$2*($C138-CS$3))),"") ->  | CZ138: 0.02239453029 | DA138: 4.267275255e-05 | DB138: 1.097451696e-45 | DD138: 5.76
A139: 130 | B139: 2.927398196e-51 | C139: 2.45 | D139: 0.9915567874 | E139: 0.9998064648 | F139: 0.9998668681 | G139: 0.9999556753 | H139: 0.9999289983 | I139: 0.9999684822 | J139: 0.9999775745 | K139: 0.9999561023 | L139: 0.9999314547 | M139: 0.9998893835 | N139: 0.9999703577 | O139: 0.9998704012 | P139: 0.9999793829 | Q139: 0.9998872806 | R139: 0.9999913069 | S139: 0.9999850809 | T139: 0.9999383872 | U139: 0.9999877843 | V139: 0.9999580505 | W139: 0.9999595035 | X139: 0.9999891946 | Y139: 0.9998529005 | Z139: 0.9999933006 | AA139: 0.9998947974 | AH139: =IFERROR(AH$4+(1-AH$4)/(1+EXP(-1.7*AH$2*($C139-AH$3))),"") ->  | CZ139: =1/SQRT(2*PI())*EXP(-(C139^2)/2) -> 0.01983735439 | DA139: =1/SQRT(2*PI())*EXP(-((C139-$DA$7)^2)/2) -> 3.441525087e-05 | DB139: =B139*CZ139/$DB$7 -> 2.262657577e-46 | DD139: =C139^2 -> 6.0025
A140: 131 | B140: 6.812879737e-52 | C140: =C139+0.05 -> 2.5 | D140: =IFERROR(D$4+(1-D$4)/(1+EXP(-1.7*D$2*($C140-D$3))),"") -> 0.9922716208 | E140: 0.9998296041 | F140: 0.9998827802 | G140: 0.9999608984 | H140: 0.999936652 | I140: 0.9999719369 | J140: 0.9999802401 | K140: 0.9999609429 | L140: 0.9999390924 | M140: 0.9999010495 | N140: =IFERROR(N$4+(1-N$4)/(1+EXP(-1.7*N$2*($C140-N$3))),"") -> 0.9999735594 | O140: 0.9998831653 | P140: 0.9999817474 | Q140: 0.9998983118 | R140: 0.9999923063 | S140: 0.9999868292 | T140: 0.9999447117 | U140: 0.9999891611 | V140: 0.999962458 | W140: 0.9999639693 | X140: =IFERROR(X$4+(1-X$4)/(1+EXP(-1.7*X$2*($C140-X$3))),"") -> 0.9999904414 | Y140: 0.9998665583 | Z140: 0.9999940778 | AA140: 0.9999063692 | CZ140: 0.01752830049 | DA140: 2.768633605e-05 | DB140: 4.652901019e-47 | DD140: 6.25
A141: 132 | B141: 1.585406917e-52 | C141: 2.55 | D141: 0.99292644 | E141: 0.9998499772 | F141: 0.9998967908 | G141: 0.999965506 | H141: 0.9999434807 | I141: 0.9999750129 | J141: 0.9999825889 | K141: 0.9999652498 | L141: 0.999945879 | M141: 0.9999114853 | N141: 0.9999764154 | O141: 0.9998946724 | P141: 0.9999838407 | Q141: 0.9999082636 | R141: 0.9999931908 | S141: 0.9999883726 | T141: 0.999950387 | U141: 0.9999903828 | V141: 0.9999664025 | W141: 0.9999679427 | X141: 0.9999915442 | Y141: 0.9998789481 | Z141: 0.9999947648 | AA141: 0.9999166682 | AH141: =IFERROR(AH$4+(1-AH$4)/(1+EXP(-1.7*AH$2*($C141-AH$3))),"") ->  | CZ141: 0.01544934713 | DA141: 2.221745432e-05 | DB141: 9.543422729e-48 | DD141: 6.5025
A142: 133 | B142: 3.689056835e-53 | C142: 2.6 | D142: 0.9935262013 | E142: 0.9998679148 | F142: 0.9999091268 | G142: 0.9999695707 | H142: 0.9999495733 | I142: 0.9999777517 | J142: 0.9999846584 | K142: 0.9999690818 | L142: 0.9999519096 | M142: 0.9999208205 | N142: 0.9999789628 | O142: 0.9999050462 | P142: 0.9999856939 | Q142: 0.9999172416 | R142: 0.9999939735 | S142: 0.9999897351 | T142: 0.9999554797 | U142: 0.9999914667 | V142: 0.9999699325 | W142: 0.9999714779 | X142: 0.9999925199 | Y142: 0.9998901877 | Z142: 0.9999953722 | AA142: 0.9999258345 | CZ142: 0.01358296923 | DA142: 1.778432432e-05 | DB142: 1.952375479e-48 | DD142: 6.76
A143: 134 | B143: 8.583366814e-54 | C143: 2.65 | D143: 0.994075465 | E143: 0.9998837079 | F143: 0.9999199886 | G143: 0.9999731565 | H143: 0.9999550092 | I143: 0.9999801903 | J143: 0.999986482 | K143: 0.9999724912 | L143: 0.9999572681 | M143: 0.9999291713 | N143: 0.9999812351 | O143: 0.9999143985 | P143: 0.9999873346 | Q143: 0.9999253409 | R143: 0.9999946663 | S143: 0.999990938 | T143: 0.9999600497 | U143: 0.9999924285 | V143: 0.9999730916 | W143: 0.9999746233 | X143: 0.9999933829 | Y143: 0.9999003838 | Z143: 0.999995909 | AA143: 0.9999339926 | CZ143: 0.01191224361 | DA143: 1.420020805e-05 | DB143: 3.983864147e-49 | DD143: 7.0225
A144: 135 | B144: 1.996965688e-54 | C144: 2.7 | D144: 0.994578425 | E144: 0.9998976129 | F144: 0.9999295521 | G144: 0.9999763197 | H144: 0.9999598591 | I144: 0.9999823617 | J144: 0.9999880888 | K144: 0.9999755247 | L144: 0.9999620296 | M144: 0.9999366414 | N144: 0.999983262 | O144: 0.9999228296 | P144: 0.9999887871 | Q144: 0.9999326477 | R144: 0.9999952795 | S144: 0.9999919999 | T144: 0.9999641506 | U144: 0.9999932819 | V144: 0.9999759188 | W144: 0.9999774218 | X144: 0.9999941464 | Y144: 0.9999096333 | Z144: 0.9999963836 | AA144: 0.9999412534 | CS144: =IFERROR(CS$4+(1-CS$4)/(1+EXP(-1.7*CS$2*($C144-CS$3))),"") ->  | CZ144: 0.01042093481 | DA144: 1.131009645e-05 | DB144: 8.10831409e-50 | DD144: 7.29
A145: 136 | B145: 4.645759827e-55 | C145: 2.75 | D145: 0.9950389362 | E145: 0.9999098554 | F145: 0.9999379727 | G145: 0.9999791101 | H145: 0.9999641863 | I145: 0.999984295 | J145: 0.9999895047 | K145: 0.9999782236 | L145: 0.9999662606 | M145: 0.9999433237 | N145: 0.9999850699 | O145: 0.9999304304 | P145: 0.9999900731 | Q145: 0.9999392394 | R145: 0.9999958222 | S145: 0.9999929374 | T145: 0.9999678306 | U145: 0.9999940391 | V145: 0.999978449 | W145: 0.9999799117 | X145: 0.9999948218 | Y145: 0.999918024 | Z145: 0.9999968032 | AA145: 0.9999477155 | AH145: =IFERROR(AH$4+(1-AH$4)/(1+EXP(-1.7*AH$2*($C145-AH$3))),"") ->  | CZ145: 0.009093562502 | DA145: 8.985705354e-06 | DB145: 1.64605405e-50 | DD145: 7.5625
A146: 137 | B146: 1.080733241e-55 | C146: 2.8 | D146: 0.9954605406 | E146: 0.9999206342 | F146: 0.9999453868 | G146: 0.9999815718 | H146: 0.999968047 | I146: 0.9999860165 | J146: 0.9999907522 | K146: 0.999980625 | L146: 0.9999700202 | M146: 0.9999493013 | N146: 0.9999866826 | O146: 0.9999372827 | P146: 0.9999912115 | Q146: 0.999945186 | R146: 0.9999963024 | S146: 0.999993765 | T146: 0.9999711328 | U146: 0.999994711 | V146: 0.9999807133 | W146: 0.999982127 | X146: 0.9999954192 | Y146: 0.9999256357 | Z146: 0.9999971741 | AA146: 0.9999534668 | CZ146: 0.007915451583 | DA146: 7.121185563e-06 | DB146: 3.333093432e-51 | DD146: 7.84
A147: 138 | B147: 2.513958126e-56 | C147: 2.85 | D147: 0.9958464912 | E147: 0.9999301242 | F147: 0.9999519147 | G147: 0.9999837434 | H147: 0.9999714915 | I147: 0.9999875492 | J147: 0.9999918515 | K147: 0.9999827615 | L147: 0.9999733608 | M147: 0.9999546485 | N147: 0.9999881211 | O147: 0.99994346 | P147: 0.9999922195 | Q147: 0.9999505507 | R147: 0.9999967275 | S147: 0.9999944957 | T147: 0.9999740961 | U147: 0.9999953071 | V147: 0.9999827398 | W147: 0.999984098 | X147: 0.9999959478 | Y147: 0.9999325407 | Z147: 0.9999975019 | AA147: 0.9999585855 | CZ147: 0.006872766691 | DA147: 5.629459454e-06 | DB147: 6.731981627e-52 | DD147: 8.1225
A148: 139 | B148: 5.847595447e-57 | C148: 2.9 | D148: 0.9961997745 | E148: 0.9999384795 | F148: 0.9999576624 | G148: 0.999985659 | H148: 0.9999745647 | I148: 0.999988914 | J148: 0.9999928201 | K148: 0.9999846625 | L148: 0.9999763292 | M148: 0.9999594317 | N148: 0.9999894042 | O148: 0.999949029 | P148: 0.9999931118 | Q148: 0.9999553903 | R148: 0.9999971037 | S148: 0.9999951407 | T148: 0.9999767551 | U148: 0.999995836 | V148: 0.9999845533 | W148: 0.9999858517 | X148: 0.9999964153 | Y148: 0.9999388045 | Z148: 0.9999977917 | AA148: 0.9999631412 | CS148: =IFERROR(CS$4+(1-CS$4)/(1+EXP(-1.7*CS$2*($C148-CS$3))),"") ->  | CZ148: 0.00595253242 | DA148: 4.439104329e-06 | DB148: 1.35622695e-52 | DD148: 8.41
A149: 140 | B149: 1.360122886e-57 | C149: 2.95 | D149: 0.9965231317 | E149: 0.9999458359 | F149: 0.9999627231 | G149: 0.999987349 | H149: 0.9999773066 | I149: 0.9999901291 | J149: 0.9999936735 | K149: 0.9999863538 | L149: 0.9999789668 | M149: 0.9999637105 | N149: 0.9999905487 | O149: 0.9999540494 | P149: 0.9999939018 | Q149: 0.9999597563 | R149: 0.9999974367 | S149: 0.9999957101 | T149: 0.9999791413 | U149: 0.9999963054 | V149: 0.9999861763 | W149: 0.999987412 | X149: 0.9999968289 | Y149: 0.9999444868 | Z149: 0.9999980479 | AA149: 0.9999671958 | AH149: =IFERROR(AH$4+(1-AH$4)/(1+EXP(-1.7*AH$2*($C149-AH$3))),"") ->  | CZ149: 0.005142640923 | DA149: 3.491710849e-06 | DB149: 2.725320801e-53 | DD149: 8.7025
A150: 141 | B150: 3.16345867e-58 | C150: 3 | D150: =IFERROR(D$4+(1-D$4)/(1+EXP(-1.7*D$2*($C150-D$3))),"") -> 0.9968190777 | E150: 0.9999523126 | F150: 0.9999671789 | G150: 0.9999888398 | H150: 0.999979753 | I150: 0.9999912111 | J150: 0.9999944255 | K150: 0.9999878586 | L150: 0.9999813105 | M150: 0.9999675379 | N150: =IFERROR(N$4+(1-N$4)/(1+EXP(-1.7*N$2*($C150-N$3))),"") -> 0.9999915696 | O150: 0.9999585754 | P150: 0.9999946011 | Q150: 0.999963695 | R150: 0.9999977313 | S150: 0.9999962128 | T150: 0.9999812825 | U150: 0.9999967218 | V150: 0.9999876287 | W150: 0.9999888002 | X150: =IFERROR(X$4+(1-X$4)/(1+EXP(-1.7*X$2*($C150-X$3))),"") -> 0.9999971948 | Y150: 0.9999496415 | Z150: 0.9999982744 | AA150: 0.9999708043 | CZ150: 0.004431848412 | DA150: 2.739652352e-06 | DB150: 5.462611862e-54 | DD150: 9
A151: 142 | B151: 7.35751e-59 | C151: 3.05 | D151: 0.9970899194 | E151: 0.9999580149 | F151: 0.999971102 | G151: 0.9999901549 | H151: 0.9999819356 | I151: 0.9999921745 | J151: 0.9999950881 | K151: 0.9999891975 | L151: 0.9999833931 | M151: 0.9999709618 | N151: 0.9999924802 | O151: 0.9999626556 | P151: 0.9999952203 | Q151: 0.9999672483 | R151: 0.9999979922 | S151: 0.9999966566 | T151: 0.9999832039 | U151: 0.9999970913 | V151: 0.9999889286 | W151: 0.9999900353 | X151: 0.9999975185 | Y151: 0.9999543176 | Z151: 0.9999984746 | AA151: 0.9999740159 | AH151: =IFERROR(AH$4+(1-AH$4)/(1+EXP(-1.7*AH$2*($C151-AH$3))),"") ->  | CZ151: 0.003809762098 | DA151: 2.144207962e-06 | DB151: 1.092149268e-54 | DD151: 9.3025
A152: 143 | B152: 1.711140204e-59 | C152: 3.1 | D152: 0.9973377723 | E152: 0.9999630353 | F152: 0.9999745563 | G152: 0.9999913151 | H152: 0.999983883 | I152: 0.9999930322 | J152: 0.999995672 | K152: 0.9999903888 | L152: 0.9999852436 | M152: 0.9999740245 | N152: 0.9999932924 | O152: 0.999966334 | P152: 0.9999957685 | Q152: 0.9999704537 | R152: 0.999998223 | S152: 0.9999970484 | T152: 0.999984928 | U152: 0.9999974191 | V152: 0.9999900919 | W152: 0.9999911342 | X152: 0.9999978048 | Y152: 0.9999585594 | Z152: 0.9999986515 | AA152: 0.9999768743 | CZ152: 0.003266819056 | DA152: 1.673989063e-06 | DB152: 2.1780305e-55 | DD152: 9.61
A153: 144 | B153: 3.979491722e-60 | C153: 3.15 | D153: 0.9975645758 | E153: 0.9999674555 | F153: 0.9999775977 | G153: 0.9999923385 | H153: 0.9999856204 | I153: 0.999993796 | J153: 0.9999961865 | K153: 0.9999914486 | L153: 0.9999868879 | M153: 0.9999767642 | N153: 0.999994017 | O153: 0.99996965 | P153: 0.9999962538 | Q153: 0.9999733455 | R153: 0.9999984273 | S153: 0.9999973943 | T153: 0.9999864752 | U153: 0.99999771 | V153: 0.9999911329 | W153: 0.9999921119 | X153: 0.9999980581 | Y153: 0.9999624074 | Z153: 0.999998808 | AA153: 0.9999794182 | CZ153: 0.002794258415 | DA153: 1.303624733e-06 | DB153: 4.332588618e-56 | DD153: 9.9225
A154: 145 | B154: 9.2546078e-61 | C154: 3.2 | D154: 0.9977721077 | E154: 0.9999713471 | F154: 0.9999802755 | G154: 0.9999932413 | H154: 0.9999871706 | I154: 0.999994476 | J154: 0.9999966398 | K154: 0.9999923916 | L154: 0.999988349 | M154: 0.9999792149 | N154: 0.9999946632 | O154: 0.9999726394 | P154: 0.9999966834 | Q154: 0.9999759543 | R154: 0.9999986081 | S154: 0.9999976997 | T154: 0.9999878636 | U154: 0.9999979681 | V154: 0.9999920646 | W154: 0.9999929818 | X154: 0.9999982821 | Y154: 0.9999658982 | Z154: 0.9999989463 | AA154: 0.9999816823 | CS154: =IFERROR(CS$4+(1-CS$4)/(1+EXP(-1.7*CS$2*($C154-CS$3))),"") ->  | CZ154: 0.002384088201 | DA154: 1.012667404e-06 | DB154: 8.59673656e-57 | DD154: 10.24
A155: 146 | B155: 2.152176381e-61 | C155: 3.25 | D155: 0.9979619974 | E155: 0.9999747734 | F155: 0.9999826333 | G155: 0.9999940378 | H155: 0.9999885536 | I155: 0.9999950815 | J155: 0.9999970392 | K155: 0.9999932306 | L155: 0.9999896473 | M155: 0.9999814072 | N155: 0.9999952397 | O155: 0.9999753344 | P155: 0.9999970638 | Q155: 0.9999783077 | R155: 0.9999987681 | S155: 0.9999979692 | T155: 0.9999891094 | U155: 0.9999981971 | V155: 0.9999928984 | W155: 0.9999937558 | X155: 0.9999984803 | Y155: 0.9999690647 | Z155: 0.9999990685 | AA155: 0.9999836973 | AH155: =IFERROR(AH$4+(1-AH$4)/(1+EXP(-1.7*AH$2*($C155-AH$3))),"") ->  | CZ155: 0.002029048057 | DA155: 7.8468497e-07 | DB155: 1.701466785e-57 | DD155: 10.5625
A156: 147 | B156: 5.004815448e-62 | C156: 3.3 | D156: 0.9981357377 | E156: 0.9999777899 | F156: 0.9999847092 | G156: 0.9999947404 | H156: 0.9999897875 | I156: 0.9999956206 | J156: 0.9999973911 | K156: 0.9999939771 | L156: 0.9999908009 | M156: 0.9999833682 | N156: 0.9999957539 | O156: 0.9999777639 | P156: 0.9999974005 | Q156: 0.9999804308 | R156: 0.9999989097 | S156: 0.9999982072 | T156: 0.9999902274 | U156: 0.9999984003 | V156: 0.9999936445 | W156: 0.9999944444 | X156: 0.9999986557 | Y156: 0.9999719373 | Z156: 0.9999991766 | AA156: 0.9999854907 | CZ156: 0.001722568939 | DA156: 6.065101888e-07 | DB156: 3.359061542e-58 | DD156: 10.89
A157: 148 | B157: 1.163829847e-62 | C157: 3.35 | D157: 0.9982946962 | E157: 0.9999804458 | F157: 0.999986537 | G157: 0.9999953602 | H157: 0.9999908885 | I157: 0.9999961007 | J157: 0.9999977012 | K157: 0.9999946413 | L157: 0.999991826 | M157: 0.9999851224 | N157: 0.9999962125 | O157: 0.9999799542 | P157: 0.9999976987 | Q157: 0.9999823461 | R157: 0.999999035 | S157: 0.9999984173 | T157: 0.9999912306 | U157: 0.9999985806 | V157: 0.9999943123 | W157: 0.9999950571 | X157: 0.9999988108 | Y157: 0.9999745431 | Z157: 0.9999992721 | AA157: 0.9999870868 | CZ157: 0.001458730805 | DA157: 4.676222118e-07 | DB157: 6.614818406e-59 | DD157: 11.2225
A158: 149 | B158: 2.706343423e-63 | C158: 3.4 | D158: 0.9984401257 | E158: 0.9999827841 | F158: 0.9999881463 | G158: 0.9999959069 | H158: 0.9999918707 | I158: 0.9999965281 | J158: 0.9999979745 | K158: 0.9999952322 | L158: 0.9999927368 | M158: 0.9999866916 | N158: 0.9999966216 | O158: 0.9999819287 | P158: 0.9999979626 | Q158: 0.9999840739 | R158: 0.999999146 | S158: 0.9999986028 | T158: 0.9999921308 | U158: 0.9999987406 | V158: 0.9999949099 | W158: 0.9999956022 | X158: 0.999998948 | Y158: 0.999976907 | Z158: 0.9999993565 | AA158: 0.9999885073 | CS158: =IFERROR(CS$4+(1-CS$4)/(1+EXP(-1.7*CS$2*($C158-CS$3))),"") ->  | CZ158: 0.001232219168 | DA158: 3.596387059e-07 | DB158: 1.299344007e-59 | DD158: 11.56
A159: 150 | B159: 6.293163576e-64 | C159: 3.45 | D159: 0.9985731736 | E159: 0.9999848428 | F159: 0.9999895632 | G159: 0.9999963893 | H159: 0.9999927471 | I159: 0.9999969086 | J159: 0.9999982152 | K159: 0.999995758 | L159: 0.9999935462 | M159: 0.9999880953 | N159: 0.9999969865 | O159: 0.9999837087 | P159: 0.9999981963 | Q159: 0.9999856327 | R159: 0.9999992442 | S159: 0.9999987665 | T159: 0.9999929386 | U159: 0.9999988826 | V159: 0.9999954447 | W159: 0.9999960872 | X159: 0.9999990694 | Y159: 0.9999790514 | Z159: 0.9999994312 | AA159: 0.9999897716 | AH159: =IFERROR(AH$4+(1-AH$4)/(1+EXP(-1.7*AH$2*($C159-AH$3))),"") ->  | CZ159: 0.001038281296 | DA159: 2.759001804e-07 | DB159: 2.545876499e-60 | DD159: 11.9025
A160: 151 | B160: 1.463350897e-64 | C160: 3.5 | D160: =IFERROR(D$4+(1-D$4)/(1+EXP(-1.7*D$2*($C160-D$3))),"") -> 0.9986948907 | E160: 0.9999866553 | F160: 0.9999908108 | G160: 0.9999968148 | H160: 0.9999935289 | I160: 0.9999972475 | J160: 0.9999984274 | K160: 0.9999962258 | L160: 0.9999942653 | M160: 0.9999893509 | N160: =IFERROR(N$4+(1-N$4)/(1+EXP(-1.7*N$2*($C160-N$3))),"") -> 0.999997312 | O160: 0.9999853134 | P160: 0.9999984031 | Q160: 0.9999870389 | R160: 0.999999331 | S160: 0.999998911 | T160: 0.9999936635 | U160: 0.9999990085 | V160: 0.9999959234 | W160: 0.9999965187 | X160: =IFERROR(X$4+(1-X$4)/(1+EXP(-1.7*X$2*($C160-X$3))),"") -> 0.9999991768 | Y160: 0.9999809966 | Z160: 0.9999994972 | AA160: 0.9999908967 | CZ160: 0.000872682695 | DA160: 2.111309037e-07 | DB160: 4.975745097e-61 | DD160: 12.25
A161: 152 | B161: 3.402685939e-65 | C161: 3.55 | D161: 0.9988062392 | E161: 0.999988251 | F161: 0.9999919092 | G161: 0.9999971901 | H161: 0.9999942265 | I161: 0.9999975492 | J161: 0.9999986143 | K161: 0.999996642 | L161: 0.9999949044 | M161: 0.9999904741 | N161: 0.9999976024 | O161: 0.99998676 | P161: 0.9999985863 | Q161: 0.9999883074 | R161: 0.9999994079 | S161: 0.9999990387 | T161: 0.9999943139 | U161: 0.9999991203 | V161: 0.9999963517 | W161: 0.9999969026 | X161: 0.9999992717 | Y161: 0.9999827612 | Z161: 0.9999995555 | AA161: 0.9999918981 | AH161: =IFERROR(AH$4+(1-AH$4)/(1+EXP(-1.7*AH$2*($C161-AH$3))),"") ->  | CZ161: 0.0007316644628 | DA161: 1.611632039e-07 | DB161: 9.700343413e-62 | DD161: 12.6025
A162: 153 | B162: 7.912062694e-66 | C162: 3.6 | D162: 0.9989080998 | E162: 0.999989656 | F162: 0.9999928763 | G162: 0.9999975212 | H162: 0.9999948489 | I162: 0.9999978178 | J162: 0.999998779 | K162: 0.9999970123 | L162: 0.9999954722 | M162: 0.9999914788 | N162: 0.9999978614 | O162: 0.9999880641 | P162: 0.9999987484 | Q162: 0.9999894518 | R162: 0.999999476 | S162: 0.9999991513 | T162: 0.9999948976 | U162: 0.9999992194 | V162: 0.999996735 | W162: 0.9999972442 | X162: 0.9999993558 | Y162: 0.999984362 | Z162: 0.9999996071 | AA162: 0.9999927894 | CZ162: 0.0006119019301 | DA162: 1.227140366e-07 | DB162: 1.886361067e-62 | DD162: 12.96
A163: 154 | B163: 1.839723373e-66 | C163: 3.65 | D163: 0.9990012791 | E163: 0.9999908929 | F163: 0.9999937279 | G163: 0.9999978133 | H163: 0.9999954042 | I163: 0.999998057 | J163: 0.9999989242 | K163: 0.9999973418 | L163: 0.9999959767 | M163: 0.9999923776 | N163: 0.9999980924 | O163: 0.9999892398 | P163: 0.9999988919 | Q163: 0.9999904842 | R163: 0.9999995362 | S163: 0.9999992508 | T163: 0.9999954214 | U163: 0.9999993074 | V163: 0.9999970781 | W163: 0.9999975481 | X163: 0.9999994301 | Y163: 0.9999858141 | Z163: 0.9999996527 | AA163: 0.9999935826 | CZ163: 0.0005104649743 | DA163: 9.320449456e-08 | DB163: 3.659078742e-63 | DD163: 13.3225
A164: 155 | B164: 4.277703988e-67 | C164: 3.7 | D164: 0.9990865153 | E164: 0.999991982 | F164: 0.9999944776 | G164: 0.999998071 | H164: 0.9999958997 | I164: 0.99999827 | J164: 0.9999990521 | K164: 0.9999976349 | L164: 0.999996425 | M164: 0.9999931816 | N164: 0.9999982984 | O164: 0.9999902997 | P164: 0.999999019 | Q164: 0.9999914156 | R164: 0.9999995896 | S164: 0.9999993386 | T164: 0.9999958914 | U164: 0.9999993855 | V164: 0.9999973851 | W164: 0.9999978185 | X164: 0.9999994959 | Y164: 0.9999871314 | Z164: 0.999999693 | AA164: 0.9999942886 | CS164: =IFERROR(CS$4+(1-CS$4)/(1+EXP(-1.7*CS$2*($C164-CS$3))),"") ->  | CZ164: 0.0004247802706 | DA164: 7.061447473e-08 | DB164: 7.079919947e-64 | DD164: 13.69
A165: 156 | B165: 9.946372801e-68 | C165: 3.75 | D165: 0.9991644841 | E165: 0.9999929408 | F165: 0.9999951377 | G165: 0.9999982983 | H165: 0.9999963417 | I165: 0.9999984596 | J165: 0.9999991647 | K165: 0.9999978957 | L165: 0.9999968234 | M165: 0.9999939007 | N165: 0.9999984822 | O165: 0.9999912552 | P165: 0.9999991315 | Q165: 0.9999922558 | R165: 0.9999996367 | S165: 0.9999994161 | T165: 0.9999963132 | U165: 0.9999994547 | V165: 0.9999976598 | W165: 0.9999980591 | X165: 0.999999554 | Y165: 0.9999883263 | Z165: 0.9999997286 | AA165: 0.9999949168 | AH165: =IFERROR(AH$4+(1-AH$4)/(1+EXP(-1.7*AH$2*($C165-AH$3))),"") ->  | CZ165: 0.0003525956824 | DA165: 5.336602729e-08 | DB165: 1.366453962e-64 | DD165: 14.0625
A166: 157 | B166: 2.31267661e-68 | C166: 3.8 | D166: 0.999235804 | E166: 0.9999937849 | F166: 0.9999957189 | G166: 0.9999984989 | H166: 0.9999967361 | I166: 0.9999986285 | J166: 0.999999264 | K166: 0.9999981278 | L166: 0.9999971774 | M166: 0.999994544 | N166: 0.9999986462 | O166: 0.9999921165 | P166: 0.9999992311 | Q166: 0.9999930137 | R166: 0.9999996785 | S166: 0.9999994845 | T166: 0.9999966917 | U166: 0.9999995162 | V166: 0.9999979057 | W166: 0.9999982731 | X166: 0.9999996055 | Y166: 0.9999894104 | Z166: 0.9999997601 | AA166: 0.999995476 | CZ166: 0.0002919469258 | DA166: 4.023002281e-08 | DB166: 2.63070467e-65 | DD166: 14.44
A167: 158 | B167: 5.377266861e-69 | C167: 3.85 | D167: 0.999301041 | E167: 0.9999945281 | F167: 0.9999962307 | G167: 0.9999986758 | H167: 0.9999970879 | I167: 0.9999987788 | J167: 0.9999993515 | K167: 0.9999983342 | L167: 0.9999974919 | M167: 0.9999951195 | N167: 0.9999987924 | O167: 0.9999928931 | P167: 0.9999993193 | Q167: 0.9999936975 | R167: 0.9999997155 | S167: 0.9999995449 | T167: 0.9999970313 | U167: 0.9999995707 | V167: 0.9999981258 | W167: 0.9999984636 | X167: 0.999999651 | Y167: 0.9999903937 | Z167: 0.9999997879 | AA167: 0.9999959737 | CZ167: 0.0002411265802 | DA167: 3.025171132e-08 | DB167: 5.051960638e-66 | DD167: 14.8225
A168: 159 | B168: 1.250273671e-69 | C168: 3.9 | D168: 0.9993607131 | E168: 0.9999951824 | F168: 0.9999966812 | G168: 0.9999988318 | H168: 0.9999974018 | I168: 0.9999989127 | J168: 0.9999994286 | K168: 0.9999985179 | L168: 0.9999977714 | M168: 0.9999956343 | N168: 0.9999989228 | O168: 0.9999935931 | P168: 0.9999993974 | Q168: 0.9999943144 | R168: 0.9999997482 | S168: 0.9999995982 | T168: 0.999997336 | U168: 0.9999996191 | V168: 0.9999983227 | W168: 0.999998633 | X168: 0.9999996913 | Y168: 0.9999912857 | Z168: 0.9999998125 | AA168: 0.9999964166 | CS168: =IFERROR(CS$4+(1-CS$4)/(1+EXP(-1.7*CS$2*($C168-CS$3))),"") ->  | CZ168: 0.0001986554714 | DA168: 2.269153524e-08 | DB168: 9.677404583e-67 | DD168: 15.21
A169: 160 | B169: 2.907004302e-70 | C169: 3.95 | D169: 0.9994152943 | E169: 0.9999957585 | F169: 0.999997078 | G169: 0.9999989695 | H169: 0.9999976819 | I169: 0.9999990319 | J169: 0.9999994965 | K169: 0.9999986814 | L169: 0.9999980197 | M169: 0.9999960947 | N169: 0.9999990392 | O169: 0.9999942242 | P169: 0.9999994665 | Q169: 0.9999948708 | R169: 0.9999997771 | S169: 0.9999996453 | T169: 0.9999976095 | U169: 0.999999662 | V169: 0.9999984989 | W169: 0.9999987838 | X169: 0.9999997269 | Y169: 0.9999920949 | Z169: 0.9999998343 | AA169: 0.9999968108 | AH169: =IFERROR(AH$4+(1-AH$4)/(1+EXP(-1.7*AH$2*($C169-AH$3))),"") ->  | CZ169: 0.0001632564088 | DA169: 1.697821685e-08 | DB169: 1.849137451e-67 | DD169: 15.6025
A170: 161 | B170: 6.759018133e-71 | C170: 4 | D170: =IFERROR(D$4+(1-D$4)/(1+EXP(-1.7*D$2*($C170-D$3))),"") -> 0.9994652184 | E170: 0.9999962657 | F170: 0.9999974272 | G170: 0.9999990909 | H170: 0.9999979318 | I170: 0.999999138 | J170: 0.9999995564 | K170: 0.9999988268 | L170: 0.9999982404 | M170: 0.9999965066 | N170: =IFERROR(N$4+(1-N$4)/(1+EXP(-1.7*N$2*($C170-N$3))),"") -> 0.999999143 | O170: 0.9999947931 | P170: 0.9999995277 | Q170: 0.9999953729 | R170: 0.9999998027 | S170: 0.9999996869 | T170: 0.9999978549 | U170: 0.9999997001 | V170: 0.9999986567 | W170: 0.9999989179 | X170: =IFERROR(X$4+(1-X$4)/(1+EXP(-1.7*X$2*($C170-X$3))),"") -> 0.9999997584 | Y170: 0.999992829 | Z170: 0.9999998535 | AA170: 0.9999971616 | CZ170: 0.0001338302258 | DA170: 1.26716899e-08 | DB170: 3.524447968e-68 | DD170: 16
B171: 0
A172: Max vero | B172: =MAX(B10:B171) -> 7.427710121e-06
A174: Interpolação do ponto da máximo | E174: Estimativa na borda: 1 (sim), 0 (não)
A175: =A176-1 -> 41 | B175: =IF(A176>1,INDEX($B$10:$B$170,A175),0) -> 7.248916598e-06 | C175: =IF(A176>1,INDEX($C$10:$C$170,A175),0) -> -2 | E175: =IF(OR(A176=1,A176=161),1,0) -> 0
A176: =MATCH(MAX(B10:B170),B10:B170,0) -> 42 | B176: =INDEX($B$10:$B$170,A176) -> 7.427710121e-06 | C176: =INDEX($C$10:$C$170,A176) -> -1.95
A177: =A176+1 -> 43 | B177: =IF(A176<161,INDEX($B$10:$B$170,A177),0) -> 7.226606041e-06 | C177: =IF(A176<161,INDEX($C$10:$C$170,A177),0) -> -1.9
E178: =SUM(C175:C177)/2 -> -2.925
A179: =PROCV(MÁXIMO(B10:B810);B10:C810;2;FALSO) | B179: =IF(B175<B177,"f1<p3","f3>f1") -> f3>f1 | C179: =IF(E175=1,(B175*C175+B176*C176+B177*C177)/(B175+B176+B177),IF(B175>B177,(B175*C175+B176*C176)/(B175+B176),(B176*C176+B177*C177)/(B176+B177))) -> -1.974695445
A190: Lixo:
A191: =PROCV(MÁXIMO(B10:B170);B10:C170;2;FALSO)

Sheet BI
A1: Banco de Itens na escala (0,1) normal (D = 1.7) | I1: 1 | J1: 2 | K1: 3 | L1: 4 | M1: 5 | N1: 6 | O1: 7 | P1: 8 | Q1: 9 | R1: 10 | S1: 11 | T1: 12 | U1: 13 | V1: 14 | W1: 15 | X1: 16 | Y1: 17 | Z1: 18 | AA1: 19 | AB1: 20 | AC1: 21 | AD1: 22 | AE1: 23 | AF1: 24 | AG1: 25 | AH1: 26 | AI1: 27 | AJ1: 28 | AK1: 29 | AL1: 30 | AM1: 31 | AN1: 32 | AO1: 33 | AP1: 34 | AQ1: 35 | AR1: 36 | AS1: 37 | AT1: 38 | AU1: 39 | AV1: 40 | AW1: 41 | AX1: 42 | AY1: 43 | AZ1: 44 | BA1: 45 | BB1: 46 | BC1: 47 | BD1: 48 | BE1: 49 | BF1: 50 | BG1: 51 | BH1: 52 | BI1: 53 | BJ1: 54 | BK1: 55 | BL1: 56 | BM1: 57 | BN1: 58 | BO1: 59 | BP1: 60 | BQ1: 61 | BR1: 62 | BS1: 63 | BT1: 64 | BU1: 65 | BV1: 66 | BW1: 67 | BX1: 68 | BY1: 69 | BZ1: 70 | CA1: 71 | CB1: 72 | CC1: 73 | CD1: 74 | CE1: 75 | CF1: 76 | CG1: 77 | CH1: 78 | CI1: 79 | CJ1: 80 | CK1: 81 | CL1: 82 | CM1: 83 | CN1: 84 | CO1: 85 | CP1: 86 | CQ1: 87 | CR1: 88 | CS1: 89 | CT1: 90 | CU1: 91 | CV1: 92 | CW1: 93 | CX1: 94 | CY1: 95 | CZ1: 96 | DA1: 97 | DB1: 98 | DC1: 99 | DD1: 100 | DE1: 101 | DF1: 102 | DG1: 103 | DH1: 104 | DI1: 105 | DJ1: 106 | DK1: 107 | DL1: 108 | DM1: 109 | DN1: 110 | DO1: 111 | DP1: 112 | DQ1: 113 | DR1: 114 | DS1: 115 | DT1: 116 | DU1: 117 | DV1: 118 | DW1: 119 | DX1: 120 | DY1: 121
A2: # Item | B2: a | C2: b | D2: c | E2: Habilidade | F2: Exposição | I2: -6 | J2: -5.9 | K2: -5.8 | L2: -5.7 | M2: -5.6 | N2: -5.5 | O2: -5.4 | P2: -5.3 | Q2: -5.2 | R2: -5.1 | S2: -5 | T2: -4.9 | U2: -4.8 | V2: -4.7 | W2: -4.6 | X2: -4.5 | Y2: -4.4 | Z2: -4.3 | AA2: -4.2 | AB2: -4.1 | AC2: -4 | AD2: -3.9 | AE2: -3.8 | AF2: -3.7 | AG2: -3.6 | AH2: -3.5 | AI2: -3.4 | AJ2: -3.3 | AK2: -3.2 | AL2: -3.1 | AM2: -3 | AN2: -2.9 | AO2: -2.8 | AP2: -2.7 | AQ2: -2.6 | AR2: -2.5 | AS2: -2.4 | AT2: -2.3 | AU2: -2.2 | AV2: -2.1 | AW2: -2 | AX2: -1.9 | AY2: -1.8 | AZ2: -1.7 | BA2: -1.6 | BB2: -1.5 | BC2: -1.4 | BD2: -1.3 | BE2: -1.2 | BF2: -1.1 | BG2: -1 | BH2: -0.9 | BI2: -0.8 | BJ2: -0.7 | BK2: -0.6 | BL2: -0.5 | BM2: -0.4 | BN2: -0.3 | BO2: -0.2 | BP2: -0.1 | BQ2: -2.042810365e-14 | BR2: 0.1 | BS2: 0.2 | BT2: 0.3 | BU2: 0.4 | BV2: 0.5 | BW2: 0.6 | BX2: 0.7 | BY2: 0.8 | BZ2: 0.9 | CA2: 1 | CB2: 1.1 | CC2: 1.2 | CD2: 1.3 | CE2: 1.4 | CF2: 1.5 | CG2: 1.6 | CH2: 1.7 | CI2: 1.8 | CJ2: 1.9 | CK2: 2 | CL2: 2.1 | CM2: 2.2 | CN2: 2.3 | CO2: 2.4 | CP2: 2.5 | CQ2: 2.6 | CR2: 2.7 | CS2: 2.8 | CT2: 2.9 | CU2: 3 | CV2: 3.1 | CW2: 3.2 | CX2: 3.3 | CY2: 3.4 | CZ2: 3.5 | DA2: 3.6 | DB2: 3.7 | DC2: 3.8 | DD2: 3.9 | DE2: 4 | DF2: 4.1 | DG2: 4.2 | DH2: 4.3 | DI2: 4.4 | DJ2: 4.5 | DK2: 4.6 | DL2: 4.7 | DM2: 4.8 | DN2: 4.9 | DO2: 5 | DP2: 5.1 | DQ2: 5.2 | DR2: 5.3 | DS2: 5.4 | DT2: 5.5 | DU2: 5.6 | DV2: 5.7 | DW2: 5.8 | DX2: 5.9 | DY2: 6
A3: 1 | B3: 0.5966822505 | C3: -3 | D3: 0.004441487789 | E3: 3 | F3: 6 | I3: 0.04071176845 | J3: 0.0449931629 | K3: 0.04963947155 | L3: 0.05466985023 | M3: 0.06010210015 | N3: 0.06595202692 | O3: 0.07223269395 | P3: 0.07895356821 | Q3: 0.08611956147 | R3: 0.09372997626 | S3: 0.1017773742 | T3: 0.1102463936 | U3: 0.119112556 | V3: 0.1283411117 | W3: 0.1378859893 | X3: 0.1476889264 | Y3: 0.1576788673 | Z3: 0.1677717228 | AA3: 0.1778705855 | AB3: 0.1878664898 | AC3: 0.1976397861 | AD3: 0.2070621766 | AE3: 0.2159994181 | AF3: 0.2243146533 | AG3: 0.231872279 | AH3: 0.2385422045 | AI3: 0.2442043018 | AJ3: 0.2487528107 | AK3: 0.2521004385 | AL3: 0.2541818893 | AM3: 0.2549565871 | AN3: 0.2544103967 | AO3: 0.2525562205 | AP3: 0.2494334258 | AQ3: 0.2451061461 | AR3: 0.2396605801 | AS3: 0.2332014788 | AT3: 0.2258480618 | AU3: 0.217729622 | AV3: 0.208981082 | AW3: 0.1997387391 | AX3: 0.1901363954 | AY3: 0.1803020222 | AZ3: 0.1703550502 | BA3: 0.160404325 | BB3: 0.1505467212 | BC3: 0.1408663713 | BD3: 0.1314344378 | BE3: 0.1223093418 | BF3: 0.1135373527 | BG3: 0.1051534471 | BH3: 0.09718234889 | BI3: 0.08963967437 | BJ3: 0.0825331181 | BK3: 0.07586362834 | BL3: 0.06962653317 | BM3: 0.06381259008 | BN3: 0.05840894143 | BO3: 0.05339996644 | BP3: 0.0487680266 | BQ3: 0.04449410635 | BR3: 0.04055835429 | BS3: 0.03694053228 | BT3: 0.03362038133 | BU3: 0.03057791359 | BV3: 0.02779363982 | BW3: 0.02524874152 | BX3: 0.02292519612 | BY3: 0.02080586298 | BZ3: 0.01887453714 | CA3: 0.01711597696 | CB3: 0.01551591084 | CC3: 0.01406102762 | CD3: 0.01273895447 | CE3: 0.0115382254 | CF3: 0.01044824314 | CG3: 0.009459236432 | CH3: 0.008562214535 | CI3: 0.007748920319 | CJ3: 0.007011783017 | CK3: 0.006343871477 | CL3: 0.00573884855 | CM3: 0.005190927066 | CN3: 0.004694827727 | CO3: 0.004245739136 | CP3: 0.003839280084 | CQ3: 0.003471464154 | CR3: 0.003138666652 | CS3: 0.002837593841 | CT3: 0.002565254387 | CU3: 0.002318932969 | CV3: 0.002096165924 | CW3: 0.001894718841 | CX3: 0.001712565966 | CY3: 0.001547871331 | CZ3: 0.00139897147 | DA3: 0.001264359616 | DB3: 0.001142671272 | DC3: 0.001032671048 | DD3: 0.0009332406701 | DE3: 0.0008433680512 | DF3: 0.0007621373615 | DG3: 0.0006887199916 | DH3: 0.0006223663447 | DI3: 0.0005623983824 | DJ3: 0.0005082028596 | DK3: 0.0004592251856 | DL3: 0.0004149638587 | DM3: 0.0003749654189 | DN3: 0.0003388198758 | DO3: 0.0003061565643 | DP3: 0.0002766403931 | DQ3: 0.0002499684455 | DR3: 0.0002258669036 | DS3: 0.0002040882635 | DT3: 0.0001844088147 | DU3: 0.0001666263606 | DV3: 0.0001505581545 | DW3: 0.0001360390338 | DX3: 0.000122919732 | DY3: 0.0001110653513
A4: 2 | B4: 0.7670649886 | C4: -2.993993994 | D4: 0.2750960469 | E4: 2 | F4: 3 | I4: 0.001582310873 | J4: 0.002023741159 | K4: 0.002583329235 | L4: 0.003290516031 | M4: 0.004181143658 | N4: 0.005298456313 | O4: 0.006694092632 | P4: 0.008428985165 | Q4: 0.01057404782 | R4: 0.01321049253 | S4: 0.01642957578 | T4: 0.02033153914 | U4: 0.02502348453 | V4: 0.03061592541 | W4: 0.03721779187 | X4: 0.04492975444 | Y4: 0.05383587683 | Z4: 0.06399381627 | AA4: 0.07542405188 | AB4: 0.08809891561 | AC4: 0.1019324854 | AD4: 0.1167726248 | AE4: 0.1323965547 | AF4: 0.1485112597 | AG4: 0.164759729 | AH4: 0.1807334954 | AI4: 0.1959912106 | AJ4: 0.210082167 | AK4: 0.2225728819 | AL4: 0.2330742504 | AM4: 0.2412664863 | AN4: 0.246919196 | AO4: 0.2499044731 | AP4: 0.2502017792 | AQ4: 0.2478944299 | AR4: 0.243158539 | AS4: 0.2362461134 | AT4: 0.2274644935 | AU4: 0.2171544725 | AV4: 0.20566922 | AW4: 0.1933556795 | AX4: 0.1805395321 | AY4: 0.1675142242 | AZ4: 0.1545340466 | BA4: 0.1418108733 | BB4: 0.1295139279 | BC4: 0.117771853 | BD4: 0.1066763561 | BE4: 0.09628678843 | BF4: 0.08663512259 | BG4: 0.07773092768 | BH4: 0.06956606019 | BI4: 0.06211889546 | BJ4: 0.0553580097 | BK4: 0.04924528549 | BL4: 0.04373845748 | BM4: 0.03879314271 | BN4: 0.03436441465 | BO4: 0.03040798609 | BP4: 0.02688106563 | BQ4: 0.02374294822 | BR4: 0.02095539382 | BS4: 0.0184828411 | BT4: 0.01629249555 | BU4: 0.01435432457 | BV4: 0.01264098578 | BW4: 0.01112770941 | BX4: 0.009792150958 | BY4: 0.008614226487 | BZ4: 0.007575939917 | CA4: 0.00666120905 | CB4: 0.005855695189 | CC4: 0.005146639666 | CD4: 0.004522709395 | CE4: 0.003973852739 | CF4: 0.003491166294 | CG4: 0.003066772707 | CH4: 0.002693709368 | CI4: 0.002365827524 | CJ4: 0.002077701261 | CK4: 0.0018245457 | CL4: 0.001602143704 | CM4: 0.001406780397 | CN4: 0.001235184795 | CO4: 0.001084477881 | CP4: 0.0009521264975 | CQ4: 0.0008359024618 | CR4: 0.0007338463589 | CS4: 0.0006442355169 | CT4: 0.0005655557061 | CU4: 0.0004964761516 | CV4: 0.0004358274873 | CW4: 0.0003825823171 | CX4: 0.000335838086 | CY4: 0.0002948019924 | CZ4: 0.0002587777059 | DA4: 0.0002271536763 | DB4: 0.0001993928498 | DC4: 0.0001750236229 | DD4: 0.0001536318885 | DE4: 0.0001348540431 | DF4: 0.000118370841 | DG4: 0.0001039019933 | DH4: 9.120142141e-05 | DI4: 8.005308812e-05 | DJ4: 7.026733458e-05 | DK4: 6.167766317e-05 | DL4: 5.413791177e-05 | DM4: 4.75197722e-05 | DN4: 4.171061098e-05 | DO4: 3.661155572e-05 | DP4: 3.213581481e-05 | DQ4: 2.820720207e-05 | DR4: 2.475884143e-05 | DS4: 2.173202967e-05 | DT4: 1.907523791e-05 | DU4: 1.674323516e-05 | DV4: 1.469631873e-05 | DW4: 1.289963871e-05 | DX4: 1.132260496e-05 | DY4: 9.938366526e-06
A5: 3 | B5: 1.428418338 | C5: -2.987987988 | D5: 0.1237989306 | E5: 2 | F5: 7 | G5: =ROUND(Vero!D7,1) -> -1.9 | I5: 1.839239026e-05 | J5: 2.983742757e-05 | K5: 4.838011122e-05 | L5: 7.83963158e-05 | M5: 0.0001269325783 | N5: 0.0002053075385 | O5: 0.0003316440265 | P5: 0.0005348421412 | Q5: 0.0008607525657 | R5: 0.001381648451 | S5: 0.002210523968 | T5: 0.003522228399 | U5: 0.005583852493 | V5: 0.008796843934 | W5: 0.01375253743 | X5: 0.02130036344 | Y5: 0.03262297889 | Z5: 0.04930415271 | AA5: 0.07336359936 | AB5: 0.1072202782 | AC5: 0.1535370138 | AD5: 0.2149021523 | AE5: 0.2933260759 | AF5: 0.3895761783 | AG5: 0.5024413113 | AH5: 0.628094775 | AI5: 0.7597902987 | AJ5: 0.8881388129 | AK5: 1.002126385 | AL5: 1.090818766 | AM5: 1.145401424 | AN5: 1.160965949 | AO5: 1.137444788 | AP5: 1.07938042 | AQ5: 0.9946634549 | AR5: 0.8927375492 | AS5: 0.7828646875 | AT5: 0.6728775359 | AU5: 0.5685661625 | AV5: 0.4736138299 | AW5: 0.3898853095 | AX5: 0.3178687003 | AY5: 0.2571266629 | AZ5: 0.2066786299 | BA5: 0.1652868564 | BB5: 0.131649884 | BC5: 0.1045207335 | BD5: 0.0827702111 | BE5: 0.06541347027 | BF5: 0.05161388414 | BG5: 0.04067417814 | BH5: 0.03202138198 | BI5: 0.0251896535 | BJ5: 0.01980330083 | BK5: 0.01556120863 | BL5: 0.01222318405 | BM5: 0.009598337414 | BN5: 0.007535396342 | BO5: 0.005914750783 | BP5: 0.004641990177 | BQ5: 0.003642695501 | BR5: 0.002858268227 | BS5: 0.002242605352 | BT5: 0.001759458393 | BU5: 0.001380341466 | BV5: 0.001082877837 | BW5: 0.0008494952204 | BX5: 0.0006663976051 | BY5: 0.000522755807 | BZ5: 0.0004100707324 | CA5: 0.0003216728034 | CB5: 0.0002523286192 | CC5: 0.0001979319982 | CD5: 0.0001552613697 | CE5: 0.0001217893113 | CF5: 9.5533051e-05 | CG5: 7.493713937e-05 | CH5: 5.878138035e-05 | CI5: 4.610858858e-05 | CJ5: 3.616790794e-05 | CK5: 2.837034168e-05 | CL5: 2.225386473e-05 | CM5: 1.745605437e-05 | CN5: 1.369261961e-05 | CO5: 1.074055828e-05 | CP5: 8.424944627e-06 | CQ5: 6.608564986e-06 | CR5: 5.183787678e-06 | CS5: 4.066185527e-06 | CT5: 3.189533238e-06 | CU5: 2.501883256e-06 | CV5: 1.962487606e-06 | CW5: 1.539383346e-06 | CX5: 1.20749858e-06 | CY5: 9.47166786e-07 | CZ5: 7.429614547e-07 | DA5: 5.827819567e-07 | DB5: 4.571365065e-07 | DC5: 3.585797072e-07 | DD5: 2.812713565e-07 | DE5: 2.206303754e-07 | DF5: 1.73063347e-07 | DG5: 1.35751579e-07 | DH5: 1.064840794e-07 | DI5: 8.352653657e-08 | DJ5: 6.5518547e-08 | DK5: 5.139300874e-08 | DL5: 4.031288136e-08 | DM5: 3.162158406e-08 | DN5: 2.480409673e-08 | DO5: 1.945643108e-08 | DP5: 1.526170257e-08 | DQ5: 1.19713396e-08 | DR5: 9.390366692e-09 | DS5: 7.365841073e-09 | DT5: 5.777794791e-09 | DU5: 4.532125039e-09 | DV5: 3.55501772e-09 | DW5: 2.788569709e-09 | DX5: 2.187365608e-09 | DY5: 1.715778565e-09
A6: 4 | B6: 0.6865162253 | C6: -2.981981982 | D6: 0.1491036057 | E6: 2 | F6: 5 | G6: =MATCH(G5,I2:DY2) -> 42 | I6: 0.005338623869 | J6: 0.00656029251 | K6: 0.008038368652 | L6: 0.009818730747 | M6: 0.01195287731 | N6: 0.01449779106 | O6: 0.01751549155 | P6: 0.02107219679 | Q6: 0.02523701644 | R6: 0.03008010735 | S6: 0.03567024096 | T6: 0.04207175975 | U6: 0.04934093976 | V6: 0.05752182555 | W6: 0.0666416625 | X6: 0.07670611619 | Y6: 0.08769453485 | Z6: 0.09955557337 | AA6: 0.1122035495 | AB6: 0.125515935 | AC6: 0.1393323889 | AD6: 0.1534557069 | AE6: 0.1676549796 | AF6: 0.1816711274 | AG6: 0.1952247977 | AH6: 0.2080263997 | AI6: 0.2197878136 | AJ6: 0.2302350913 | AK6: 0.239121282 | AL6: 0.2462384123 | AM6: 0.2514276555 | AN6: 0.2545868349 | AO6: 0.2556746387 | AP6: 0.2547112286 | AQ6: 0.2517752752 | AR6: 0.2469977908 | AS6: 0.2405534123 | AT6: 0.2326499707 | AU6: 0.2235172618 | AV6: 0.2133958939 | AW6: 0.2025269667 | AX6: 0.1911431479 | AY6: 0.1794615034 | AZ6: 0.1676782298 | BA6: 0.1559652613 | BB6: 0.1444685832 | BC6: 0.1333079994 | BD6: 0.1225780539 | BE6: 0.1123497987 | BF6: 0.1026731234 | BG6: 0.09357939487 | BH6: 0.08508420439 | BI6: 0.0771900676 | BJ6: 0.06988896579 | BK6: 0.06316465807 | BL6: 0.05699472541 | BM6: 0.05135233242 | BN6: 0.04620771099 | BO6: 0.04152938194 | BP6: 0.03728513858 | BQ6: 0.03344281964 | BR6: 0.02997090048 | BS6: 0.02683893056 | BT6: 0.02401784333 | BU6: 0.0214801623 | BV6: 0.01920012402 | BW6: 0.01715373578 | BX6: 0.0153187833 | BY6: 0.0136748008 | BZ6: 0.01220301375 | CA6: 0.01088626267 | CB6: 0.009708914382 | CC6: 0.008656766001 | CD6: 0.007716945507 | CE6: 0.006877811931 | CF6: 0.006128857337 | CG6: 0.005460612149 | CH6: 0.00486455491 | CI6: 0.004333027149 | CJ6: 0.003859153746 | CK6: 0.003436768947 | CL6: 0.003060348045 | CM6: 0.002724944586 | CN6: 0.002426132901 | CO6: 0.002159955694 | CP6: 0.001922876392 | CQ6: 0.00171173593 | CR6: 0.001523713663 | CS6: 0.001356292057 | CT6: 0.001207224878 | CU6: 0.001074508546 | CV6: 0.0009563564011 | CW6: 0.0008511755884 | CX6: 0.0007575463349 | CY6: 0.0006742033758 | CZ6: 0.0006000193267 | DA6: 0.0005339898055 | DB6: 0.0004752201289 | DC6: 0.000422913424 | DD6: 0.0003763600077 | DE6: 0.0003349279056 | DF6: 0.0002980543882 | DG6: 0.0002652384208 | DH6: 0.0002360339281 | DI6: 0.0002100437882 | DJ6: 0.0001869144788 | DK6: 0.0001663313043 | DL6: 0.0001480141431 | DM6: 0.0001317136583 | DN6: 0.000117207921 | DO6: 0.0001042994038 | DP6: 9.28123019e-05 | DQ6: 8.259014769e-05 | DR6: 7.349368684e-05 | DS6: 6.539898667e-05 | DT6: 5.819575215e-05 | DU6: 5.178582663e-05 | DV6: 4.608185698e-05 | DW6: 4.100610547e-05 | DX6: 3.648939198e-05 | DY6: 3.24701525e-05
A7: 5 | B7: 1.359046638 | C7: -2.975975976 | D7: 0.008840882778 | E7: 2 | F7: 16 | G7: 261 | H7: 0.8556730747 | I7: 0.0004618634878 | J7: 0.0007152025986 | K7: 0.001101292255 | L7: 0.001684515466 | M7: 0.002556491361 | N7: 0.003844857018 | O7: 0.005723289504 | P7: 0.008422209429 | Q7: 0.01223942747 | R7: 0.01755004826 | S7: 0.02481529485 | T7: 0.03459044358 | U7: 0.04753243668 | V7: 0.06440754272 | W7: 0.08609835191 | X7: 0.1136073735 | Y7: 0.1480517442 | Z7: 0.1906403747 | AA7: 0.2426216299 | AB7: 0.3051869635 | AC7: 0.3793150055 | AD7: 0.4655436276 | AE7: 0.5636678269 | AF7: 0.672382596 | AG7: 0.788924284 | AH7: 0.9088073567 | AI7: 1.025791287 | AJ7: 1.132217503 | AK7: 1.219797933 | AL7: 1.280801939 | AM7: 1.309410049 | AN7: 1.302864789 | AO7: 1.262047234 | AP7: 1.191278226 | AQ7: 1.097415937 | AR7: 0.9885566911 | AS7: 0.8727302043 | AT7: 0.7568993459 | AU7: 0.6464037241 | AV7: 0.5448233564 | AW7: 0.4541426625 | AX7: 0.3750725341 | AY7: 0.3074138322 | AZ7: 0.2503886314 | BA7: 0.2029050093 | BB7: 0.163748561 | BC7: 0.1317088049 | BD7: 0.1056544708 | BE7: 0.08457207338 | BF7: 0.06758004062 | BG7: 0.05392777317 | BH7: 0.04298627132 | BI7: 0.0342347401 | BJ7: 0.0272459297 | BK7: 0.02167181821 | BL7: 0.01723048356 | BM7: 0.01369453363 | BN7: 0.01088117895 | BO7: 0.008643874569 | BP7: 0.006865379322 | BQ7: 0.005452051138 | BR7: 0.004329194528 | BS7: 0.003437288662 | BT7: 0.002728943349 | BU7: 0.002166451182 | BV7: 0.001719824535 | BW7: 0.001365224797 | BX7: 0.001083707615 | BY7: 0.0008602219117 | BZ7: 0.0006828121983 | CA7: 0.0005419834241 | CB7: 0.0004301955819 | CC7: 0.0003414617673 | CD7: 0.0002710286506 | CE7: 0.0002151225442 | CF7: 0.0001707476544 | CG7: 0.0001355258243 | CH7: 0.0001075692574 | CI7: 8.537944595e-05 | CJ7: 6.776691871e-05 | CK7: 5.378752328e-05 | CL7: 4.269184061e-05 | CM7: 3.388502685e-05 | CN7: 2.68949344e-05 | CO7: 2.134680618e-05 | CP7: 1.694318823e-05 | CQ7: 1.344798495e-05 | CR7: 1.067380279e-05 | CS7: 8.471904279e-06 | CT7: 6.724234195e-06 | CU7: 5.337090439e-06 | CV7: 4.236100415e-06 | CW7: 3.362233671e-06 | CX7: 2.668637042e-06 | CY7: 2.118122644e-06 | CZ7: 1.68117405e-06 | DA7: 1.334363758e-06 | DB7: 1.059097116e-06 | DC7: 8.406153658e-07 | DD7: 6.672043286e-07 | DE7: 5.295663491e-07 | DF7: 4.20321786e-07 | DG7: 3.336133475e-07 | DH7: 2.647920434e-07 | DI7: 2.101679281e-07 | DJ7: 1.668122547e-07 | DK7: 1.324004505e-07 | DL7: 1.050874783e-07 | DM7: 8.34089155e-08 | DN7: 6.620243802e-08 | DO7: 5.254549444e-08 | DP7: 4.170585104e-08 | DQ7: 3.310232475e-08 | DR7: 2.627362502e-08 | DS7: 2.085362252e-08 | DT7: 1.655171505e-08 | DU7: 1.313725108e-08 | DV7: 1.042715885e-08 | DW7: 8.276134291e-09 | DX7: 6.568844524e-09 | DY7: 5.213753366e-09
A8: 6 | B8: 0.9287366271 | C8: -2.96996997 | D8: 0.262306416 | E8: 3 | F8: 4 | I8: 0.0004672865783 | J8: 0.0006356244832 | K8: 0.0008634423495 | L8: 0.001171083136 | M8: 0.001585463005 | N8: 0.00214197951 | O8: 0.002886854299 | P8: 0.003879942588 | Q8: 0.005198001801 | R8: 0.006938343053 | S8: 0.009222681858 | T8: 0.01220085021 | U8: 0.01605382714 | V8: 0.02099529539 | W8: 0.0272706621 | X8: 0.0351522393 | Y8: 0.04492914616 | Z8: 0.05689057474 | AA8: 0.07130147902 | AB8: 0.08837060686 | AC8: 0.108212142 | AD8: 0.1308039814 | AE8: 0.1559476021 | AF8: 0.1832361572 | AG8: 0.2120383244 | AH8: 0.2415049649 | AI8: 0.270603432 | AJ8: 0.2981804022 | AK8: 0.3230489114 | AL8: 0.344089932 | AM8: 0.3603547313 | AN8: 0.3711527261 | AO8: 0.3761113145 | AP8: 0.3751990227 | AQ8: 0.368710055 | AR8: 0.3572152086 | AS8: 0.3414893668 | AT8: 0.3224282997 | AU8: 0.3009670996 | AV8: 0.2780099043 | AW8: 0.2543767198 | AX8: 0.2307692725 | AY8: 0.207754695 | AZ8: 0.1857638678 | BA8: 0.1651003801 | BB8: 0.1459561025 | BC8: 0.1284299443 | BD8: 0.1125471943 | BE8: 0.09827769674 | BF8: 0.08555184713 | BG8: 0.07427396432 | BH8: 0.06433298849 | BI8: 0.05561069778 | BJ8: 0.04798776442 | BK8: 0.04134801719 | BL8: 0.03558127185 | BM8: 0.03058505708 | BN8: 0.02626551598 | BO8: 0.02253771278 | BP8: 0.01932552688 | BQ8: 0.01656127419 | BR8: 0.01418516071 | BS8: 0.01214464503 | BT8: 0.01039376385 | BU8: 0.008892457753 | BV8: 0.007605921685 | BW8: 0.00650399499 | BX8: 0.00556059944 | BY8: 0.00475322876 | BZ8: 0.004062490075 | CA8: 0.003471695606 | CB8: 0.002966501655 | CC8: 0.00253459125 | CD8: 0.002165396449 | CE8: 0.001849856308 | CF8: 0.001580206595 | CG8: 0.001349797588 | CH8: 0.001152936544 | CI8: 0.0009847517714 | CJ8: 0.0008410755158 | CK8: 0.0007183431968 | CL8: 0.0006135068084 | CM8: 0.0005239605642 | CN8: 0.0004474771071 | CO8: 0.0003821528208 | CP8: 0.0003263609711 | CQ8: 0.0002787115764 | CR8: 0.0002380170558 | CS8: 0.0002032628323 | CT8: 0.0001735821863 | CU8: 0.0001482347477 | CV8: 0.0001265881067 | CW8: 0.0001081020926 | CX8: 9.2315336e-05 | CY8: 7.883378459e-05 | CZ8: 6.732088952e-05 | DA8: 5.748922005e-05 | DB8: 4.909329936e-05 | DC8: 4.192348416e-05 | DD8: 3.580073621e-05 | DE8: 3.057215612e-05 | DF8: 2.610716847e-05 | DG8: 2.229426332e-05 | DH8: 1.903821308e-05 | DI8: 1.625769554e-05 | DJ8: 1.388326368e-05 | DK8: 1.185561187e-05 | DL8: 1.012409509e-05 | DM8: 8.64546432e-06 | DN8: 7.38278659e-06 | DO8: 6.304522633e-06 | DP8: 5.383739248e-06 | DQ8: 4.597436663e-06 | DR8: 3.925974106e-06 | DS8: 3.352579264e-06 | DT8: 2.862929367e-06 | DU8: 2.444793455e-06 | DV8: 2.087726877e-06 | DW8: 1.782810415e-06 | DX8: 1.522427496e-06 | DY8: 1.300073946e-06
A9: 7 | B9: 0.7464773059 | C9: -2.963963964 | D9: 0.08744820356 | E9: 2 | F9: 8 | G9: =MATCH(MAX(G5-CAT!N3,-3),$C$3:$C$1002) -> 100 | I9: 0.005839478008 | J9: 0.007291789211 | K9: 0.009073778323 | L9: 0.01124890257 | M9: 0.01388899867 | N9: 0.01707416396 | O9: 0.02089218946 | P9: 0.02543743569 | Q9: 0.03080904646 | R9: 0.03710841036 | S9: 0.04443580299 | T9: 0.05288617722 | U9: 0.06254411201 | V9: 0.07347798471 | W9: 0.08573349551 | X9: 0.09932674824 | Y9: 0.1142371783 | Z9: 0.1304007158 | AA9: 0.1477036739 | AB9: 0.1659779522 | AC9: 0.1849982232 | AD9: 0.2044818016 | AE9: 0.2240918656 | AF9: 0.2434445575 | AG9: 0.2621202452 | AH9: 0.279678853 | AI9: 0.2956787065 | AJ9: 0.3096978298 | AK9: 0.321356166 | AL9: 0.3303368521 | AM9: 0.3364045618 | AN9: 0.3394190783 | AO9: 0.339342696 | AP9: 0.3362407016 | AQ9: 0.330274972 | AR9: 0.3216914916 | AS9: 0.3108032223 | AT9: 0.2979701536 | AU9: 0.2835784725 | AV9: 0.2680206426 | AW9: 0.2516778283 | AX9: 0.2349056303 | AY9: 0.2180236065 | AZ9: 0.2013086071 | BA9: 0.1849916067 | BB9: 0.1692574908 | BC9: 0.1542471398 | BD9: 0.1400611369 | BE9: 0.1267644818 | BF9: 0.1143917827 | BG9: 0.102952516 | BH9: 0.09243605251 | BI9: 0.08281625523 | BJ9: 0.07405553627 | BK9: 0.06610832757 | BL9: 0.05892396836 | BM9: 0.05244904372 | BN9: 0.046629228 | BO9: 0.04141069592 | BP9: 0.0367411667 | BQ9: 0.032570644 | BR9: 0.02885190931 | BS9: 0.02554081994 | BT9: 0.02259645539 | BU9: 0.01998114894 | BV9: 0.01766043479 | BW9: 0.0156029352 | BX9: 0.01378020695 | BY9: 0.01216656238 | BZ9: 0.01073887642 | CA9: 0.009476388361 | CB9: 0.008360504621 | CC9: 0.007374607125 | CD9: 0.006503870227 | CE9: 0.005735088201 | CF9: 0.005056514411 | CG9: 0.004457712641 | CH9: 0.003929420651 | CI9: 0.003463425675 | CJ9: 0.003052451379 | CK9: 0.00269005564 | CL9: 0.002370538445 | CM9: 0.002088859145 | CN9: 0.001840562309 | CO9: 0.001621711438 | CP9: 0.001428829803 | CQ9: 0.001258847741 | CR9: 0.001109055768 | CS9: 0.0009770629183 | CT9: 0.000860759762 | CU9: 0.0007582856179 | CV9: 0.0006679994999 | CW9: 0.0005884543941 | CX9: 0.0005183744992 | CY9: 0.0004566350992 | CZ9: 0.0004022447731 | DA9: 0.0003543296757 | DB9: 0.0003121196557 | DC9: 0.0002749359979 | DD9: 0.0002421806045 | DE9: 0.000213326448 | DF9: 0.0001879091479 | DG9: 0.0001655195415 | DH9: 0.0001457971316 | DI9: 0.0001284243081 | DJ9: 0.0001131212542 | DK9: 9.964145567e-05 | DL9: 8.776774175e-05 | DM9: 7.730879636e-05 | DN9: 6.809608282e-05 | DO9: 5.998113385e-05 | DP9: 5.283316347e-05 | DQ9: 4.653696263e-05 | DR9: 4.099104501e-05 | DS9: 3.610601334e-05 | DT9: 3.180311995e-05 | DU9: 2.801299861e-05 | DV9: 2.467454731e-05 | DW9: 2.173394392e-05 | DX9: 1.91437791e-05 | DY9: 1.686229241e-05
A10: 8 | B10: 1.48444885 | C10: -2.957957958 | D10: 0.1730540872 | E10: 1 | F10: 7 | G10: =MATCH(G5,$C$3:$C$1002) -> 184 | I10: 6.513117718e-06 | J10: 1.077790819e-05 | K10: 1.783001585e-05 | L10: 2.948520188e-05 | M10: 4.873541971e-05 | N10: 8.050325891e-05 | O10: 0.0001328720049 | P10: 0.0002190819534 | Q10: 0.0003607511066 | R10: 0.0005930313283 | S10: 0.0009727809284 | T10: 0.00159135067 | U10: 0.00259424914 | V10: 0.004210715789 | W10: 0.0067968772 | X10: 0.0108962038 | Y10: 0.01731947798 | Z10: 0.02724191449 | AA10: 0.04230549745 | AB10: 0.06469845113 | AC10: 0.0971617189 | AD10: 0.1428501236 | AE10: 0.204966674 | AF10: 0.2861117052 | AG10: 0.3873621896 | AH10: 0.5072230481 | AI10: 0.640743371 | AJ10: 0.7792002539 | AK10: 0.9107296283 | AL10: 1.02205176 | AM10: 1.101015041 | AN10: 1.139234772 | AO10: 1.133911871 | AP10: 1.08817306 | AQ10: 1.009886294 | AR10: 0.9095160718 | AS10: 0.7978464769 | AT10: 0.6842406848 | AU10: 0.5757197479 | AV10: 0.4767886759 | AW10: 0.3897541963 | AX10: 0.3152613979 | AY10: 0.2528500918 | AZ10: 0.2014237464 | BA10: 0.1595953674 | BB10: 0.125916395 | BC10: 0.09901238162 | BD10: 0.07765234621 | BE10: 0.06077500305 | BF10: 0.04748930768 | BG10: 0.0370612834 | BH10: 0.02889475555 | BI10: 0.02251052246 | BJ10: 0.01752643363 | BK10: 0.0136395569 | BL10: 0.01061085478 | BM10: 0.008252369638 | BN10: 0.006416707649 | BO10: 0.004988525412 | BP10: 0.003877705977 | BQ10: 0.00301392933 | BR10: 0.00234237632 | BS10: 0.001820343702 | BT10: 0.001414585607 | BU10: 0.001099230686 | BV10: 0.0008541533331 | BW10: 0.0006637018619 | BX10: 0.0005157065139 | BY10: 0.0004007064021 | BZ10: 0.000311347475 | CA10: 0.0002419139108 | CB10: 0.0001879635165 | CC10: 0.000146044136 | CD10: 0.0001134731238 | CE10: 8.816588995e-05 | CF10: 6.850261793e-05 | CG10: 5.322466743e-05 | CH10: 4.135405808e-05 | CI10: 3.213089594e-05 | CJ10: 2.496474701e-05 | CK10: 1.939685042e-05 | CL10: 1.50707561e-05 | CM10: 1.170950923e-05 | CN10: 9.097922033e-06 | CO10: 7.068798855e-06 | CP10: 5.492233033e-06 | CQ10: 4.267290657e-06 | CR10: 3.315548955e-06 | CS10: 2.576075735e-06 | CT10: 2.001528504e-06 | CU10: 1.555123588e-06 | CV10: 1.208281205e-06 | CW10: 9.38795757e-07 | CX10: 7.29414185e-07 | CY10: 5.667314112e-07 | CZ10: 4.403321099e-07 | DA10: 3.421239067e-07 | DB10: 2.658192855e-07 | DC10: 2.065330443e-07 | DD10: 1.604695388e-07 | DE10: 1.246796752e-07 | DF10: 9.687210046e-08 | DG10: 7.526650767e-08 | DH10: 5.847965849e-08 | DI10: 4.543681337e-08 | DJ10: 3.530294457e-08 | DK10: 2.742925348e-08 | DL10: 2.131164814e-08 | DM10: 1.655846442e-08 | DN10: 1.286539612e-08 | DO10: 9.995997886e-09 | DP10: 7.766568891e-09 | DQ10: 6.034375103e-09 | DR10: 4.68851586e-09 | DS10: 3.64282669e-09 | DT10: 2.830358815e-09 | DU10: 2.199097366e-09 | DV10: 1.708628444e-09 | DW10: 1.327549967e-09 | DX10: 1.031463705e-09 | DY10: 8.014141516e-10
A11: 9 | B11: 0.8392454982 | C11: -2.951951952 | D11: 0.2859392524 | E11: 2 | F11: 3 | G11: =MATCH(MIN(G5+CAT!N3,3),$C$3:$C$1002) -> 267 | I11: 0.0007916812475 | J11: 0.001042090044 | K11: 0.001369579027 | L11: 0.001796806388 | M11: 0.002352562977 | N11: 0.0030731762 | O11: 0.004004112245 | P11: 0.005201742618 | Q11: 0.006735201165 | R11: 0.008688202342 | S11: 0.011160619 | T11: 0.01426952957 | U11: 0.0181493457 | V11: 0.02295053461 | W11: 0.02883637466 | X11: 0.03597715828 | Y11: 0.04454131872 | Z11: 0.0546831447 | AA11: 0.0665270922 | AB11: 0.08014921521 | AC11: 0.09555689414 | AD11: 0.1126687669 | AE11: 0.1312974388 | AF11: 0.151137991 | AG11: 0.1717653432 | AH11: 0.1926429937 | AI11: 0.2131445077 | AJ11: 0.2325874187 | AK11: 0.2502771915 | AL11: 0.2655569636 | AM11: 0.2778573598 | AN11: 0.286740183 | AO11: 0.291930399 | AP11: 0.2933325174 | AQ11: 0.2910298629 | AR11: 0.2852678159 | AS11: 0.276424315 | AT11: 0.2649723401 | AU11: 0.2514395319 | AV11: 0.2363696334 | AW11: 0.2202893231 | AX11: 0.2036825838 | AY11: 0.1869733614 | AZ11: 0.1705161282 | BA11: 0.1545931989 | BB11: 0.139417257 | BC11: 0.1251374745 | BD11: 0.1118477478 | BE11: 0.09959583999 | BF11: 0.08839252424 | BG11: 0.07822011837 | BH11: 0.06904005217 | BI11: 0.06079930348 | BJ11: 0.05343567834 | BK11: 0.04688200062 | BL11: 0.0410693281 | BM11: 0.03592933491 | BN11: 0.03139600407 | BO11: 0.02740676561 | BP11: 0.02390320129 | BQ11: 0.02083141922 | BR11: 0.01814218418 | BS11: 0.01579087301 | BT11: 0.01373730929 | BU11: 0.0119455198 | BV11: 0.01038344414 | BW11: 0.009022621154 | BX11: 0.007837868943 | BY11: 0.006806970126 | BZ11: 0.005910370256 | CA11: 0.005130894271 | CB11: 0.004453483731 | CC11: 0.003864956097 | CD11: 0.003353786158 | CE11: 0.002909909042 | CF11: 0.002524543727 | CG11: 0.002190035699 | CH11: 0.001899717265 | CI11: 0.001647783966 | CJ11: 0.001429185546 | CK11: 0.001239530008 | CL11: 0.00107499936 | CM11: 0.0009322757546 | CN11: 0.0008084768458 | CO11: 0.0007010992798 | CP11: 0.0006079693553 | CQ11: 0.0005271999845 | CR11: 0.0004571531798 | CS11: 0.0003964073821 | CT11: 0.0003437290207 | CU11: 0.0002980477725 | CV11: 0.0002584350469 | CW11: 0.0002240852846 | CX11: 0.0001942997071 | CY11: 0.0001684722002 | CZ11: 0.0001460770545 | DA11: 0.0001266583203 | DB11: 0.0001098205669 | DC11: 9.522086198e-05 | DD11: 8.256181085e-05 | DE11: 7.158551626e-05 | DF11: 6.206833791e-05 | DG11: 5.381634588e-05 | DH11: 4.666137652e-05 | DI11: 4.045761126e-05 | DJ11: 3.507860906e-05 | DK11: 3.041473264e-05 | DL11: 2.637091618e-05 | DM11: 2.286472941e-05 | DN11: 1.98246987e-05 | DO11: 1.718885108e-05 | DP11: 1.490345165e-05 | DQ11: 1.292190873e-05 | DR11: 1.120382446e-05 | DS11: 9.714171491e-06 | DT11: 8.422579156e-06 | DU11: 7.302714446e-06 | DV11: 6.331745278e-06 | DW11: 5.489875089e-06 | DX11: 4.7599393e-06 | DY11: 4.12705541e-06
A12: 10 | B12: 1.485000551 | C12: -2.945945946 | D12: 0.2131337285 | E12: 2 | F12: 7 | I12: 4.715304042e-06 | J12: 7.805694838e-06 | K12: 1.291833165e-05 | L12: 2.137291316e-05 | M12: 3.534632037e-05 | N12: 5.842484564e-05 | O12: 9.650711548e-05 | P12: 0.0001592747683 | Q12: 0.0002625760437 | R12: 0.0004322642338 | S12: 0.0007103276632 | T12: 0.001164573466 | U12: 0.001903709591 | V12: 0.003100398769 | W12: 0.005025631952 | X12: 0.008098284915 | Y12: 0.01295331544 | Z12: 0.02052950959 | AA12: 0.03217112635 | AB12: 0.04972502643 | AC12: 0.07559463387 | AD12: 0.112686666 | AE12: 0.1641655163 | AF12: 0.2329325952 | AG12: 0.3207988437 | AH12: 0.4274348721 | AI12: 0.5493506723 | AJ12: 0.6793117164 | AK12: 0.8066328604 | AL12: 0.9186035456 | AM12: 1.002878248 | AN12: 1.050173419 | AO12: 1.056337525 | AP12: 1.023037338 | AQ12: 0.9568848563 | AR12: 0.8674754121 | AS12: 0.7651438872 | AT12: 0.6591490498 | AU12: 0.5566326188 | AV12: 0.4623321134 | AW12: 0.378816719 | AX12: 0.3069765341 | AY12: 0.2465581953 | AZ12: 0.1966295447 | BA12: 0.1559294658 | BB12: 0.1231037014 | BC12: 0.09684764213 | BD12: 0.07598180584 | BE12: 0.05948290766 | BF12: 0.04648804978 | BG12: 0.03628421891 | BH12: 0.02829095192 | BI12: 0.02204089701 | BJ12: 0.01716089389 | BK12: 0.01335486702 | BL12: 0.01038903204 | BM12: 0.008079471205 | BN12: 0.006281907254 | BO12: 0.004883407085 | BP12: 0.00379572159 | BQ12: 0.002949980521 | BR12: 0.002292491392 | BS12: 0.00178142738 | BT12: 0.001384224889 | BU12: 0.001075544008 | BV12: 0.0008356732638 | BW12: 0.0006492838009 | BX12: 0.0005044575824 | BY12: 0.0003919300346 | BZ12: 0.0003045002296 | CA12: 0.0002365717942 | CB12: 0.0001837957217 | CC12: 0.0001427925584 | CD12: 0.0001109363821 | CE12: 8.618686024e-05 | CF12: 6.695870763e-05 | CG12: 5.202022705e-05 | CH12: 4.041446046e-05 | CI12: 3.139791655e-05 | CJ12: 2.439295928e-05 | CK12: 1.895081322e-05 | CL12: 1.47228192e-05 | CM12: 1.143810097e-05 | CN12: 8.886213277e-06 | CO12: 6.90366056e-06 | CP12: 5.363422906e-06 | CQ12: 4.166818552e-06 | CR12: 3.23718176e-06 | CS12: 2.514951073e-06 | CT12: 1.953853356e-06 | CU12: 1.517939165e-06 | CV12: 1.179279498e-06 | CW12: 9.161764334e-07 | CX12: 7.117729401e-07 | CY12: 5.529728651e-07 | CZ12: 4.296018692e-07 | DA12: 3.33755551e-07 | DB12: 2.592930218e-07 | DC12: 2.014434527e-07 | DD12: 1.565004117e-07 | DE12: 1.215843863e-07 | DF12: 9.445830126e-08 | DG12: 7.338418096e-08 | DH12: 5.701180278e-08 | DI12: 4.429218418e-08 | DJ12: 3.44103748e-08 | DK12: 2.673324862e-08 | DL12: 2.076892633e-08 | DM12: 1.613527494e-08 | DN12: 1.253541424e-08 | DO12: 9.738700526e-09 | DP12: 7.565947886e-09 | DQ12: 5.877946642e-09 | DR12: 4.566546743e-09 | DS12: 3.547727942e-09 | DT12: 2.756211051e-09 | DU12: 2.141286891e-09 | DV12: 1.663555869e-09 | DW12: 1.292407663e-09 | DX12: 1.004065536e-09 | DY12: 7.800523492e-10
A13: 11 | B13: 1.276511371 | C13: -2.93993994 | D13: 0.1790698886 | E13: 3 | F13: 7 | I13: 3.647861347e-05 | J13: 5.616839003e-05 | K13: 8.643636337e-05 | L13: 0.0001329206746 | M13: 0.0002042241029 | N13: 0.0003134367228 | O13: 0.0004804085105 | P13: 0.0007351131036 | Q13: 0.001122574654 | R13: 0.001709989073 | S13: 0.002596844947 | T13: 0.003928999812 | U13: 0.005917714277 | V13: 0.008864445684 | W13: 0.01319152667 | X13: 0.0194773902 | Y13: 0.02849240855 | Z13: 0.04122746538 | AA13: 0.05890225681 | AB13: 0.08293499118 | AC13: 0.11485174 | AD13: 0.1561154189 | AE13: 0.2078648663 | AF13: 0.2705761233 | AG13: 0.3436897653 | AH13: 0.4252836408 | AI13: 0.51189738 | AJ13: 0.5986171803 | AK13: 0.6794916557 | AL13: 0.7482677723 | AM13: 0.7993271558 | AN13: 0.8286083791 | AO13: 0.8342703859 | AP13: 0.8169149723 | AQ13: 0.7793242361 | AR13: 0.7258208728 | AS13: 0.6614568564 | AT13: 0.5912454373 | AU13: 0.519587336 | AV13: 0.4499490347 | AW13: 0.3847719983 | AX13: 0.3255478995 | AY13: 0.2729857 | AZ13: 0.2272091646 | BA13: 0.1879442698 | BB13: 0.154675652 | BC13: 0.1267656085 | BD13: 0.1035377045 | BE13: 0.08433101089 | BF13: 0.06853201854 | BG13: 0.05559072143 | BH13: 0.0450261623 | BI13: 0.03642542546 | BJ13: 0.02943890065 | BK13: 0.0237737159 | BL13: 0.01918655089 | BM13: 0.01547655786 | BN13: 0.01247879118 | BO13: 0.01005833514 | BP13: 0.008105189832 | BQ13: 0.006529898327 | BR13: 0.005259858226 | BS13: 0.004236241982 | BT13: 0.00341144551 | BU13: 0.002746987141 | BV13: 0.002211785547 | BW13: 0.001780753488 | BX13: 0.001433652775 | BY13: 0.001154164101 | BZ13: 0.0009291327875 | CA13: 0.0007479580761 | CB13: 0.0006020992263 | CC13: 0.0004846764451 | CD13: 0.0003901486866 | CE13: 0.0003140536672 | CF13: 0.0002527981866 | CG13: 0.0002034890826 | CH13: 0.0001637969906 | CI13: 0.0001318465672 | CJ13: 0.0001061280562 | CK13: 8.542605763e-05 | CL13: 6.876216313e-05 | CM13: 5.534876061e-05 | CN13: 4.455183844e-05 | CO13: 3.5861037e-05 | CP13: 2.886553711e-05 | CQ13: 2.323464855e-05 | CR13: 1.870218306e-05 | CS13: 1.505387423e-05 | CT13: 1.211725057e-05 | CU13: 9.7534835e-06 | CV13: 7.850825163e-06 | CW13: 6.319326101e-06 | CX13: 5.086583233e-06 | CY13: 4.094317189e-06 | CZ13: 3.295617244e-06 | DA13: 2.652723657e-06 | DB13: 2.13524259e-06 | DC13: 1.71870924e-06 | DD13: 1.383431246e-06 | DE13: 1.113557719e-06 | DF13: 8.963298761e-07 | DG13: 7.214778486e-07 | DH13: 5.807351622e-07 | DI13: 4.674479257e-07 | DJ13: 3.762602547e-07 | DK13: 3.028610682e-07 | DL13: 2.437802685e-07 | DM13: 1.962246891e-07 | DN13: 1.579460411e-07 | DO13: 1.271346226e-07 | DP13: 1.023337599e-07 | DQ13: 8.237094013e-08 | DR13: 6.630237928e-08 | DS13: 5.336840197e-08 | DT13: 4.295752894e-08 | DU13: 3.457756316e-08 | DV13: 2.783232414e-08 | DW13: 2.24029166e-08 | DX13: 1.803265373e-08 | DY13: 1.451492296e-08
A14: 12 | B14: 0.7023643851 | C14: -2.933933934 | D14: 0.1377699494 | E14: 3 | F14: 7 | G14: Função de Informação | I14: 0.004723719117 | J14: 0.005843356843 | K14: 0.007207964306 | L14: 0.008863892776 | M14: 0.01086381654 | N14: 0.01326679501 | O14: 0.01613803872 | P14: 0.01954828924 | Q14: 0.02357272048 | R14: 0.02828927281 | S14: 0.03377634555 | T14: 0.04010979802 | U14: 0.04735924649 | V14: 0.05558369425 | W14: 0.06482659256 | X14: 0.0751105013 | Y14: 0.08643159364 | Z14: 0.0987543266 | AA14: 0.1120066695 | AB14: 0.1260763389 | AC14: 0.1408085195 | AD14: 0.1560055446 | AE14: 0.1714289547 | AF14: 0.1868042417 | AG14: 0.2018284085 | AH14: 0.2161802424 | AI14: 0.229532923 | AJ14: 0.2415682984 | AK14: 0.2519919016 | AL14: 0.2605475872 | AM14: 0.2670305962 | AN14: 0.2712979193 | AO14: 0.2732750435 | AP14: 0.2729585064 | AQ14: 0.2704141006 | AR14: 0.2657710088 | AS14: 0.2592125373 | AT14: 0.2509644046 | AU14: 0.2412816847 | AV14: 0.2304355157 | AW14: 0.2187005566 | AX14: 0.2063439635 | AY14: 0.1936163973 | AZ14: 0.180745307 | BA14: 0.1679305005 | BB14: 0.1553418273 | BC14: 0.1431186746 | BD14: 0.131370914 | BE14: 0.1201809164 | BF14: 0.1096062783 | BG14: 0.09968294396 | BH14: 0.09042846964 | BI14: 0.08184523302 | BJ14: 0.07392345108 | BK14: 0.06664391806 | BL14: 0.05998041623 | BM14: 0.05390178332 | BN14: 0.04837364305 | BO14: 0.04335981994 | BP14: 0.03882346895 | BQ14: 0.03472795447 | BR14: 0.03103751453 | BS14: 0.0277177447 | BT14: 0.02473593372 | BU14: 0.02206127946 | BV14: 0.01966501002 | BW14: 0.01752043141 | BX14: 0.01560291942 | BY14: 0.01388987046 | BZ14: 0.01236062311 | CA14: 0.01099635996 | CB14: 0.009779997023 | CC14: 0.008696066601 | CD14: 0.007730597835 | CE14: 0.006870998218 | CF14: 0.006105938374 | CG14: 0.005425241717 | CH14: 0.004819780036 | CI14: 0.004281375653 | CJ14: 0.003802710441 | CK14: 0.003377241779 | CL14: 0.002999125342 | CM14: 0.002663144483 | CN14: 0.002364645902 | CO14: 0.002099481243 | CP14: 0.00186395421 | CQ14: 0.001654772816 | CR14: 0.001469006344 | CS14: 0.001304046638 | CT14: 0.001157573335 | CU14: 0.001027522694 | CV14: 0.0009120596684 | CW14: 0.000809552925 | CX14: 0.0007185525125 | CY14: 0.000637769918 | CZ14: 0.0005660602685 | DA14: 0.0005024064568 | DB14: 0.0004459049923 | DC14: 0.0003957533954 | DD14: 0.0003512389723 | DE14: 0.0003117288226 | DF14: 0.0002766609474 | DG14: 0.0002455363399 | DH14: 0.0002179119508 | DI14: 0.0001933944337 | DJ14: 0.0001716345859 | DK14: 0.0001523224066 | DL14: 0.0001351827064 | DM14: 0.0001199712057 | DN14: 0.0001064710695 | DO14: 9.44898288e-05 | DP14: 8.385664617e-05 | DQ14: 7.441988792e-05 | DR14: 6.604496769e-05 | DS14: 5.861243181e-05 | DT14: 5.201625929e-05 | DU14: 4.616235248e-05 | DV14: 4.096719706e-05 | DW14: 3.635667245e-05 | DX14: 3.226499573e-05 | DY14: 2.863378428e-05
A15: 13 | B15: 0.588060081 | C15: -2.927927928 | D15: 0.04003347158 | E15: 1 | F15: 7 | I15: 0.02180405515 | J15: 0.0249744082 | K15: 0.02850900658 | L15: 0.0324321468 | M15: 0.03676677676 | N15: 0.04153386776 | O15: 0.04675170679 | P15: 0.0524351075 | Q15: 0.05859454054 | R15: 0.06523518837 | S15: 0.07235593547 | T15: 0.07994831208 | U15: 0.08799541897 | V15: 0.0964708709 | W15: 0.1053378082 | X15: 0.1145480369 | Y15: 0.1240413686 | Z15: 0.1337452392 | AA15: 0.1435746897 | AB15: 0.1534327905 | AC15: 0.1632115812 | AD15: 0.1727935813 | AE15: 0.1820538982 | AF15: 0.1908629248 | AG15: 0.199089576 | AH15: 0.2066049634 | AI15: 0.2132863654 | AJ15: 0.2190213032 | AK15: 0.2237115068 | AL15: 0.2272765363 | AM15: 0.229656834 | AN15: 0.2308160031 | AO15: 0.2307421604 | AP15: 0.2294482689 | AQ15: 0.2269714305 | AR15: 0.2233711924 | AS15: 0.2187269879 | AT15: 0.2131348913 | AU15: 0.2067038982 | AV15: 0.199551964 | AW15: 0.191802025 | AX15: 0.1835782066 | AY15: 0.1750023869 | AZ15: 0.1661912374 | BA15: 0.1572538192 | BB15: 0.1482897663 | BC15: 0.1393880457 | BD15: 0.1306262585 | BE15: 0.1220704167 | BF15: 0.1137751225 | BG15: 0.1057840671 | BH15: 0.09813076905 | BI15: 0.09083947579 | BJ15: 0.08392616309 | BK15: 0.07739957507 | BL15: 0.0712622602 | BM15: 0.06551156861 | BN15: 0.06014058617 | BO15: 0.0551389892 | BP15: 0.05049381052 | BQ15: 0.04619011364 | BR15: 0.04221157575 | BS15: 0.03854098352 | BT15: 0.03516064769 | BU15: 0.03205274379 | BV15: 0.02919958671 | BW15: 0.02658384751 | BX15: 0.0241887199 | BY15: 0.02199804407 | BZ15: 0.01999639451 | CA15: 0.01816913805 | CB15: 0.0165024674 | CC15: 0.01498341509 | CD15: 0.01359985176 | CE15: 0.01234047234 | CF15: 0.01119477305 | CG15: 0.01015302155 | CH15: 0.009206222481 | CI15: 0.008346079667 | CJ15: 0.007564956653 | CK15: 0.006855836377 | CL15: 0.006212280885 | CM15: 0.0056283917 | CN15: 0.005098771297 | CO15: 0.004618486042 | CP15: 0.004183030805 | CQ15: 0.003788295425 | CR15: 0.003430533098 | CS15: 0.003106330724 | CT15: 0.002812581209 | CU15: 0.002546457688 | CV15: 0.002305389612 | CW15: 0.002087040616 | CX15: 0.0018892881 | CY15: 0.001710204416 | CZ15: 0.001548039575 | DA15: 0.001401205372 | DB15: 0.001268260843 | DC15: 0.001147898949 | DD15: 0.001038934406 | DE15: 0.0009402925644 | DF15: 0.0008509992727 | DG15: 0.0007701716264 | DH15: 0.0006970095466 | DI15: 0.0006307881113 | DJ15: 0.0005708505786 | DK15: 0.0005166020421 | DL15: 0.0004675036647 | DM15: 0.0004230674397 | DN15: 0.0003828514329 | DO15: 0.0003464554639 | DP15: 0.0003135171863 | DQ15: 0.0002837085308 | DR15: 0.0002567324799 | DS15: 0.0002323201427 | DT15: 0.0002102281021 | DU15: 0.0001902360113 | DV15: 0.0001721444146 | DW15: 0.0001557727729 | DX15: 0.0001409576746 | DY15: 0.0001275512151
A16: 14 | B16: 1.04913801 | C16: -2.921921922 | D16: 0.1756248593 | E16: 2 | F16: 5 | I16: 0.0002466049782 | J16: 0.000350168888 | K16: 0.0004966493564 | L16: 0.0007034374976 | M16: 0.0009947066002 | N16: 0.001403881008 | O16: 0.001976888956 | P16: 0.002776374325 | Q16: 0.003887032382 | R16: 0.00542218418 | S16: 0.007531587819 | T16: 0.01041027041 | U16: 0.01430781839 | V16: 0.0195370602 | W16: 0.02648041394 | X16: 0.03559140326 | Y16: 0.04738809503 | Z16: 0.06243470505 | AA16: 0.0813076679 | AB16: 0.1045434315 | AC16: 0.1325674207 | AD16: 0.1656071351 | AE16: 0.2035969865 | AF16: 0.2460875945 | AG16: 0.2921767118 | AH16: 0.3404812426 | AI16: 0.3891683022 | AJ16: 0.4360566712 | AK16: 0.4787881182 | AL16: 0.5150525324 | AM16: 0.5428353212 | AN16: 0.5606452083 | AO16: 0.567680017 | AP16: 0.5638990593 | AQ16: 0.5499908712 | AR16: 0.5272480363 | AS16: 0.4973793537 | AT16: 0.4622983802 | AU16: 0.4239252243 | AV16: 0.384028154 | AW16: 0.3441178695 | AX16: 0.3053946945 | AY16: 0.2687402188 | AZ16: 0.2347407703 | BA16: 0.203729747 | BB16: 0.1758378578 | BC16: 0.1510433465 | BD16: 0.1292172947 | BE16: 0.1101615874 | BF16: 0.09363889674 | BG16: 0.07939513655 | BH16: 0.06717541016 | BI16: 0.05673467489 | BJ16: 0.04784432608 | BK16: 0.04029576455 | BL16: 0.03390182736 | BM16: 0.02849677335 | BN16: 0.02393534601 | BO16: 0.02009129419 | BP16: 0.01685561868 | BQ16: 0.0141347264 | BR16: 0.01184861038 | BS16: 0.009929127424 | BT16: 0.00831841372 | BU16: 0.006967456467 | BV16: 0.005834825586 | BW16: 0.0048855605 | BX16: 0.004090201816 | BY16: 0.003423955035 | BZ16: 0.002865972408 | CA16: 0.002398739081 | CB16: 0.002007550336 | CC16: 0.001680067767 | CD16: 0.001405943426 | CE16: 0.001176502166 | CF16: 0.0009844736466 | CG16: 0.0008237665331 | CH16: 0.0006892784894 | CI16: 0.0005767364305 | CJ16: 0.0004825623298 | CK16: 0.0004037605675 | CL16: 0.0003378234147 | CM16: 0.0002826517706 | CN16: 0.0002364887169 | CO16: 0.0001978638347 | CP16: 0.0001655465539 | CQ16: 0.0001385070773 | CR16: 0.0001158836574 | CS16: 9.695519643e-05 | CT16: 8.111830611e-05 | CU16: 6.786810511e-05 | CV16: 5.678214499e-05 | CW16: 4.750695691e-05 | CX16: 3.97467922e-05 | CY16: 3.325419963e-05 | CZ16: 2.782214007e-05 | DA16: 2.327738802e-05 | DB16: 1.947501012e-05 | DC16: 1.629374495e-05 | DD16: 1.363213721e-05 | DE16: 1.140530299e-05 | DF16: 9.542223272e-06 | DG16: 7.983479446e-06 | DH16: 6.679358551e-06 | DI16: 5.588268006e-06 | DJ16: 4.67540924e-06 | DK16: 3.911667951e-06 | DL16: 3.272685617e-06 | DM16: 2.738082668e-06 | DN16: 2.290808539e-06 | DO16: 1.916597881e-06 | DP16: 1.603515611e-06 | DQ16: 1.341576254e-06 | DR16: 1.122425481e-06 | DS16: 9.390736603e-07 | DT16: 7.856729306e-07 | DU16: 6.573306943e-07 | DV16: 5.499535713e-07 | DW16: 4.601168469e-07 | DX16: 3.849552418e-07 | DY16: 3.220715296e-07
A17: 15 | B17: 0.694301784 | C17: -2.915915916 | D17: 0.09046086073 | E17: 2 | F17: 9 | I17: 0.007102077601 | J17: 0.008690812205 | K17: 0.01059925369 | L17: 0.01288025674 | M17: 0.01559197434 | N17: 0.01879739591 | O17: 0.02256354543 | P17: 0.02696028448 | Q17: 0.03205867358 | R17: 0.03792885806 | S17: 0.04463746299 | T17: 0.0522445042 | U17: 0.06079985077 | V17: 0.07033930634 | W17: 0.08088041484 | X17: 0.09241813864 | Y17: 0.1049206042 | Z17: 0.118325161 | AA17: 0.1325350469 | AB17: 0.147417 | AC17: 0.1628001784 | AD17: 0.178476757 | AE17: 0.19420453 | AF17: 0.2097117644 | AG17: 0.224704411 | AH17: 0.2388755885 | AI17: 0.2519170235 | AJ17: 0.2635318845 | AK17: 0.2734482155 | AL17: 0.2814320065 | AM17: 0.2872988572 | AN17: 0.290923239 | AO17: 0.2922445288 | AP17: 0.2912692781 | AQ17: 0.2880695426 | AR17: 0.282777486 | AS17: 0.2755768227 | AT17: 0.2666919354 | AU17: 0.2563756534 | AV17: 0.2448967042 | AW17: 0.2325277548 | AX17: 0.2195347831 | AY17: 0.2061682879 | AZ17: 0.1926566055 | BA17: 0.1792013807 | BB17: 0.1659750611 | BC17: 0.1531201586 | BD17: 0.1407499489 | BE17: 0.1289502573 | BF17: 0.1177819883 | BG17: 0.1072840957 | BH17: 0.09747673908 | BI17: 0.08836442948 | BJ17: 0.0799390206 | BK17: 0.0721824502 | BL17: 0.06506917712 | BM17: 0.05856829058 | BN17: 0.05264529185 | BO17: 0.04726356487 | BP17: 0.04238556204 | BQ17: 0.03797373718 | BR17: 0.03399125963 | BS17: 0.03040254284 | BT17: 0.0271736189 | BU17: 0.02427238765 | BV17: 0.02166876531 | BW17: 0.01933475451 | BX17: 0.01724445381 | BY17: 0.01537402211 | BZ17: 0.01370161026 | CA17: 0.01220726992 | CB17: 0.01087284754 | CC17: 0.009681869822 | CD17: 0.008619425166 | CE17: 0.007672044877 | CF17: 0.006827586642 | CG17: 0.006075122155 | CH17: 0.00540483016 | CI17: 0.004807895701 | CJ17: 0.004276416019 | CK17: 0.003803313268 | CL17: 0.003382254029 | CM17: 0.00300757546 | CN17: 0.002674217799 | CO17: 0.002377662915 | CP17: 0.002113878516 | CQ17: 0.001879267641 | CR17: 0.001670623021 | CS17: 0.001485085949 | CT17: 0.001320109245 | CU17: 0.001173423987 | CV17: 0.001043009641 | CW17: 0.0009270672923 | CX17: 0.0008239956708 | CY17: 0.0007323696956 | CZ17: 0.0006509212977 | DA17: 0.0005785222843 | DB17: 0.0005141690383 | DC17: 0.0004569688656 | DD17: 0.0004061278154 | DE17: 0.0003609398219 | DF17: 0.0003207770264 | DG17: 0.0002850811545 | DH17: 0.0002533558354 | DI17: 0.0002251597628 | DJ17: 0.0002001006056 | DK17: 0.0001778295887 | DL17: 0.0001580366692 | DM17: 0.000140446245 | DN17: 0.0001248133366 | DO17: 0.0001109201905 | DP17: 9.857325823e-05 | DQ17: 8.760050946e-05 | DR17: 7.784904271e-05 | DS17: 6.918296059e-05 | DT17: 6.14814807e-05 | DU17: 5.46372559e-05 | DV17: 4.8554881e-05 | DW17: 4.314956518e-05 | DX17: 3.83459518e-05 | DY17: 3.407706928e-05
A18: 16 | B18: 1.07854408 | C18: -2.90990991 | D18: 0.2787980676 | E18: 3 | F18: 4 | I18: 0.0001022736491 | J18: 0.0001470103785 | K18: 0.0002111540713 | L18: 0.0003030071882 | M18: 0.0004343410039 | N18: 0.0006217861435 | O18: 0.0008887393802 | P18: 0.001267949747 | Q18: 0.001804978475 | R18: 0.002562749739 | S18: 0.00362740811 | T18: 0.005115650245 | U18: 0.007183567417 | V18: 0.0100367742 | W18: 0.01394115101 | X18: 0.0192328424 | Y18: 0.02632520882 | Z18: 0.03570928337 | AA18: 0.04794312837 | AB18: 0.06362470517 | AC18: 0.08334305976 | AD18: 0.1076045135 | AE18: 0.1367347625 | AF18: 0.1707644783 | AG18: 0.2093143701 | AH18: 0.2515036876 | AI18: 0.2959106662 | AJ18: 0.3406110422 | AK18: 0.3833092807 | AL18: 0.4215572441 | AM18: 0.4530312069 | AN18: 0.4758180708 | AO18: 0.4886534371 | AP18: 0.4910625256 | AQ18: 0.4833781385 | AR18: 0.4666401243 | AS18: 0.4424075377 | AT18: 0.4125295521 | AU18: 0.3789213779 | AV18: 0.3433800314 | AW18: 0.3074580427 | AX18: 0.272397287 | AY18: 0.2391139421 | AZ18: 0.2082201723 | BA18: 0.1800675461 | BB18: 0.1547995738 | BC18: 0.1324043362 | BD18: 0.112761729 | BE18: 0.09568271828 | BF18: 0.08093999773 | BG18: 0.06829064109 | BH18: 0.05749193296 | BI18: 0.04831174334 | BJ18: 0.0405347554 | BK18: 0.03396568082 | BL18: 0.02843038267 | BM18: 0.02377561597 | BN18: 0.01986791195 | BO18: 0.016591982 | BP18: 0.01384890027 | BQ18: 0.01155423635 | BR18: 0.00963624585 | BS18: 0.008034181854 | BT18: 0.006696759818 | BU18: 0.005580787955 | BV18: 0.004649962439 | BW18: 0.003873819006 | BX18: 0.003226828331 | BY18: 0.002687620633 | BZ18: 0.002238324608 | CA18: 0.001864006224 | CB18: 0.001552193954 | CC18: 0.001292478273 | CD18: 0.001076174569 | CE18: 0.000896039978 | CF18: 0.0007460358816 | CG18: 0.0006211289586 | CH18: 0.0005171247108 | CI18: 0.0004305282834 | CJ18: 0.00035842819 | CK18: 0.00029839923 | CL18: 0.0002484214718 | CM18: 0.0002068126713 | CN18: 0.0001721719158 | CO18: 0.0001433326434 | CP18: 0.000119323487 | CQ18: 9.933564596e-05 | CR18: 8.269570179e-05 | CS18: 6.884297283e-05 | CT18: 5.731065179e-05 | CU18: 4.771009601e-05 | CV18: 3.971774443e-05 | CW18: 3.306422265e-05 | CX18: 2.752527087e-05 | CY18: 2.291418988e-05 | CZ18: 1.90755513e-05 | DA18: 1.587996081e-05 | DB18: 1.321969807e-05 | DC18: 1.100508659e-05 | DD18: 9.161471611e-06 | DE18: 7.626703985e-06 | DF18: 6.349045446e-06 | DG18: 5.285424745e-06 | DH18: 4.39998584e-06 | DI18: 3.662879262e-06 | DJ18: 3.049255934e-06 | DK18: 2.538429522e-06 | DL18: 2.113179103e-06 | DM18: 1.759168645e-06 | DN18: 1.464463728e-06 | DO18: 1.219129228e-06 | DP18: 1.014894387e-06 | DQ18: 8.448739971e-07 | DR18: 7.033362885e-07 | DS18: 5.855097037e-07 | DT18: 4.874220378e-07 | DU18: 4.057665269e-07 | DV18: 3.377903742e-07 | DW18: 2.812019424e-07 | DX18: 2.340935024e-07 | DY18: 1.948769167e-07
A19: 17 | B19: 1.406271636 | C19: -2.903903904 | D19: 0.0504204154 | E19: 3 | F19: 13 | I19: 3.955085366e-05 | J19: 6.357155885e-05 | K19: 0.0001020844527 | L19: 0.0001637341263 | M19: 0.0002622214556 | N19: 0.0004191609423 | O19: 0.0006684547432 | P19: 0.001062894979 | Q19: 0.001683953242 | R19: 0.002655970311 | S19: 0.004166137181 | T19: 0.00649160456 | U19: 0.01003452823 | V19: 0.01536454554 | W19: 0.02326581735 | X19: 0.03478233217 | Y19: 0.05125110237 | Z19: 0.07430918496 | AA19: 0.105858371 | AB19: 0.1479716537 | AC19: 0.2027278715 | AD19: 0.2719642746 | AE19: 0.3569415067 | AF19: 0.457925396 | AG19: 0.5737121937 | AH19: 0.7011649357 | AI19: 0.8348858666 | AJ19: 0.9672026667 | AK19: 1.088653181 | AL19: 1.189066988 | AM19: 1.259145991 | AN19: 1.29219703 | AO19: 1.285499664 | AP19: 1.240836951 | AQ19: 1.16399996 | AR19: 1.063461592 | AS19: 0.9486915544 | AT19: 0.8286218845 | AU19: 0.710600787 | AV19: 0.599926974 | AW19: 0.499865357 | AX19: 0.4119608322 | AY19: 0.3364732569 | AZ19: 0.2728085443 | BA19: 0.2198792671 | BB19: 0.1763730217 | BC19: 0.1409334271 | BD19: 0.112270418 | BE19: 0.08921896657 | BF19: 0.07076318471 | BG19: 0.05603897251 | BH19: 0.04432457134 | BI19: 0.03502523335 | BJ19: 0.02765587204 | BK19: 0.02182393191 | BL19: 0.01721364913 | BM19: 0.01357221292 | BN19: 0.01069794785 | BO19: 0.008430425097 | BP19: 0.00664230828 | BQ19: 0.005232701848 | BR19: 0.004121768954 | BS19: 0.003246403205 | BT19: 0.002556764236 | BU19: 0.00201351475 | BV19: 0.001585623141 | BW19: 0.001248619734 | BX19: 0.000983215346 | BY19: 0.0007742083267 | BZ19: 0.0006096207381 | CA19: 0.000480016187 | CB19: 0.0003779614533 | CC19: 0.0002976018156 | CD19: 0.0002343261938 | CE19: 0.0001845031955 | CF19: 0.0001452731013 | CG19: 0.000114383967 | CH19: 9.006250525e-05 | CI19: 7.091237709e-05 | CJ19: 5.583408405e-05 | CK19: 4.396187652e-05 | CL19: 3.461406731e-05 | CM19: 2.725390386e-05 | CN19: 2.145875634e-05 | CO19: 1.689585505e-05 | CP19: 1.330318537e-05 | CQ19: 1.047444413e-05 | CR19: 8.247194333e-06 | CS19: 6.493538114e-06 | CT19: 5.112772853e-06 | CU19: 4.025608671e-06 | CV19: 3.169615437e-06 | CW19: 2.495637839e-06 | CX19: 1.964972728e-06 | CY19: 1.547146623e-06 | CZ19: 1.218165808e-06 | DA19: 9.591385042e-07 | DB19: 7.551900125e-07 | DC19: 5.946085384e-07 | DD19: 4.681726518e-07 | DE19: 3.686217321e-07 | DF19: 2.902390379e-07 | DG19: 2.285234195e-07 | DH19: 1.799308373e-07 | DI19: 1.416708455e-07 | DJ19: 1.115463512e-07 | DK19: 8.782744526e-08 | DL19: 6.915206044e-08 | DM19: 5.444775929e-08 | DN19: 4.287013812e-08 | DO19: 3.375435146e-08 | DP19: 2.657692016e-08 | DQ19: 2.092567732e-08 | DR19: 1.647609935e-08 | DS19: 1.297266753e-08 | DT19: 1.021419531e-08 | DU19: 8.042277525e-09 | DV19: 6.332189406e-09 | DW19: 4.985729832e-09 | DX19: 3.925577888e-09 | DY19: 3.090853751e-09
A20: 18 | B20: 1.484430254 | C20: -2.897897898 | D20: 0.2728266835 | E20: 3 | F20: 7 | I20: 2.686925291e-06 | J20: 4.4480102e-06 | K20: 7.361993561e-06 | L20: 1.218208252e-05 | M20: 2.01518304e-05 | N20: 3.332240454e-05 | O20: 5.507294401e-05 | P20: 9.096155873e-05 | Q20: 0.0001501118985 | R20: 0.0002474615031 | S20: 0.0004073848632 | T20: 0.0006694845456 | U20: 0.001097750259 | V20: 0.00179484478 | W20: 0.002923981478 | X20: 0.004741616958 | Y20: 0.007644707323 | Z20: 0.01223592147 | AA20: 0.01940775409 | AB20: 0.03044001775 | AC20: 0.04709236081 | AD20: 0.07165269821 | AE20: 0.1068758469 | AF20: 0.1557243194 | AG20: 0.220826603 | AH20: 0.3036266189 | AI20: 0.4033310943 | AJ20: 0.5159487209 | AK20: 0.6338704578 | AL20: 0.7464295496 | AM20: 0.8416014722 | AN20: 0.9085068531 | AO20: 0.9399114757 | AP20: 0.9337977298 | AQ20: 0.8934507644 | AR20: 0.8261599046 | AS20: 0.7411775391 | AT20: 0.6477182694 | AU20: 0.5535438062 | AV20: 0.4643003987 | AW20: 0.3834818972 | AX20: 0.3127697101 | AY20: 0.2525163809 | AZ20: 0.2022166031 | BA20: 0.1608894962 | BB20: 0.1273526443 | BC20: 0.1003988717 | BD20: 0.07889808549 | BE20: 0.06184710936 | BF20: 0.0483864188 | BG20: 0.03779760587 | BH20: 0.02949086473 | BI20: 0.02298831769 | BJ20: 0.01790657423 | BK20: 0.01394033037 | BL20: 0.01084783696 | BM20: 0.008438496084 | BN20: 0.006562536234 | BO20: 0.005102567606 | BP20: 0.003966762119 | BQ20: 0.003083396646 | BR20: 0.002396517173 | BS20: 0.001862511591 | BT20: 0.001447411445 | BU20: 0.001124773993 | BV20: 0.0008740236396 | BW20: 0.0006791554092 | BX20: 0.0005277228271 | BY20: 0.000410048658 | BZ20: 0.0003186099346 | CA20: 0.0002475590937 | CB20: 0.0001923512781 | CC20: 0.0001494543788 | CD20: 0.0001161235146 | CE20: 9.022566981e-05 | CF20: 7.010335885e-05 | CG20: 5.44686463e-05 | CH20: 4.232077323e-05 | CI20: 3.288213654e-05 | CJ20: 2.554853571e-05 | CK20: 1.985050917e-05 | CL20: 1.542328974e-05 | CM20: 1.198345841e-05 | CN20: 9.310803583e-06 | CO20: 7.2342253e-06 | CP20: 5.62078271e-06 | CQ20: 4.36718396e-06 | CR20: 3.393173889e-06 | CS20: 2.636396339e-06 | CT20: 2.048402268e-06 | CU20: 1.591548097e-06 | CV20: 1.236585831e-06 | CW20: 9.60790604e-07 | CX20: 7.465058488e-07 | CY20: 5.800129277e-07 | CZ20: 4.506528514e-07 | DA20: 3.501439016e-07 | DB20: 2.720514247e-07 | DC20: 2.113758862e-07 | DD20: 1.64232791e-07 | DE20: 1.276040045e-07 | DF20: 9.914452378e-08 | DG20: 7.703235163e-08 | DH20: 5.985185086e-08 | DI20: 4.650311096e-08 | DJ20: 3.613153661e-08 | DK20: 2.807313196e-08 | DL20: 2.181198933e-08 | DM20: 1.69472675e-08 | DN20: 1.316752421e-08 | DO20: 1.023077566e-08 | DP20: 7.949008591e-09 | DQ20: 6.176142716e-09 | DR20: 4.798679757e-09 | DS20: 3.728432517e-09 | DT20: 2.896881495e-09 | DU20: 2.250789995e-09 | DV20: 1.748796316e-09 | DW20: 1.358763871e-09 | DX20: 1.055719531e-09 | DY20: 8.202614326e-10
A21: 19 | B21: 0.9256297946 | C21: -2.891891892 | D21: 0.188417995 | E21: 3 | F21: 4 | I21: 0.0005706564193 | J21: 0.0007746766235 | K21: 0.001050076659 | L21: 0.001420938188 | M21: 0.001918967124 | N21: 0.002585632666 | O21: 0.003474758309 | P21: 0.004655579883 | Q21: 0.006216235237 | R21: 0.008267569174 | S21: 0.010947018 | T21: 0.01442217573 | U21: 0.01889344061 | V21: 0.02459490906 | W21: 0.03179245546 | X21: 0.04077776014 | Y21: 0.05185699855 | Z21: 0.06533306618 | AA21: 0.08148067426 | AB21: 0.1005144689 | AC21: 0.122551507 | AD21: 0.1475708855 | AE21: 0.1753748864 | AF21: 0.2055573688 | AG21: 0.2374859513 | AH21: 0.2703043633 | AI21: 0.3029598765 | AJ21: 0.3342578071 | AK21: 0.3629409126 | AL21: 0.3877867139 | AM21: 0.4077114012 | AN21: 0.4218662531 | AO21: 0.42971242 | AP21: 0.4310629041 | AQ21: 0.4260860818 | AR21: 0.4152718549 | AS21: 0.3993677526 | AT21: 0.3792965356 | AU21: 0.3560682705 | AV21: 0.3306985442 | AW21: 0.3041412742 | AX21: 0.2772405773 | AY21: 0.2507024147 | AZ21: 0.2250839148 | BA21: 0.2007966386 | BB21: 0.178119499 | BC21: 0.1572172955 | BD21: 0.138161541 | BE21: 0.1209511432 | BF21: 0.1055313669 | BG21: 0.09181022328 | BH21: 0.07967196972 | BI21: 0.06898776992 | BJ21: 0.05962377628 | BK21: 0.05144700309 | BL21: 0.0443293881 | BM21: 0.03815042239 | BN21: 0.03279868653 | BO21: 0.02817257823 | BP21: 0.02418046307 | BQ21: 0.02074043045 | BR21: 0.0177797936 | BS21: 0.01523443752 | BT21: 0.01304808934 | BU21: 0.0111715641 | BV21: 0.009562021392 | BW21: 0.008182255944 | BX21: 0.007000035892 | BY21: 0.005987496017 | BZ21: 0.00512058853 | CA21: 0.004378591023 | CB21: 0.003743669212 | CC21: 0.003200490893 | CD21: 0.002735886947 | CE21: 0.002338554954 | CF21: 0.001998801007 | CG21: 0.00170831548 | CH21: 0.00145997877 | CI21: 0.001247693373 | CJ21: 0.001066238971 | CK21: 0.0009111475692 | CL21: 0.0007785960503 | CM21: 0.0006653138032 | CN21: 0.0005685033958 | CO21: 0.0004857724946 | CP21: 0.0004150754784 | CQ21: 0.0003546633913 | CR21: 0.0003030410664 | CS21: 0.0002589304061 | CT21: 0.000221238946 | CU21: 0.0001890329504 | CV21: 0.0001615143918 | CW21: 0.0001380012577 | CX21: 0.0001179107069 | CY21: 0.0001007446653 | CZ21: 8.607750913e-05 | DA21: 7.354553538e-05 | DB21: 6.283795941e-05 | DC21: 5.368922013e-05 | DD21: 4.587240266e-05 | DE21: 3.919361675e-05 | DF21: 3.348719226e-05 | DG21: 2.86115731e-05 | DH21: 2.44458083e-05 | DI21: 2.088655337e-05 | DJ21: 1.784550792e-05 | DK21: 1.524722598e-05 | DL21: 1.302724504e-05 | DM21: 1.113048719e-05 | DN21: 9.509893109e-06 | DO21: 8.125254732e-06 | DP21: 6.94221788e-06 | DQ21: 5.931430046e-06 | DR21: 5.067812241e-06 | DS21: 4.329936827e-06 | DT21: 3.699495924e-06 | DU21: 3.160847207e-06 | DV21: 2.70062582e-06 | DW21: 2.307412794e-06 | DX21: 1.97145174e-06 | DY21: 1.684406781e-06
A22: 20 | B22: 0.6012691855 | C22: -2.885885886 | D22: 0.006685316563 | E22: 2 | F22: 8 | I22: 0.03415866424 | J22: 0.03802589028 | K22: 0.04224479441 | L22: 0.04683631564 | M22: 0.05182070937 | N22: 0.05721701753 | O22: 0.06304243394 | P22: 0.06931155838 | Q22: 0.07603553582 | R22: 0.08322108213 | S22: 0.09086940372 | T22: 0.09897502706 | U22: 0.1075245637 | V22: 0.1164954484 | W22: 0.1258547015 | X22: 0.1355577797 | Y22: 0.1455475953 | Z22: 0.1557537926 | AA22: 0.1660923819 | AB22: 0.1764658334 | AC22: 0.1867637259 | AD22: 0.1968640344 | AE22: 0.2066351123 | AF22: 0.2159383845 | AG22: 0.2246317253 | AH22: 0.2325734305 | AI22: 0.2396266437 | AJ22: 0.2456640309 | AK22: 0.2505724594 | AL22: 0.2542574029 | AM22: 0.2566467895 | AN22: 0.2576940323 | AO22: 0.2573800233 | AP22: 0.2557139475 | AQ22: 0.2527328553 | AR22: 0.2485000263 | AS22: 0.2431022461 | AT22: 0.2366461925 | AU22: 0.229254183 | AV22: 0.2210595624 | AW22: 0.2122020102 | AX22: 0.2028230272 | AY22: 0.1930618156 | AZ22: 0.1830517162 | BA22: 0.172917305 | BB22: 0.1627721958 | BC22: 0.1527175437 | BD22: 0.1428412049 | BE22: 0.133217476 | BF22: 0.1239073214 | BG22: 0.1149589879 | BH22: 0.1064089049 | BI22: 0.09828277945 | BJ22: 0.09059680213 | BK22: 0.08335889624 | BL22: 0.07656995514 | BM22: 0.07022502679 | BN22: 0.06431441618 | BO22: 0.0588246876 | BP22: 0.05373955663 | BQ22: 0.04904066921 | BR22: 0.04470826971 | BS22: 0.04072176393 | BT22: 0.03706018499 | BU22: 0.03370257178 | BV22: 0.03062826981 | BW22: 0.02781716461 | BX22: 0.0252498574 | BY22: 0.02290779175 | BZ22: 0.02077333983 | CA22: 0.0188298551 | CB22: 0.01706169818 | CC22: 0.01545424129 | CD22: 0.0139938559 | CE22: 0.01266788784 | CF22: 0.01146462279 | CG22: 0.01037324531 | CH22: 0.009383793218 | CI22: 0.00848710944 | CJ22: 0.007674792517 | CK22: 0.006939146977 | CL22: 0.006273134391 | CM22: 0.005670325742 | CN22: 0.005124855571 | CO22: 0.004631378215 | CP22: 0.00418502634 | CQ22: 0.003781371896 | CR22: 0.003416389531 | CS22: 0.003086422468 | CT22: 0.002788150792 | CU22: 0.002518562081 | CV22: 0.002274924282 | CW22: 0.002054760721 | CX22: 0.001855827135 | CY22: 0.001676090595 | CZ22: 0.001513710207 | DA22: 0.001367019461 | DB22: 0.00123451011 | DC22: 0.001114817466 | DD22: 0.001006706998 | DE22: 0.0009090621404 | DF22: 0.0008208731901 | DG22: 0.0007412272279 | DH22: 0.0006692989559 | DI22: 0.0006043423843 | DJ22: 0.0005456832874 | DK22: 0.0004927123638 | DL22: 0.0004448790361 | DM22: 0.0004016858334 | DN22: 0.000362683303 | DO22: 0.0003274654039 | DP22: 0.0002956653363 | DQ22: 0.0002669517678 | DR22: 0.0002410254194 | DS22: 0.0002176159768 | DT22: 0.000196479297 | DU22: 0.0001773948832 | DV22: 0.0001601636009 | DW22: 0.0001446056139 | DX22: 0.0001305585184 | DY22: 0.0001178756568
A23: 21 | B23: 1.344661415 | C23: -2.87987988 | D23: 0.2713969588 | E23: 2 | F23: 5 | I23: 8.911517073e-06 | J23: 1.4060451e-05 | K23: 2.217775051e-05 | L23: 3.4968208e-05 | M23: 5.51093853e-05 | N23: 8.680051915e-05 | O23: 0.000136615175 | P23: 0.0002148199559 | Q23: 0.0003374027442 | R23: 0.000529170385 | S23: 0.0008284375245 | T23: 0.001294043088 | U23: 0.00201569628 | V23: 0.003128943008 | W23: 0.004836278651 | X23: 0.007435944979 | Y23: 0.01135942369 | Z23: 0.01721706872 | AA23: 0.02584800842 | AB23: 0.03836467412 | AC23: 0.05617378727 | AD23: 0.08094539293 | AE23: 0.1144930981 | AF23: 0.1585289227 | AG23: 0.2142743843 | AH23: 0.281953093 | AI23: 0.360257128 | AJ23: 0.4459501757 | AK23: 0.533806718 | AL23: 0.6170456483 | AM23: 0.6882796248 | AN23: 0.7408021934 | AO23: 0.7698626661 | AP23: 0.7735361349 | AQ23: 0.7529268284 | AR23: 0.7116897822 | AS23: 0.6550905438 | AT23: 0.5889338182 | AU23: 0.5186532727 | AV23: 0.448722984 | AW23: 0.3824100018 | AX23: 0.321794076 | AY23: 0.2679476366 | AZ23: 0.2211798698 | BA23: 0.1812787309 | BB23: 0.1477156938 | BC23: 0.119801232 | BD23: 0.09679286909 | BE23: 0.07796400905 | BF23: 0.06264337528 | BG23: 0.05023404413 | BH23: 0.04021926407 | BI23: 0.03216034438 | BJ23: 0.02569025128 | BK23: 0.02050527819 | BL23: 0.01635624116 | BM23: 0.01304002803 | BN23: 0.01039192412 | BO23: 0.008278886636 | BP23: 0.006593791706 | BQ23: 0.005250598179 | BR23: 0.004180333243 | BS23: 0.003327791844 | BT23: 0.002648842489 | BU23: 0.002108240178 | BV23: 0.001677858616 | BW23: 0.001335266088 | BX23: 0.001062581173 | BY23: 0.0008455551969 | BZ23: 0.0006728376893 | CA23: 0.0005353890791 | CB23: 0.0004260116003 | CC23: 0.0003389749058 | CD23: 0.0002697174611 | CE23: 0.0002146084951 | CF23: 0.0001707583058 | CG23: 0.000135867143 | CH23: 0.0001081048558 | CI23: 8.601505872e-05 | CJ23: 6.843883513e-05 | CK23: 5.445400126e-05 | CL23: 4.332676312e-05 | CM23: 3.447324003e-05 | CN23: 2.742884327e-05 | CO23: 2.182390737e-05 | CP23: 1.736429797e-05 | CQ23: 1.381598056e-05 | CR23: 1.099274135e-05 | CS23: 8.746416534e-06 | CT23: 6.959117729e-06 | CU23: 5.53704581e-06 | CV23: 4.405568662e-06 | CW23: 3.505304675e-06 | CX23: 2.789006473e-06 | CY23: 2.219081405e-06 | CZ23: 1.765618685e-06 | DA23: 1.404819653e-06 | DB23: 1.117748802e-06 | DC23: 8.893400213e-07 | DD23: 7.076059051e-07 | DE23: 5.630086272e-07 | DF23: 4.4795939e-07 | DG23: 3.564201363e-07 | DH23: 2.835866718e-07 | DI23: 2.256365215e-07 | DJ23: 1.79528322e-07 | DK23: 1.428422048e-07 | DL23: 1.136527945e-07 | DM23: 9.042815944e-08 | DN23: 7.194941343e-08 | DO23: 5.724674796e-08 | DP23: 4.554853199e-08 | DQ23: 3.624081574e-08 | DR23: 2.883510386e-08 | DS23: 2.29427294e-08 | DT23: 1.825444562e-08 | DU23: 1.452419942e-08 | DV23: 1.155621973e-08 | DW23: 9.194737388e-09 | DX23: 7.315817932e-09 | DY23: 5.820851221e-09
A24: 22 | B24: 0.9041585326 | C24: -2.873873874 | D24: 0.1027860761 | E24: 1 | F24: 9 | I24: 0.001259924282 | J24: 0.001688066796 | K24: 0.002256541541 | L24: 0.003008620535 | M24: 0.003999528286 | N24: 0.005299061697 | O24: 0.006994461177 | P24: 0.009193396249 | Q24: 0.01202683981 | R24: 0.01565149739 | S24: 0.02025133901 | T24: 0.02603766491 | U24: 0.03324704367 | V24: 0.04213641527 | W24: 0.05297468076 | X24: 0.06603022522 | Y24: 0.08155405899 | Z24: 0.09975861822 | AA24: 0.1207927389 | AB24: 0.1447138971 | AC24: 0.1714594775 | AD24: 0.200819555 | AE24: 0.2324143922 | AF24: 0.2656804348 | AG24: 0.2998688558 | AH24: 0.3340603988 | AI24: 0.3671991711 | AJ24: 0.3981459911 | AK24: 0.4257489917 | AL24: 0.4489258154 | AM24: 0.4667486325 | AN24: 0.4785212406 | AO24: 0.4838374502 | AP24: 0.4826121534 | AQ24: 0.4750806325 | AR24: 0.4617668455 | AS24: 0.4434263876 | AT24: 0.420973363 | AU24: 0.3954018275 | AV24: 0.3677117092 | AW24: 0.3388467264 | AX24: 0.3096486254 | AY24: 0.2808289011 | AZ24: 0.2529566409 | BA24: 0.2264595296 | BB24: 0.2016343672 | BC24: 0.1786634949 | BD24: 0.1576340282 | BE24: 0.1385575231 | BF24: 0.1213884485 | BG24: 0.1060405072 | BH24: 0.09240036738 | BI24: 0.08033873614 | BJ24: 0.06971894601 | BK24: 0.06040335163 | BL24: 0.05225788773 | BM24: 0.04515514122 | BN24: 0.03897626202 | BO24: 0.03361199534 | BP24: 0.02896307016 | BQ24: 0.02494013319 | BR24: 0.02146337607 | BS24: 0.01846196824 | BT24: 0.01587337873 | BU24: 0.01364264727 | BV24: 0.01172164663 | BW24: 0.01006836462 | BX24: 0.008646223823 | BY24: 0.007423449678 | BZ24: 0.006372492128 | CA24: 0.005469502447 | CB24: 0.004693864272 | CC24: 0.004027776318 | CD24: 0.003455883305 | CE24: 0.002964951128 | CF24: 0.002543582118 | CG24: 0.002181966311 | CH24: 0.001871664751 | CI24: 0.001605421189 | CJ24: 0.001376998747 | CK24: 0.001181038497 | CL24: 0.001012937191 | CM24: 0.0008687416609 | CN24: 0.0007450577215 | CO24: 0.0006389716535 | CP24: 0.0005479825731 | CQ24: 0.0004699442213 | CR24: 0.0004030148853 | CS24: 0.0003456143372 | CT24: 0.0002963868208 | CU24: 0.0002541692478 | CV24: 0.0002179638784 | CW24: 0.0001869148589 | CX24: 0.0001602880779 | CY24: 0.0001374538727 | CZ24: 0.000117872186 | DA24: 0.0001010798277 | DB24: 8.66795439e-05 | DC24: 7.433063754e-05 | DD24: 6.374092184e-05 | DE24: 5.465981687e-05 | DF24: 4.687242762e-05 | DG24: 4.01944642e-05 | DH24: 3.446788463e-05 | DI24: 2.955715751e-05 | DJ24: 2.534605657e-05 | DK24: 2.173491145e-05 | DL24: 1.863824983e-05 | DM24: 1.598277525e-05 | DN24: 1.370563283e-05 | DO24: 1.1752922e-05 | DP24: 1.007842098e-05 | DQ24: 8.642492933e-06 | DR24: 7.411147948e-06 | DS24: 6.355238561e-06 | DT24: 5.449769917e-06 | DU24: 4.673308179e-06 | DV24: 4.007473209e-06 | DW24: 3.436503521e-06 | DX24: 2.946883206e-06 | DY24: 2.527022007e-06
A25: 23 | B25: 1.146276653 | C25: -2.867867868 | D25: 0.01473816633 | E25: 1 | F25: 11 | I25: 0.00109622217 | J25: 0.001572564021 | K25: 0.002244194187 | L25: 0.003183743352 | M25: 0.004486535778 | N25: 0.006275467775 | O25: 0.008705983882 | P25: 0.01197080415 | Q25: 0.01630403963 | R25: 0.02198438794 | S25: 0.02933720854 | T25: 0.03873537624 | U25: 0.05059881041 | V25: 0.06539238288 | W25: 0.08362147138 | X25: 0.1058237649 | Y25: 0.1325551345 | Z25: 0.1643666087 | AA25: 0.2017689437 | AB25: 0.2451812211 | AC25: 0.2948607093 | AD25: 0.3508133425 | AE25: 0.4126880893 | AF25: 0.4796644962 | AG25: 0.5503505199 | AH25: 0.6227160577 | AI25: 0.6940935248 | AJ25: 0.7612762852 | AK25: 0.8207344996 | AL25: 0.8689441422 | AM25: 0.9027919122 | AN25: 0.9199863998 | AO25: 0.9193880999 | AP25: 0.9011792075 | AQ25: 0.8668301017 | AR25: 0.818871599 | AS25: 0.7605306669 | AT25: 0.6953144821 | AU25: 0.626626411 | AV25: 0.5574733193 | AW25: 0.4902897774 | AX25: 0.4268742569 | AY25: 0.3684129486 | AZ25: 0.3155596449 | BA25: 0.2685422323 | BB25: 0.2272733647 | BC25: 0.191451106 | BD25: 0.1606424649 | BE25: 0.1343478939 | BF25: 0.1120479507 | BG25: 0.09323487161 | BH25: 0.07743226543 | BI25: 0.06420599036 | BJ25: 0.0531688191 | BK25: 0.04398096232 | BL25: 0.03634800398 | BM25: 0.03001736392 | BN25: 0.02477405449 | BO25: 0.0204362356 | BP25: 0.01685088201 | BQ25: 0.01388974409 | BR25: 0.01144569328 | BS25: 0.009429485359 | BT25: 0.007766938546 | BU25: 0.006396502158 | BV25: 0.005267181037 | BW25: 0.00433677624 | BX25: 0.003570402252 | BY25: 0.00293924286 | BZ25: 0.002419511052 | CA25: 0.001991582004 | CB25: 0.001639272047 | CC25: 0.001349240191 | CD25: 0.001110492129 | CE25: 0.0009139697186 | CF25: 0.0007522115312 | CG25: 0.0006190724324 | CH25: 0.0005094920692 | CI25: 0.000419303852 | CJ25: 0.0003450774186 | CK25: 0.0002839887622 | CL25: 0.0002337131985 | CM25: 0.0001923371786 | CN25: 0.0001582856447 | CO25: 0.0001302621997 | CP25: 0.0001071998372 | CQ25: 8.822037277e-05 | CR25: 7.260104392e-05 | CS25: 5.974701266e-05 | CT25: 4.916873027e-05 | CU25: 4.046330504e-05 | CV25: 3.329916568e-05 | CW25: 2.740343817e-05 | CX25: 2.255155605e-05 | CY25: 1.855870938e-05 | CZ25: 1.527280698e-05 | DA25: 1.256868435e-05 | DB25: 1.034333673e-05 | DC25: 8.511996092e-06 | DD25: 7.004902451e-06 | DE25: 5.764646832e-06 | DF25: 4.743984573e-06 | DG25: 3.904035771e-06 | DH25: 3.212804309e-06 | DI25: 2.643959086e-06 | DJ25: 2.175831018e-06 | DK25: 1.79058762e-06 | DL25: 1.473553727e-06 | DM25: 1.212652483e-06 | DN25: 9.97945293e-07 | DO25: 8.212532464e-07 | DP25: 6.758455474e-07 | DQ25: 5.561831261e-07 | DR25: 4.57707633e-07 | DS25: 3.766678019e-07 | DT25: 3.099765478e-07 | DU25: 2.550933716e-07 | DV25: 2.099275841e-07 | DW25: 1.727586655e-07 | DX25: 1.421707226e-07 | DY25: 1.169985557e-07
A26: 24 | B26: 0.508820951 | C26: -2.861861862 | D26: 0.006978571415 | E26: 1 | F26: 8 | I26: 0.03916460892 | J26: 0.04256395305 | K26: 0.04618708071 | L26: 0.05003985523 | M26: 0.05412677765 | N26: 0.05845067705 | O26: 0.06301237307 | P26: 0.06781031441 | Q26: 0.07284019868 | R26: 0.07809458116 | S26: 0.0835624826 | T26: 0.08922900869 | U26: 0.0950749965 | V26: 0.1010767058 | W26: 0.1072055754 | X26: 0.1134280667 | Y26: 0.1197056161 | Z26: 0.1259947212 | AA26: 0.1322471782 | AB26: 0.1384104916 | AC26: 0.1444284659 | AD26: 0.1502419858 | AE26: 0.1557899813 | AF26: 0.1610105636 | AG26: 0.165842308 | AH26: 0.1702256457 | AI26: 0.1741043212 | AJ26: 0.1774268569 | AK26: 0.1801479663 | AL26: 0.1822298509 | AM26: 0.1836433189 | AN26: 0.1843686709 | AO26: 0.1843963051 | AP26: 0.1837270119 | AQ26: 0.1823719407 | AR26: 0.1803522423 | AS26: 0.1776984044 | AT26: 0.1744493173 | AU26: 0.1706511163 | AV26: 0.1663558591 | AW26: 0.1616201013 | AX26: 0.1565034318 | AY26: 0.151067029 | AZ26: 0.1453722916 | BA26: 0.139479587 | BB26: 0.1334471518 | BC26: 0.1273301663 | BD26: 0.1211800143 | BE26: 0.1150437304 | BF26: 0.1089636266 | BG26: 0.1029770861 | BH26: 0.09711650474 | BI26: 0.09140936044 | BJ26: 0.08587838601 | BK26: 0.08054182461 | BL26: 0.07541374552 | BM26: 0.07050440076 | BN26: 0.06582060543 | BO26: 0.06136612702 | BP26: 0.05714207171 | BQ26: 0.05314725824 | BR26: 0.0493785722 | BS26: 0.04583129584 | BT26: 0.0424994102 | BU26: 0.03937586778 | BV26: 0.03645283554 | BW26: 0.03372190842 | BX26: 0.03117429478 | BY26: 0.02880097537 | BZ26: 0.02659283777 | CA26: 0.0245407886 | CB26: 0.02263584566 | CC26: 0.02086921231 | CD26: 0.01923233613 | CE26: 0.01771695408 | CF26: 0.01631512596 | CG26: 0.01501925787 | CH26: 0.01382211732 | CI26: 0.01271684133 | CJ26: 0.01169693884 | CK26: 0.01075628832 | CL26: 0.009889131788 | CM26: 0.009090065789 | CN26: 0.008354030194 | CO26: 0.0076762953 | CP26: 0.007052447768 | CQ26: 0.006478375786 | CR26: 0.00595025379 | CS26: 0.005464527026 | CT26: 0.005017896145 | CU26: 0.004607302038 | CV26: 0.004229911015 | CW26: 0.00388310045 | CX26: 0.003564444956 | CY26: 0.003271703148 | CZ26: 0.003002805032 | DA26: 0.002755840025 | DB26: 0.002529045639 | DC26: 0.002320796799 | DD26: 0.002129595806 | DE26: 0.001954062922 | DF26: 0.001792927558 | DG26: 0.001645020042 | DH26: 0.001509263941 | DI26: 0.001384668915 | DJ26: 0.001270324071 | DK26: 0.001165391792 | DL26: 0.001069102012 | DM26: 0.0009807469106 | DN26: 0.0008996760028 | DO26: 0.0008252915959 | DP26: 0.0007570445897 | DQ26: 0.0006944305978 | DR26: 0.000636986367 | DS26: 0.000584286473 | DT26: 0.0005359402748 | DU26: 0.0004915891061 | DV26: 0.0004509036886 | DW26: 0.0004135817492 | DX26: 0.0003793458268 | DY26: 0.0003479412538
A27: 25 | B27: 0.7040106654 | C27: -2.855855856 | D27: 0.1322599769 | E27: 1 | F27: 9 | I27: 0.00411509221 | J27: 0.005101111416 | K27: 0.006306416675 | L27: 0.007773675521 | M27: 0.009551769207 | N27: 0.01169600777 | O27: 0.01426810346 | P27: 0.01733581781 | Q27: 0.02097219146 | R27: 0.02525426513 | S27: 0.03026120771 | T27: 0.03607178465 | U27: 0.04276112807 | V27: 0.05039681075 | W27: 0.0590342782 | X27: 0.06871175601 | Y27: 0.07944482062 | Z27: 0.09122089725 | AA27: 0.1039940237 | AB27: 0.117680286 | AC27: 0.1321543837 | AD27: 0.1472478062 | AE27: 0.162749087 | AF27: 0.1784065384 | AG27: 0.19393374 | AH27: 0.2090178677 | AI27: 0.2233307022 | AJ27: 0.2365418687 | AK27: 0.248333572 | AL27: 0.258415832 | AM27: 0.2665410577 | AN27: 0.2725167455 | AO27: 0.2762151893 | AP27: 0.2775793413 | AQ27: 0.2766243259 | AR27: 0.2734345537 | AS27: 0.2681568194 | AT27: 0.2609901469 | AU27: 0.2521734051 | AV27: 0.2419718374 | AW27: 0.2306636138 | AX27: 0.2185273699 | AY27: 0.2058314549 | AZ27: 0.1928253441 | BA27: 0.1797334025 | BB27: 0.1667509558 | BC27: 0.1540424515 | BD27: 0.1417413816 | BE27: 0.1299515848 | BF27: 0.1187495409 | BG27: 0.1081872996 | BH27: 0.0982957386 | BI27: 0.08908790396 | BJ27: 0.08056225017 | BK27: 0.07270565356 | BL27: 0.06549612118 | BM27: 0.05890515661 | BN27: 0.05289977363 | BO27: 0.04744416948 | BP27: 0.04250108284 | BQ27: 0.03803286942 | BR27: 0.03400233153 | BS27: 0.0303733381 | BT27: 0.0271112701 | BU27: 0.02418332311 | BV27: 0.02155869545 | BW27: 0.01920868618 | BX27: 0.01710672376 | BY27: 0.01522834266 | BZ27: 0.01355112193 | CA27: 0.01205459714 | CB27: 0.01072015474 | CC27: 0.009530915795 | CD27: 0.008471614652 | CE27: 0.007528476379 | CF27: 0.006689096146 | CG27: 0.005942322585 | CH27: 0.005278146593 | CI27: 0.004687596497 | CJ27: 0.004162640116 | CK27: 0.003696093924 | CL27: 0.003281539331 | CM27: 0.002913245913 | CN27: 0.002586101309 | CO27: 0.002295547469 | CP27: 0.002037522833 | CQ27: 0.001808410052 | CR27: 0.001604988822 | CS27: 0.001424393418 | CT27: 0.001264074531 | CU27: 0.001121765024 | CV27: 0.0009954492435 | CW27: 0.0008833355497 | CX27: 0.0007838317614 | CY27: 0.0006955232142 | CZ27: 0.0006171531784 | DA27: 0.0005476053916 | DB27: 0.0004858884878 | DC27: 0.0004311221252 | DD27: 0.0003825246326 | DE27: 0.0003394020137 | DF27: 0.0003011381625 | DG27: 0.0002671861609 | DH27: 0.0002370605396 | DI27: 0.0002103303984 | DJ27: 0.0001866132915 | DK27: 0.0001655697937 | DL27: 0.0001468986731 | DM27: 0.000130332603 | DN27: 0.0001156343523 | DO27: 0.0001025934041 | DP27: 9.102295107e-05 | DQ27: 8.07572294e-05 | DR27: 7.164915074e-05 | DS27: 6.356820053e-05 | DT27: 5.639857217e-05 | DU27: 5.003751094e-05 | DV27: 4.439384408e-05 | DW27: 3.938667616e-05 | DX27: 3.49442313e-05 | DY27: 3.100282559e-05
A28: 26 | B28: 0.6716040969 | C28: -2.84984985 | D28: 0.238549912 | E28: 3 | F28: 5 | I28: 0.002657475222 | J28: 0.003276864937 | K28: 0.004032249877 | L28: 0.004950477031 | M28: 0.006062642265 | N28: 0.007404403292 | O28: 0.009016184797 | P28: 0.01094322047 | Q28: 0.01323536653 | R28: 0.01594661283 | S28: 0.01913421322 | T28: 0.02285735781 | U28: 0.02717531952 | V28: 0.03214502775 | W28: 0.03781805473 | X28: 0.04423704705 | Y28: 0.05143169414 | Z28: 0.05941439554 | AA28: 0.06817586346 | AB28: 0.07768096979 | AC28: 0.08786520654 | AD28: 0.09863216511 | AE28: 0.1098524411 | AF28: 0.1213643279 | AG28: 0.1329765692 | AH28: 0.1444732962 | AI28: 0.1556210894 | AJ28: 0.1661778938 | AK28: 0.1759033014 | AL28: 0.1845695288 | AM28: 0.1919722881 | AN28: 0.1979407003 | AO28: 0.2023454506 | AP28: 0.2051045282 | AQ28: 0.2061861185 | AR28: 0.2056084932 | AS28: 0.203437027 | AT28: 0.1997787337 | AU28: 0.194774907 | AV28: 0.1885925697 | AW28: 0.1814154582 | AX28: 0.1734352163 | AY28: 0.164843353 | AZ28: 0.1558243671 | BA28: 0.146550277 | BB28: 0.1371766382 | BC28: 0.1278400011 | BD28: 0.1186566696 | BE28: 0.1097225561 | BF28: 0.1011139037 | BG28: 0.09288864376 | BH28: 0.08508817327 | BI28: 0.07773936724 | BJ28: 0.07085667394 | BK28: 0.06444417784 | BL28: 0.05849754756 | BM28: 0.0530058152 | BN28: 0.04795295694 | BO28: 0.04331926326 | BP28: 0.03908250063 | BQ28: 0.03521887556 | BR28: 0.03170381795 | BS28: 0.02851260353 | BT28: 0.0256208364 | BU28: 0.02300481237 | BV28: 0.02064178255 | BW28: 0.01851013502 | BX28: 0.01658951014 | BY28: 0.01486086333 | BZ28: 0.01330648684 | CA28: 0.01191000024 | CB28: 0.01065631773 | CC28: 0.009531598831 | CD28: 0.008523187622 | CE28: 0.007619544783 | CF28: 0.006810175644 | CG28: 0.006085556746 | CH28: 0.00543706276 | CI28: 0.004856895168 | CJ28: 0.004338013643 | CK28: 0.00387407081 | CL28: 0.00345935078 | CM28: 0.003088711694 | CN28: 0.002757532348 | CO28: 0.002461662868 | CP28: 0.00219737935 | CQ28: 0.001961342291 | CR28: 0.001750558619 | CS28: 0.001562347127 | CT28: 0.00139430706 | CU28: 0.001244289649 | CV28: 0.00111037235 | CW28: 0.0009908355738 | CX28: 0.0008841416975 | CY28: 0.0007889161577 | CZ28: 0.000703930434 | DA28: 0.0006280867525 | DB28: 0.0005604043463 | DC28: 0.0005000071238 | DD28: 0.0004461126075 | DE28: 0.0003980220195 | DF28: 0.0003551113985 | DG28: 0.0003168236457 | DH28: 0.0002826614038 | DI28: 0.0002521806865 | DJ28: 0.0002249851792 | DK28: 0.0002007211432 | DL28: 0.0001790728591 | DM28: 0.0001597585553 | DN28: 0.0001425267688 | DO28: 0.0001271530941 | DP28: 0.0001134372789 | DQ28: 0.0001012006305 | DR28: 9.028369865e-05 | DS28: 8.054420751e-05 | DT28: 7.185520844e-05 | DU28: 6.410343115e-05 | DV28: 5.718781173e-05 | DW28: 5.101817872e-05 | DX28: 4.551408023e-05 | DY28: 4.060373726e-05
A29: 27 | B29: 0.7820236087 | C29: -2.843843844 | D29: 0.0862182498 | E29: 3 | F29: 10 | I29: 0.003508860753 | J29: 0.004464006815 | K29: 0.005661918548 | L29: 0.007157342689 | M29: 0.009014723009 | N29: 0.01130896575 | O29: 0.01412591804 | P29: 0.01756242059 | Q29: 0.02172577929 | R29: 0.02673249238 | S29: 0.03270607314 | T29: 0.03977382561 | U29: 0.04806246364 | V29: 0.05769251295 | W29: 0.06877150081 | X29: 0.08138601931 | Y29: 0.09559284663 | Z29: 0.1114094272 | AA29: 0.1288041476 | AB29: 0.1476869983 | AC29: 0.167901375 | AD29: 0.1892179276 | AE29: 0.2113314805 | AF29: 0.2338620848 | AG29: 0.2563611689 | AH29: 0.2783234859 | AI29: 0.2992050924 | AJ29: 0.3184469376 | AK29: 0.3355028671 | AL29: 0.3498700512 | AM29: 0.3611192048 | AN29: 0.3689216135 | AO29: 0.3730700624 | AP29: 0.373491307 | AQ29: 0.3702486847 | AR29: 0.3635346761 | AS29: 0.3536544576 | AT29: 0.3410025304 | AU29: 0.3260351627 | AV29: 0.3092415859 | AW29: 0.2911166392 | AX29: 0.2721369877 | AY29: 0.2527422828 | AZ29: 0.2333218591 | BA29: 0.2142068827 | BB29: 0.1956673608 | BC29: 0.1779131188 | BD29: 0.1610977248 | BE29: 0.1453243645 | BF29: 0.1306527863 | BG29: 0.1171066033 | BH29: 0.1046804231 | BI29: 0.09334644639 | BJ29: 0.08306032292 | BK29: 0.07376616774 | BL29: 0.06540072572 | BM29: 0.05789672808 | BN29: 0.05118551867 | BO29: 0.04519904483 | BP29: 0.03987131154 | BQ29: 0.03513939482 | BR29: 0.03094410155 | BS29: 0.02723035242 | BT29: 0.02394735354 | BU29: 0.02104861072 | BV29: 0.01849183062 | BW29: 0.01623874363 | BX29: 0.01425487593 | BY29: 0.01250929154 | BZ29: 0.01097432005 | CA29: 0.009625281517 | CB29: 0.008440216631 | CC29: 0.007399627692 | CD29: 0.006486234043 | CE29: 0.005684744032 | CF29: 0.004981644526 | CG29: 0.004365008202 | CH29: 0.003824318302 | CI29: 0.003350310135 | CJ29: 0.002934828392 | CK29: 0.002570699197 | CL29: 0.002251615758 | CM29: 0.001972036431 | CN29: 0.001727094108 | CO29: 0.001512515796 | CP29: 0.001324551394 | CQ29: 0.0011599107 | CR29: 0.001015707775 | CS29: 0.0008894118512 | CT29: 0.0007788040742 | CU29: 0.0006819394007 | CV29: 0.0005971130741 | CW29: 0.0005228311415 | CX29: 0.0004577845412 | CY29: 0.0004008263394 | CZ29: 0.0003509517414 | DA29: 0.000307280546 | DB29: 0.0002690417497 | DC29: 0.0002355600403 | DD29: 0.0002062439521 | DE29: 0.0001805754793 | DF29: 0.000158100971 | DG29: 0.0001384231501 | DH29: 0.0001211941187 | DI29: 0.0001061092288 | DJ29: 9.290171204e-05 | DK29: 8.133797471e-05 | DL29: 7.121347585e-05 | DM29: 6.234911679e-05 | DN29: 5.458807868e-05 | DO29: 4.779305254e-05 | DP29: 4.184381335e-05 | DQ29: 3.663509542e-05 | DR29: 3.207473184e-05 | DS29: 2.808202507e-05 | DT29: 2.458632015e-05 | DU29: 2.152575525e-05 | DV29: 1.884616764e-05 | DW29: 1.650013565e-05 | DX29: 1.444613987e-05 | DY29: 1.264782864e-05
A30: 28 | B30: 1.289480627 | C30: -2.837837838 | D30: 0.1402247071 | E30: 3 | F30: 9 | I30: 2.783022274e-05 | J30: 4.305054633e-05 | K30: 6.655970096e-05 | L30: 0.000102839404 | M30: 0.0001587650906 | N30: 0.0002448576223 | O30: 0.0003771654324 | P30: 0.0005800731878 | Q30: 0.0008904532184 | R30: 0.001363728279 | S30: 0.002082591865 | T30: 0.003169310204 | U30: 0.004802649781 | V30: 0.007240423918 | W30: 0.01084824489 | X30: 0.01613403407 | Y30: 0.02378585581 | Z30: 0.03470742423 | AA30: 0.05004116802 | AB30: 0.07116358553 | AC30: 0.09963321578 | AD30: 0.1370702928 | AE30: 0.1849519906 | AF30: 0.2443206347 | AG30: 0.3154251569 | AH30: 0.3973462899 | AI30: 0.4876876446 | AJ30: 0.582437617 | AK30: 0.6761066926 | AL30: 0.7622062971 | AM30: 0.8340526445 | AN30: 0.8857671106 | AO30: 0.9132454011 | AP30: 0.9148356939 | AQ30: 0.8915343368 | AR30: 0.8466582228 | AS30: 0.7851183164 | AT30: 0.7125230937 | AU30: 0.6343467225 | AV30: 0.5553224569 | AW30: 0.4791176225 | AX30: 0.408260333 | AY30: 0.344242403 | AZ30: 0.2877155688 | BA30: 0.2387142231 | BB30: 0.1968618952 | BC30: 0.1615405431 | BD30: 0.1320171902 | BE30: 0.1075313297 | BF30: 0.08735039901 | BG30: 0.07080138884 | BH30: 0.05728580236 | BI30: 0.04628373268 | BJ30: 0.03735132801 | BK30: 0.03011462345 | BL30: 0.02426170951 | BM30: 0.01953447112 | BN30: 0.01572061936 | BO30: 0.01264639847 | BP30: 0.01017013476 | BQ30: 0.008176663055 | BR30: 0.00657259246 | BS30: 0.005282335004 | BT30: 0.004244805784 | BU30: 0.003410700804 | BV30: 0.002740263937 | BW30: 0.002201463144 | BX30: 0.001768506029 | BY30: 0.001420634878 | BZ30: 0.001141150645 | CA30: 0.0009166237382 | CB30: 0.000736256718 | CC30: 0.0005913702179 | CD30: 0.0004749886243 | CE30: 0.0003815063864 | CF30: 0.0003064194123 | CG30: 0.0002461089525 | CH30: 0.0001976677767 | CI30: 0.0001587604047 | CJ30: 0.0001275107482 | CK30: 0.0001024118017 | CL30: 8.225306832e-05 | CM30: 6.60622431e-05 | CN30: 5.305835815e-05 | CO30: 4.26141394e-05 | CP30: 3.422576585e-05 | CQ30: 2.748857686e-05 | CR30: 2.207755823e-05 | CS30: 1.773166763e-05 | CT30: 1.424124418e-05 | CU30: 1.143789562e-05 | CV30: 9.18637566e-06 | CW30: 7.378059844e-06 | CX30: 5.925705526e-06 | CY30: 4.759243151e-06 | CZ30: 3.822395928e-06 | DA30: 3.069964861e-06 | DB30: 2.465648171e-06 | DC30: 1.980289938e-06 | DD30: 1.590473487e-06 | DE30: 1.277391641e-06 | DF30: 1.02593936e-06 | DG30: 8.239849947e-07 | DH30: 6.61784978e-07 | DI30: 5.315137447e-07 | DJ30: 4.268861736e-07 | DK30: 3.428543568e-07 | DL30: 2.753640586e-07 | DM30: 2.211591093e-07 | DN30: 1.776243107e-07 | DO30: 1.426592644e-07 | DP30: 1.145770278e-07 | DQ30: 9.202273217e-08 | DR30: 7.390821085e-08 | DS30: 5.935950329e-08 | DT30: 4.767468472e-08 | DU30: 3.82900031e-08 | DV30: 3.075267945e-08 | DW30: 2.469906624e-08 | DX30: 1.983709617e-08 | DY30: 1.593219712e-08
A31: 29 | B31: 1.035100639 | C31: -2.831831832 | D31: 0.03730634451 | E31: 1 | F31: 12 | I31: 0.001034942854 | J31: 0.001443733295 | K31: 0.002007422948 | L31: 0.002780751243 | M31: 0.003835545361 | N31: 0.005264854997 | O31: 0.007187500577 | P31: 0.009752797075 | Q31: 0.01314508595 | R31: 0.0175875783 | S31: 0.02334490598 | T31: 0.03072371564 | U31: 0.04007063365 | V31: 0.05176696554 | W31: 0.0662195386 | X31: 0.08384710474 | Y31: 0.1050616644 | Z31: 0.1302439687 | AA31: 0.1597123964 | AB31: 0.1936845514 | AC31: 0.2322314988 | AD31: 0.2752257729 | AE31: 0.3222862873 | AF31: 0.3727260046 | AG31: 0.4255113438 | AH31: 0.4792450544 | AI31: 0.5321855172 | AJ31: 0.5823137553 | AK31: 0.6274537643 | AL31: 0.6654419333 | AM31: 0.6943288645 | AN31: 0.7125850842 | AO31: 0.7192752972 | AP31: 0.7141675734 | AQ31: 0.6977551277 | AR31: 0.6711864848 | AS31: 0.6361192313 | AT31: 0.5945271461 | AU31: 0.5484962364 | AV31: 0.5000416322 | AW31: 0.450967143 | AX31: 0.4027767678 | AY31: 0.3566363935 | AZ31: 0.3133765223 | BA31: 0.2735235997 | BB31: 0.2373475878 | BC31: 0.2049155395 | BD31: 0.176143864 | BE31: 0.1508448386 | BF31: 0.1287652626 | BG31: 0.1096168003 | BH31: 0.09309858478 | BI31: 0.07891317059 | BJ31: 0.06677710176 | BK31: 0.05642732675 | BL31: 0.04762454491 | BM31: 0.04015438169 | BN31: 0.03382709838 | BO31: 0.02847637084 | BP31: 0.02395752718 | BQ31: 0.02014551981 | BR31: 0.01693281882 | BS31: 0.01422734836 | BT31: 0.01195054014 | BU31: 0.01003554495 | BV31: 0.008425620518 | BW31: 0.00707269905 | BX31: 0.005936128345 | BY31: 0.004981575086 | BZ31: 0.004180075942 | CA31: 0.003507221079 | CB31: 0.002942454757 | CC31: 0.002468478393 | CD31: 0.002070742607 | CE31: 0.001737016033 | CF31: 0.001457020052 | CG31: 0.001222119866 | CH31: 0.001025063613 | CI31: 0.0008597622762 | CJ31: 0.0007211042104 | CK31: 0.0006047989552 | CL31: 0.0005072458005 | CM31: 0.0004254232432 | CN31: 0.0003567960583 | CO31: 0.0002992372079 | CP31: 0.0002509622403 | CQ31: 0.0002104741957 | CR31: 0.0001765173486 | CS31: 0.0001480383738 | CT31: 0.0001241537529 | CU31: 0.0001041224201 | CV31: 8.732280877e-05 | CW31: 7.323359172e-05 | CX31: 6.141752308e-05 | CY31: 5.150788234e-05 | CZ31: 4.319710257e-05 | DA31: 3.622723116e-05 | DB31: 3.03819282e-05 | DC31: 2.547975477e-05 | DD31: 2.136854343e-05 | DE31: 1.792067645e-05 | DF31: 1.502912557e-05 | DG31: 1.260413043e-05 | DH31: 1.05704128e-05 | DI31: 8.864840172e-06 | DJ31: 7.434466181e-06 | DK31: 6.234887218e-06 | DL31: 5.228864122e-06 | DM31: 4.385166246e-06 | DN31: 3.677602011e-06 | DO31: 3.084205876e-06 | DP31: 2.586556465e-06 | DQ31: 2.169204732e-06 | DR31: 1.819194368e-06 | DS31: 1.525659599e-06 | DT31: 1.279487874e-06 | DU31: 1.073036985e-06 | DV31: 8.998978176e-07 | DW31: 7.546953906e-07 | DX31: 6.329219967e-07 | DY31: 5.307972641e-07
A32: 30 | B32: 1.400048196 | C32: -2.825825826 | D32: 0.1281650662 | E32: 2 | F32: 12 | I32: 1.051022265e-05 | J32: 1.689454494e-05 | K32: 2.714697878e-05 | L32: 4.360080584e-05 | M32: 6.998613395e-05 | N32: 0.0001122552074 | O32: 0.0001798842371 | P32: 0.000287915654 | Q32: 0.0004601395944 | R32: 0.0007340061143 | S32: 0.001168123631 | T32: 0.001853538897 | U32: 0.002930388237 | V32: 0.004611882028 | W32: 0.007217754618 | X32: 0.01121893692 | Y32: 0.01729373104 | Z32: 0.02639243215 | AA32: 0.03980139689 | AB32: 0.05918872575 | AC32: 0.08660301399 | AD32: 0.1243871496 | AE32: 0.1749663662 | AF32: 0.2404804129 | AG32: 0.3222592113 | AH32: 0.4201908519 | AI32: 0.5320946221 | AJ32: 0.6532754153 | AK32: 0.7764732049 | AL32: 0.8923950358 | AM32: 0.9908929093 | AN32: 1.062631335 | AO32: 1.100846218 | AP32: 1.102665804 | AQ32: 1.069558108 | AR32: 1.006777848 | AS32: 0.9220546651 | AT32: 0.8239965467 | AU32: 0.7206807253 | AV32: 0.6187216412 | AW32: 0.5228756138 | AX32: 0.436075609 | AY32: 0.3597241962 | AZ32: 0.2940861607 | BA32: 0.2386719925 | BB32: 0.1925560301 | BC32: 0.1546120852 | BD32: 0.1236719884 | BE32: 0.09862220269 | BF32: 0.07845543412 | BG32: 0.06229208246 | BH32: 0.04938299104 | BI32: 0.0391016265 | BJ32: 0.03093107941 | BK32: 0.02444924421 | BL32: 0.01931412841 | BM32: 0.01525031806 | BN32: 0.0120370523 | BO32: 0.009498020839 | BP32: 0.007492812787 | BQ32: 0.005909854809 | BR32: 0.004660642356 | BS32: 0.003675065572 | BT32: 0.002897645526 | BU32: 0.002284517836 | BV32: 0.001801024058 | BW32: 0.001419793849 | BX32: 0.001119221239 | BY32: 0.0008822561082 | BZ32: 0.0006954469506 | CA32: 0.0005481834665 | CB32: 0.0004320977645 | CC32: 0.0003405912634 | CD32: 0.0002684610966 | CE32: 0.0002116052101 | CF32: 0.0001667896509 | CG32: 0.0001314649759 | CH32: 0.0001036214421 | CI32: 8.167480277e-05 | CJ32: 6.437625177e-05 | CK32: 5.074141729e-05 | CL32: 3.999437919e-05 | CM32: 3.152353409e-05 | CN32: 2.484680231e-05 | CO32: 1.95842004e-05 | CP32: 1.543622057e-05 | CQ32: 1.216678805e-05 | CR32: 9.589827157e-06 | CS32: 7.558672257e-06 | CT32: 5.957721109e-06 | CU32: 4.69585589e-06 | CV32: 3.70125751e-06 | CW32: 2.917318213e-06 | CX32: 2.299419838e-06 | CY32: 1.812394435e-06 | CZ32: 1.428522703e-06 | DA32: 1.12595636e-06 | DB32: 8.874746527e-07 | DC32: 6.995042346e-07 | DD32: 5.513466378e-07 | DE32: 4.345693649e-07 | DF32: 3.425259496e-07 | DG32: 2.699776726e-07 | DH32: 2.127953887e-07 | DI32: 1.677245279e-07 | DJ32: 1.321998426e-07 | DK32: 1.041994191e-07 | DL32: 8.212959081e-08 | DM32: 6.473423439e-08 | DN32: 5.102327958e-08 | DO32: 4.021635677e-08 | DP32: 3.169838167e-08 | DQ32: 2.498454468e-08 | DR32: 1.969272403e-08 | DS32: 1.552173152e-08 | DT32: 1.223417008e-08 | DU32: 9.642926554e-09 | DV32: 7.600519033e-09 | DW32: 5.990700197e-09 | DX32: 4.721847383e-09 | DY32: 3.721742563e-09
A33: 31 | B33: 0.5086519122 | C33: -2.81981982 | D33: 0.09465512037 | E33: 2 | F33: 5 | I33: 0.01541341285 | J33: 0.01748932092 | K33: 0.01979057417 | L33: 0.02233137439 | M33: 0.0251249598 | N33: 0.02818320739 | O33: 0.03151619977 | P33: 0.0351317621 | Q33: 0.03903497629 | R33: 0.04322768211 | S33: 0.04770797647 | T33: 0.05246972495 | U33: 0.05750210154 | V33: 0.06278917485 | W33: 0.06830956136 | X33: 0.07403616734 | Y33: 0.07993604245 | Z33: 0.08597036781 | AA33: 0.09209460015 | AB33: 0.09825879095 | AC33: 0.1044080951 | AD33: 0.1104834772 | AE33: 0.1164226163 | AF33: 0.1221609986 | AG33: 0.1276331795 | AH33: 0.1327741823 | AI33: 0.1375209926 | AJ33: 0.1418140949 | AK33: 0.1455989931 | AL33: 0.1488276508 | AM33: 0.1514597866 | AN33: 0.1534639648 | AO33: 0.1548184279 | AP33: 0.1555116321 | AQ33: 0.15554246 | AR33: 0.1549201009 | AS33: 0.1536636116 | AT33: 0.151801181 | AU33: 0.1493691405 | AV33: 0.1464107734 | AW33: 0.142974982 | AX33: 0.1391148752 | AY33: 0.1348863383 | AZ33: 0.1303466425 | BA33: 0.1255531416 | BB33: 0.1205620969 | BC33: 0.1154276572 | BD33: 0.1102010125 | BE33: 0.1049297277 | BF33: 0.09965725609 | BG33: 0.09442262045 | BH33: 0.08926025009 | BI33: 0.08419995248 | BJ33: 0.07926699979 | BK33: 0.07448230809 | BL33: 0.06986268819 | BM33: 0.06542114811 | BN33: 0.06116722931 | BO33: 0.05710736126 | BP33: 0.05324522111 | BQ33: 0.0495820882 | BR33: 0.04611718499 | BS33: 0.0428479987 | BT33: 0.03977057925 | BU33: 0.03687981121 | BV33: 0.03416965853 | BW33: 0.03163338171 | BX33: 0.02926372843 | BY33: 0.02705309845 | BZ33: 0.02499368483 | CA33: 0.02307759305 | CB33: 0.02129694032 | CC33: 0.01964393695 | CD33: 0.01811095193 | CE33: 0.01669056471 | CF33: 0.01537560494 | CG33: 0.01415918185 | CH33: 0.01303470493 | CI33: 0.01199589724 | CJ33: 0.01103680254 | CK33: 0.01015178743 | CL33: 0.009335539364 | CM33: 0.008583061405 | CN33: 0.007889664445 | CO33: 0.007250957439 | CP33: 0.006662836209 | CQ33: 0.006121471212 | CR33: 0.005623294645 | CS33: 0.005164987171 | CT33: 0.004743464494 | CU33: 0.004355863983 | CV33: 0.003999531494 | CW33: 0.003672008499 | CX33: 0.003371019616 | CY33: 0.00309446061 | CZ33: 0.002840386897 | DA33: 0.002607002592 | DB33: 0.002392650121 | DC33: 0.00219580039 | DD33: 0.002015043518 | DE33: 0.001849080129 | DF33: 0.001696713178 | DG33: 0.001556840309 | DH33: 0.00142844671 | DI33: 0.001310598454 | DJ33: 0.001202436298 | DK33: 0.001103169919 | DL33: 0.001012072558 | DM33: 0.0009284760576 | DN33: 0.0008517662577 | DO33: 0.000781378736 | DP33: 0.000716794868 | DQ33: 0.0006575381841 | DR33: 0.000603171005 | DS33: 0.0005532913357 | DT33: 0.0005075300003 | DU33: 0.0004655479991 | DV33: 0.0004270340731 | DW33: 0.0003917024601 | DX33: 0.0003592908282 | DY33: 0.0003295583727
A34: 32 | B34: 0.6815294623 | C34: -2.813813814 | D34: 0.0419705987 | E34: 2 | F34: 7 | I34: 0.01137593582 | J34: 0.01363295024 | K34: 0.016273642 | L34: 0.01934675538 | M34: 0.02290347736 | N34: 0.02699674176 | O34: 0.03168034433 | P34: 0.03700785399 | Q34: 0.04303130499 | R34: 0.04979965435 | S34: 0.05735699039 | T34: 0.06574048109 | U34: 0.07497805888 | V34: 0.08508585166 | W34: 0.09606539022 | X34: 0.107900651 | Y34: 0.1205550304 | Z34: 0.1339683903 | AA34: 0.1480543656 | AB34: 0.1626981704 | AC34: 0.1777551842 | AD34: 0.1930506248 | AE34: 0.208380616 | AF34: 0.2235149249 | AG34: 0.238201565 | AH34: 0.2521733415 | AI34: 0.2651562461 | AJ34: 0.2768794139 | AK34: 0.2870861505 | AL34: 0.2955453465 | AM34: 0.3020624654 | AN34: 0.3064892328 | AO34: 0.3087311993 | AP34: 0.3087525024 | AQ34: 0.3065773893 | AR34: 0.3022883716 | AS34: 0.2960211967 | AT34: 0.2879571216 | AU34: 0.2783131931 | AV34: 0.2673313721 | AW34: 0.255267362 | AX34: 0.2423799315 | AY34: 0.2289213723 | AZ34: 0.2151295477 | BA34: 0.2012217785 | BB34: 0.1873906296 | BC34: 0.1738015007 | BD34: 0.160591813 | BE34: 0.1478715141 | BF34: 0.1357245977 | BG34: 0.1242113359 | BH34: 0.1133709533 | BI34: 0.1032245089 | BJ34: 0.0937778045 | BK34: 0.08502417882 | BL34: 0.07694709636 | BM34: 0.0695224711 | BN34: 0.06272069827 | BO34: 0.05650838822 | BP34: 0.05084981273 | BQ34: 0.04570808465 | BR34: 0.04104609773 | BS34: 0.03682725636 | BT34: 0.03301602533 | BU34: 0.02957832832 | BV34: 0.02648182176 | BW34: 0.02369606786 | BX34: 0.0211926274 | BY34: 0.0189450901 | BZ34: 0.01692905758 | CA34: 0.01512209101 | CB34: 0.0135036337 | CC34: 0.01205491662 | CD34: 0.01075885314 | CE34: 0.009599928126 | CF34: 0.008564085023 | CG34: 0.007638613836 | CH34: 0.006812042062 | CI34: 0.006074030018 | CJ34: 0.00541527154 | CK34: 0.00482740064 | CL34: 0.004302904432 | CM34: 0.003835042419 | CN34: 0.003417772068 | CO34: 0.00304568049 | CP34: 0.002713921972 | CQ34: 0.002418161035 | CR34: 0.002154520686 | CS34: 0.001919535503 | CT34: 0.001710109185 | CU34: 0.001523476224 | CV34: 0.001357167349 | CW34: 0.001208978414 | CX34: 0.001076942426 | CY34: 0.0009593044194 | CZ34: 0.0008544989112 | DA34: 0.0007611296899 | DB34: 0.0006779517073 | DC34: 0.0006038548678 | DD34: 0.0005378495236 | DE34: 0.0004790535034 | DF34: 0.0004266805177 | DG34: 0.0003800297989 | DH34: 0.0003384768485 | DI34: 0.000301465174 | DJ34: 0.0002684989149 | DK34: 0.0002391362601 | DL34: 0.0002129835762 | DM34: 0.0001896901689 | DN34: 0.0001689436113 | DO34: 0.0001504655781 | DP34: 0.0001340081305 | DQ34: 0.0001193504049 | DR34: 0.0001062956616 | DS34: 9.466865274e-05 | DT34: 8.431327842e-05 | DU34: 7.50904964e-05 | DV34: 6.687646028e-05 | DW34: 5.956086019e-05 | DX34: 5.304544443e-05 | DY34: 4.724270236e-05
A35: 33 | B35: 1.138712585 | C35: -2.807807808 | D35: 0.1658329368 | E35: 3 | F35: 6 | I35: 7.95590599e-05 | J35: 0.0001167631352 | K35: 0.000171237982 | L35: 0.0002509030577 | M35: 0.000367234271 | N35: 0.0005368042518 | O35: 0.0007834471137 | P35: 0.001141269401 | Q35: 0.00165878441 | R35: 0.002404498722 | S35: 0.003474310514 | T35: 0.005001059006 | U35: 0.007166446171 | V35: 0.01021526866 | W35: 0.01447136687 | X35: 0.02035383627 | Y35: 0.02839080483 | Z35: 0.03922650664 | AA35: 0.0536156891 | AB35: 0.07239803562 | AC35: 0.09644497237 | AD35: 0.1265728224 | AE35: 0.1634205586 | AF35: 0.2072977412 | AG35: 0.2580181433 | AH35: 0.3147455019 | AI35: 0.3758870097 | AJ35: 0.4390738214 | AK35: 0.5012619566 | AL35: 0.5589687645 | AM35: 0.608630263 | AN35: 0.6470293835 | AO35: 0.6717159851 | AP35: 0.6813295871 | AQ35: 0.6757530482 | AR35: 0.656066814 | AS35: 0.6243244768 | AT35: 0.5832122099 | AU35: 0.5356731522 | AV35: 0.4845703445 | AW35: 0.4324363404 | AX35: 0.3813267896 | AY35: 0.3327698169 | AZ35: 0.2877881289 | BA35: 0.2469663615 | BB35: 0.2105390844 | BC35: 0.1784812918 | BD35: 0.1505901614 | BE35: 0.126552677 | BF35: 0.1059977845 | BG35: 0.08853418692 | BH35: 0.07377604282 | BI35: 0.06135916379 | BJ35: 0.05095015425 | BK35: 0.04225056879 | BL35: 0.03499772898 | BM35: 0.0289634332 | BN35: 0.02395144639 | BO35: 0.01979438187 | BP35: 0.01635037983 | BQ35: 0.01349983728 | BR35: 0.01114233821 | BS35: 0.009193861997 | BT35: 0.007584300726 | BU35: 0.006255287329 | BV35: 0.005158318891 | BW35: 0.004253150364 | BX35: 0.003506429891 | BY35: 0.002890546156 | BZ35: 0.002382659336 | CA35: 0.001963889466 | CB35: 0.001618638665 | CC35: 0.001334026537 | CD35: 0.001099420766 | CE35: 0.0009060474982 | CF35: 0.0007466683557 | CG35: 0.0006153129851 | CH35: 0.0005070577839 | CI35: 0.0004178429625 | CJ35: 0.0003443213906 | CK35: 0.0002837337646 | CL35: 0.0002338055562 | CM35: 0.0001926619671 | CN35: 0.0001587577639 | CO35: 0.0001308194024 | CP35: 0.0001077972963 | CQ35: 8.882646048e-05 | CR35: 7.319406047e-05 | CS35: 6.031266186e-05 | CT35: 4.969817828e-05 | CU35: 4.095169491e-05 | CV35: 3.374448692e-05 | CW35: 2.780567201e-05 | CX35: 2.291203413e-05 | CY35: 1.887963702e-05 | CZ35: 1.555691287e-05 | DA35: 1.28189668e-05 | DB35: 1.056288328e-05 | DC35: 8.70385845e-06 | DD35: 7.172012863e-06 | DE35: 5.9097651e-06 | DF35: 4.869667529e-06 | DG35: 4.012622911e-06 | DH35: 3.306414831e-06 | DI35: 2.724496754e-06 | DJ35: 2.244994174e-06 | DK35: 1.849882384e-06 | DL35: 1.52430893e-06 | DM35: 1.256035326e-06 | DN35: 1.034977003e-06 | DO35: 8.528242365e-07 | DP35: 7.027297807e-07 | DQ35: 5.790514793e-07 | DR35: 4.771401748e-07 | DS35: 3.931649458e-07 | DT35: 3.239691006e-07 | DU35: 2.669515127e-07 | DV35: 2.199688477e-07 | DW35: 1.812549899e-07 | DX35: 1.493546536e-07 | DY35: 1.230686815e-07
A36: 34 | B36: 0.9527720809 | C36: -2.801801802 | D36: 0.1946784139 | E36: 2 | F36: 1 | I36: 0.0003302532484 | J36: 0.0004534605541 | K36: 0.0006218991863 | L36: 0.0008517337024 | M36: 0.001164644484 | N36: 0.001589557824 | O36: 0.002164831514 | P36: 0.00294096613 | Q36: 0.003983892905 | R36: 0.005378846746 | S36: 0.007234757122 | T36: 0.009688968631 | U36: 0.01291192677 | V36: 0.01711122775 | W36: 0.02253414081 | X36: 0.02946739421 | Y36: 0.03823272497 | Z36: 0.04917651542 | AA36: 0.06265189037 | AB36: 0.07899205818 | AC36: 0.0984745578 | AD36: 0.1212774736 | AE36: 0.1474305434 | AF36: 0.1767662017 | AG36: 0.208877602 | AH36: 0.2430920242 | AI36: 0.278468212 | AJ36: 0.3138245765 | AK36: 0.3478015727 | AL36: 0.3789561244 | AM36: 0.4058795598 | AN36: 0.4273245832 | AO36: 0.4423230579 | AP36: 0.4502762781 | AQ36: 0.4510034874 | AR36: 0.4447419026 | AS36: 0.4321004982 | AT36: 0.4139778782 | AU36: 0.3914596746 | AV36: 0.3657121286 | AW36: 0.3378861676 | AX36: 0.309041658 | AY36: 0.2800961881 | AZ36: 0.2517980663 | BA36: 0.2247199704 | BB36: 0.1992680426 | BC36: 0.1757009422 | BD36: 0.1541539976 | BE36: 0.1346646811 | BF36: 0.1171968189 | BG36: 0.1016620045 | BH36: 0.0879375171 | BI36: 0.07588062673 | BJ36: 0.06533953251 | BK36: 0.05616136754 | BL36: 0.04819777706 | BM36: 0.04130856938 | BN36: 0.0353638915 | BO36: 0.030245314 | BP36: 0.02584613825 | BQ36: 0.02207117222 | BR36: 0.01883616251 | BS36: 0.0160670214 | BT36: 0.0136989493 | BU36: 0.01167552203 | BV36: 0.009947790193 | BW36: 0.008473420302 | BX36: 0.007215895614 | BY36: 0.006143785557 | BZ36: 0.005230086987 | CA36: 0.004451636446 | CB36: 0.003788590166 | CC36: 0.003223967103 | CD36: 0.002743249545 | CE36: 0.00233403561 | CF36: 0.00198573799 | CG36: 0.001689323606 | CH36: 0.001437089161 | CI36: 0.001222468078 | CJ36: 0.001039864706 | CK36: 0.0008845121695 | CL36: 0.0007523506387 | CM36: 0.0006399231927 | CN36: 0.0005442868175 | CO36: 0.0004629363944 | CP36: 0.0003937398235 | CQ36: 0.000334882682 | CR36: 0.0002848210372 | CS36: 0.0002422412281 | CT36: 0.0002060255974 | CU36: 0.0001752233023 | CV36: 0.0001490254566 | CW36: 0.0001267439663 | CX36: 0.0001077935123 | CY36: 9.167621479e-05 | CZ36: 7.796858214e-05 | DA36: 6.631040416e-05 | DB36: 5.639530201e-05 | DC36: 4.796268746e-05 | DD36: 4.079092217e-05 | DE36: 3.469149803e-05 | DF36: 2.950408648e-05 | DG36: 2.509232714e-05 | DH36: 2.134024554e-05 | DI36: 1.8149206e-05 | DJ36: 1.543531982e-05 | DK36: 1.312724081e-05 | DL36: 1.116429018e-05 | DM36: 9.494861791e-06 | DN36: 8.075065732e-06 | DO36: 6.867574657e-06 | DP36: 5.840642588e-06 | DQ36: 4.967270412e-06 | DR36: 4.224496129e-06 | DS36: 3.592791212e-06 | DT36: 3.055547226e-06 | DU36: 2.598639196e-06 | DV36: 2.21005427e-06 | DW36: 1.879575891e-06 | DX36: 1.598515202e-06 | DY36: 1.359482611e-06
A37: 35 | B37: 1.251942813 | C37: -2.795795796 | D37: 0.1068456531 | E37: 2 | F37: 7 | I37: 4.461842214e-05 | J37: 6.809424883e-05 | K37: 0.0001038508287 | L37: 0.0001582502035 | M37: 0.0002408959679 | N37: 0.0003662380273 | O37: 0.0005559318797 | P37: 0.0008422736864 | Q37: 0.001273141456 | R37: 0.001918995694 | S37: 0.002882610228 | T37: 0.004312273888 | U37: 0.00641915115 | V37: 0.009499196326 | W37: 0.01395931932 | X37: 0.02034621914 | Y37: 0.02937429603 | Z37: 0.04194634475 | AA37: 0.05915764693 | AB37: 0.0822713653 | AC37: 0.1126519456 | AD37: 0.1516448675 | AE37: 0.2003966515 | AF37: 0.259619041 | AG37: 0.3293155673 | AH37: 0.4085063196 | AI37: 0.495005509 | AJ37: 0.5853216266 | AK37: 0.674753277 | AL37: 0.7577341577 | AM37: 0.8284303286 | AN37: 0.8815165029 | AO37: 0.9129793471 | AP37: 0.9207525599 | AQ37: 0.9050126652 | AR37: 0.868057794 | AS37: 0.8138177246 | AT37: 0.7471462489 | AU37: 0.6730850202 | AV37: 0.5962567249 | AW37: 0.5204727111 | AX37: 0.4485641991 | AY37: 0.3823936238 | AZ37: 0.3229811652 | BA37: 0.2706845222 | BB37: 0.2253857408 | BC37: 0.1866573942 | BD37: 0.1538958227 | BE37: 0.1264195325 | BF37: 0.1035365668 | BG37: 0.08458698052 | BH37: 0.0689668006 | BI37: 0.05613906988 | BJ37: 0.0456364229 | BK37: 0.03705849102 | BL37: 0.03006645032 | BM37: 0.02437625546 | BN37: 0.01975153675 | BO37: 0.01599674066 | BP37: 0.01295082704 | BQ37: 0.01048166441 | BR37: 0.008481158186 | BS37: 0.006861085484 | BT37: 0.005549577516 | BU37: 0.00448817655 | BV37: 0.00362939119 | BW37: 0.002934676952 | BX37: 0.002372775449 | BY37: 0.001918353225 | BZ37: 0.001550889246 | CA37: 0.001253767603 | CB37: 0.00101353887 | CC37: 0.0008193196131 | CD37: 0.0006623047475 | CE37: 0.0005353719019 | CF37: 0.0004327606604 | CG37: 0.0003498126618 | CH37: 0.0002827611103 | CI37: 0.0002285603664 | CJ37: 0.000184748031 | CK37: 0.0001493333521 | CL37: 0.0001207069491 | CM37: 9.756779531e-05 | CN37: 7.886416447e-05 | CO37: 6.374587848e-05 | CP37: 5.152569506e-05 | CQ37: 4.164808888e-05 | CR37: 3.366401161e-05 | CS37: 2.721048684e-05 | CT37: 2.199411423e-05 | CU37: 1.777773444e-05 | CV37: 1.436964933e-05 | CW37: 1.161490809e-05 | CX37: 9.388263397e-06 | CY37: 7.588477613e-06 | CZ37: 6.133720339e-06 | DA37: 4.957848154e-06 | DB37: 4.007397481e-06 | DC37: 3.239153872e-06 | DD37: 2.618187254e-06 | DE37: 2.116263796e-06 | DF37: 1.71056223e-06 | DG37: 1.382636245e-06 | DH37: 1.117575782e-06 | DI37: 9.033291286e-07 | DJ37: 7.301549581e-07 | DK37: 5.90179411e-07 | DL37: 4.770380982e-07 | DM37: 3.855867223e-07 | DN37: 3.116671803e-07 | DO37: 2.51918505e-07 | DP37: 2.036240467e-07 | DQ37: 1.645879582e-07 | DR37: 1.330353483e-07 | DS37: 1.075315835e-07 | DT37: 8.691706052e-08 | DU37: 7.025447927e-08 | DV37: 5.678622605e-08 | DW37: 4.589992706e-08 | DX37: 3.710060426e-08 | DY37: 2.998816972e-08
A38: 36 | B38: 0.6732487082 | C38: -2.78978979 | D38: 0.02276312113 | E38: 3 | F38: 8 | I38: 0.01628180103 | J38: 0.01912518815 | K38: 0.02237683788 | L38: 0.02607766741 | M38: 0.03026967085 | N38: 0.03499540549 | O38: 0.04029735214 | P38: 0.04621712404 | Q38: 0.05279449587 | R38: 0.06006622356 | S38: 0.06806462714 | T38: 0.07681591444 | U38: 0.08633823374 | V38: 0.09663945908 | W38: 0.1077147341 | X38: 0.1195438294 | Y38: 0.1320884034 | Z38: 0.1452892985 | AA38: 0.159064047 | AB38: 0.1733048064 | AC38: 0.1878769779 | AD38: 0.2026187884 | AE38: 0.217342114 | AF38: 0.2318347974 | AG38: 0.2458646433 | AH38: 0.2591851711 | AI38: 0.2715430607 | AJ38: 0.2826870559 | AK38: 0.2923779052 | AL38: 0.3003987546 | AM38: 0.3065652748 | AN38: 0.3107347455 | AO38: 0.3128133429 | AP38: 0.3127609908 | AQ38: 0.3105933391 | AR38: 0.3063806878 | AS38: 0.3002439651 | AT38: 0.2923481331 | AU38: 0.2828936124 | AV38: 0.2721064577 | AW38: 0.2602280586 | AX38: 0.2475051022 | AY38: 0.2341804179 | AZ38: 0.2204851683 | BA38: 0.2066326651 | BB38: 0.1928139206 | BC38: 0.1791948897 | BD38: 0.1659152463 | BE38: 0.1530884617 | BF38: 0.1408029137 | BG38: 0.1291237525 | BH38: 0.1180952629 | BI38: 0.1077434983 | BJ38: 0.09807900118 | BK38: 0.08909946829 | BL38: 0.08079225789 | BM38: 0.07313667349 | BN38: 0.06610598692 | BO38: 0.059669187 | BP38: 0.05379245686 | BQ38: 0.04844039492 | BR38: 0.04357700156 | BS38: 0.03916645759 | BT38: 0.03517372205 | BU38: 0.03156497628 | BV38: 0.02830793965 | BW38: 0.02537208031 | BX38: 0.02272874114 | BY38: 0.02035119903 | BZ38: 0.01821467221 | CA38: 0.01629628864 | CB38: 0.0145750257 | CC38: 0.01303162961 | CD38: 0.01164852149 | CE38: 0.01040969531 | CF38: 0.009300611897 | CG38: 0.008308092144 | CH38: 0.007420211803 | CI38: 0.006626199516 | CJ38: 0.005916339297 | CK38: 0.00528187823 | CL38: 0.00471493985 | CM38: 0.004208443412 | CN38: 0.003756029113 | CO38: 0.003351989138 | CP38: 0.002991204375 | CQ38: 0.002669086515 | CR38: 0.002381525266 | CS38: 0.002124840337 | CT38: 0.00189573788 | CU38: 0.001691271041 | CV38: 0.001508804312 | CW38: 0.001345981349 | CX38: 0.001200695973 | CY38: 0.001071066067 | CZ38: 0.0009554100988 | DA38: 0.0008522260334 | DB38: 0.000760172398 | DC38: 0.0006780513028 | DD38: 0.0006047932163 | DE38: 0.0005394433267 | DF38: 0.0004811493285 | DG38: 0.0004291504903 | DH38: 0.0003827678741 | DI38: 0.0003413955866 | DJ38: 0.0003044929575 | DK38: 0.0002715775477 | DL38: 0.0002422189004 | DM38: 0.000216032959 | DN38: 0.0001926770801 | DO38: 0.0001718455792 | DP38: 0.0001532657538 | DQ38: 0.0001366943322 | DR38: 0.0001219143029 | DS38: 0.0001087320847 | DT38: 9.697500066e-05 | DU38: 8.648902374e-05 | DV38: 7.713676484e-05 | DW38: 6.879567744e-05 | DX38: 6.135645561e-05 | DY38: 5.472160459e-05
A39: 37 | B39: 1.065627754 | C39: -2.783783784 | D39: 0.1721366286 | E39: 1 | F39: 4 | I39: 0.0001341284176 | J39: 0.0001918290234 | K39: 0.0002741106245 | L39: 0.0003912753364 | M39: 0.0005578248388 | N39: 0.0007940909923 | O39: 0.001128444435 | P39: 0.001600249059 | Q39: 0.002263754144 | R39: 0.003193124837 | S39: 0.004488789315 | T39: 0.006285202905 | U39: 0.00875996278 | V39: 0.01214391204 | W39: 0.0167314105 | X39: 0.02288929886 | Y39: 0.03106226122 | Z39: 0.04177138893 | AA39: 0.05560196073 | AB39: 0.07317609058 | AC39: 0.09510635591 | AD39: 0.1219282155 | AE39: 0.1540122342 | AF39: 0.1914618292 | AG39: 0.2340079642 | AH39: 0.2809179131 | AI39: 0.3309393501 | AJ39: 0.3823016876 | AK39: 0.4327919682 | AL39: 0.4799117212 | AM39: 0.5211047948 | AN39: 0.5540275446 | AO39: 0.5768174135 | AP39: 0.5883100064 | AQ39: 0.5881621373 | AR39: 0.5768582325 | AS39: 0.5556039807 | AT39: 0.5261354806 | AU39: 0.4904867349 | AV39: 0.4507599168 | AW39: 0.4089333005 | AX39: 0.3667263427 | AY39: 0.3255258952 | AZ39: 0.2863659339 | BA39: 0.2499470003 | BB39: 0.2166802042 | BC39: 0.1867425212 | BD39: 0.1601335182 | BE39: 0.1367272426 | BF39: 0.1163160563 | BG39: 0.0986454093 | BH39: 0.08343994117 | BI39: 0.0704220349 | BJ39: 0.0593242256 | BK39: 0.04989686167 | BL39: 0.04191226155 | BM39: 0.03516639519 | BN39: 0.02947889804 | BO39: 0.024692026 | BP39: 0.0206689929 | BQ39: 0.01729199941 | BR39: 0.01446016202 | BS39: 0.01208747602 | BT39: 0.01010089367 | BU39: 0.008438561779 | BV39: 0.007048238021 | BW39: 0.005885889367 | BX39: 0.004914465971 | BY39: 0.004102838168 | BZ39: 0.003424881437 | CA39: 0.002858693201 | CB39: 0.002385925518 | CC39: 0.001991218628 | CD39: 0.001661721558 | CE39: 0.001386687406 | CF39: 0.001157132367 | CG39: 0.0009655489342 | CH39: 0.0008056650094 | CI39: 0.0006722417938 | CJ39: 0.0005609043845 | CK39: 0.0004679998898 | CL39: 0.0003904786734 | CM39: 0.0003257950081 | CN39: 0.0002718240065 | CO39: 0.000226792186 | CP39: 0.000189219449 | CQ39: 0.0001578706139 | CR39: 0.0001317149339 | CS39: 0.0001098922925 | CT39: 9.16849797e-05 | CU39: 7.649412923e-05 | CV39: 6.382005046e-05 | CW39: 5.324581171e-05 | CX39: 4.442353888e-05 | CY39: 3.706298086e-05 | CZ39: 3.092196716e-05 | DA39: 2.579844506e-05 | DB39: 2.152383489e-05 | DC39: 1.795748561e-05 | DD39: 1.498204845e-05 | DE39: 1.249961672e-05 | DF39: 1.042850496e-05 | DG39: 8.70056166e-06 | DH39: 7.258926963e-06 | DI39: 6.056161964e-06 | DJ39: 5.052687825e-06 | DK39: 4.215483505e-06 | DL39: 3.516999235e-06 | DM39: 2.934249999e-06 | DN39: 2.448059217e-06 | DO39: 2.042427723e-06 | DP39: 1.704007301e-06 | DQ39: 1.421661447e-06 | DR39: 1.186098905e-06 | DS39: 9.895679253e-07 | DT39: 8.256011782e-07 | DU39: 6.88802934e-07 | DV39: 5.746715073e-07 | DW39: 4.794511173e-07 | DX39: 4.000082968e-07 | DY39: 3.337287792e-07
A40: 38 | B40: 1.443057001 | C40: -2.777777778 | D40: 0.03613682985 | E40: 2 | F40: 22 | I40: 2.161836825e-05 | J40: 3.52044091e-05 | K40: 5.72812608e-05 | L40: 9.310496017e-05 | M40: 0.0001511319279 | N40: 0.0002449122 | O40: 0.0003960458874 | P40: 0.0006387433491 | Q40: 0.001026749494 | R40: 0.001643650203 | S40: 0.002617828657 | T40: 0.004143479676 | U40: 0.006508941125 | V40: 0.01013290613 | W40: 0.01560756432 | X40: 0.0237452463 | Y40: 0.03562193433 | Z40: 0.05260778366 | AA40: 0.07637262359 | AB40: 0.1088539653 | AC40: 0.1521758283 | AD40: 0.2085069451 | AE40: 0.2798451017 | AF40: 0.3677118947 | AG40: 0.4727451631 | AH40: 0.5941949035 | AI40: 0.7293723097 | AJ40: 0.8731719942 | AK40: 1.017866699 | AL40: 1.153417101 | AM40: 1.268482718 | AN40: 1.352118496 | AO40: 1.395830365 | AP40: 1.395389295 | AQ40: 1.351763222 | AR40: 1.27081118 | AS40: 1.161868561 | AT40: 1.035761103 | AU40: 0.9029017329 | AV40: 0.7719430468 | AW40: 0.6491448651 | AX40: 0.5383540463 | AY40: 0.441369771 | AZ40: 0.3584678698 | BA40: 0.2889228773 | BB40: 0.2314424503 | BC40: 0.1844871129 | BD40: 0.1464824167 | BE40: 0.1159452042 | BF40: 0.09154825589 | BG40: 0.0721444067 | BH40: 0.05676618387 | BI40: 0.0446121451 | BJ40: 0.0350271688 | BK40: 0.02748108761 | BL40: 0.02154811873 | BM40: 0.01688830599 | BN40: 0.01323143908 | BO40: 0.01036349071 | BP40: 0.008115391587 | BQ40: 0.006353866216 | BR40: 0.004974026147 | BS40: 0.003893428442 | BT40: 0.003047336617 | BU40: 0.002384957063 | BV40: 0.001866460092 | BW40: 0.001460628069 | BX40: 0.001143002311 | BY40: 0.000894425218 | BZ40: 0.0006998947172 | CA40: 0.0005476649432 | CB40: 0.0004285407435 | CC40: 0.0003353245452 | CD40: 0.0002623828698 | CE40: 0.000205306733 | CF40: 0.000160645666 | CG40: 0.0001256994431 | CH40: 9.835502078e-05 | CI40: 7.69588924e-05 | CJ40: 6.021717442e-05 | CK40: 4.711740705e-05 | CL40: 3.686735301e-05 | CM40: 2.884710215e-05 | CN40: 2.257159043e-05 | CO40: 1.766126968e-05 | CP40: 1.381915602e-05 | CQ40: 1.081287023e-05 | CR40: 8.460584388e-06 | CS40: 6.62002538e-06 | CT40: 5.17987031e-06 | CU40: 4.053013687e-06 | CV40: 3.171299193e-06 | CW40: 2.481397467e-06 | CX40: 1.941580624e-06 | CY40: 1.519198439e-06 | CZ40: 1.188703575e-06 | DA40: 9.301063726e-07 | DB40: 7.277658339e-07 | DC40: 5.694435776e-07 | DD40: 4.45563628e-07 | DE40: 3.486332123e-07 | DF40: 2.727895825e-07 | DG40: 2.134454019e-07 | DH40: 1.670112861e-07 | DI40: 1.306787107e-07 | DJ40: 1.022501267e-07 | DK40: 8.000605816e-08 | DL40: 6.260108833e-08 | DM40: 4.898249429e-08 | DN40: 3.832656675e-08 | DO40: 2.998878928e-08 | DP40: 2.346485909e-08 | DQ40: 1.836018053e-08 | DR40: 1.43660034e-08 | DS40: 1.124074279e-08 | DT40: 8.795367893e-09 | DU40: 6.881973335e-09 | DV40: 5.384830571e-09 | DW40: 4.213383672e-09 | DX40: 3.296779834e-09 | DY40: 2.579580509e-09
A41: 39 | B41: 1.187677562 | C41: -2.771771772 | D41: 0.2645867229 | E41: 3 | F41: 4 | I41: 2.44980379e-05 | J41: 3.661663913e-05 | K41: 5.470688895e-05 | L41: 8.169234116e-05 | M41: 0.0001219121671 | N41: 0.0001817937987 | O41: 0.0002708347661 | P41: 0.0004030274426 | Q41: 0.0005989114577 | R41: 0.000888503587 | S41: 0.001315433114 | T41: 0.001942696005 | U41: 0.002860517994 | V41: 0.00419685239 | W41: 0.006130974529 | X41: 0.008910376729 | Y41: 0.01287057882 | Z41: 0.01845638007 | AA41: 0.02624132601 | AB41: 0.03693968799 | AC41: 0.05140225997 | AD41: 0.07058445473 | AE41: 0.0954738884 | AF41: 0.1269668734 | AG41: 0.1656911514 | AH41: 0.2117870054 | AI41: 0.2646793155 | AJ41: 0.3228940797 | AK41: 0.383985532 | AL41: 0.444634036 | AM41: 0.5009438705 | AN41: 0.5489167373 | AO41: 0.5850167556 | AP41: 0.6067001515 | AQ41: 0.6127799181 | AR41: 0.6035388768 | AS41: 0.5805783046 | AT41: 0.5464630766 | AU41: 0.5042692645 | AV41: 0.4571440824 | AW41: 0.4079585917 | AX41: 0.3590898269 | AY41: 0.3123296011 | AZ41: 0.2688925697 | BA41: 0.2294874256 | BB41: 0.1944179482 | BC41: 0.1636891783 | BD41: 0.1371035681 | BE41: 0.1143399403 | BF41: 0.09501360036 | BG41: 0.07871912475 | BH41: 0.0650587934 | BI41: 0.05365996229 | BJ41: 0.04418440661 | BK41: 0.03633214128 | BL41: 0.02984165321 | BM41: 0.0244879604 | BN41: 0.02007948656 | BO41: 0.01645441254 | BP41: 0.01347692608 | BQ41: 0.01103362253 | BR41: 0.009030194603 | BS41: 0.007388474316 | BT41: 0.00604384306 | BU41: 0.004942997818 | BV41: 0.004042046297 | BW41: 0.003304896612 | BX41: 0.002701905179 | BY41: 0.002208747441 | BZ41: 0.00180547869 | CA41: 0.001475755602 | CB41: 0.001206192732 | CC41: 0.0009858317151 | CD41: 0.0008057042108 | CE41: 0.0006584725396 | CF41: 0.0005381345378 | CG41: 0.0004397813849 | CH41: 0.0003593990437 | CI41: 0.0002937055605 | CJ41: 0.0002400178157 | CK41: 0.0001961424376 | CL41: 0.0001602865295 | CM41: 0.0001309846283 | CN41: 0.00010703896 | CO41: 8.747057732e-05 | CP41: 7.147940545e-05 | CQ41: 5.841157422e-05 | CR41: 4.773271159e-05 | CS41: 3.900611181e-05 | CT41: 3.187488987e-05 | CU41: 2.604739504e-05 | CV41: 2.1285289e-05 | CW41: 1.739380191e-05 | CX41: 1.421376906e-05 | CY41: 1.161512264e-05 | CZ41: 9.491572913e-06 | DA41: 7.756261622e-06 | DB41: 6.338209745e-06 | DC41: 5.179414628e-06 | DD41: 4.23247773e-06 | DE41: 3.458666024e-06 | DF41: 2.826327779e-06 | DG41: 2.309597967e-06 | DH41: 1.887340325e-06 | DI41: 1.542282833e-06 | DJ41: 1.260311238e-06 | DK41: 1.029891744e-06 | DL41: 8.415992318e-07 | DM41: 6.877317471e-07 | DN41: 5.619954582e-07 | DO41: 4.592472158e-07 | DP41: 3.752841747e-07 | DQ41: 3.066718874e-07 | DR41: 2.506038143e-07 | DS41: 2.047865281e-07 | DT41: 1.673459043e-07 | DU41: 1.367504578e-07 | DV41: 1.11748703e-07 | DW41: 9.131795711e-08 | DX41: 7.462251563e-08 | DY41: 6.097946132e-08
A42: 40 | B42: 0.5029196143 | C42: -2.765765766 | D42: 0.1681491494 | E42: 3 | F42: 7 | I42: 0.009231909933 | J42: 0.01058126465 | K42: 0.01209898459 | L42: 0.01379981964 | M42: 0.01569850821 | N42: 0.01780946768 | O42: 0.02014643103 | P42: 0.02272203091 | Q42: 0.02554733514 | R42: 0.02863133981 | S42: 0.03198042997 | T42: 0.03559782071 | U42: 0.03948299491 | V42: 0.04363115725 | W42: 0.04803272682 | X42: 0.05267289309 | Y42: 0.05753126142 | Z42: 0.06258161505 | AA42: 0.06779181935 | AB42: 0.07312389215 | AC42: 0.07853425967 | AD42: 0.0839742121 | AE42: 0.08939056523 | AF42: 0.09472652553 | AG42: 0.09992274605 | AH42: 0.1049185492 | AI42: 0.1096532825 | AJ42: 0.1140677611 | AK42: 0.1181057471 | AL42: 0.1217154024 | AM42: 0.1248506583 | AN42: 0.127472438 | AO42: 0.129549678 | AP42: 0.1310601031 | AQ42: 0.131990719 | AR42: 0.1323380046 | AS42: 0.1321077995 | AT42: 0.1313148997 | AU42: 0.1299823882 | AV42: 0.12814074 | AW42: 0.1258267508 | AX42: 0.1230823434 | AY42: 0.1199533082 | AZ42: 0.1164880324 | BA42: 0.1127362669 | BB42: 0.1087479746 | BC42: 0.1045722913 | BD42: 0.1002566259 | BE42: 0.09584591158 | BF42: 0.0913820159 | BG42: 0.08690330591 | BH42: 0.08244436071 | BI42: 0.07803581806 | BJ42: 0.07370433869 | BK42: 0.0694726701 | BL42: 0.06535979121 | BM42: 0.06138111973 | BN42: 0.05754876494 | BO42: 0.05387181088 | BP42: 0.05035661627 | BQ42: 0.04700712021 | BR42: 0.0438251445 | BS42: 0.04081068542 | BT42: 0.03796218986 | BU42: 0.03527681202 | BV42: 0.03275064854 | BW42: 0.03037895076 | BX42: 0.02815631396 | BY42: 0.02607684399 | BZ42: 0.02413430223 | CA42: 0.02232223026 | CB42: 0.02063405561 | CC42: 0.01906318058 | CD42: 0.0176030555 | CE42: 0.01624723838 | CF42: 0.01498944248 | CG42: 0.01382357343 | CH42: 0.01274375725 | CI42: 0.01174436066 | CJ42: 0.01082000487 | CK42: 0.00996557385 | CL42: 0.009176218107 | CM42: 0.008447354727 | CN42: 0.007774664441 | CO42: 0.007154086311 | CP42: 0.006581810571 | CQ42: 0.006054270077 | CR42: 0.005568130737 | CS42: 0.005120281246 | CT42: 0.004707822372 | CU42: 0.004328056025 | CV42: 0.003978474272 | CW42: 0.003656748433 | CX42: 0.003360718387 | CY42: 0.003088382142 | CZ42: 0.002837885767 | DA42: 0.002607513704 | DB42: 0.002395679508 | DC42: 0.002200917027 | DD42: 0.002021872043 | DE42: 0.001857294365 | DF42: 0.001706030375 | DG42: 0.001567016027 | DH42: 0.001439270273 | DI42: 0.00132188891 | DJ42: 0.00121403884 | DK42: 0.001114952701 | DL42: 0.00102392388 | DM42: 0.0009403018626 | DN42: 0.0008634879193 | DO42: 0.0007929310986 | DP42: 0.0007281245123 | DQ42: 0.0006686018941 | DR42: 0.0006139344135 | DS42: 0.000563727729 | DT42: 0.0005176192637 | DU42: 0.0004752756881 | DV42: 0.0004363905964 | DW42: 0.0004006823609 | DX42: 0.0003678921537 | DY42: 0.0003377821215
A43: 41 | B43: 1.116627395 | C43: -2.75975976 | D43: 0.0855142951 | E43: 2 | F43: 9 | I43: 0.0001701211019 | J43: 0.0002472014103 | K43: 0.0003587712576 | L43: 0.0005199421242 | M43: 0.0007522133775 | N43: 0.001086006455 | O43: 0.00156408898 | P43: 0.002246123118 | Q43: 0.003214581387 | R43: 0.00458224141 | S43: 0.00650136967 | T43: 0.009174497015 | U43: 0.0128663383 | V43: 0.01791588915 | W43: 0.02474704952 | X43: 0.0338753336 | Y43: 0.04590745567 | Z43: 0.06153002221 | AA43: 0.08148343292 | AB43: 0.1065175947 | AC43: 0.1373273004 | AD43: 0.174467164 | AE43: 0.2182488452 | AF43: 0.2686270122 | AG43: 0.3250851326 | AH43: 0.3865375838 | AI43: 0.4512698818 | AJ43: 0.5169421235 | AK43: 0.5806790861 | AL43: 0.6392607956 | AM43: 0.6894084572 | AN43: 0.7281349783 | AO43: 0.7531042043 | AP43: 0.762928732 | AQ43: 0.7573414167 | AR43: 0.7372021251 | AS43: 0.7043411333 | AT43: 0.6612795675 | AU43: 0.6108916688 | AV43: 0.5560767694 | AW43: 0.499493386 | AX43: 0.4433827432 | AY43: 0.3894843471 | AZ43: 0.3390286571 | BA43: 0.2927835758 | BB43: 0.2511309382 | BC43: 0.2141534117 | BD43: 0.1817182523 | BE43: 0.1535501643 | BF43: 0.1292900438 | BG43: 0.1085394174 | BH43: 0.09089209291 | BI43: 0.07595527878 | BJ43: 0.06336254817 | BK43: 0.05278080877 | BL43: 0.04391307696 | BM43: 0.03649846525 | BN43: 0.03031043503 | BO43: 0.02515406775 | BP43: 0.02086287346 | BQ43: 0.01729547839 | BR43: 0.01433240559 | BS43: 0.01187307286 | BT43: 0.009833070828 | BU43: 0.008141744663 | BV43: 0.00674007734 | BW43: 0.005578857984 | BX43: 0.004617110818 | BY43: 0.003820756979 | BZ43: 0.003161480956 | CA43: 0.002615774577 | CB43: 0.002164133615 | CC43: 0.001790384572 | CD43: 0.001481121873 | CE43: 0.00122523826 | CF43: 0.001013533557 | CG43: 0.0008383891427 | CH43: 0.0006934973884 | CI43: 0.0005736369592 | CJ43: 0.000474486348 | CK43: 0.0003924692217 | CL43: 0.0003246262149 | CM43: 0.0002685086907 | CN43: 0.0002220907335 | CO43: 0.0001836962641 | CP43: 0.0001519386923 | CQ43: 0.0001256709608 | CR43: 0.0001039441945 | CS43: 8.597348038e-05 | CT43: 7.110954901e-05 | CU43: 5.881534297e-05 | CV43: 4.864662993e-05 | CW43: 4.023596311e-05 | CX43: 3.327941196e-05 | CY43: 2.752558486e-05 | CZ43: 2.276654845e-05 | DA43: 1.883031591e-05 | DB43: 1.557463334e-05 | DC43: 1.288184003e-05 | DD43: 1.065461703e-05 | DE43: 8.812470591e-06 | DF43: 7.288823431e-06 | DG43: 6.028608845e-06 | DH43: 4.986280699e-06 | DI43: 4.124167451e-06 | DJ43: 3.411110723e-06 | DK43: 2.821339239e-06 | DL43: 2.333537441e-06 | DM43: 1.930075129e-06 | DN43: 1.59637029e-06 | DO43: 1.320362078e-06 | DP43: 1.092074926e-06 | DQ43: 9.032580023e-07 | DR43: 7.4708702e-07 | DS43: 6.179175877e-07 | DT43: 5.110812124e-07 | DU43: 4.227165692e-07 | DV43: 3.496299447e-07 | DW43: 2.891798106e-07 | DX43: 2.391813499e-07 | DY43: 1.978274958e-07
A44: 42 | B44: 1.234184206 | C44: -2.753753754 | D44: 0.2255871892 | E44: 3 | F44: 6 | I44: 1.820922908e-05 | J44: 2.765768707e-05 | K44: 4.199271708e-05 | L44: 6.372759888e-05 | M44: 9.665615445e-05 | N44: 0.0001464947668 | O44: 0.0002218373405 | P44: 0.0003355681219 | Q44: 0.0005069379464 | R44: 0.0007645900238 | S44: 0.001150923518 | T44: 0.001728303798 | U44: 0.002587753866 | V44: 0.003860859373 | W44: 0.005735624788 | X44: 0.008476817369 | Y44: 0.0124507531 | Z44: 0.01815327781 | AA44: 0.02623761839 | AB44: 0.03753565348 | AC44: 0.05306211384 | AD44: 0.07398701306 | AE44: 0.1015588882 | AF44: 0.1369628257 | AG44: 0.1811058368 | AH44: 0.2343400968 | AI44: 0.2961610651 | AJ44: 0.3649468474 | AK44: 0.4378262192 | AL44: 0.5107613708 | AM44: 0.5788964697 | AN44: 0.637154531 | AO44: 0.6809803962 | AP44: 0.7070601927 | AQ44: 0.7138326887 | AR44: 0.7016612267 | AS44: 0.6726385758 | AT44: 0.6301063623 | AU44: 0.5780396461 | AV44: 0.520454223 | AW44: 0.4609500614 | AX44: 0.4024389247 | AY44: 0.3470468273 | AZ44: 0.296148007 | BA44: 0.2504773268 | BB44: 0.2102747114 | BC44: 0.1754290699 | BD44: 0.1456033215 | BE44: 0.12033317 | BF44: 0.09909935864 | BG44: 0.0813768356 | BH44: 0.06666562596 | BI44: 0.05450819226 | BJ44: 0.04449740143 | BK44: 0.0362783373 | BL44: 0.02954635002 | BM44: 0.02404301825 | BN44: 0.01955114345 | BO44: 0.01588948803 | BP44: 0.012907682 | BQ44: 0.01048153024 | BR44: 0.008508826644 | BS44: 0.006905704206 | BT44: 0.005603504136 | BU44: 0.004546123024 | BV44: 0.003687785855 | BW44: 0.002991189924 | BX44: 0.00242596651 | BY44: 0.001967411544 | BZ44: 0.001595441845 | CA44: 0.001293739244 | CB44: 0.00104905031 | CC44: 0.0008506144146 | CD44: 0.0006896972636 | CE44: 0.0005592108992 | CF44: 0.0004534044163 | CG44: 0.0003676124274 | CH44: 0.000298050612 | CI44: 0.0002416496205 | CJ44: 0.0001959201884 | CK44: 0.0001588436316 | CL44: 0.0001287829697 | CM44: 0.0001044108065 | CN44: 8.465081762e-05 | CO44: 6.863028518e-05 | CP44: 5.564159748e-05 | CQ44: 4.51110234e-05 | CR44: 3.657338891e-05 | CS44: 2.965154112e-05 | CT44: 2.403969566e-05 | CU44: 1.948993358e-05 | CV44: 1.580125234e-05 | CW44: 1.281068818e-05 | CX44: 1.038611797e-05 | CY44: 8.420423067e-06 | CZ44: 6.82675737e-06 | DA44: 5.534710862e-06 | DB44: 4.487199086e-06 | DC44: 3.637941264e-06 | DD44: 2.94941566e-06 | DE44: 2.391201882e-06 | DF44: 1.938636905e-06 | DG44: 1.571725444e-06 | DH44: 1.274256541e-06 | DI44: 1.03308735e-06 | DJ44: 8.375624578e-07 | DK44: 6.790431168e-07 | DL44: 5.505255656e-07 | DM44: 4.463315886e-07 | DN44: 3.618576447e-07 | DO44: 2.93371469e-07 | DP44: 2.378471734e-07 | DQ44: 1.928315581e-07 | DR44: 1.563357226e-07 | DS44: 1.267471896e-07 | DT44: 1.02758664e-07 | DU44: 8.331027306e-08 | DV44: 6.754273867e-08 | DW44: 5.475941162e-08 | DX44: 4.439549292e-08 | DY44: 3.599307786e-08
A45: 43 | B45: 0.7416374087 | C45: -2.747747748 | D45: 0.1846752048 | E45: 2 | F45: 6 | I45: 0.001710301104 | J45: 0.002167231827 | K45: 0.002740998479 | L45: 0.003459305094 | M45: 0.004355551648 | N45: 0.005469663485 | O45: 0.006848907413 | P45: 0.008548630733 | Q45: 0.0106328361 | R45: 0.01317447956 | S45: 0.01625535359 | T45: 0.01996539463 | U45: 0.02440124054 | V45: 0.02966386279 | W45: 0.03585511726 | X45: 0.04307310318 | Y45: 0.05140629477 | Z45: 0.06092651907 | AA45: 0.07168099125 | AB45: 0.08368378122 | AC45: 0.09690725644 | AD45: 0.1112742087 | AE45: 0.1266515018 | AF45: 0.1428461434 | AG45: 0.1596046645 | AH45: 0.1766165493 | AI45: 0.1935221997 | AJ45: 0.2099255231 | AK45: 0.2254107508 | AL45: 0.239562555 | AM45: 0.2519880318 | AN45: 0.2623387293 | AO45: 0.2703307164 | AP45: 0.2757607673 | AQ45: 0.2785170874 | AR45: 0.2785835938 | AS45: 0.2760374989 | AT45: 0.2710406971 | AU45: 0.2638261093 | AV45: 0.2546805904 | AW45: 0.2439261995 | AX45: 0.2319015705 | AY45: 0.2189448533 | AZ45: 0.2053792919 | BA45: 0.1915020541 | BB45: 0.1775765012 | BC45: 0.1638277366 | BD45: 0.1504410234 | BE45: 0.1375625236 | BF45: 0.1253017596 | BG45: 0.1137352281 | BH45: 0.1029106606 | BI45: 0.09285152386 | BJ45: 0.08356145146 | BK45: 0.07502839221 | BL45: 0.0672283437 | BM45: 0.06012860358 | BN45: 0.05369052035 | BO45: 0.04787175949 | BP45: 0.04262812253 | BQ45: 0.03791496867 | BR45: 0.03368829338 | BS45: 0.02990551852 | BT45: 0.02652604532 | BU45: 0.0235116164 | BV45: 0.02082652742 | BW45: 0.01843772272 | BX45: 0.01631480379 | BY45: 0.01442997392 | BZ45: 0.01275793799 | CA45: 0.01127577223 | CB45: 0.00996277551 | CC45: 0.008800310945 | CD45: 0.007771644433 | CE45: 0.006861784834 | CF45: 0.006057329204 | CG45: 0.005346315345 | CH45: 0.004718083103 | CI45: 0.00416314522 | CJ45: 0.003673068048 | CK45: 0.003240362143 | CL45: 0.002858382452 | CM45: 0.00252123771 | CN45: 0.002223708493 | CO45: 0.001961173379 | CP45: 0.001729542591 | CQ45: 0.001525198505 | CR45: 0.001344942451 | CS45: 0.001185947204 | CT45: 0.001045714636 | CU45: 0.0009220380191 | CV45: 0.0008129685128 | CW45: 0.000716785393 | CX45: 0.0006319696384 | CY45: 0.0005571805099 | CZ45: 0.0004912348001 | DA45: 0.0004330884581 | DB45: 0.0003818203286 | DC45: 0.0003366177671 | DD45: 0.0002967639205 | DE45: 0.0002616264851 | DF45: 0.0002306477724 | DG45: 0.0002033359339 | DH45: 0.0001792572111 | DI45: 0.0001580290929 | DJ45: 0.0001393142745 | DK45: 0.0001228153258 | DL45: 0.000108269986 | DM45: 9.544701143e-05 | DN45: 8.414251263e-05 | DO45: 7.417672216e-05 | DP45: 6.539114399e-05 | DQ45: 5.764603889e-05 | DR45: 5.081820652e-05 | DS45: 4.479902943e-05 | DT45: 3.949274803e-05 | DU45: 3.481493939e-05 | DV45: 3.06911758e-05 | DW45: 2.705584191e-05 | DX45: 2.385109175e-05 | DY45: 2.10259291e-05
A46: 44 | B46: 0.6588234305 | C46: -2.741741742 | D46: 0.03867555857 | E46: 1 | F46: 11 | I46: 0.0119810041 | J46: 0.01422169342 | K46: 0.01681805489 | L46: 0.01981144824 | M46: 0.02324487323 | N46: 0.0271623861 | O46: 0.03160837844 | P46: 0.03662670696 | Q46: 0.04225966127 | R46: 0.04854675649 | S46: 0.05552333755 | T46: 0.06321898521 | U46: 0.07165571922 | V46: 0.08084600438 | W46: 0.09079058057 | X46: 0.1014761588 | Y46: 0.1128730519 | Z46: 0.1249328414 | AA46: 0.1375862152 | AB46: 0.1507411489 | AC46: 0.1642816321 | AD46: 0.1780671648 | AE46: 0.1919332554 | AF46: 0.205693131 | AG46: 0.2191408307 | AH46: 0.2320557726 | AI46: 0.244208777 | AJ46: 0.2553693973 | AK46: 0.2653142627 | AL46: 0.2738359927 | AM46: 0.280752128 | AN46: 0.2859134476 | AO46: 0.2892110321 | AP46: 0.2905814976 | AQ46: 0.2900099543 | AR46: 0.2875304374 | AS46: 0.2832237799 | AT46: 0.2772131244 | AU46: 0.2696574724 | AV46: 0.2607438164 | AW46: 0.250678482 | AX46: 0.2396783113 | AY46: 0.227962265 | AZ46: 0.2157439099 | BA46: 0.2032251232 | BB46: 0.1905911997 | BC46: 0.1780074127 | BD46: 0.1656169647 | BE46: 0.1535401812 | BF46: 0.1418747499 | BG46: 0.1306967775 | BH46: 0.1200624446 | BI46: 0.1100100458 | BJ46: 0.1005622393 | BK46: 0.09172835544 | BL46: 0.08350665282 | BM46: 0.07588644062 | BN46: 0.06885001376 | BO46: 0.06237437185 | BP46: 0.05643271027 | BQ46: 0.05099568587 | BR46: 0.04603246884 | BS46: 0.04151159858 | BT46: 0.03740166448 | BU46: 0.0336718339 | BV46: 0.03029224944 | BW46: 0.02723431629 | BX46: 0.02447089891 | BY46: 0.02197644408 | BZ46: 0.01972704516 | CA46: 0.01770046046 | CB46: 0.01587609633 | CC46: 0.0142349641 | CD46: 0.01275961807 | CE46: 0.01143408051 | CF46: 0.01024375842 | CG46: 0.009175355679 | CH46: 0.008216783614 | CI46: 0.007357071882 | CJ46: 0.006586281514 | CK46: 0.005895421124 | CL46: 0.005276367107 | CM46: 0.004721788326 | CN46: 0.004225075544 | CO46: 0.003780275743 | CP46: 0.003382031281 | CQ46: 0.003025523797 | CR46: 0.002706422698 | CS46: 0.002420837982 | CT46: 0.002165277185 | CU46: 0.001936606162 | CV46: 0.001732013457 | CW46: 0.001548977981 | CX46: 0.001385239747 | CY46: 0.001238773401 | CZ46: 0.001107764331 | DA46: 0.000990587102 | DB46: 0.0008857860312 | DC46: 0.0007920576964 | DD46: 0.000708235198 | DE46: 0.0006332740104 | DF46: 0.0005662392688 | DG46: 0.0005062943528 | DH46: 0.0004526906391 | DI46: 0.0004047583073 | DJ46: 0.0003618980943 | DK46: 0.000323573901 | DL46: 0.000289306166 | DM46: 0.0002586659289 | DN46: 0.0002312695103 | DO46: 0.0002067737488 | DP46: 0.0001848717345 | DQ46: 0.0001652889899 | DR46: 0.0001477800508 | DS46: 0.0001321254061 | DT46: 0.0001181287587 | DU46: 0.0001056145752 | DV46: 9.44258926e-05 | DW46: 8.442235652e-05 | DX46: 7.547846583e-05 | DY46: 6.748200251e-05
A47: 45 | B47: 0.8424927592 | C47: -2.735735736 | D47: 0.01026281118 | E47: 3 | F47: 10 | I47: 0.008845132439 | J47: 0.01094334962 | K47: 0.01346431386 | L47: 0.01647391201 | M47: 0.02004454166 | N47: 0.02425528053 | O47: 0.02919199829 | P47: 0.0349473602 | Q47: 0.0416206448 | R47: 0.0493172674 | S47: 0.05814787047 | T47: 0.06822681146 | U47: 0.0796698522 | V47: 0.09259083407 | W47: 0.1070971158 | X47: 0.1232835633 | Y47: 0.1412249227 | Z47: 0.1609664937 | AA47: 0.1825131613 | AB47: 0.2058170524 | AC47: 0.2307643698 | AD47: 0.257162307 | AE47: 0.2847273452 | AF47: 0.3130766184 | AG47: 0.3417243331 | AH47: 0.3700853193 | AI47: 0.3974875711 | AJ47: 0.4231949894 | AK47: 0.4464404405 | AL47: 0.4664677625 | AM47: 0.4825796795 | AN47: 0.4941870607 | AO47: 0.5008539644 | AP47: 0.5023327797 | AQ47: 0.4985846963 | AR47: 0.48978261 | AS47: 0.476296062 | AT47: 0.4586603837 | AU47: 0.4375343297 | AV47: 0.4136517049 | AW47: 0.3877726745 | AX47: 0.3606396813 | AY47: 0.3329414976 | AZ47: 0.3052872764 | BA47: 0.2781909118 | BB47: 0.2520647921 | BC47: 0.227221256 | BD47: 0.2038797179 | BE47: 0.1821774442 | BF47: 0.1621822035 | BG47: 0.1439053815 | BH47: 0.1273145492 | BI47: 0.1123448363 | BJ47: 0.0989087666 | BK47: 0.08690443678 | BL47: 0.07622208273 | BM47: 0.06674916918 | BN47: 0.05837419273 | BO47: 0.05098940455 | BP47: 0.04449265457 | BQ47: 0.03878854225 | BR47: 0.03378903491 | BS47: 0.02941368925 | BT47: 0.0255895866 | BU47: 0.02225106988 | BV47: 0.01933935075 | BW47: 0.01680203873 | BX47: 0.01459263083 | BY47: 0.01266998961 | BZ47: 0.01099782896 | CA47: 0.00954422086 | CB47: 0.008281131147 | CC47: 0.007183989165 | CD47: 0.006231293309 | CE47: 0.005404252817 | CF47: 0.004686464887 | CG47: 0.004063625401 | CH47: 0.003523271072 | CI47: 0.003054550554 | CJ47: 0.002648021981 | CK47: 0.002295474411 | CL47: 0.001989770752 | CM47: 0.001724709866 | CN47: 0.001494905751 | CO47: 0.001295681831 | CP47: 0.001122978589 | CQ47: 0.0009732729653 | CR47: 0.000843508075 | CS47: 0.0007310319789 | CT47: 0.0006335443863 | CU47: 0.000549050284 | CV47: 0.0004758196164 | CW47: 0.000412352242 | CX47: 0.0003573474886 | CY47: 0.0003096777128 | CZ47: 0.0002683653436 | DA47: 0.0002325629564 | DB47: 0.000201535981 | DC47: 0.0001746476984 | DD47: 0.0001513462263 | DE47: 0.0001311532296 | DF47: 0.0001136541303 | DG47: 9.848961788e-05 | DH47: 8.534828754e-05 | DI47: 7.396025788e-05 | DJ47: 6.409163759e-05 | DK47: 5.553972864e-05 | DL47: 4.81288681e-05 | DM47: 4.170682379e-05 | DN47: 3.614167014e-05 | DO47: 3.131908022e-05 | DP47: 2.713997878e-05 | DQ47: 2.351850809e-05 | DR47: 2.038026494e-05 | DS47: 1.766077275e-05 | DT47: 1.530415738e-05 | DU47: 1.326199955e-05 | DV47: 1.149234029e-05 | DW47: 9.958819112e-06 | DX47: 8.629927018e-06 | DY47: 7.478359273e-06
A48: 46 | B48: 0.9394349456 | C48: -2.72972973 | D48: 0.2110763669 | E48: 3 | F48: 8 | I48: 0.0002674090687 | J48: 0.0003657779162 | K48: 0.0004998119715 | L48: 0.0006821335412 | M48: 0.0009296512831 | N48: 0.001264911381 | O48: 0.001717815217 | P48: 0.002327769297 | Q48: 0.003146324981 | R48: 0.004240342276 | S48: 0.005695665377 | T48: 0.007621218429 | U48: 0.01015330772 | V48: 0.01345974305 | W48: 0.01774316429 | X48: 0.02324268822 | Y48: 0.03023270605 | Z48: 0.03901741764 | AA48: 0.04991957007 | AB48: 0.06326198618 | AC48: 0.07934093991 | AD48: 0.09839135587 | AE48: 0.1205452081 | AF48: 0.1457862842 | AG48: 0.1739064314 | AH48: 0.2044701252 | AI48: 0.2367951841 | AJ48: 0.2699571643 | AK48: 0.302822977 | AL48: 0.3341154748 | AM48: 0.362505513 | AN48: 0.3867222453 | AO48: 0.4056675469 | AP48: 0.418517955 | AQ48: 0.4247984415 | AR48: 0.4244168257 | AS48: 0.4176547242 | AT48: 0.405118794 | AU48: 0.3876625894 | AV48: 0.3662930938 | AW48: 0.3420763504 | AX48: 0.3160540983 | AY48: 0.2891791086 | AZ48: 0.2622723375 | BA48: 0.2360011433 | BB48: 0.2108752076 | BC48: 0.1872555542 | BD48: 0.1653719237 | BE48: 0.1453443518 | BF48: 0.1272057539 | BG48: 0.1109233241 | BH48: 0.09641745986 | BI48: 0.08357762382 | BJ48: 0.07227504539 | BK48: 0.06237247452 | BL48: 0.05373136076 | BM48: 0.04621689359 | BN48: 0.0397013362 | BO48: 0.03406604526 | BP48: 0.02920251264 | BQ48: 0.02501270404 | BR48: 0.02140891232 | BS48: 0.01831329226 | BT48: 0.01565720155 | BU48: 0.01338043853 | BV48: 0.01143044022 | BW48: 0.009761484302 | BX48: 0.008333923168 | BY48: 0.007113467004 | BZ48: 0.006070525316 | CA48: 0.005179610505 | CB48: 0.004418803558 | CC48: 0.003769279535 | CD48: 0.003214889064 | CE48: 0.002741791338 | CF48: 0.002338133743 | CG48: 0.001993773262 | CH48: 0.001700034981 | CI48: 0.00144950329 | CJ48: 0.001235841765 | CK48: 0.001053638068 | CL48: 0.0008982705966 | CM48: 0.0007657939947 | CN48: 0.0006528409476 | CO48: 0.0005565380381 | CP48: 0.0004744336994 | CQ48: 0.0004044365708 | CR48: 0.0003447627811 | CS48: 0.0002938908913 | CT48: 0.0002505233968 | CU48: 0.0002135538479 | CV48: 0.0001820387757 | CW48: 0.0001551737266 | CX48: 0.0001322728105 | CY48: 0.0001127512485 | CZ48: 9.611048349e-05 | DA48: 8.192547956e-05 | DB48: 6.983388819e-05 | DC48: 5.9526809e-05 | DD48: 5.074091043e-05 | DE48: 4.32517107e-05 | DF48: 3.686784865e-05 | DG48: 3.142619875e-05 | DH48: 2.678770616e-05 | DI48: 2.283383577e-05 | DJ48: 1.94635449e-05 | DK48: 1.659070236e-05 | DL48: 1.414188823e-05 | DM48: 1.205451819e-05 | DN48: 1.027524452e-05 | DO48: 8.758593068e-06 | DP48: 7.465801278e-06 | DQ48: 6.363827684e-06 | DR48: 5.42450757e-06 | DS48: 4.623833227e-06 | DT48: 3.941340418e-06 | DU48: 3.359585394e-06 | DV48: 2.863699086e-06 | DW48: 2.441007098e-06 | DX48: 2.080705783e-06 | DY48: 1.773586117e-06
A49: 47 | B49: 0.5896036029 | C49: -2.723723724 | D49: 0.1589079738 | E49: 2 | F49: 7 | I49: 0.005615966789 | J49: 0.006676233883 | K49: 0.007917520909 | L49: 0.009365337984 | M49: 0.01104734013 | N49: 0.01299311838 | O49: 0.01523386408 | P49: 0.01780188608 | Q49: 0.02072996279 | R49: 0.02405051553 | S49: 0.0277945956 | T49: 0.03199068642 | U49: 0.03666333259 | V49: 0.04183162052 | W49: 0.0475075498 | X49: 0.0536943496 | Y49: 0.06038480988 | Z49: 0.06755971169 | AA49: 0.07518645312 | AB49: 0.0832179758 | AC49: 0.09159210041 | AD49: 0.1002313756 | AE49: 0.1090435335 | AF49: 0.1179226221 | AG49: 0.126750857 | AH49: 0.1354011896 | AI49: 0.1437405467 | AJ49: 0.1516336408 | AK49: 0.158947199 | AL49: 0.1655544135 | AM49: 0.1713393799 | AN49: 0.176201271 | AO49: 0.180057996 | AP49: 0.1828491186 | AQ49: 0.1845378533 | AR49: 0.1851120217 | AS49: 0.1845839261 | AT49: 0.1829891731 | AU49: 0.180384557 | AV49: 0.1768451682 | AW49: 0.1724609399 | AX49: 0.1673328616 | AY49: 0.1615690932 | AZ49: 0.1552811916 | BA49: 0.1485806273 | BB49: 0.141575729 | BC49: 0.134369143 | BD49: 0.1270558515 | BE49: 0.1197217534 | BF49: 0.1124427756 | BG49: 0.1052844621 | BH49: 0.09830197004 | BI49: 0.09154039555 | BJ49: 0.08503535257 | BK49: 0.07881372974 | BL49: 0.07289456047 | BM49: 0.06728994989 | BN49: 0.06200601301 | BO49: 0.0570437889 | BP49: 0.05240010509 | BQ49: 0.04806837486 | BR49: 0.04403931695 | BS49: 0.04030159299 | BT49: 0.03684236221 | BU49: 0.03364775609 | BV49: 0.03070327803 | BW49: 0.02799413416 | BX49: 0.02550550239 | BY49: 0.02322274699 | BZ49: 0.02113158571 | CA49: 0.01921821646 | CB49: 0.01746940953 | CC49: 0.01587257144 | CD49: 0.01441578511 | CE49: 0.01308783106 | CF49: 0.01187819334 | CG49: 0.01077705356 | CH49: 0.009775275718 | CI49: 0.008864384161 | CJ49: 0.008036536632 | CK49: 0.007284493897 | CL49: 0.006601587267 | CM49: 0.005981684988 | CN49: 0.005419158304 | CO49: 0.004908847807 | CP49: 0.004446030532 | CQ49: 0.004026388131 | CR49: 0.00364597639 | CS49: 0.003301196227 | CT49: 0.002988766296 | CU49: 0.002705697225 | CV49: 0.002449267508 | CW49: 0.002217001047 | CX49: 0.002006646272 | CY49: 0.001816156813 | CZ49: 0.001643673644 | DA49: 0.001487508618 | DB49: 0.001346129326 | DC49: 0.001218145192 | DD49: 0.001102294726 | DE49: 0.0009974338455 | DF49: 0.0009025252073 | DG49: 0.0008166284535 | DH49: 0.0007388913149 | DI49: 0.0006685414979 | DJ49: 0.0006048792938 | DK49: 0.0005472708496 | DL49: 0.0004951420464 | DM49: 0.0004479729321 | DN49: 0.0004052926621 | DO49: 0.0003666749031 | DP49: 0.0003317336594 | DQ49: 0.0003001194844 | DR49: 0.0002715160427 | DS49: 0.0002456369913 | DT49: 0.0002222231516 | DU49: 0.0002010399447 | DV49: 0.0001818750672 | DW49: 0.0001645363839 | DX49: 0.0001488500188 | DY49: 0.000134658626
A50: 48 | B50: 0.8792414069 | C50: -2.717717718 | D50: 0.1698892236 | E50: 2 | F50: 9 | I50: 0.000564687102 | J50: 0.0007545625134 | K50: 0.001006869062 | L50: 0.001341378693 | M50: 0.001783729056 | N50: 0.00236696047 | O50: 0.003133353311 | P50: 0.004136572646 | Q50: 0.005444096037 | R50: 0.007139852591 | S50: 0.009326932488 | T50: 0.01213013429 | U50: 0.01569800296 | V50: 0.02020388122 | W50: 0.02584536414 | X50: 0.0328414358 | Y50: 0.04142650952 | Z50: 0.05184063158 | AA50: 0.06431528299 | AB50: 0.07905456238 | AC50: 0.09621206992 | AD50: 0.1158645263 | AE50: 0.1379839989 | AF50: 0.16241147 | AG50: 0.1888352323 | AH50: 0.2167780461 | AI50: 0.2455969523 | AJ50: 0.274498924 | AK50: 0.3025740458 | AL50: 0.3288456877 | AM50: 0.3523344184 | AN50: 0.3721296577 | AO50: 0.3874609254 | AP50: 0.3977596304 | AQ50: 0.402703087 | AR50: 0.4022348644 | AS50: 0.3965592307 | AT50: 0.3861115126 | AU50: 0.3715097379 | AV50: 0.3534951821 | AW50: 0.3328700629 | AX50: 0.3104397155 | AY50: 0.2869646037 | AZ50: 0.2631251017 | BA50: 0.2394996789 | BB50: 0.2165553353 | BC50: 0.1946480244 | BD50: 0.1740303353 | BE50: 0.1548637572 | BF50: 0.1372332147 | BG50: 0.1211620879 | BH50: 0.1066264755 | BI50: 0.09356794232 | BJ50: 0.08190438237 | BK50: 0.07153890547 | BL50: 0.06236684216 | BM50: 0.05428106525 | BN50: 0.04717587549 | BO50: 0.04094970781 | BP50: 0.03550690009 | BQ50: 0.03075873877 | BR50: 0.02662396322 | BS50: 0.02302887775 | BT50: 0.01990718966 | BU50: 0.01719966536 | BV50: 0.01485367383 | BW50: 0.01282266898 | BX50: 0.0110656478 | BY50: 0.009546609982 | BZ50: 0.008234036253 | CA50: 0.007100396445 | CB50: 0.006121693397 | CC50: 0.005277045741 | CD50: 0.004548310181 | CE50: 0.00391974237 | CF50: 0.003377694477 | CG50: 0.002910346963 | CH50: 0.002507471786 | CI50: 0.00216022413 | CJ50: 0.001860959806 | CK50: 0.001603075591 | CL50: 0.001380869931 | CM50: 0.001189421639 | CN50: 0.001024484442 | CO50: 0.0008823954209 | CP50: 0.0007599956153 | CQ50: 0.0006545612369 | CR50: 0.0005637441309 | CS50: 0.0004855202766 | CT50: 0.0004181452694 | CU50: 0.0003601158591 | CV50: 0.0003101367357 | CW50: 0.0002670918571 | CX50: 0.0002300197072 | CY50: 0.0001980919506 | CZ50: 0.0001705950233 | DA50: 0.0001469142581 | DB50: 0.0001265201984 | DC50: 0.0001089568008 | DD50: 9.383126743e-05 | DE50: 8.080528289e-05 | DF50: 6.95874638e-05 | DG50: 5.992685279e-05 | DH50: 5.160731335e-05 | DI50: 4.444270086e-05 | DJ50: 3.827270269e-05 | DK50: 3.295925483e-05 | DL50: 2.838345518e-05 | DM50: 2.444290483e-05 | DN50: 2.104941806e-05 | DO50: 1.812704994e-05 | DP50: 1.561039752e-05 | DQ50: 1.344313674e-05 | DR50: 1.157676232e-05 | DS50: 9.969502493e-06 | DT50: 8.585384344e-06 | DU50: 7.393428891e-06 | DV50: 6.366957843e-06 | DW50: 5.482996592e-06 | DX50: 4.721760071e-06 | DY50: 4.06620997e-06
A51: 49 | B51: 1.044005096 | C51: -2.711711712 | D51: 0.1256790519 | E51: 3 | F51: 9 | I51: 0.000181570639 | J51: 0.0002575143668 | K51: 0.0003648397379 | L51: 0.0005162545615 | M51: 0.0007294384348 | N51: 0.001028873027 | O51: 0.001448271822 | P51: 0.002033758344 | Q51: 0.002847948606 | R51: 0.003975077838 | S51: 0.005527257301 | T51: 0.007651832534 | U51: 0.0105396152 | V51: 0.0144334534 | W51: 0.01963617749 | X51: 0.0265164221 | Y51: 0.03551023163 | Z51: 0.04711581268 | AA51: 0.06187846268 | AB51: 0.0803627814 | AC51: 0.1031099633 | AD51: 0.1305794251 | AE51: 0.1630762993 | AF51: 0.2006693364 | AG51: 0.2431072664 | AH51: 0.289745238 | AI51: 0.3394958877 | AJ51: 0.3908208784 | AK51: 0.4417771311 | AL51: 0.4901262865 | AM51: 0.533505752 | AN51: 0.5696461556 | AO51: 0.5966062408 | AP51: 0.6129867588 | AQ51: 0.6180841234 | AR51: 0.611954449 | AS51: 0.5953771222 | AT51: 0.5697286986 | AU51: 0.5367957644 | AV51: 0.4985642842 | AW51: 0.4570214273 | AX51: 0.413996284 | AY51: 0.3710526938 | AZ51: 0.3294350031 | BA51: 0.2900587562 | BB51: 0.2535339483 | BC51: 0.220207877 | BD51: 0.1902164947 | BE51: 0.1635361055 | BF51: 0.1400302792 | BG51: 0.1194893843 | BH51: 0.1016619732 | BI51: 0.08627841019 | BJ51: 0.07306774486 | BK51: 0.06176906671 | BL51: 0.05213857219 | BM51: 0.04395344476 | BN51: 0.03701346426 | BO51: 0.03114107092 | BP51: 0.02618043496 | BQ51: 0.02199593542 | BR51: 0.018470334 | BS51: 0.01550283915 | BT51: 0.01300718784 | BU51: 0.01090982395 | BV51: 0.009148217412 | BW51: 0.007669345368 | BX51: 0.006428340516 | BY51: 0.005387302528 | BZ51: 0.004514262388 | CA51: 0.003782286528 | CB51: 0.003168706394 | CC51: 0.002654458995 | CD51: 0.002223524579 | CE51: 0.001862448638 | CF51: 0.001559936628 | CG51: 0.001306511058 | CH51: 0.001094221873 | CI51: 0.0009164021691 | CJ51: 0.0007674624278 | CK51: 0.0006427173335 | CL51: 0.0005382401584 | CM51: 0.0004507403985 | CN51: 0.0003774610113 | CO51: 0.0003160921554 | CP51: 0.0002646988108 | CQ51: 0.000221660067 | CR51: 0.0001856182114 | CS51: 0.0001554360467 | CT51: 0.0001301611134 | CU51: 0.0001089957062 | CV51: 9.127174853e-05 | CW51: 7.642974054e-05 | CX51: 6.400112247e-05 | CY51: 5.359349984e-05 | CZ51: 4.487826716e-05 | DA51: 3.758024137e-05 | DB51: 3.146897902e-05 | DC51: 2.6351504e-05 | DD51: 2.206621691e-05 | DE51: 1.847779417e-05 | DF51: 1.547291613e-05 | DG51: 1.295668958e-05 | DH51: 1.084965177e-05 | DI51: 9.085261455e-06 | DJ51: 7.607797851e-06 | DK51: 6.370601186e-06 | DL51: 5.334599311e-06 | DM51: 4.467073872e-06 | DN51: 3.74062711e-06 | DO51: 3.132316658e-06 | DP51: 2.622931024e-06 | DQ51: 2.196382891e-06 | DR51: 1.83920107e-06 | DS51: 1.540105069e-06 | DT51: 1.289648845e-06 | DU51: 1.079922483e-06 | DV51: 9.043023944e-07 | DW51: 7.572421312e-07 | DX51: 6.340972205e-07 | DY51: 5.309784843e-07
A52: 50 | B52: 1.422090471 | C52: -2.705705706 | D52: 0.115651238 | E52: 2 | F52: 15 | I52: 5.383456518e-06 | J52: 8.721854168e-06 | K52: 1.412657757e-05 | L52: 2.287247788e-05 | M52: 3.701659699e-05 | N52: 5.98735078e-05 | O52: 9.677472794e-05 | P52: 0.0001562769881 | Q52: 0.0002520745703 | R52: 0.0004060057209 | S52: 0.0006527386269 | T52: 0.001046995262 | U52: 0.001674531076 | V52: 0.002668521255 | W52: 0.004233442553 | X52: 0.006678812506 | Y52: 0.01046491384 | Z52: 0.01626131743 | AA52: 0.02501581964 | AB52: 0.03802547916 | AC52: 0.05699236768 | AD52: 0.08403530077 | AE52: 0.121618215 | AF52: 0.1723514503 | AG52: 0.2386307394 | AH52: 0.3221058072 | AI52: 0.4230179779 | AJ52: 0.5395104906 | AK52: 0.6670853529 | AL52: 0.7984335667 | AM52: 0.9238622926 | AN52: 1.032437064 | AO52: 1.11373258 | AP52: 1.159802235 | AQ52: 1.166780516 | AR52: 1.135577242 | AS52: 1.071437841 | AT52: 0.9825761324 | AU52: 0.8783965191 | AV52: 0.7678644332 | AW52: 0.65839316 | AX52: 0.5553453642 | AY52: 0.4620409058 | AZ52: 0.3800746585 | BA52: 0.3097577583 | BB52: 0.2505525924 | BC52: 0.2014340461 | BD52: 0.1611561675 | BE52: 0.1284304185 | BF52: 0.1020331788 | BG52: 0.08086220386 | BH52: 0.06395918959 | BI52: 0.05051158464 | BJ52: 0.03984287744 | BK52: 0.03139740946 | BL52: 0.02472343225 | BM52: 0.01945652842 | BN52: 0.01530448311 | BO52: 0.01203405818 | BP52: 0.009459754195 | BQ52: 0.007434449216 | BR52: 0.005841711527 | BS52: 0.004589553239 | BT52: 0.003605394503 | BU52: 0.002832027888 | BV52: 0.002224398986 | BW52: 0.001747047148 | BX52: 0.001372076486 | BY52: 0.001077550647 | BZ52: 0.0008462249228 | CA52: 0.0006645460738 | CB52: 0.000521864125 | CC52: 0.0004098116879 | CD52: 0.0003218155012 | CE52: 0.0002527122058 | CF52: 0.0001984462237 | CG52: 0.0001558322667 | CH52: 0.0001223686896 | CI52: 9.609083198e-05 | CJ52: 7.54557942e-05 | CK52: 5.925192272e-05 | CL52: 4.652771046e-05 | CM52: 3.653595225e-05 | CN52: 2.868988439e-05 | CO52: 2.252873808e-05 | CP52: 1.7690687e-05 | CQ52: 1.389160246e-05 | CR52: 1.090836972e-05 | CS52: 8.565786354e-06 | CT52: 6.726273735e-06 | CU52: 5.281797745e-06 | CV52: 4.147524318e-06 | CW52: 3.256837365e-06 | CX52: 2.557426545e-06 | CY52: 2.008215149e-06 | CZ52: 1.576947692e-06 | DA52: 1.238295573e-06 | DB52: 9.723695273e-07 | DC52: 7.635515268e-07 | DD52: 5.995775344e-07 | DE52: 4.708172284e-07 | DF52: 3.697084164e-07 | DG52: 2.903128938e-07 | DH52: 2.279676956e-07 | DI52: 1.79011235e-07 | DJ52: 1.405682591e-07 | DK52: 1.103809795e-07 | DL52: 8.667647185e-08 | DM52: 6.806254706e-08 | DN52: 5.344599637e-08 | DO52: 4.19683748e-08 | DP52: 3.29555937e-08 | DQ52: 2.587832114e-08 | DR52: 2.032090715e-08 | DS52: 1.595695615e-08 | DT52: 1.2530172e-08 | DU52: 9.839296365e-09 | DV52: 7.726290011e-09 | DW52: 6.067055171e-09 | DX52: 4.764144763e-09 | DY52: 3.741036699e-09
A53: 51 | B53: 0.6573573947 | C53: -2.6996997 | D53: 0.2540819049 | E53: 2 | F53: 1 | I53: 0.00198844839 | J53: 0.002446233816 | K53: 0.0030040651 | L53: 0.003681897777 | M53: 0.004503004633 | N53: 0.005494301109 | O53: 0.006686622497 | P53: 0.008114917505 | Q53: 0.009818314045 | R53: 0.0118400046 | S53: 0.01422689115 | T53: 0.01702892483 | U53: 0.02029807522 | V53: 0.02408686951 | W53: 0.0284464563 | X53: 0.03342417226 | Y53: 0.03906062511 | Z53: 0.04538635223 | AA53: 0.05241816956 | AB53: 0.06015538694 | AC53: 0.06857612767 | AD53: 0.07763404473 | AE53: 0.08725576499 | AF53: 0.09733940573 | AG53: 0.1077544873 | AH53: 0.118343505 | AI53: 0.128925321 | AJ53: 0.1393003962 | AK53: 0.1492577155 | AL53: 0.1585830821 | AM53: 0.167068288 | AN53: 0.1745205426 | AO53: 0.1807714621 | AP53: 0.185684928 | AQ53: 0.1891631996 | AR53: 0.1911508159 | AS53: 0.1916360302 | AT53: 0.1906497486 | AU53: 0.1882621709 | AV53: 0.1845775261 | AW53: 0.1797274247 | AX53: 0.17386342 | AY53: 0.1671493657 | AZ53: 0.1597540931 | BA53: 0.1518448293 | BB53: 0.1435816467 | BC53: 0.1351131055 | BD53: 0.1265731305 | BE53: 0.1180790652 | BF53: 0.1097307761 | BG53: 0.1016106385 | BH53: 0.09378421454 | BI53: 0.08630143566 | BJ53: 0.07919811903 | BK53: 0.07249766777 | BL53: 0.06621283538 | BM53: 0.06034746126 | BN53: 0.05489811138 | BO53: 0.04985558041 | BP53: 0.04520623065 | BQ53: 0.04093315786 | BR53: 0.03701718476 | BS53: 0.03343769054 | BT53: 0.03017328961 | BU53: 0.02720237544 | BV53: 0.02450354623 | BW53: 0.02205592944 | BX53: 0.01983942087 | BY53: 0.01783485306 | BZ53: 0.01602410616 | CA53: 0.01439017247 | CB53: 0.01291718467 | CC53: 0.01159041597 | CD53: 0.01039625908 | CE53: 0.009322189569 | CF53: 0.008356718493 | CG53: 0.007489337614 | CH53: 0.006710460389 | CI53: 0.006011360831 | CJ53: 0.005384112018 | CK53: 0.004821525521 | CL53: 0.004317092672 | CM53: 0.003864928341 | CN53: 0.003459717645 | CO53: 0.003096665842 | CP53: 0.002771451554 | CQ53: 0.002480183326 | CR53: 0.002219359496 | CS53: 0.001985831256 | CT53: 0.001776768785 | CU53: 0.001589630287 | CV53: 0.001422133748 | CW53: 0.001272231257 | CX53: 0.001138085674 | CY53: 0.001018049495 | CZ53: 0.0009106457136 | DA53: 0.0008145505369 | DB53: 0.0007285777694 | DC53: 0.000651664739 | DD53: 0.0005828596151 | DE53: 0.0005213099913 | DF53: 0.0004662526163 | DG53: 0.0004170041607 | DH53: 0.0003729529229 | DI53: 0.0003335513799 | DJ53: 0.0002983095008 | DK53: 0.0002667887484 | DL53: 0.0002385966976 | DM53: 0.0002133822117 | DN53: 0.0001908311171 | DO53: 0.000170662328 | DP53: 0.0001526243742 | DQ53: 0.0001364922905 | DR53: 0.000122064831 | DS53: 0.0001091619745 | DT53: 9.762269146e-05 | DU53: 8.730294393e-05 | DV53: 7.80738963e-05 | DW53: 6.982031318e-05 | DX53: 6.243912584e-05 | DY53: 5.583814931e-05
A54: 52 | B54: 1.152454793 | C54: -2.693693694 | D54: 0.2723370194 | E54: 1 | F54: 1 | I54: 2.403228413e-05 | J54: 3.549366211e-05 | K54: 5.239996412e-05 | L54: 7.732110604e-05 | M54: 0.0001140267082 | N54: 0.0001680357327 | O54: 0.0002474097944 | P54: 0.0003638918454 | Q54: 0.0005345294842 | R54: 0.0007839697167 | S54: 0.001147669137 | T54: 0.001676326417 | U54: 0.002441902641 | V54: 0.003545628733 | W54: 0.005128370503 | X54: 0.007383569968 | Y54: 0.01057261721 | Z54: 0.01504181503 | AA54: 0.02123895756 | AB54: 0.02972587785 | AC54: 0.041181191 | AD54: 0.0563852097 | AE54: 0.07617740086 | AF54: 0.1013770309 | AG54: 0.1326613718 | AH54: 0.1704043302 | AI54: 0.2144917624 | AJ54: 0.264145923 | AK54: 0.3178055177 | AL54: 0.3731125631 | AM54: 0.4270459189 | AN54: 0.4762113869 | AO54: 0.5172548924 | AP54: 0.5473222303 | AQ54: 0.5644640432 | AR54: 0.5678915349 | AS54: 0.5580274998 | AT54: 0.5363542536 | AU54: 0.5051125133 | AV54: 0.4669343523 | AW54: 0.4244926625 | AX54: 0.3802259851 | AY54: 0.3361649477 | AZ54: 0.2938576779 | BA54: 0.25437343 | BB54: 0.2183570311 | BC54: 0.1861085633 | BD54: 0.1576688326 | BE54: 0.1328982782 | BF54: 0.1115430856 | BG54: 0.09328662748 | BH54: 0.07778700288 | BI54: 0.06470275046 | BJ54: 0.05370921885 | BK54: 0.04450797646 | BL54: 0.03683129548 | BM54: 0.03044332593 | BN54: 0.02513917438 | BO54: 0.02074275989 | BP54: 0.0171040492 | BQ54: 0.01409606855 | BR54: 0.01161194217 | BS54: 0.009562103795 | BT54: 0.007871758336 | BU54: 0.006478624693 | BV54: 0.005330962872 | BW54: 0.004385871501 | BX54: 0.003607833082 | BY54: 0.002967480377 | BZ54: 0.002440556592 | CA54: 0.002007043067 | CB54: 0.00165043029 | CC54: 0.001357110525 | CD54: 0.001115873037 | CE54: 0.0009174854047 | CF54: 0.0007543468133 | CG54: 0.0006202013274 | CH54: 0.0005099010235 | CI54: 0.0004192104866 | CJ54: 0.0003446455604 | CK54: 0.0002833404306 | CL54: 0.0002329381143 | CM54: 0.0001915002706 | CN54: 0.0001574329462 | CO54: 0.0001294254584 | CP54: 0.0001064001009 | CQ54: 8.747076411e-05 | CR54: 7.190889425e-05 | CS54: 5.911549392e-05 | CT54: 4.859809327e-05 | CU54: 3.995181156e-05 | CV54: 3.28437834e-05 | CW54: 2.700035258e-05 | CX54: 2.219654216e-05 | CY54: 1.824739657e-05 | CZ54: 1.500086315e-05 | DA54: 1.233193944e-05 | DB54: 1.013786141e-05 | DC54: 8.33414742e-06 | DD54: 6.85134589e-06 | DE54: 5.632361425e-06 | DF54: 4.630256613e-06 | DG54: 3.806444861e-06 | DH54: 3.129204698e-06 | DI54: 2.572458407e-06 | DJ54: 2.114767924e-06 | DK54: 1.738509382e-06 | DL54: 1.429194509e-06 | DM54: 1.174912759e-06 | DN54: 9.658726874e-07 | DO54: 7.940249282e-07 | DP54: 6.527522515e-07 | DQ54: 5.366147557e-07 | DR54: 4.41140403e-07 | DS54: 3.626528167e-07 | DT54: 2.981297178e-07 | DU54: 2.450865503e-07 | DV54: 2.014808088e-07 | DW54: 1.656333895e-07 | DX54: 1.36163934e-07 | DY54: 1.11937677e-07
A55: 53 | B55: 0.7719456553 | C55: -2.687687688 | D55: 0.08605989218 | E55: 3 | F55: 1 | I55: 0.002597666219 | J55: 0.003304613325 | K55: 0.004192837388 | L55: 0.005304296408 | M55: 0.006688910318 | N55: 0.008405431127 | O55: 0.01052217559 | P55: 0.01311751987 | Q55: 0.01628003616 | R55: 0.02010813566 | S55: 0.02470907347 | T55: 0.03019717148 | U55: 0.03669112771 | V55: 0.04431030605 | W55: 0.05316993958 | X55: 0.06337523416 | Y55: 0.07501442586 | Z55: 0.08815092748 | AA55: 0.1028147963 | AB55: 0.1189938691 | AC55: 0.1366250396 | AD55: 0.1555862968 | AE55: 0.1756902814 | AF55: 0.1966802393 | AG55: 0.2182293138 | AH55: 0.2399440878 | AI55: 0.261373123 | AJ55: 0.2820209059 | AK55: 0.301367111 | AL55: 0.3188904433 | AM55: 0.3340956207 | AN55: 0.3465414055 | AO55: 0.3558671432 | AP55: 0.3618151323 | AQ55: 0.3642464151 | AR55: 0.3631482418 | AS55: 0.3586324234 | AT55: 0.3509248882 | AU55: 0.3403477963 | AV55: 0.3272963506 | AW55: 0.3122128682 | AX55: 0.295560687 | AY55: 0.2778001487 | AZ55: 0.2593683223 | BA55: 0.2406634423 | BB55: 0.2220343783 | BC55: 0.2037748956 | BD55: 0.1861220811 | BE55: 0.1692580871 | BF55: 0.1533142815 | BG55: 0.1383769363 | BH55: 0.1244937054 | BI55: 0.1116802973 | BJ55: 0.09992690706 | BK55: 0.08920411873 | BL55: 0.0794681132 | BM55: 0.07066511183 | BN55: 0.06273505547 | BO55: 0.05561456426 | BP55: 0.04923925083 | BQ55: 0.04354547193 | BR55: 0.03847160702 | BS55: 0.03395894794 | BT55: 0.02995227686 | BU55: 0.02640019968 | BV55: 0.02325529249 | BW55: 0.02047410868 | BX55: 0.01801708546 | BY55: 0.0158483807 | BZ55: 0.01393566432 | CA55: 0.01224988263 | CB55: 0.01076500973 | CC55: 0.009457796123 | CD55: 0.00830752189 | CE55: 0.007295759423 | CF55: 0.00640614904 | CG55: 0.00562418941 | CH55: 0.004937043757 | CI55: 0.004333362101 | CJ55: 0.003803119307 | CK55: 0.003337468315 | CL55: 0.002928607776 | CM55: 0.002569663113 | CN55: 0.002254580022 | CO55: 0.001978029353 | CP55: 0.00173532239 | CQ55: 0.001522335515 | CR55: 0.001335443362 | CS55: 0.001171459583 | CT55: 0.001027584429 | CU55: 0.0009013584165 | CV55: 0.0007906214147 | CW55: 0.0006934765491 | CX55: 0.0006082583798 | CY55: 0.0005335048645 | CZ55: 0.0004679326726 | DA55: 0.0004104154594 | DB55: 0.0003599647534 | DC55: 0.00031571315 | DD55: 0.0002768995376 | DE55: 0.0002428561137 | DF55: 0.0002129969773 | DG55: 0.0001868081095 | DH55: 0.0001638385727 | DI55: 0.0001436927842 | DJ55: 0.0001260237323 | DK55: 0.0001105270208 | DL55: 9.693564253e-05 | DM55: 8.501539175e-05 | DN55: 7.456083852e-05 | DO55: 6.539179613e-05 | DP55: 5.735022158e-05 | DQ55: 5.029749599e-05 | DR55: 4.411203871e-05 | DS55: 3.868721412e-05 | DT55: 3.392949536e-05 | DU55: 2.975685349e-05 | DV55: 2.609734445e-05 | DW55: 2.288786956e-05 | DX55: 2.007308827e-05 | DY55: 1.760446453e-05
A56: 54 | B56: 0.7954320312 | C56: -2.681681682 | D56: 0.1373586774 | E56: 2 | F56: 1 | I56: 0.001314251912 | J56: 0.001698237297 | K56: 0.002190258631 | L56: 0.00281882981 | M56: 0.003619162516 | N56: 0.004634387095 | O56: 0.005916848568 | P56: 0.007529414801 | Q56: 0.009546701226 | R56: 0.01205607784 | S56: 0.01515828166 | T56: 0.0189674154 | U56: 0.02361007655 | V56: 0.02922333831 | W56: 0.03595130434 | X56: 0.04393999167 | Y56: 0.05333037057 | Z56: 0.06424951023 | AA56: 0.07679994861 | AB56: 0.09104761789 | AC56: 0.1070089049 | AD56: 0.1246376907 | AE56: 0.1438134699 | AF56: 0.1643318668 | AG56: 0.1858989953 | AH56: 0.2081311046 | AI56: 0.230560763 | AJ56: 0.2526504104 | AK56: 0.2738134509 | AL56: 0.2934421848 | AM56: 0.3109408969 | AN56: 0.3257614775 | AO56: 0.3374382399 | AP56: 0.3456183141 | AQ56: 0.3500842521 | AR56: 0.3507663047 | AS56: 0.3477430966 | AT56: 0.3412309176 | AU56: 0.3315632735 | AV56: 0.3191634313 | AW56: 0.3045132833 | AX56: 0.288121879 | AY56: 0.2704965219 | AZ56: 0.2521185412 | BA56: 0.2334249414 | BB56: 0.2147962551 | BC56: 0.1965502276 | BD56: 0.178940477 | BE56: 0.1621590305 | BF56: 0.1463415819 | BG56: 0.1315744036 | BH56: 0.1179020189 | BI56: 0.1053349434 | BJ56: 0.09385701195 | BK56: 0.08343198585 | BL56: 0.07400928271 | BM56: 0.06552878023 | BN56: 0.05792472095 | BO56: 0.05112879227 | BP56: 0.0450724808 | BQ56: 0.03968880981 | BR56: 0.03491356691 | BS56: 0.03068612129 | BT56: 0.02694991847 | BU56: 0.02365272802 | BV56: 0.02074670669 | BW56: 0.01818832827 | BX56: 0.01593822047 | BY56: 0.01396094081 | BZ56: 0.01222471548 | CA56: 0.01070115959 | CB56: 0.009364991894 | CC56: 0.008193753598 | CD56: 0.00716753759 | CE56: 0.006268732386 | CF56: 0.005481783237 | CG56: 0.004792971657 | CH56: 0.004190213695 | CI56: 0.003662876676 | CJ56: 0.003201613666 | CK56: 0.002798214696 | CL56: 0.002445473563 | CM56: 0.002137069012 | CN56: 0.001867459033 | CO56: 0.001631787073 | CP56: 0.001425798993 | CQ56: 0.001245769661 | CR56: 0.001088438182 | CS56: 0.0009509508136 | CT56: 0.0008308107185 | CU56: 0.000725833774 | CV56: 0.0006341097507 | CW56: 0.0005539682261 | CX56: 0.0004839486798 | CY56: 0.0004227742691 | CZ56: 0.0003693288459 | DA56: 0.0003226368211 | DB56: 0.0002818455315 | DC56: 0.0002462098026 | DD56: 0.0002150784375 | DE56: 0.000187882395 | DF56: 0.0001641244477 | DG56: 0.0001433701366 | DH56: 0.0001252398605 | DI56: 0.0001094019597 | DJ56: 9.5566669e-05 | DK56: 8.348083152e-05 | DL56: 7.292327825e-05 | DM56: 6.370078963e-05 | DN56: 5.564456623e-05 | DO56: 4.860714432e-05 | DP56: 4.245970073e-05 | DQ56: 3.708969765e-05 | DR56: 3.239882482e-05 | DS56: 2.830120147e-05 | DT56: 2.472180539e-05 | DU56: 2.159510039e-05 | DV56: 1.886383715e-05 | DW56: 1.647800561e-05 | DX56: 1.439391974e-05 | DY56: 1.257341795e-05
A57: 55 | B57: 1.120680034 | C57: -2.675675676 | D57: 0.01199387312 | E57: 2 | F57: 2 | I57: 0.0008185851879 | J57: 0.001165790707 | K57: 0.001652255154 | L57: 0.002328858672 | M57: 0.003262237813 | N57: 0.004538237573 | O57: 0.006265515798 | P57: 0.008579096608 | Q57: 0.01164365737 | R57: 0.01565636887 | S57: 0.0208491859 | T57: 0.02749057406 | U57: 0.03588670552 | V57: 0.0463820987 | W57: 0.05935947069 | X57: 0.07523820335 | Y57: 0.09447032321 | Z57: 0.11753232 | AA57: 0.144910558 | AB57: 0.1770775742 | AC57: 0.2144563479 | AD57: 0.257369894 | AE57: 0.3059745707 | AF57: 0.3601776978 | AG57: 0.4195437909 | AH57: 0.4831990584 | AI57: 0.5497503432 | AJ57: 0.617241035 | AK57: 0.6831701466 | AL57: 0.7445983937 | AM57: 0.7983537611 | AN57: 0.8413279792 | AO57: 0.8708281965 | AP57: 0.8849233563 | AQ57: 0.882713201 | AR57: 0.8644574893 | AS57: 0.8315338695 | AT57: 0.7862351382 | AU57: 0.7314548979 | AV57: 0.670331529 | AW57: 0.605918865 | AX57: 0.540932564 | AY57: 0.4775940448 | AZ57: 0.4175691236 | BA57: 0.3619822134 | BB57: 0.3114804013 | BC57: 0.2663227689 | BD57: 0.2264756374 | BE57: 0.1917010167 | BF57: 0.1616314886 | BG57: 0.135829211 | BH57: 0.1138295718 | BI57: 0.09517152343 | BJ57: 0.07941719208 | BK57: 0.0661633413 | BL57: 0.05504695925 | BM57: 0.04574681649 | BN57: 0.03798241499 | BO57: 0.03151137209 | BP57: 0.02612597494 | BQ57: 0.02164940319 | BR57: 0.01793194078 | BS57: 0.01484737191 | BT57: 0.01228966845 | BU57: 0.01017001806 | BV57: 0.008414204519 | BW57: 0.006960328891 | BX57: 0.005756847359 | BY57: 0.004760894951 | BZ57: 0.003936862528 | CA57: 0.003255194757 | CB57: 0.002691378808 | CC57: 0.002225096264 | CD57: 0.001839513766 | CE57: 0.001520690951 | CF57: 0.001257087163 | CG57: 0.001039151024 | CH57: 0.0008589793629 | CI57: 0.0007100340406 | CJ57: 0.0005869070305 | CK57: 0.0004851256607 | CL57: 0.0004009912343 | CM57: 0.0003314453678 | CN57: 0.0002739593255 | CO57: 0.0002264424226 | CP57: 0.000187166228 | CQ57: 0.0001547018557 | CR57: 0.0001278680924 | CS57: 0.0001056884953 | CT57: 8.735591272e-05 | CU57: 7.220314616e-05 | CV57: 5.96786922e-05 | CW57: 4.932668658e-05 | CX57: 4.077032301e-05 | CY57: 3.369814535e-05 | CZ57: 2.785271577e-05 | DA57: 2.30212472e-05 | DB57: 1.902785989e-05 | DC57: 1.572718056e-05 | DD57: 1.299905141e-05 | DE57: 1.074415672e-05 | DF57: 8.880407854e-06 | DG57: 7.339955236e-06 | DH57: 6.066718519e-06 | DI57: 5.014345162e-06 | DJ57: 4.144523065e-06 | DK57: 3.425585879e-06 | DL57: 2.831360235e-06 | DM57: 2.340212914e-06 | DN57: 1.934263311e-06 | DO57: 1.598732485e-06 | DP57: 1.321405137e-06 | DQ57: 1.092184907e-06 | DR57: 9.027268095e-07 | DS57: 7.461334359e-07 | DT57: 6.167038462e-07 | DU57: 5.097260241e-07 | DV57: 4.21305329e-07 | DW57: 3.482227123e-07 | DX57: 2.878175238e-07 | DY57: 2.378906471e-07
A58: 56 | B58: 0.7167448401 | C58: -2.66966967 | D58: 0.1315658212 | E58: 2 | F58: 1 | I58: 0.002500824176 | J58: 0.003129832053 | K58: 0.003908323958 | L58: 0.004868491851 | M58: 0.00604823756 | N58: 0.007491753364 | O58: 0.009250006206 | P58: 0.0113810576 | Q58: 0.01395013659 | R58: 0.01702937033 | S58: 0.02069706737 | T58: 0.02503644623 | U58: 0.03013370704 | V58: 0.03607536175 | W58: 0.04294476817 | X58: 0.05081785789 | Y58: 0.05975810732 | Z58: 0.06981087306 | AA58: 0.08099729578 | AB58: 0.09330806607 | AC58: 0.1066974353 | AD58: 0.1210779373 | AE58: 0.136316349 | AF58: 0.1522314561 | AG58: 0.1685941701 | AH58: 0.1851304785 | AI58: 0.2015275578 | AJ58: 0.2174431581 | AK58: 0.2325180777 | AL58: 0.2463912006 | AM58: 0.2587162283 | AN58: 0.2691789302 | AO58: 0.2775135413 | AP58: 0.2835168871 | AQ58: 0.2870589498 | AR58: 0.2880889038 | AS58: 0.286636103 | AT58: 0.2828060285 | AU58: 0.2767717281 | AV58: 0.268761709 | AW58: 0.2590455255 | AX58: 0.2479184082 | AY58: 0.2356862105 | AZ58: 0.222651736 | BA58: 0.2091032176 | BB58: 0.1953053865 | BC58: 0.1814932642 | BD58: 0.1678685529 | BE58: 0.1545983151 | BF58: 0.1418155291 | BG58: 0.1296210613 | BH58: 0.1180866121 | BI58: 0.1072582371 | BJ58: 0.09716011391 | BK58: 0.08779829911 | BL58: 0.07916429283 | BM58: 0.0712382903 | BN58: 0.06399205445 | BO58: 0.05739138343 | BP58: 0.05139817643 | BQ58: 0.04597212155 | BR58: 0.04107204109 | BS58: 0.03665693587 | BT58: 0.03268677161 | BU58: 0.02912304965 | BV58: 0.02592920037 | BW58: 0.02307083436 | BX58: 0.02051588133 | BY58: 0.01823464242 | BZ58: 0.01619977741 | CA58: 0.0143862441 | CB58: 0.01277120427 | CC58: 0.01133390717 | CD58: 0.01005555935 | CE58: 0.008919187548 | CF58: 0.007909499621 | CG58: 0.007012747204 | CH58: 0.006216592724 | CI58: 0.005509982552 | CJ58: 0.004883027442 | CK58: 0.004326890892 | CL58: 0.003833685712 | CM58: 0.003396378817 | CN58: 0.00300870404 | CO58: 0.002665082673 | CP58: 0.002360551307 | CQ58: 0.002090696529 | CR58: 0.001851595983 | CS58: 0.001639765304 | CT58: 0.001452110447 | CU58: 0.001285884923 | CV58: 0.001138651523 | CW58: 0.00100824808 | CX58: 0.0008927568939 | CY58: 0.0007904774616 | CZ58: 0.0006999021586 | DA58: 0.000619694588 | DB58: 0.0005486703087 | DC58: 0.0004857796953 | DD58: 0.0004300927008 | DE58: 0.0003807853185 | DF58: 0.0003371275577 | DG58: 0.0002984727692 | DH58: 0.0002642481708 | DI58: 0.0002339464418 | DJ58: 0.000207118266 | DK58: 0.0001833657201 | DL58: 0.0001623364102 | DM58: 0.0001437182747 | DN58: 0.0001272349777 | DO58: 0.0001126418263 | DP58: 9.972215289e-05 | DQ58: 8.828411023e-05 | DR58: 7.815783136e-05 | DS58: 6.919291426e-05 | DT58: 6.125619352e-05 | DU58: 5.422976667e-05 | DV58: 4.800924616e-05 | DW58: 4.250221122e-05 | DX58: 3.762683684e-05 | DY58: 3.331067962e-05
A59: 57 | B59: 1.327095687 | C59: -2.663663664 | D59: 0.2207022071 | E59: 3 | F59: 1 | I59: 5.190610074e-06 | J59: 8.14313944e-06 | K59: 1.27722671e-05 | L59: 2.002729412e-05 | M59: 3.139237071e-05 | N59: 4.91852951e-05 | O59: 7.702080915e-05 | P59: 0.0001205266375 | Q59: 0.000188445665 | R59: 0.0002943238187 | S59: 0.0004590782372 | T59: 0.0007148729436 | U59: 0.001110907131 | V59: 0.001721945778 | W59: 0.00266067886 | X59: 0.00409523465 | Y59: 0.006273281747 | Z59: 0.009553917112 | AA59: 0.01444759236 | AB59: 0.02166215747 | AC59: 0.03214909691 | AD59: 0.04713777229 | AE59: 0.06813726259 | AF59: 0.0968770273 | AG59: 0.1351532144 | AH59: 0.1845533689 | AI59: 0.2460554142 | AJ59: 0.3195402861 | AK59: 0.4033155533 | AL59: 0.4938007666 | AM59: 0.5855439544 | AN59: 0.6716924064 | AO59: 0.7449191065 | AP59: 0.7986377536 | AQ59: 0.8281950133 | AR59: 0.8316909837 | AS59: 0.8101876396 | AT59: 0.767278678 | AU59: 0.7082076598 | AV59: 0.6388342827 | AW59: 0.5647279847 | AX59: 0.4905554302 | AY59: 0.4197970116 | AZ59: 0.3547331388 | BA59: 0.2966016877 | BB59: 0.2458320866 | BC59: 0.2022873874 | BD59: 0.1654752274 | BE59: 0.1347121509 | BF59: 0.1092406794 | BG59: 0.08830599379 | BH59: 0.07120153577 | BI59: 0.05729249908 | BJ59: 0.04602463621 | BK59: 0.03692398336 | BL59: 0.02959145267 | BM59: 0.02369492117 | BN59: 0.01896047155 | BO59: 0.01516376173 | BP59: 0.0121220495 | BQ59: 0.009687112301 | BR59: 0.007739129559 | BS59: 0.006181496804 | BT59: 0.004936490585 | BU59: 0.003941682123 | BV59: 0.003146993724 | BW59: 0.002512297308 | BX59: 0.002005464407 | BY59: 0.001600788498 | BZ59: 0.001277712236 | CA59: 0.001019802967 | CB59: 0.0008139295434 | CC59: 0.0006496018266 | CD59: 0.000518441297 | CE59: 0.0004137571349 | CF59: 0.0003302069887 | CG59: 0.0002635256672 | CH59: 0.0002103082488 | CI59: 0.0001678367569 | CJ59: 0.0001339416871 | CK59: 0.0001068914051 | CL59: 8.530381975e-05 | CM59: 6.8075856e-05 | CN59: 5.432714684e-05 | CO59: 4.335508165e-05 | CP59: 3.459892305e-05 | CQ59: 2.761116448e-05 | CR59: 2.203466856e-05 | CS59: 1.758441997e-05 | CT59: 1.403296217e-05 | CU59: 1.119877416e-05 | CV59: 8.936994278e-06 | CW59: 7.132016873e-06 | CX59: 5.691584073e-06 | CY59: 4.542070577e-06 | CZ59: 3.62472067e-06 | DA59: 2.892645183e-06 | DB59: 2.308424903e-06 | DC59: 1.842198005e-06 | DD59: 1.470133727e-06 | DE59: 1.173214324e-06 | DF59: 9.362629925e-07 | DG59: 7.471681434e-07 | DH59: 5.962643258e-07 | DI59: 4.758381943e-07 | DJ59: 3.797342464e-07 | DK59: 3.030401887e-07 | DL59: 2.418358522e-07 | DM59: 1.929928148e-07 | DN59: 1.54014494e-07 | DO59: 1.229085356e-07 | DP59: 9.808497685e-08 | DQ59: 7.82749758e-08 | DR59: 6.246595583e-08 | DS59: 4.984984781e-08 | DT59: 3.978178656e-08 | DU59: 3.174714844e-08 | DV59: 2.533524894e-08 | DW59: 2.021834538e-08 | DX59: 1.613489174e-08 | DY59: 1.287616374e-08
A60: 58 | B60: 1.422740877 | C60: -2.657657658 | D60: 0.2492455602 | E60: 2 | F60: 1 | I60: 1.673216696e-06 | J60: 2.712777381e-06 | K60: 4.397602497e-06 | L60: 7.127565639e-06 | M60: 1.15496561e-05 | N60: 1.870996291e-05 | O60: 3.029836146e-05 | P60: 4.904163106e-05 | Q60: 7.93333741e-05 | R60: 0.0001282399667 | S60: 0.0002071000666 | T60: 0.0003340538093 | U60: 0.0005380136014 | V60: 0.0008648410889 | W60: 0.001386842296 | X60: 0.002217138912 | Y60: 0.003530981757 | Z60: 0.005596516526 | AA60: 0.008817595303 | AB60: 0.01379037212 | AC60: 0.02137266403 | AD60: 0.03275906942 | AE60: 0.04954427997 | AF60: 0.07374161807 | AG60: 0.1077062813 | AH60: 0.1539011482 | AI60: 0.2144516961 | AJ60: 0.2904826512 | AK60: 0.3813210321 | AL60: 0.4837720659 | AM60: 0.5917737355 | AN60: 0.6967343351 | AO60: 0.7886934679 | AP60: 0.8581362302 | AQ60: 0.8979614658 | AR60: 0.90495243 | AS60: 0.8802506408 | AT60: 0.8287340015 | AU60: 0.7576241749 | AV60: 0.674867847 | AW60: 0.5877807612 | AX60: 0.5022130315 | AY60: 0.4222498753 | AZ60: 0.3503095502 | BA60: 0.2874577685 | BB60: 0.2337879821 | BC60: 0.1887731111 | BD60: 0.1515456573 | BE60: 0.1210977973 | BF60: 0.09641117733 | BG60: 0.07653261705 | BH60: 0.06061191295 | BI60: 0.0479151128 | BJ60: 0.03782316086 | BK60: 0.02982269569 | BL60: 0.02349335263 | BM60: 0.01849418835 | BN60: 0.01455068185 | BO60: 0.01144302686 | BP60: 0.008995984959 | BQ60: 0.007070315727 | BR60: 0.005555669382 | BS60: 0.004364769383 | BT60: 0.003428697103 | BU60: 0.002693097613 | BV60: 0.002115143559 | BW60: 0.001661115928 | BX60: 0.001304482671 | BY60: 0.001024376549 | BZ60: 0.0008043916357 | CA60: 0.0006316331957 | CB60: 0.0004959684925 | CC60: 0.0003894365814 | CD60: 0.0003057836839 | CE60: 0.0002400976308 | CF60: 0.0001885203778 | CG60: 0.0001480219984 | CH60: 0.0001162230557 | CI60: 9.125502672e-05 | CJ60: 7.165064599e-05 | CK60: 5.625776662e-05 | CL60: 4.417170147e-05 | CM60: 3.46820845e-05 | CN60: 2.723113871e-05 | CO60: 2.138090366e-05 | CP60: 1.678750021e-05 | CQ60: 1.318092189e-05 | CR60: 1.034916638e-05 | CS60: 8.125775449e-06 | CT60: 6.380051111e-06 | CU60: 5.009373521e-06 | CV60: 3.933169006e-06 | CW60: 3.088173906e-06 | CX60: 2.42471584e-06 | CY60: 1.903793846e-06 | CZ60: 1.494785796e-06 | DA60: 1.173648334e-06 | DB60: 9.215035145e-07 | DC60: 7.235290829e-07 | DD60: 5.680871695e-07 | DE60: 4.460401571e-07 | DF60: 3.502135415e-07 | DG60: 2.749741726e-07 | DH60: 2.158991191e-07 | DI60: 1.695156627e-07 | DJ60: 1.330971624e-07 | DK60: 1.045027587e-07 | DL60: 8.20515351e-08 | DM60: 6.442370081e-08 | DN60: 5.058300505e-08 | DO60: 3.971582392e-08 | DP60: 3.118333335e-08 | DQ60: 2.448395094e-08 | DR60: 1.922385313e-08 | DS60: 1.509382815e-08 | DT60: 1.185109211e-08 | DU60: 9.305020097e-09 | DV60: 7.305942857e-09 | DW60: 5.736344477e-09 | DX60: 4.503956578e-09 | DY60: 3.536332631e-09
A61: 59 | B61: 1.405352771 | C61: -2.651651652 | D61: 0.2494407535 | E61: 2 | F61: 1 | I61: 1.930635243e-06 | J61: 3.111563758e-06 | K61: 5.014106558e-06 | L61: 8.078443319e-06 | M61: 1.301245911e-05 | N61: 2.09537207e-05 | O61: 3.372858919e-05 | P61: 5.426582024e-05 | Q61: 8.725493359e-05 | R61: 0.0001401905096 | S61: 0.0002250211812 | T61: 0.0003607384842 | U61: 0.0005774112933 | V61: 0.0009224135239 | W61: 0.001469920073 | X61: 0.002335156877 | Y61: 0.003695342412 | Z61: 0.005819619038 | AA61: 0.009110250357 | AB61: 0.01415640435 | AC61: 0.02179906216 | AD61: 0.03319980474 | AE61: 0.04989632931 | AF61: 0.07381349084 | AG61: 0.1071831933 | AH61: 0.1523170924 | AI61: 0.2111857063 | AJ61: 0.2848008391 | AK61: 0.3724818271 | AL61: 0.47119458 | AM61: 0.5752391766 | AN61: 0.6765587808 | AO61: 0.7657966261 | AP61: 0.8339526032 | AQ61: 0.8741974304 | AR61: 0.8832594193 | AS61: 0.8619222749 | AT61: 0.8145203752 | AU61: 0.7477004194 | AV61: 0.6689320423 | AW61: 0.5852202249 | AX61: 0.5022766658 | AY61: 0.424185504 | AZ61: 0.3534511389 | BA61: 0.2912663266 | BB61: 0.2378587759 | BC61: 0.1928229482 | BD61: 0.1553912237 | BE61: 0.1246322356 | BF61: 0.09958281314 | BG61: 0.0793274549 | BH61: 0.06304016743 | BI61: 0.05000136386 | BJ61: 0.03959946923 | BK61: 0.03132399102 | BL61: 0.02475448953 | BM61: 0.01954818239 | BN61: 0.01542775312 | BO61: 0.012170178 | BP61: 0.009596919273 | BQ61: 0.007565560964 | BR61: 0.005962816144 | BS61: 0.004698764494 | BT61: 0.003702153842 | BU61: 0.002916599603 | BV61: 0.002297529041 | BW61: 0.001809735701 | BX61: 0.00142542912 | BY61: 0.001122683798 | BZ61: 0.0008842083259 | CA61: 0.0006963702037 | CB61: 0.0005484242536 | CC61: 0.0004319027336 | CD61: 0.0003401336536 | CE61: 0.0002678605814 | CF61: 0.0002109427032 | CG61: 0.0001661182886 | CH61: 0.0001308182143 | CI61: 0.0001030189869 | CJ61: 8.112691939e-05 | CK61: 6.38868734e-05 | CL61: 5.031036271e-05 | CM61: 3.961891743e-05 | CN61: 3.119947185e-05 | CO61: 2.456922583e-05 | CP61: 1.93479689e-05 | CQ61: 1.523628319e-05 | CR61: 1.199837669e-05 | CS61: 9.448563622e-06 | CT61: 7.440617297e-06 | CU61: 5.859385148e-06 | CV61: 4.614185475e-06 | CW61: 3.633607299e-06 | CX61: 2.861415222e-06 | CY61: 2.253324505e-06 | CZ61: 1.774461442e-06 | DA61: 1.397363422e-06 | DB61: 1.100403989e-06 | DC61: 8.665525959e-07 | DD61: 6.823979085e-07 | DE61: 5.373786881e-07 | DF61: 4.231780981e-07 | DG61: 3.332467489e-07 | DH61: 2.624270838e-07 | DI61: 2.066576019e-07 | DJ61: 1.627399261e-07 | DK61: 1.281553789e-07 | DL61: 1.009205393e-07 | DM61: 7.947348977e-08 | DN61: 6.258424372e-08 | DO61: 4.928420245e-08 | DP61: 3.881060839e-08 | DQ61: 3.05628013e-08 | DR61: 2.406777199e-08 | DS61: 1.895302824e-08 | DT61: 1.492524001e-08 | DU61: 1.175341487e-08 | DV61: 9.255646857e-09 | DW61: 7.288690357e-09 | DX61: 5.739739813e-09 | DY61: 4.519963532e-09
